{"text_format":"3","workbook":"xlsx","n_sheets":29,"sheets":["Instructions","Summary V24","Signatures","Narrative Examples","24.01","24.02","24.03","24.04","24.05","24.06","24.07","24.08","24.09","24.10","24.11","24.12","24.13","24.14","24.15","24.16","24.17","24.18","24.19","24.20","RECONCILIATION","NOJC Review","DATA","key","LISTS"],"not_rendered":{"images":1,"external_links":4,"defined_names":68,"comments":19},"read":"whole","date_system":"1900"}

{"sheet":"Instructions","index":0,"n_rows":13,"n_cols":2,"rows_kept":13,"merged":[[0,0,0,9],[1,0,1,9],[2,0,2,9],[3,0,3,9],[4,1,4,9],[5,1,5,9],[6,1,6,9],[7,1,7,9],[8,1,8,9],[9,1,9,9],[10,1,10,9],[11,1,11,9],[12,0,12,9],[13,0,13,9]]}
["PURPOSE: To summarize and request approval for annual plan of Career Technical Skills Training (CTST) projects for Job Corps Centers.  All data related to all PY 2024 CTST projects shall be housed within this spreadsheet, including project requests, descriptions, costs, and expenditures. "]
[]
["FORM:  In its entirety, the form is comprised of 26 tabs.  Centers shall complete only the tabs highlighted in GREEN.  The tabs highlighted in RED are for National Office of Job Corps use only.  Please complete a number of tabs (24.01-24.20) equal to the number of individual projects being requested.  For example, if a center is requesting 6 projects, tabs 24.01-24.06 will be completed in addition to the \"Signatures\" tab.  All fields in the \"Summary\" tab will automatically populate."]
["Desription of tabs: "]
[null,"INSTRUCTIONS"]
[null,"SUMMARY:  List of all project and total costs for the applicable Program Year.  Please do not attempt to manipulate any cell or enter any data on the Summary tab. THIS TAB AUTO POPULATES from all other TABS"]
[null,"SIGNATURES:  Each center must affix signatures of all responsible parties.  Please note that signatures represent the request approval of center leadership of all projects and associated costs listed throughout this form.  If personnel titles do not match those on center, please customize and/or use the \"Other\" line items.  Please follow the instructions at the top of the Signatures tab regarding where to paste the completed form.  Note that the form has been modified to allow posting of the .pdf at the top of the Signatures tab.  "]
[null,"Narrative Examples:  Provides examples of individual project descriptions from Appendix 303b of the Job Corps Policy and Requirements Handbook.  Users of this form should refer to the examples provided when completing tabs 24.01-24.20.  Project descriptions that are not written to be satisfactorily consise and/or do not provide a sufficient description of the proposed project will be returned to the requesting center to be re-written. "]
[null,"24.01 - 24.20:  Each tab represents an individual CTST project for which the applicable center is requesting funding.  If a center is requesting approval for more than 20 projects, please contact the National Office of Job Corps as soon as possible.  Please do not delete unused tabs; or add new tabs; as doing so will negate formulas throughout the workbook.  "]
[null,"RECONCILIATION:  Centers will enter the amount of funds spent for each project as of December 31, 2024 and June 30, 2025.  Please use the \"Comments\" section of the Reconciliation tab to reflect any issues with the obligation and/or spending of CTST funds.  Please do not remove the RECONCILIATION tab from this spreadsheet and post elsewhere. "]
[null,"NOJC Review: Office of Job Corps use only.  Please do not attempt to manipulate any cell or enter any data on the NOJC Review tab. NOTE: You can review the 10 CTST standards to ensure you have completed the form properly. THIS IS A READ ONLY TAB."]
[]
[" "]

{"sheet":"Summary V24","index":1,"n_rows":25,"n_cols":14,"rows_kept":25,"merged":[[0,1,0,2],[0,4,0,6],[0,7,0,8],[0,9,0,11],[1,0,1,1],[1,2,1,5],[1,6,1,9],[1,10,1,13],[2,0,2,2],[2,3,2,4],[2,5,2,7],[2,8,2,10],[2,11,2,13],[3,1,3,10],[4,1,4,10],[5,1,5,10],[6,1,6,10],[7,1,7,10],[8,1,8,10],[9,1,9,10],[10,1,10,10],[11,1,11,10],[12,1,12,10],[13,1,13,10],[14,1,14,10],[15,1,15,10],[16,1,16,10],[17,1,17,10],[18,1,18,10],[19,1,19,10],[20,1,20,10],[21,1,21,10],[22,1,22,10],[23,1,23,10],[24,0,24,10]]}
["Region",{"$f":"IFERROR('24.01'!B1,\"\")","v":""},null,"Center",{"$f":"IFERROR('24.01'!D1,\"\")","v":0},null,null,"Total Request",null,{"$f":"L25","v":{"v":0,"d":"$0"}},null,null,"PY ",2024]
[" PLAN SUMMARY ",null,"20 CTST slots x $500 = $10,000",{"$nulls":3},"24 CTST slots x $500 = $12,000",{"$nulls":3},"30 CTST slots x $500 = $15,000"]
["Total # Center CTST Slots",null,null,{"$f":"SUM(L25/500)","v":0},null,"Total CTST $ Requested",null,null,{"$f":"L25","v":{"v":0,"d":"$0"}}]
["Project ID","Project Title",{"$nulls":9},"Total Cost","Est. Value","Approval Status"]
[{"$f":"'24.01'!I1","v":24.01},{"$f":"IF(ISBLANK('24.01'!B2),\"\",'24.01'!B2)","v":""},{"$nulls":9},{"$f":"'24.01'!I17","v":{"v":0,"d":"$0"}},{"$f":"'24.01'!F8","v":{"v":0,"d":"$0"}}]
[{"$f":"'24.02'!I1","v":24.02},{"$f":"IF(ISBLANK('24.02'!B2),\"\",'24.02'!B2)","v":""},{"$nulls":9},{"$f":"'24.02'!I17","v":{"v":0,"d":"$0"}},{"$f":"'24.02'!F8","v":{"v":0,"d":"$0"}}]
[{"$f":"'24.03'!I1","v":24.03},{"$f":"IF(ISBLANK('24.03'!B2),\"\",'24.03'!B2)","v":""},{"$nulls":9},{"$f":"'24.03'!I17","v":{"v":0,"d":"$0"}},{"$f":"'24.03'!F8","v":{"v":0,"d":"$0"}}]
[{"$f":"'24.04'!I1","v":24.04},{"$f":"IF(ISBLANK('24.04'!B2),\"\",'24.04'!B2)","v":""},{"$nulls":9},{"$f":"'24.04'!I17","v":{"v":0,"d":"$0"}},{"$f":"'24.04'!F8","v":{"v":0,"d":"$0"}}]
[{"$f":"'24.05'!I1","v":24.05},{"$f":"IF(ISBLANK('24.05'!B2),\"\",'24.05'!B2)","v":""},{"$nulls":9},{"$f":"'24.05'!I17","v":{"v":0,"d":"$0"}},{"$f":"'24.05'!F8","v":{"v":0,"d":"$0"}}]
[{"$f":"'24.06'!I1","v":24.06},{"$f":"IF(ISBLANK('24.06'!B2),\"\",'24.06'!B2)","v":""},{"$nulls":9},{"$f":"'24.06'!I17","v":{"v":0,"d":"$0"}},{"$f":"'24.06'!F8","v":{"v":0,"d":"$0"}}]
[{"$f":"'24.07'!I1","v":24.07},{"$f":"IF(ISBLANK('24.07'!B2),\"\",'24.07'!B2)","v":""},{"$nulls":9},{"$f":"'24.07'!I17","v":{"v":0,"d":"$0"}},{"$f":"'24.07'!F8","v":{"v":0,"d":"$0"}}]
[{"$f":"'24.08'!I1","v":24.08},{"$f":"IF(ISBLANK('24.08'!B2),\"\",'24.08'!B2)","v":""},{"$nulls":9},{"$f":"'24.08'!I17","v":{"v":0,"d":"$0"}},{"$f":"'24.08'!F8","v":{"v":0,"d":"$0"}}]
[{"$f":"'24.09'!I1","v":24.09},{"$f":"IF(ISBLANK('24.09'!B2),\"\",'24.09'!B2)","v":""},{"$nulls":9},{"$f":"'24.09'!I17","v":{"v":0,"d":"$0"}},{"$f":"'24.09'!F8","v":{"v":0,"d":"$0"}}]
[{"$f":"'24.10'!I1","v":{"v":24.1,"d":"24.10"}},{"$f":"IF(ISBLANK('24.10'!B2),\"\",'24.10'!B2)","v":""},{"$nulls":9},{"$f":"'24.10'!I17","v":{"v":0,"d":"$0"}},{"$f":"'24.10'!F8","v":{"v":0,"d":"$0"}}]
[{"$f":"'24.11'!I1","v":24.11},{"$f":"IF(ISBLANK('24.11'!B2),\"\",'24.11'!B2)","v":""},{"$nulls":9},{"$f":"'24.11'!I17","v":{"v":0,"d":"$0"}},{"$f":"'24.11'!F8","v":{"v":0,"d":"$0"}}]
[{"$f":"'24.12'!I1","v":24.12},{"$f":"IF(ISBLANK('24.12'!B2),\"\",'24.12'!B2)","v":""},{"$nulls":9},{"$f":"'24.12'!I17","v":{"v":0,"d":"$0"}},{"$f":"'24.12'!F8","v":{"v":0,"d":"$0"}}]
[{"$f":"'24.13'!I1","v":24.13},{"$f":"IF(ISBLANK('24.13'!B2),\"\",'24.13'!B2)","v":""},{"$nulls":9},{"$f":"'24.13'!I17","v":{"v":0,"d":"$0"}},{"$f":"'24.13'!F8","v":{"v":0,"d":"$0"}}]
[{"$f":"'24.14'!I1","v":24.14},{"$f":"IF(ISBLANK('24.14'!B2),\"\",'24.14'!B2)","v":""},{"$nulls":9},{"$f":"'24.14'!I17","v":{"v":0,"d":"$0"}},{"$f":"'24.14'!F8","v":{"v":0,"d":"$0"}}]
[{"$f":"'24.15'!I1","v":24.15},{"$f":"IF(ISBLANK('24.15'!B2),\"\",'24.15'!B2)","v":""},{"$nulls":9},{"$f":"'24.15'!I17","v":{"v":0,"d":"$0"}},{"$f":"'24.15'!F8","v":{"v":0,"d":"$0"}}]
[{"$f":"'24.16'!I1","v":24.16},{"$f":"IF(ISBLANK('24.16'!B2),\"\",'24.16'!B2)","v":""},{"$nulls":9},{"$f":"'24.16'!I17","v":{"v":0,"d":"$0"}},{"$f":"'24.16'!F8","v":{"v":0,"d":"$0"}}]
[{"$f":"'24.17'!I1","v":24.17},{"$f":"IF(ISBLANK('24.17'!B2),\"\",'24.17'!B2)","v":""},{"$nulls":9},{"$f":"'24.17'!I17","v":{"v":0,"d":"$0"}},{"$f":"'24.17'!F8","v":{"v":0,"d":"$0"}}]
[{"$f":"'24.18'!I1","v":24.18},{"$f":"IF(ISBLANK('24.18'!B2),\"\",'24.18'!B2)","v":""},{"$nulls":9},{"$f":"'24.18'!I17","v":{"v":0,"d":"$0"}},{"$f":"'24.18'!F8","v":{"v":0,"d":"$0"}}]
[{"$f":"'24.19'!I1","v":24.19},{"$f":"IF(ISBLANK('24.19'!B2),\"\",'24.19'!B2)","v":""},{"$nulls":9},{"$f":"'24.19'!I17","v":{"v":0,"d":"$0"}},{"$f":"'24.19'!F8","v":{"v":0,"d":"$0"}}]
[{"$f":"'24.20'!I1","v":{"v":24.2,"d":"24.20"}},{"$f":"IF(ISBLANK('24.20'!B2),\"\",'24.20'!B2)","v":""},{"$nulls":9},{"$f":"'24.20'!I17","v":{"v":0,"d":"$0"}},{"$f":"'24.20'!F8","v":{"v":0,"d":"$0"}}]
["TOTAL",{"$nulls":10},{"$f":"SUM(L5:L24)","v":{"v":0,"d":"$0"}},{"$f":"SUM(M5:M24)","v":{"v":0,"d":"$0"}}]

{"sheet":"Signatures","index":2,"n_rows":91,"n_cols":6,"rows_kept":91,"merged":[[0,0,0,7],[0,66,1,71],[1,0,1,7],[2,0,2,7],[3,0,3,7],[4,0,4,7],[5,0,6,1],[5,2,6,7],[7,0,8,1],[7,2,8,4],[7,5,8,5],[7,6,8,7],[9,0,10,1],[9,2,10,7],[11,0,11,7],[12,0,12,7],[13,0,14,1],[15,0,16,1],[15,2,16,4],[15,5,16,5],[15,6,16,7],[17,0,18,1],[17,2,18,7],[19,0,19,7],[20,0,20,7],[21,0,22,1],[21,2,22,7],[23,0,24,1],[23,2,24,4],[23,5,24,5],[23,6,24,7],[25,0,26,1],[25,2,26,7],[27,0,27,7],[28,0,28,7],[29,0,30,1],[29,2,30,7],[31,0,32,1],[31,2,32,4],[31,5,32,5],[31,6,32,7],[33,0,34,1],[33,2,34,7],[35,0,35,7],[36,0,36,7],[37,0,38,1],[37,2,38,7],[39,0,40,1],[39,2,40,4],[39,5,40,5],[39,6,40,7],[41,0,42,1],[41,2,42,7],[43,0,43,7],[44,0,44,7],[45,0,45,7],[46,0,47,1],[46,2,47,7],[48,0,49,1],[48,2,49,4],[48,5,49,5],[48,6,49,7],[50,0,51,1],[50,2,51,7],[52,0,52,7],[53,0,53,7],[54,0,55,1],[54,2,55,7],[56,0,57,1],[56,2,57,4],[56,5,57,5],[56,6,57,7],[58,0,59,1],[58,2,59,7],[60,0,60,7],[61,0,61,7],[62,0,63,1],[62,2,63,7],[64,0,65,1],[64,2,65,4],[64,5,65,5],[64,6,65,7],[66,0,67,1],[66,2,67,7],[68,0,68,7],[69,0,69,7],[70,0,71,1],[70,2,71,7],[72,0,73,1],[72,2,73,4],[72,5,73,5],[72,6,73,7],[74,0,75,1],[74,2,75,7],[76,0,76,7],[77,0,77,7],[78,0,79,1],[78,2,79,7],[80,0,81,1],[80,2,81,4],[80,5,81,5],[80,6,81,7],[82,0,83,1],[82,2,83,7],[84,0,84,7],[85,0,85,7],[86,0,87,1],[86,2,87,7],[88,0,89,1],[88,2,89,4],[88,5,89,5],[88,6,89,7],[90,0,91,1],[90,2,91,7],[92,0,92,7]]}
["PRINT this page; have all applicable staff members SIGN it; SCAN it as a pdf; and ATTACH the pdf to cell A3 below.  Missing signatures will delay review of or result in a decline of a CTST project and/or plan.  CENTER LEADERSHIP: Please ensure all projects have been reviewed for content and accuracy before signing. \n\n"]
["Instructions to insert an attachment:  (1) Click in cell A3 below (highlighted in green).  (2) On the \"Insert\" tab above (tools ribbon), select \"Object\" in the \"Text\" grouping.  (3) In the \"Object\" dialogue box, select \"Create from file\" (tab at the top of the dialogue box).  (4) Select \"Browse\" and find in your desktop the file you want to insert.  (5) Select \"Display as icon\" box in \"Object\" dialogue box.  (6) Select \"OK.\"  An icon should represent the attachment.  It may be necessary to click and drag to reposition the icon."]
[]
[]
["Instructor/NTC Representative"]
["Signature:"]
[]
["Print/Type Name:",{"$nulls":4},"Date:"]
[]
["Title:"]
[]
[]
["Instructor/NTC Representative"]
["Signature:"]
[]
["Print/Type Name:",{"$nulls":4},"Date:"]
[]
["Title:"]
[]
[]
["Instructor/NTC Representative"]
["Signature:"]
[]
["Print/Type Name:",{"$nulls":4},"Date:"]
[]
["Title:"]
[]
[]
["Instructor/NTC Representative"]
["Signature:"]
[]
["Print/Type Name:",{"$nulls":4},"Date:"]
[]
["Title:"]
[]
[]
["Instructor/NTC Representative"]
["Signature:"]
[]
["Print/Type Name:",{"$nulls":4},"Date:"]
[]
["Title:"]
[]
[]
[]
["Safety Coordinator"]
["Signature:"]
[]
["Print/Type Name:",{"$nulls":4},"Date:"]
[]
["Title:"]
[]
[]
["CTT Manager/CTST Coordinator"]
["Signature:"]
[]
["Print/Type Name:",{"$nulls":4},"Date:"]
[]
["Title:"]
[]
[]
["Center Director"]
["Signature:"]
[]
["Print/Type Name:",{"$nulls":4},"Date:"]
[]
["Title:"]
[]
[]
["Other"]
["Signature:"]
[]
["Print/Type Name:",{"$nulls":4},"Date:"]
[]
["Title:"]
[]
[]
["Other"]
["Signature:"]
[]
["Print/Type Name:",{"$nulls":4},"Date:"]
[]
["Title:"]
[]
[]
["Other"]
["Signature:"]
[]
["Print/Type Name:",{"$nulls":4},"Date:"]
[]
["Title:"]

{"sheet":"Narrative Examples","index":3,"n_rows":19,"n_cols":2,"rows_kept":19,"merged":[[0,0,0,10],[2,0,2,10],[4,1,4,10],[6,1,6,10],[8,0,8,10],[10,1,10,10],[12,1,12,10],[14,0,14,10],[16,1,16,10],[18,1,18,10]]}
["The Project Description and Training Description should address the “who, what, where and how” of what the projects is and the training the students will perform. The narrative descriptions are to be inserted in the box labeled \"Project Description and Training Narrative\" on each CTST project tab. These are presented as examples only.  "]
[]
["Female Dorm Light Fixture Replacement"]
[]
[null,"PROJECT DESCRIPTION: The Electrician students propose to repair and/or replace fluorescent lighting fixtures throughout the female dorm (BLD #7), and remove and replace non-working fluorescent lamp ballasts, and replace lamps with energy-efficient T5 bulbs. Students will remove and replace broken light switches; and will install new receptacles, lights, and switches as required. Drawings/Pictures have been provided in attachment section of the individual project tab."]
[]
[null,"TRAINING DESCRIPTION: The Electrician students will receive Occupational Safety and Health Administration (OSHA) 10 safety training, and will learn and demonstrate all jobsite safety. They will receive training in proper installation of light fixtures, receptacles and switches following all applicable local and National Electrical Codes (NEC). They will receive training in construction math, and demonstrate the proper use of hand and power tools and personal protective equipment (PPE). When completed with project, they will learn how to test circuits for proper operation, and will be able to explain lockout/tag out procedures. The students will learn and practice the Career Success Skills, as well as the employability skills needed to become successful in their personal and professional lives."]
[]
["Cement Mason Miscellaneous"]
[]
[null,"PROJECT DESCRIPTION: The Cement Mason trade proposes to do a variety of concrete projects throughout the campus. This project will address problem areas where concrete walks, curbs and walls may need repair or replacement. These are projects of a small nature that do not require their own heading, but support the Academy's effort to maintain its facility, as well as support the community to include Construction Rehab projects, handicap access and parking, smoking areas; and support to the city/town/agency of XXXXX and Habitat for Humanity. Drawings/Pictures have been included in the attachment section of the individual project tab."]
[]
[null,"TRAINING DESCRIPTION: The Cement Mason students will receive training in concrete patching and repair, placement, screening and finishing, layout and sub-grade prep, form work, tool and job safety; and a variety of challenges from planning and excavation, to forming and pouring. All projects will provide excellent training for the students. They will receive training in construction math, and demonstrate the proper use of hand and power tools, and PPE. The students will learn and practice the Career Success Skills, as well as the employability skills needed to become successful in their personal and professional lives."]
[]
["Outdoor Pavilion"]
[]
[null,"PROJECT DESCRIPTION: The Carpentry students propose to construct a 24’X 48’pavilion. The location will be approximately 100 feet to the right of our gym (See footprint drawing attached). This will be a pressure treated wood structure with prefabricated engineered roof trusses, designed to code to handle the North East snow loads. Student will set concrete forms and pour a 24’ X 48’ X 6” concrete slab with reinforcement rod set to code. Students will screed and provide expansion joints as required. The Carpentry students will set 6 X 6 pressure-treated post every 8 feet with 2 X 10 double carrier’s for the rafters to set on. After rafters are set students will install purlins and metal roofing sheets. The Electrical students will install outdoor lighting using low energy LED lights throughout the ceiling area and will install solar lighting at ground level around perimeter of the pavilion (Engineered Blueprints of the pavilion are attached in the attachment section of the individual project tab)."]
[]
[null,"TRAINING DESCRIPTION: The Carpentry students will receive OSHA 10 safety training, and will learn and demonstrate all jobsite safety. They will receive training in proper installation of concrete forms, setting of post and installation of roof rafters following all local, state and federal building codes. Electrician students will receive training on installation of light fixtures, receptacles and switches following all applicable local and NEC codes. They will receive training in construction math, and demonstrate the proper use of hand and power tools, and PPE. When completed with project, they will learn how to test circuits for proper operation, and will be able to explain lockout/tag out procedures. The students will learn and practice the Career Success Skills, as well as the employability skills needed to become successful in their personal and professional lives."]

{"sheet":"24.01","index":4,"n_rows":167,"n_cols":9,"rows_kept":167,"merged":[[0,3,0,4],[1,1,1,3],[1,4,1,6],[1,7,1,8],[7,1,7,2],[7,3,7,4],[7,7,7,8],[8,0,8,8],[9,0,9,7],[10,0,10,7],[11,0,11,7],[12,0,12,7],[13,0,13,7],[14,0,14,7],[15,0,15,7],[16,0,16,7],[17,0,17,8],[18,0,18,8],[19,0,19,8],[20,0,20,8],[21,0,21,8],[22,0,22,5],[23,0,23,5],[24,0,24,5],[25,0,25,5],[26,0,26,5],[27,0,27,5],[28,0,28,5],[29,0,29,5],[30,0,30,5],[31,0,31,5],[32,0,32,5],[33,0,33,5],[34,0,34,5],[35,0,35,5],[36,0,36,5],[37,0,37,5],[38,0,38,5],[39,0,39,5],[40,0,40,5],[41,0,41,5],[42,0,42,5],[43,0,43,5],[44,0,44,5],[45,0,45,5],[46,0,46,7],[47,0,47,5],[48,0,48,5],[49,0,49,5],[50,0,50,5],[51,0,51,5],[52,0,52,5],[53,0,53,5],[54,0,54,5],[55,0,55,7],[56,0,56,5],[57,0,57,5],[58,0,58,5],[59,0,59,5],[60,0,60,5],[61,0,61,7],[62,0,62,8],[63,0,63,5],[64,0,64,5],[65,0,65,5],[66,0,66,5],[67,0,67,5],[68,0,68,7],[69,0,69,5],[70,0,70,5],[71,0,71,5],[72,0,72,5],[73,0,73,5],[74,0,74,7],[75,0,75,5],[76,0,76,5],[77,0,77,5],[78,0,78,5],[79,0,79,5],[80,0,80,7],[81,0,81,7],[82,0,82,4],[82,5,82,7],[83,0,83,4],[83,5,83,7],[84,0,84,4],[84,5,84,7],[85,0,85,4],[85,5,85,7],[86,0,86,4],[86,5,86,7],[87,0,87,4],[87,5,87,7],[88,0,88,4],[88,5,88,7],[89,0,89,4],[89,5,89,7],[90,0,90,4],[90,5,90,7],[91,0,91,4],[91,5,91,7],[92,0,92,4],[92,5,92,7],[93,0,93,8],[94,0,94,8],[95,0,95,8],[96,0,96,2],[96,3,96,8],[97,0,97,2],[97,3,97,8],[98,0,98,2],[98,3,98,8],[99,0,99,2],[99,3,99,8],[100,0,100,2],[100,3,100,8],[101,0,101,2],[101,3,101,8],[102,0,102,2],[102,3,102,8],[103,0,103,2],[103,3,103,8],[104,0,104,2],[104,3,104,8],[105,0,105,2],[106,0,106,2],[106,3,106,8],[107,0,107,8],[108,0,108,1],[108,3,108,5],[108,6,108,8],[109,0,109,8],[110,0,110,7],[111,1,111,7],[112,1,112,7],[113,1,113,7],[114,1,114,7],[115,0,115,7],[117,1,117,7],[118,1,118,7],[119,1,119,7],[120,1,120,7],[121,1,121,7],[122,1,122,7],[123,1,123,7],[124,1,124,7],[125,1,125,7],[126,1,126,7],[128,1,128,7],[129,1,129,7],[130,1,130,7],[131,1,131,7],[132,1,132,7],[134,1,134,7],[135,1,135,7],[136,1,136,7],[137,1,137,7],[138,1,138,7],[139,1,139,7],[140,0,140,7],[141,1,141,7],[143,1,143,7],[144,1,144,7],[145,1,145,7],[146,1,146,7],[147,1,147,7],[148,0,148,7],[149,1,149,7],[150,1,150,7],[151,1,151,7],[152,1,152,7],[153,0,153,7],[155,1,155,7],[156,1,156,7],[157,1,157,7],[158,1,158,7],[159,1,159,7],[160,0,160,8],[161,0,161,8],[162,0,162,8],[163,0,163,8],[164,0,164,8],[165,0,165,8],[166,0,166,7]]}
["REGION",{"$f":"IFERROR(VLOOKUP(D1,CENTER_REGION_MATCH,2,FALSE),\"\")","v":""},"CENTER",null,null,"START DATE",null,"PROJECT ID",24.01]
["PROJECT TITLE",{"$nulls":3},"ESTIMATED # DAYS TO COMPLETE",null,null,{"$f":"SUM(C4,C5,C6,C7,F4,F5,F6,F7,I4,I5,I6,I7)","v":0}]
["TRADE","# SLOTS","WORK DAYS","TRADE","# SLOTS","WORK DAYS","TRADE","# SLOTS","WORK DAYS"]
[]
[]
[]
[]
["Total CTST Slots",{"$f":"SUM(B4:B7,E4:E7,H4:H7)","v":0},null,"Estimated VALUE of Project",null,{"$f":"(2*I17)","v":{"v":0,"d":"$0.00"}},"Cost/Slot",{"$f":"IF(B8=0,0,SUM(I17/B8))","v":{"v":0,"d":"$0.00"}}]
[]
["CATEGORY",{"$nulls":7},"Subtotal"]
["MATERIALS AND SUPPLIES",{"$nulls":7},{"$f":"I47","v":{"v":0,"d":"$0"}}]
["JOB-SITE POWER TOOLS AND EQUIPMENT",{"$nulls":7},{"$f":"I56","v":{"v":0,"d":"$0"}}]
["EQUIPMENT RENTAL",{"$nulls":7},{"$f":"I62","v":{"v":0,"d":"$0"}}]
["CONTRACTED SERVICES",{"$nulls":7},{"$f":"I69","v":{"v":0,"d":"$0"}}]
["AGENCY TECHNICAL SERVICES",{"$nulls":7},{"$f":"I75","v":{"v":0,"d":"$0"}}]
["MOTOR VEHICLE OPERATIONS/MAINTENANCE",{"$nulls":7},{"$f":"I81","v":{"v":0,"d":"$0"}}]
["TOTAL",{"$nulls":7},{"$f":"SUM(I11:I16)","v":{"v":0,"d":"$0"}}]
["Project Description and Training Narrative.  Use ALT-ENTER to insert paragraph breaks.  Refer to \"Narrative Examples\" tab to the left for examples of acceptable project narratives. "]
["Supporting documents (drawings/blueprints/pictures) are recommended to be included in the \"Attachment\" section below if size limitations allow.  Files that cause this form to exceed the 15MB size limit are to be sent to the NOJC via CTTSubmissions@dol.gov.  If files have been sent seperately, indicate by checking this box: "]
[]
["Scroll down to populate MATERIALS AND SUPPLIES Estimate"]
["MATERIALS AND SUPPLIES Estimate"]
["MATERIAL OR SUPPLY Description (Qty./Unit)",{"$nulls":5},"# of Units","Unit Cost","Line Cost"]
[{"$nulls":8},{"$f":"SUM(G24*H24)","v":{"v":0,"d":"$0"}}]
[{"$nulls":8},{"$f":"SUM(G25*H25)","v":{"v":0,"d":"$0"}}]
[{"$nulls":8},{"v":0,"d":"$0"}]
[{"$nulls":8},{"v":0,"d":"$0"}]
[{"$nulls":8},{"v":0,"d":"$0"}]
[{"$nulls":8},{"v":0,"d":"$0"}]
[{"$nulls":8},{"v":0,"d":"$0"}]
[{"$nulls":8},{"v":0,"d":"$0"}]
[{"$nulls":8},{"v":0,"d":"$0"}]
[{"$nulls":8},{"v":0,"d":"$0"}]
[{"$nulls":8},{"v":0,"d":"$0"}]
[{"$nulls":8},{"v":0,"d":"$0"}]
[{"$nulls":8},{"v":0,"d":"$0"}]
[{"$nulls":8},{"v":0,"d":"$0"}]
[{"$nulls":8},{"v":0,"d":"$0"}]
[{"$nulls":8},{"v":0,"d":"$0"}]
[{"$nulls":8},{"v":0,"d":"$0"}]
[{"$nulls":8},{"v":0,"d":"$0"}]
[{"$nulls":8},{"v":0,"d":"$0"}]
[{"$nulls":8},{"v":0,"d":"$0"}]
[{"$nulls":8},{"v":0,"d":"$0"}]
[{"$nulls":8},{"v":0,"d":"$0"}]
[{"$nulls":8},{"v":0,"d":"$0"}]
["TOTAL COST",{"$nulls":7},{"$f":"SUM(I24:I46)","v":{"v":0,"d":"$0"}}]
["JOB-SITE POWER TOOLS AND EQUIPMENT Estimate",{"$nulls":5},"Quantity","Unit Cost ","Line Cost"]
[{"$nulls":8},{"$f":"SUM(G49*H49)","v":{"v":0,"d":"$0"}}]
[{"$nulls":8},{"$f":"SUM(G50*H50)","v":{"v":0,"d":"$0"}}]
[{"$nulls":8},{"v":0,"d":"$0"}]
[{"$nulls":8},{"v":0,"d":"$0"}]
[{"$nulls":8},{"v":0,"d":"$0"}]
[{"$nulls":8},{"v":0,"d":"$0"}]
[{"$nulls":8},{"v":0,"d":"$0"}]
["TOTAL COST",{"$nulls":7},{"$f":"SUM(I49:I55)","v":{"v":0,"d":"$0"}}]
["EQUIPMENT RENTAL Estimate",{"$nulls":5},"Quantity","Unit Cost ","Line Cost"]
[{"$nulls":8},{"$f":"SUM(G58*H58)","v":{"v":0,"d":"$0"}}]
[{"$nulls":8},{"$f":"SUM(G59*H59)","v":{"v":0,"d":"$0"}}]
[{"$nulls":8},{"$f":"SUM(G60*H60)","v":{"v":0,"d":"$0"}}]
[{"$nulls":8},{"$f":"SUM(G61*H61)","v":{"v":0,"d":"$0"}}]
["TOTAL COST",{"$nulls":7},{"$f":"SUM(I58:I61)","v":{"v":0,"d":"$0"}}]
["Scroll down to populate CONTRACTED SERVICES Estimate"]
["CONTRACTED SERVICES Estimate",{"$nulls":5},"Quantity","Unit Cost","Line Cost"]
[{"$nulls":8},{"$f":"SUM(G65*H65)","v":{"v":0,"d":"$0"}}]
[{"$nulls":8},{"$f":"SUM(G66*H66)","v":{"v":0,"d":"$0"}}]
[{"$nulls":8},{"$f":"SUM(G67*H67)","v":{"v":0,"d":"$0"}}]
[{"$nulls":8},{"$f":"SUM(G68*H68)","v":{"v":0,"d":"$0"}}]
["TOTAL COST",{"$nulls":7},{"$f":"SUM(I65:I68)","v":{"v":0,"d":"$0"}}]
["AGENCY TECHNICAL SERVICES Estimate",{"$nulls":5},"Quantity","Unit Cost","Line Cost"]
[{"$nulls":8},{"$f":"SUM(G71*H71)","v":{"v":0,"d":"$0"}}]
[{"$nulls":8},{"$f":"SUM(G72*H72)","v":{"v":0,"d":"$0"}}]
[{"$nulls":8},{"$f":"SUM(G73*H73)","v":{"v":0,"d":"$0"}}]
[{"$nulls":8},{"$f":"SUM(G74*H74)","v":{"v":0,"d":"$0"}}]
["TOTAL COST",{"$nulls":7},{"$f":"SUM(I71:I74)","v":{"v":0,"d":"$0"}}]
["MOTOR VEHICLE OPERATIONS/MAINTENANCE Estimate",{"$nulls":5},"Quantity","Unit Cost","Line Cost"]
[{"$nulls":8},{"$f":"SUM(G77*H77)","v":{"v":0,"d":"$0"}}]
[{"$nulls":8},{"$f":"SUM(G78*H78)","v":{"v":0,"d":"$0"}}]
[{"$nulls":8},{"$f":"SUM(G79*H79)","v":{"v":0,"d":"$0"}}]
[{"$nulls":8},{"$f":"SUM(G80*H80)","v":{"v":0,"d":"$0"}}]
["TOTAL COST",{"$nulls":7},{"$f":"SUM(I77:I80)","v":{"v":0,"d":"$0"}}]
["SAFETY HAZARD ANALYSIS"]
["ACTION/HAZARD DESCRIPTION",{"$nulls":4},"PROPOSED CONTROL/ABATEMENT"]
{"$rows_empty":10}
["ATTACHMENTS"]
["Required attachments include site/structure drawings (including basic project dimensions and important structural measurements) and, if major systems alteration/addition is included in the project, systems detail drawing(s).  Acceptable file types for attachments include those with extensions: \n.avi, .bmp, .csv, .doc, .docx, .dwf, .dwg, .gif, .htm, .html, .jpg, .jpeg, .mpg, .mpp, .mp4, .pdf, .png, .pub, .rtf, .tif, .tiff, .txt, .wmf, .wmv, .xls, .xlsx, .xps"]
["Instructions to insert an attachment in Excel:  (1) Click the cell in which you would like the attachment to show.  (2) On the \"Insert\" tab above (tools ribbon), select \"Object\" (in the \"Text\" grouping).  (3) In the \"Object\" dialogue box, select \"Create from file.\"  (4) Select \"Browse\" and find the file you want to insert from your desktop.  (5) Select \"Display as icon\" box in \"Object\" dialogue box. (6) Select \"OK.\"  An icon should represent the attachment.  Provide a succinct summary of the attachment in the \"Description\" column immediately to the right of each attachment.  "]
["Attachment",null,null,"Description"]
{"$rows_empty":10}
["STOP HERE.  DO NOT FILL IN ANY SECTIONS BELOW THIS POINT.  All FURTHER SECTIONS FOR NOJC USE ONLY."]
["DFAM ENTRY DATE",null,null,"DFAM REVIEWER"]
["CTST ENGINEERING REVIEW -- NOJC USE ONLY"]
["CONSISTENCY WITH THE CENTER’S LONG RANGE PLAN (LRP):"]
[1,"Is the proposed project located where future buildings, structures or extensions are proposed in the LRP?  "]
["1A","If NO to #1, is the proposed project in close proximity to future LRP structures such that the functioning of both may be adversely affected?"]
[2,"Has the Center submitted a campus Site Plan clearly showing the proposed location of the project?"]
[3,"Does the proposed project affect the space utilization allowances in the LRP?"]
["COMPLIANCE WITH APPLICABLE CODES"]
["Space/Use Re-configuration"]
[4,"Are the reconfigured spaces’ exit routes in compliance with fire egress requirements?"]
[5,"Are number of emergency egress points per current code requirements?"]
[6,"Are current fire alarm devices adequate per code to satisfy the new use of the space?  "]
["6A","If NO to #6, does the project allow for a fire alarm upgrade to comply with code?"]
[7,"Are the existing lighting levels consistent with code requirements for the new use(s)?"]
[8,"Can the new electrical and mechanical loads be accommodated within existing circuits in compliance with code?"]
[9,"Does the existing lighting and power outlet layout serve the new use adequately?  "]
["9A","If NO to #9, is the proposed revised layout in compliance with code?"]
[10,"Does the reconfigured space comply with ADA requirements where applicable?"]
[11,"Has the Center submitted drawings addressing the above issues clearly? (Architectural plan, electrical layouts, reflected ceiling plans, fire alarm system layouts, etc.)"]
["HVAC Equipment Upgrades"]
[12,"Is the proposed HVAC equipment an Energy Star high-efficiency model?"]
[13,"What type of refrigerant does the proposed equipment use?"]
[14,"Has the Center submitted manufacturer’s trade literature showing equipment specs, including SIR ratings and refrigerant type?"]
[15,"Has the Center submitted a mechanical drawing showing location of equipment and ductwork?"]
[16,"If students are to install the new equipment, has the Center made arrangements to have manufacturer-approved installer supervision so as to protect the warranty?"]
["Lighting/Power Upgrades"]
[17,"Does the project entail lighting fixture replacement, lamp/ballast replacement or both?"]
[18,"Does the project entail any re-wiring?"]
[19,"Does the project entail any additional electrical loads with respect to existing?"]
["19A","If YES to #19, does the project provide adequate documentation to demonstrate code compliance?"]
[20,"Has the Center submitted manufacturer’s trade literature showing fixture/lamp specs?"]
[21,"Has the Center submitted a proposed lighting layout drawing showing proposed new lighting fixture and power outlet layout?                                                                  "]
["STRUCTURAL INTEGRITY"]
[22,"Does the proposed project comprise a habitable structure?"]
[23,"If not habitable, does the structural stability of the project impinge on the life/safety of students and staff?"]
[24,"Has the project’s structure been designed and documented by a licensed engineer?"]
["24A","If YES to #24, has the Center presented engineer-stamped documents?"]
[25,"If not designed/stamped by a licensed engineer, does the project comply with prescriptive design parameters per IBC code? "]
["25A","If NO to #25, has the Center submitted clear and complete documentation demonstrating prescriptive design code compliance?"]
[26,"For roof structures based on truss designs, does the project propose off-the-shelf pre-engineered truss solutions?  "]
["If 'Yes' to #26, respond to #27-29; if 'No' skip to #30"]
[27,"Has the Center submitted pre-engineered truss drawings?"]
[28,"Has the Center submitted clear details of pre-engineered truss fastenings?"]
[29,"Are the roof loads adequately distributed to the footings?  "]
[30,"Has the Center provided adequate footings and foundation drawings?"]
["SUSTAINABILITY"]
["Does the proposed project include:"]
[31,"Environmentally-preferred products?"]
[32,"Bio-based products?"]
[33,"Recycled-content products?"]
[34,"Low-emitting materials?"]
[35,"High-efficiency water fixtures?"]
["DFAM Reviewer Notes"]
[]
["DFAM Approval Provision(s)"]
[]
["DFAM Decline Recommendation(s)"]
[]
["DFAM Reviewer Recommendation"]

{"sheet":"24.02","index":5,"n_rows":167,"n_cols":9,"rows_kept":167,"merged":[[0,3,0,4],[1,1,1,3],[1,4,1,6],[1,7,1,8],[7,1,7,2],[7,3,7,4],[7,7,7,8],[8,0,8,8],[9,0,9,7],[10,0,10,7],[11,0,11,7],[12,0,12,7],[13,0,13,7],[14,0,14,7],[15,0,15,7],[16,0,16,7],[17,0,17,8],[18,0,18,8],[19,0,19,8],[20,0,20,8],[21,0,21,8],[22,0,22,5],[23,0,23,5],[24,0,24,5],[25,0,25,5],[26,0,26,5],[27,0,27,5],[28,0,28,5],[29,0,29,5],[30,0,30,5],[31,0,31,5],[32,0,32,5],[33,0,33,5],[34,0,34,5],[35,0,35,5],[36,0,36,5],[37,0,37,5],[38,0,38,5],[39,0,39,5],[40,0,40,5],[41,0,41,5],[42,0,42,5],[43,0,43,5],[44,0,44,5],[45,0,45,5],[46,0,46,7],[47,0,47,5],[48,0,48,5],[49,0,49,5],[50,0,50,5],[51,0,51,5],[52,0,52,5],[53,0,53,5],[54,0,54,5],[55,0,55,7],[56,0,56,5],[57,0,57,5],[58,0,58,5],[59,0,59,5],[60,0,60,5],[61,0,61,7],[62,0,62,8],[63,0,63,5],[64,0,64,5],[65,0,65,5],[66,0,66,5],[67,0,67,5],[68,0,68,7],[69,0,69,5],[70,0,70,5],[71,0,71,5],[72,0,72,5],[73,0,73,5],[74,0,74,7],[75,0,75,5],[76,0,76,5],[77,0,77,5],[78,0,78,5],[79,0,79,5],[80,0,80,7],[81,0,81,7],[82,0,82,4],[82,5,82,7],[83,0,83,4],[83,5,83,7],[84,0,84,4],[84,5,84,7],[85,0,85,4],[85,5,85,7],[86,0,86,4],[86,5,86,7],[87,0,87,4],[87,5,87,7],[88,0,88,4],[88,5,88,7],[89,0,89,4],[89,5,89,7],[90,0,90,4],[90,5,90,7],[91,0,91,4],[91,5,91,7],[92,0,92,4],[92,5,92,7],[93,0,93,8],[94,0,94,8],[95,0,95,8],[96,0,96,2],[96,3,96,8],[97,0,97,2],[97,3,97,8],[98,0,98,2],[98,3,98,8],[99,0,99,2],[99,3,99,8],[100,0,100,2],[100,3,100,8],[101,0,101,2],[101,3,101,8],[102,0,102,2],[102,3,102,8],[103,0,103,2],[103,3,103,8],[104,0,104,2],[104,3,104,8],[105,0,105,2],[105,3,105,8],[106,0,106,2],[106,3,106,8],[107,0,107,8],[108,0,108,1],[108,3,108,5],[108,6,108,8],[109,0,109,8],[110,0,110,7],[111,1,111,7],[112,1,112,7],[113,1,113,7],[114,1,114,7],[115,0,115,7],[117,1,117,7],[118,1,118,7],[119,1,119,7],[120,1,120,7],[121,1,121,7],[122,1,122,7],[123,1,123,7],[124,1,124,7],[125,1,125,7],[126,1,126,7],[128,1,128,7],[129,1,129,7],[130,1,130,7],[131,1,131,7],[132,1,132,7],[134,1,134,7],[135,1,135,7],[136,1,136,7],[137,1,137,7],[138,1,138,7],[139,1,139,7],[140,0,140,7],[141,1,141,7],[143,1,143,7],[144,1,144,7],[145,1,145,7],[146,1,146,7],[147,1,147,7],[148,0,148,7],[149,1,149,7],[150,1,150,7],[151,1,151,7],[152,1,152,7],[153,0,153,7],[155,1,155,7],[156,1,156,7],[157,1,157,7],[158,1,158,7],[159,1,159,7],[160,0,160,8],[161,0,161,8],[162,0,162,8],[163,0,163,8],[164,0,164,8],[165,0,165,8],[166,0,166,7]]}
["REGION",{"$f":"IFERROR(VLOOKUP(D1,CENTER_REGION_MATCH,2,FALSE),\"\")","v":""},"CENTER",{"$f":"IF(ISBLANK('24.01'!D1),\"\",'24.01'!D1)","v":""},null,"START DATE",null,"PROJECT ID",24.02]
["PROJECT TITLE",{"$nulls":3},"ESTIMATED # DAYS TO COMPLETE",null,null,{"$f":"SUM(C4,C5,C6,C7,F4,F5,F6,F7,I4,I5,I6,I7)","v":0}]
["TRADE","# SLOTS","WORK DAYS","TRADE","# SLOTS","WORK DAYS","TRADE","# SLOTS","WORK DAYS"]
[]
[]
[]
[]
["Total CTST Slots",{"$f":"SUM(B4:B7,E4:E7,H4:H7)","v":0},null,"Estimated VALUE of Project",null,{"$f":"(2*I17)","v":{"v":0,"d":"$0.00"}},"Cost/Slot",{"$f":"IF(B8=0,0,SUM(I17/B8))","v":{"v":0,"d":"$0.00"}}]
[]
["CATEGORY",{"$nulls":7},"Subtotal"]
["MATERIALS AND SUPPLIES",{"$nulls":7},{"$f":"I47","v":{"v":0,"d":"$0"}}]
["JOB-SITE POWER TOOLS AND EQUIPMENT",{"$nulls":7},{"$f":"I56","v":{"v":0,"d":"$0"}}]
["EQUIPMENT RENTAL",{"$nulls":7},{"$f":"I62","v":{"v":0,"d":"$0"}}]
["CONTRACTED SERVICES",{"$nulls":7},{"$f":"I69","v":{"v":0,"d":"$0"}}]
["AGENCY TECHNICAL SERVICES",{"$nulls":7},{"$f":"I75","v":{"v":0,"d":"$0"}}]
["MOTOR VEHICLE OPERATIONS/MAINTENANCE",{"$nulls":7},{"$f":"I81","v":{"v":0,"d":"$0"}}]
["TOTAL",{"$nulls":7},{"$f":"SUM(I11:I16)","v":{"v":0,"d":"$0"}}]
["Project Description and Training Narrative.  Use ALT-ENTER to insert paragraph breaks.  Refer to \"Narrative Examples\" tab to the left for examples of acceptable project narratives. "]
["Supporting documents (drawings/blueprints/pictures) are recommended to be included in the \"Attachment\" section below if size limitations allow.  Files that cause this form to exceed the 15MB size limit are to be sent to the NOJC via CTTSubmissions@dol.gov.  If files have been sent seperately, indicate by checking this box: "]
[]
["Scroll down to populate MATERIALS AND SUPPLIES Estimate"]
["MATERIALS AND SUPPLIES Estimate"]
["MATERIAL OR SUPPLY Description (Qty./Unit)",{"$nulls":5},"# of Units","Unit Cost","Line Cost"]
[{"$nulls":8},{"$f":"SUM(G24*H24)","v":{"v":0,"d":"$0"}}]
[{"$nulls":8},{"$f":"SUM(G25*H25)","v":{"v":0,"d":"$0"}}]
[{"$nulls":8},{"v":0,"d":"$0"}]
[{"$nulls":8},{"v":0,"d":"$0"}]
[{"$nulls":8},{"v":0,"d":"$0"}]
[{"$nulls":8},{"v":0,"d":"$0"}]
[{"$nulls":8},{"v":0,"d":"$0"}]
[{"$nulls":8},{"v":0,"d":"$0"}]
[{"$nulls":8},{"v":0,"d":"$0"}]
[{"$nulls":8},{"v":0,"d":"$0"}]
[{"$nulls":8},{"v":0,"d":"$0"}]
[{"$nulls":8},{"v":0,"d":"$0"}]
[{"$nulls":8},{"v":0,"d":"$0"}]
[{"$nulls":8},{"v":0,"d":"$0"}]
[{"$nulls":8},{"v":0,"d":"$0"}]
[{"$nulls":8},{"v":0,"d":"$0"}]
[{"$nulls":8},{"v":0,"d":"$0"}]
[{"$nulls":8},{"v":0,"d":"$0"}]
[{"$nulls":8},{"v":0,"d":"$0"}]
[{"$nulls":8},{"v":0,"d":"$0"}]
[{"$nulls":8},{"v":0,"d":"$0"}]
[{"$nulls":8},{"v":0,"d":"$0"}]
[{"$nulls":8},{"v":0,"d":"$0"}]
["TOTAL COST",{"$nulls":7},{"$f":"SUM(I24:I46)","v":{"v":0,"d":"$0"}}]
["JOB-SITE POWER TOOLS AND EQUIPMENT Estimate",{"$nulls":5},"Quantity","Unit Cost ","Line Cost"]
[{"$nulls":8},{"$f":"SUM(G49*H49)","v":{"v":0,"d":"$0"}}]
[{"$nulls":8},{"$f":"SUM(G50*H50)","v":{"v":0,"d":"$0"}}]
[{"$nulls":8},{"v":0,"d":"$0"}]
[{"$nulls":8},{"v":0,"d":"$0"}]
[{"$nulls":8},{"v":0,"d":"$0"}]
[{"$nulls":8},{"v":0,"d":"$0"}]
[{"$nulls":8},{"v":0,"d":"$0"}]
["TOTAL COST",{"$nulls":7},{"$f":"SUM(I49:I55)","v":{"v":0,"d":"$0"}}]
["EQUIPMENT RENTAL Estimate",{"$nulls":5},"Quantity","Unit Cost ","Line Cost"]
[{"$nulls":8},{"$f":"SUM(G58*H58)","v":{"v":0,"d":"$0"}}]
[{"$nulls":8},{"$f":"SUM(G59*H59)","v":{"v":0,"d":"$0"}}]
[{"$nulls":8},{"$f":"SUM(G60*H60)","v":{"v":0,"d":"$0"}}]
[{"$nulls":8},{"$f":"SUM(G61*H61)","v":{"v":0,"d":"$0"}}]
["TOTAL COST",{"$nulls":7},{"$f":"SUM(I58:I61)","v":{"v":0,"d":"$0"}}]
["Scroll down to populate CONTRACTED SERVICES Estimate"]
["CONTRACTED SERVICES Estimate",{"$nulls":5},"Quantity","Unit Cost","Line Cost"]
[{"$nulls":8},{"$f":"SUM(G65*H65)","v":{"v":0,"d":"$0"}}]
[{"$nulls":8},{"$f":"SUM(G66*H66)","v":{"v":0,"d":"$0"}}]
[{"$nulls":8},{"$f":"SUM(G67*H67)","v":{"v":0,"d":"$0"}}]
[{"$nulls":8},{"$f":"SUM(G68*H68)","v":{"v":0,"d":"$0"}}]
["TOTAL COST",{"$nulls":7},{"$f":"SUM(I65:I68)","v":{"v":0,"d":"$0"}}]
["AGENCY TECHNICAL SERVICES Estimate",{"$nulls":5},"Quantity","Unit Cost","Line Cost"]
[{"$nulls":8},{"$f":"SUM(G71*H71)","v":{"v":0,"d":"$0"}}]
[{"$nulls":8},{"$f":"SUM(G72*H72)","v":{"v":0,"d":"$0"}}]
[{"$nulls":8},{"$f":"SUM(G73*H73)","v":{"v":0,"d":"$0"}}]
[{"$nulls":8},{"$f":"SUM(G74*H74)","v":{"v":0,"d":"$0"}}]
["TOTAL COST",{"$nulls":7},{"$f":"SUM(I71:I74)","v":{"v":0,"d":"$0"}}]
["MOTOR VEHICLE OPERATIONS/MAINTENANCE Estimate",{"$nulls":5},"Quantity","Unit Cost","Line Cost"]
[{"$nulls":8},{"$f":"SUM(G77*H77)","v":{"v":0,"d":"$0"}}]
[{"$nulls":8},{"$f":"SUM(G78*H78)","v":{"v":0,"d":"$0"}}]
[{"$nulls":8},{"$f":"SUM(G79*H79)","v":{"v":0,"d":"$0"}}]
[{"$nulls":8},{"$f":"SUM(G80*H80)","v":{"v":0,"d":"$0"}}]
["TOTAL COST",{"$nulls":7},{"$f":"SUM(I77:I80)","v":{"v":0,"d":"$0"}}]
["SAFETY HAZARD ANALYSIS"]
["ACTION/HAZARD DESCRIPTION",{"$nulls":4},"PROPOSED CONTROL/ABATEMENT"]
{"$rows_empty":10}
["ATTACHMENTS"]
["Required attachments include site/structure drawings (including basic project dimensions and important structural measurements) and, if major systems alteration/addition is included in the project, systems detail drawing(s).  Acceptable file types for attachments include those with extensions: \n.avi, .bmp, .csv, .doc, .docx, .dwf, .dwg, .gif, .htm, .html, .jpg, .jpeg, .mpg, .mpp, .mp4, .pdf, .png, .pub, .rtf, .tif, .tiff, .txt, .wmf, .wmv, .xls, .xlsx, .xps"]
["Instructions to insert an attachment in Excel:  (1) Click the cell in which you would like the attachment to show.  (2) On the \"Insert\" tab above (tools ribbon), select \"Object\" (in the \"Text\" grouping).  (3) In the \"Object\" dialogue box, select \"Create from file.\"  (4) Select \"Browse\" and find the file you want to insert from your desktop.  (5) Select \"Display as icon\" box in \"Object\" dialogue box. (6) Select \"OK.\"  An icon should represent the attachment.  Provide a succinct summary of the attachment in the \"Description\" column immediately to the right of each attachment.  "]
["Attachment",null,null,"Description"]
{"$rows_empty":10}
["STOP HERE.  DO NOT FILL IN ANY SECTIONS BELOW THIS POINT.  All FURTHER SECTIONS FOR NOJC USE ONLY."]
["DFAM ENTRY DATE",null,null,"DFAM REVIEWER"]
["CTST ENGINEERING REVIEW -- NOJC USE ONLY"]
["CONSISTENCY WITH THE CENTER’S LONG RANGE PLAN (LRP):"]
[1,"Is the proposed project located where future buildings, structures or extensions are proposed in the LRP?  "]
["1A","If NO to #1, is the proposed project in close proximity to future LRP structures such that the functioning of both may be adversely affected?"]
[2,"Has the Center submitted a campus Site Plan clearly showing the proposed location of the project?"]
[3,"Does the proposed project affect the space utilization allowances in the LRP?"]
["COMPLIANCE WITH APPLICABLE CODES"]
["Space/Use Re-configuration"]
[4,"Are the reconfigured spaces’ exit routes in compliance with fire egress requirements?"]
[5,"Are number of emergency egress points per current code requirements?"]
[6,"Are current fire alarm devices adequate per code to satisfy the new use of the space?  "]
["6A","If NO to #6, does the project allow for a fire alarm upgrade to comply with code?"]
[7,"Are the existing lighting levels consistent with code requirements for the new use(s)?"]
[8,"Can the new electrical and mechanical loads be accommodated within existing circuits in compliance with code?"]
[9,"Does the existing lighting and power outlet layout serve the new use adequately?  "]
["9A","If NO to #9, is the proposed revised layout in compliance with code?"]
[10,"Does the reconfigured space comply with ADA requirements where applicable?"]
[11,"Has the Center submitted drawings addressing the above issues clearly? (Architectural plan, electrical layouts, reflected ceiling plans, fire alarm system layouts, etc.)"]
["HVAC Equipment Upgrades"]
[12,"Is the proposed HVAC equipment an Energy Star high-efficiency model?"]
[13,"What type of refrigerant does the proposed equipment use?"]
[14,"Has the Center submitted manufacturer’s trade literature showing equipment specs, including SIR ratings and refrigerant type?"]
[15,"Has the Center submitted a mechanical drawing showing location of equipment and ductwork?"]
[16,"If students are to install the new equipment, has the Center made arrangements to have manufacturer-approved installer supervision so as to protect the warranty?"]
["Lighting/Power Upgrades"]
[17,"Does the project entail lighting fixture replacement, lamp/ballast replacement or both?"]
[18,"Does the project entail any re-wiring?"]
[19,"Does the project entail any additional electrical loads with respect to existing?"]
["19A","If YES to #19, does the project provide adequate documentation to demonstrate code compliance?"]
[20,"Has the Center submitted manufacturer’s trade literature showing fixture/lamp specs?"]
[21,"Has the Center submitted a proposed lighting layout drawing showing proposed new lighting fixture and power outlet layout?                                                                  "]
["STRUCTURAL INTEGRITY"]
[22,"Does the proposed project comprise a habitable structure?"]
[23,"If not habitable, does the structural stability of the project impinge on the life/safety of students and staff?"]
[24,"Has the project’s structure been designed and documented by a licensed engineer?"]
["24A","If YES to #24, has the Center presented engineer-stamped documents?"]
[25,"If not designed/stamped by a licensed engineer, does the project comply with prescriptive design parameters per IBC code? "]
["25A","If NO to #25, has the Center submitted clear and complete documentation demonstrating prescriptive design code compliance?"]
[26,"For roof structures based on truss designs, does the project propose off-the-shelf pre-engineered truss solutions?  "]
["If 'Yes' to #26, respond to #27-29; if 'No' skip to #30"]
[27,"Has the Center submitted pre-engineered truss drawings?"]
[28,"Has the Center submitted clear details of pre-engineered truss fastenings?"]
[29,"Are the roof loads adequately distributed to the footings?  "]
[30,"Has the Center provided adequate footings and foundation drawings?"]
["SUSTAINABILITY"]
["Does the proposed project include:"]
[31,"Environmentally-preferred products?"]
[32,"Bio-based products?"]
[33,"Recycled-content products?"]
[34,"Low-emitting materials?"]
[35,"High-efficiency water fixtures?"]
["DFAM Reviewer Notes"]
[]
["DFAM Approval Provision(s)"]
[]
["DFAM Decline Recommendation(s)"]
[]
["DFAM Reviewer Recommendation"]

{"sheet":"24.03","index":6,"n_rows":166,"n_cols":9,"rows_kept":166,"merged":[[0,3,0,4],[1,1,1,3],[1,4,1,6],[1,7,1,8],[7,1,7,2],[7,3,7,4],[7,7,7,8],[8,0,8,8],[9,0,9,7],[10,0,10,7],[11,0,11,7],[12,0,12,7],[13,0,13,7],[14,0,14,7],[15,0,15,7],[16,0,16,7],[17,0,17,8],[18,0,18,8],[19,0,19,8],[20,0,20,8],[21,0,21,5],[22,0,22,5],[23,0,23,5],[24,0,24,5],[25,0,25,5],[26,0,26,5],[27,0,27,5],[28,0,28,5],[29,0,29,5],[30,0,30,5],[31,0,31,5],[32,0,32,5],[33,0,33,5],[34,0,34,5],[35,0,35,5],[36,0,36,5],[37,0,37,5],[38,0,38,5],[39,0,39,5],[40,0,40,5],[41,0,41,5],[42,0,42,5],[43,0,43,5],[44,0,44,5],[45,0,45,7],[46,0,46,5],[47,0,47,5],[48,0,48,5],[49,0,49,5],[50,0,50,5],[51,0,51,5],[52,0,52,5],[53,0,53,5],[54,0,54,7],[55,0,55,5],[56,0,56,5],[57,0,57,5],[58,0,58,5],[59,0,59,5],[60,0,60,7],[61,0,61,8],[62,0,62,5],[63,0,63,5],[64,0,64,5],[65,0,65,5],[66,0,66,5],[67,0,67,7],[68,0,68,5],[69,0,69,5],[70,0,70,5],[71,0,71,5],[72,0,72,5],[73,0,73,7],[74,0,74,5],[75,0,75,5],[76,0,76,5],[77,0,77,5],[78,0,78,5],[79,0,79,7],[80,0,80,7],[81,0,81,4],[81,5,81,7],[82,0,82,4],[82,5,82,7],[83,0,83,4],[83,5,83,7],[84,0,84,4],[84,5,84,7],[85,0,85,4],[85,5,85,7],[86,0,86,4],[86,5,86,7],[87,0,87,4],[87,5,87,7],[88,0,88,4],[88,5,88,7],[89,0,89,4],[89,5,89,7],[90,0,90,4],[90,5,90,7],[91,0,91,4],[91,5,91,7],[92,0,92,8],[93,0,93,8],[94,0,94,8],[95,0,95,2],[95,3,95,8],[96,0,96,2],[96,3,96,8],[97,0,97,2],[97,3,97,8],[98,0,98,2],[98,3,98,8],[99,0,99,2],[99,3,99,8],[100,0,100,2],[100,3,100,8],[101,0,101,2],[101,3,101,8],[102,0,102,2],[102,3,102,8],[103,0,103,2],[103,3,103,8],[104,0,104,2],[104,3,104,8],[105,0,105,2],[105,3,105,8],[106,0,106,8],[107,0,107,1],[107,3,107,5],[107,6,107,8],[108,0,108,8],[109,0,109,7],[110,1,110,7],[111,1,111,7],[112,1,112,7],[113,1,113,7],[114,0,114,7],[116,1,116,7],[117,1,117,7],[118,1,118,7],[119,1,119,7],[120,1,120,7],[121,1,121,7],[122,1,122,7],[123,1,123,7],[124,1,124,7],[125,1,125,7],[127,1,127,7],[128,1,128,7],[129,1,129,7],[130,1,130,7],[131,1,131,7],[133,1,133,7],[134,1,134,7],[135,1,135,7],[136,1,136,7],[137,1,137,7],[138,1,138,7],[139,0,139,7],[140,1,140,7],[142,1,142,7],[143,1,143,7],[144,1,144,7],[145,1,145,7],[146,1,146,7],[147,0,147,7],[148,1,148,7],[149,1,149,7],[150,1,150,7],[151,1,151,7],[152,0,152,7],[154,1,154,7],[155,1,155,7],[156,1,156,7],[157,1,157,7],[158,1,158,7],[159,0,159,8],[160,0,160,8],[161,0,161,8],[162,0,162,8],[163,0,163,8],[164,0,164,8],[165,0,165,7]]}
["REGION",{"$f":"IFERROR(VLOOKUP(D1,CENTER_REGION_MATCH,2,FALSE),\"\")","v":""},"CENTER",{"$f":"IF(ISBLANK('24.01'!D1),\"\",'24.01'!D1)","v":""},null,"START DATE",null,"PROJECT ID",24.03]
["PROJECT TITLE",{"$nulls":3},"ESTIMATED # DAYS TO COMPLETE",null,null,{"$f":"SUM(C4,C5,C6,C7,F4,F5,F6,F7,I4,I5,I6,I7)","v":0}]
["TRADE","# SLOTS","WORK DAYS","TRADE","# SLOTS","WORK DAYS","TRADE","# SLOTS","WORK DAYS"]
[]
[]
[]
[]
["Total CTST Slots",{"$f":"SUM(B4:B7,E4:E7,H4:H7)","v":0},null,"Estimated VALUE of Project",null,{"$f":"(2*I17)","v":{"v":0,"d":"$0.00"}},"Cost/Slot",{"$f":"IF(B8=0,0,SUM(I17/B8))","v":{"v":0,"d":"$0.00"}}]
[]
["CATEGORY",{"$nulls":7},"Subtotal"]
["MATERIALS AND SUPPLIES",{"$nulls":7},{"$f":"I46","v":{"v":0,"d":"$0"}}]
["JOB-SITE POWER TOOLS AND EQUIPMENT",{"$nulls":7},{"$f":"I55","v":{"v":0,"d":"$0"}}]
["EQUIPMENT RENTAL",{"$nulls":7},{"$f":"I61","v":{"v":0,"d":"$0"}}]
["CONTRACTED SERVICES",{"$nulls":7},{"$f":"I68","v":{"v":0,"d":"$0"}}]
["AGENCY TECHNICAL SERVICES",{"$nulls":7},{"$f":"I74","v":{"v":0,"d":"$0"}}]
["MOTOR VEHICLE OPERATIONS/MAINTENANCE",{"$nulls":7},{"$f":"I80","v":{"v":0,"d":"$0"}}]
["TOTAL",{"$nulls":7},{"$f":"SUM(I11:I16)","v":{"v":0,"d":"$0"}}]
["Project Description and Training Narrative.  Use ALT-ENTER to insert paragraph breaks.  Refer to \"Narrative Examples\" tab to the left for examples of acceptable project narratives. "]
["Supporting documents (drawings/blueprints/pictures) are recommended to be included in the \"Attachment\" section below if size limitations allow.  Files that cause this form to exceed the 15MB size limit are to be sent to the NOJC via CTTSubmissions@dol.gov.  If files have been sent seperately, indicate by checking this box: "]
["Scroll down to populate MATERIALS AND SUPPLIES Estimate"]
["MATERIALS AND SUPPLIES Estimate"]
["MATERIAL OR SUPPLY Description (Qty./Unit)",{"$nulls":5},"# of Units","Unit Cost","Line Cost"]
[{"$nulls":8},{"$f":"SUM(G23*H23)","v":{"v":0,"d":"$0"}}]
[{"$nulls":8},{"$f":"SUM(G24*H24)","v":{"v":0,"d":"$0"}}]
[{"$nulls":8},{"v":0,"d":"$0"}]
[{"$nulls":8},{"v":0,"d":"$0"}]
[{"$nulls":8},{"v":0,"d":"$0"}]
[{"$nulls":8},{"v":0,"d":"$0"}]
[{"$nulls":8},{"v":0,"d":"$0"}]
[{"$nulls":8},{"v":0,"d":"$0"}]
[{"$nulls":8},{"v":0,"d":"$0"}]
[{"$nulls":8},{"v":0,"d":"$0"}]
[{"$nulls":8},{"v":0,"d":"$0"}]
[{"$nulls":8},{"v":0,"d":"$0"}]
[{"$nulls":8},{"v":0,"d":"$0"}]
[{"$nulls":8},{"v":0,"d":"$0"}]
[{"$nulls":8},{"v":0,"d":"$0"}]
[{"$nulls":8},{"v":0,"d":"$0"}]
[{"$nulls":8},{"v":0,"d":"$0"}]
[{"$nulls":8},{"v":0,"d":"$0"}]
[{"$nulls":8},{"v":0,"d":"$0"}]
[{"$nulls":8},{"v":0,"d":"$0"}]
[{"$nulls":8},{"v":0,"d":"$0"}]
[{"$nulls":8},{"v":0,"d":"$0"}]
[{"$nulls":8},{"v":0,"d":"$0"}]
["TOTAL COST",{"$nulls":7},{"$f":"SUM(I23:I45)","v":{"v":0,"d":"$0"}}]
["JOB-SITE POWER TOOLS AND EQUIPMENT Estimate",{"$nulls":5},"Quantity","Unit Cost ","Line Cost"]
[{"$nulls":8},{"$f":"SUM(G48*H48)","v":{"v":0,"d":"$0"}}]
[{"$nulls":8},{"$f":"SUM(G49*H49)","v":{"v":0,"d":"$0"}}]
[{"$nulls":8},{"v":0,"d":"$0"}]
[{"$nulls":8},{"v":0,"d":"$0"}]
[{"$nulls":8},{"v":0,"d":"$0"}]
[{"$nulls":8},{"v":0,"d":"$0"}]
[{"$nulls":8},{"v":0,"d":"$0"}]
["TOTAL COST",{"$nulls":7},{"$f":"SUM(I48:I54)","v":{"v":0,"d":"$0"}}]
["EQUIPMENT RENTAL Estimate",{"$nulls":5},"Quantity","Unit Cost ","Line Cost"]
[{"$nulls":8},{"$f":"SUM(G57*H57)","v":{"v":0,"d":"$0"}}]
[{"$nulls":8},{"$f":"SUM(G58*H58)","v":{"v":0,"d":"$0"}}]
[{"$nulls":8},{"$f":"SUM(G59*H59)","v":{"v":0,"d":"$0"}}]
[{"$nulls":8},{"$f":"SUM(G60*H60)","v":{"v":0,"d":"$0"}}]
["TOTAL COST",{"$nulls":7},{"$f":"SUM(I57:I60)","v":{"v":0,"d":"$0"}}]
["Scroll down to populate CONTRACTED SERVICES Estimate"]
["CONTRACTED SERVICES Estimate",{"$nulls":5},"Quantity","Unit Cost","Line Cost"]
[{"$nulls":8},{"$f":"SUM(G64*H64)","v":{"v":0,"d":"$0"}}]
[{"$nulls":8},{"$f":"SUM(G65*H65)","v":{"v":0,"d":"$0"}}]
[{"$nulls":8},{"$f":"SUM(G66*H66)","v":{"v":0,"d":"$0"}}]
[{"$nulls":8},{"$f":"SUM(G67*H67)","v":{"v":0,"d":"$0"}}]
["TOTAL COST",{"$nulls":7},{"$f":"SUM(I64:I67)","v":{"v":0,"d":"$0"}}]
["AGENCY TECHNICAL SERVICES Estimate",{"$nulls":5},"Quantity","Unit Cost","Line Cost"]
[{"$nulls":8},{"$f":"SUM(G70*H70)","v":{"v":0,"d":"$0"}}]
[{"$nulls":8},{"$f":"SUM(G71*H71)","v":{"v":0,"d":"$0"}}]
[{"$nulls":8},{"$f":"SUM(G72*H72)","v":{"v":0,"d":"$0"}}]
[{"$nulls":8},{"$f":"SUM(G73*H73)","v":{"v":0,"d":"$0"}}]
["TOTAL COST",{"$nulls":7},{"$f":"SUM(I70:I73)","v":{"v":0,"d":"$0"}}]
["MOTOR VEHICLE OPERATIONS/MAINTENANCE Estimate",{"$nulls":5},"Quantity","Unit Cost","Line Cost"]
[{"$nulls":8},{"$f":"SUM(G76*H76)","v":{"v":0,"d":"$0"}}]
[{"$nulls":8},{"$f":"SUM(G77*H77)","v":{"v":0,"d":"$0"}}]
[{"$nulls":8},{"$f":"SUM(G78*H78)","v":{"v":0,"d":"$0"}}]
[{"$nulls":8},{"$f":"SUM(G79*H79)","v":{"v":0,"d":"$0"}}]
["TOTAL COST",{"$nulls":7},{"$f":"SUM(I76:I79)","v":{"v":0,"d":"$0"}}]
["SAFETY HAZARD ANALYSIS"]
["ACTION/HAZARD DESCRIPTION",{"$nulls":4},"PROPOSED CONTROL/ABATEMENT"]
{"$rows_empty":10}
["ATTACHMENTS"]
["Required attachments include site/structure drawings (including basic project dimensions and important structural measurements) and, if major systems alteration/addition is included in the project, systems detail drawing(s).  Acceptable file types for attachments include those with extensions: \n.avi, .bmp, .csv, .doc, .docx, .dwf, .dwg, .gif, .htm, .html, .jpg, .jpeg, .mpg, .mpp, .mp4, .pdf, .png, .pub, .rtf, .tif, .tiff, .txt, .wmf, .wmv, .xls, .xlsx, .xps"]
["Instructions to insert an attachment in Excel:  (1) Click the cell in which you would like the attachment to show.  (2) On the \"Insert\" tab above (tools ribbon), select \"Object\" (in the \"Text\" grouping).  (3) In the \"Object\" dialogue box, select \"Create from file.\"  (4) Select \"Browse\" and find the file you want to insert from your desktop.  (5) Select \"Display as icon\" box in \"Object\" dialogue box. (6) Select \"OK.\"  An icon should represent the attachment.  Provide a succinct summary of the attachment in the \"Description\" column immediately to the right of each attachment.  "]
["Attachment",null,null,"Description"]
{"$rows_empty":10}
["STOP HERE.  DO NOT FILL IN ANY SECTIONS BELOW THIS POINT.  All FURTHER SECTIONS FOR NOJC USE ONLY."]
["DFAM ENTRY DATE",null,null,"DFAM REVIEWER"]
["CTST ENGINEERING REVIEW -- NOJC USE ONLY"]
["CONSISTENCY WITH THE CENTER’S LONG RANGE PLAN (LRP):"]
[1,"Is the proposed project located where future buildings, structures or extensions are proposed in the LRP?  "]
["1A","If NO to #1, is the proposed project in close proximity to future LRP structures such that the functioning of both may be adversely affected?"]
[2,"Has the Center submitted a campus Site Plan clearly showing the proposed location of the project?"]
[3,"Does the proposed project affect the space utilization allowances in the LRP?"]
["COMPLIANCE WITH APPLICABLE CODES"]
["Space/Use Re-configuration"]
[4,"Are the reconfigured spaces’ exit routes in compliance with fire egress requirements?"]
[5,"Are number of emergency egress points per current code requirements?"]
[6,"Are current fire alarm devices adequate per code to satisfy the new use of the space?  "]
["6A","If NO to #6, does the project allow for a fire alarm upgrade to comply with code?"]
[7,"Are the existing lighting levels consistent with code requirements for the new use(s)?"]
[8,"Can the new electrical and mechanical loads be accommodated within existing circuits in compliance with code?"]
[9,"Does the existing lighting and power outlet layout serve the new use adequately?  "]
["9A","If NO to #9, is the proposed revised layout in compliance with code?"]
[10,"Does the reconfigured space comply with ADA requirements where applicable?"]
[11,"Has the Center submitted drawings addressing the above issues clearly? (Architectural plan, electrical layouts, reflected ceiling plans, fire alarm system layouts, etc.)"]
["HVAC Equipment Upgrades"]
[12,"Is the proposed HVAC equipment an Energy Star high-efficiency model?"]
[13,"What type of refrigerant does the proposed equipment use?"]
[14,"Has the Center submitted manufacturer’s trade literature showing equipment specs, including SIR ratings and refrigerant type?"]
[15,"Has the Center submitted a mechanical drawing showing location of equipment and ductwork?"]
[16,"If students are to install the new equipment, has the Center made arrangements to have manufacturer-approved installer supervision so as to protect the warranty?"]
["Lighting/Power Upgrades"]
[17,"Does the project entail lighting fixture replacement, lamp/ballast replacement or both?"]
[18,"Does the project entail any re-wiring?"]
[19,"Does the project entail any additional electrical loads with respect to existing?"]
["19A","If YES to #19, does the project provide adequate documentation to demonstrate code compliance?"]
[20,"Has the Center submitted manufacturer’s trade literature showing fixture/lamp specs?"]
[21,"Has the Center submitted a proposed lighting layout drawing showing proposed new lighting fixture and power outlet layout?                                                                  "]
["STRUCTURAL INTEGRITY"]
[22,"Does the proposed project comprise a habitable structure?"]
[23,"If not habitable, does the structural stability of the project impinge on the life/safety of students and staff?"]
[24,"Has the project’s structure been designed and documented by a licensed engineer?"]
["24A","If YES to #24, has the Center presented engineer-stamped documents?"]
[25,"If not designed/stamped by a licensed engineer, does the project comply with prescriptive design parameters per IBC code? "]
["25A","If NO to #25, has the Center submitted clear and complete documentation demonstrating prescriptive design code compliance?"]
[26,"For roof structures based on truss designs, does the project propose off-the-shelf pre-engineered truss solutions?  "]
["If 'Yes' to #26, respond to #27-29; if 'No' skip to #30"]
[27,"Has the Center submitted pre-engineered truss drawings?"]
[28,"Has the Center submitted clear details of pre-engineered truss fastenings?"]
[29,"Are the roof loads adequately distributed to the footings?  "]
[30,"Has the Center provided adequate footings and foundation drawings?"]
["SUSTAINABILITY"]
["Does the proposed project include:"]
[31,"Environmentally-preferred products?"]
[32,"Bio-based products?"]
[33,"Recycled-content products?"]
[34,"Low-emitting materials?"]
[35,"High-efficiency water fixtures?"]
["DFAM Reviewer Notes"]
[]
["DFAM Approval Provision(s)"]
[]
["DFAM Decline Recommendation(s)"]
[]
["DFAM Reviewer Recommendation"]

{"sheet":"24.04","index":7,"n_rows":167,"n_cols":9,"rows_kept":167,"merged":[[0,3,0,4],[1,1,1,3],[1,4,1,6],[1,7,1,8],[7,1,7,2],[7,3,7,4],[7,7,7,8],[8,0,8,8],[9,0,9,7],[10,0,10,7],[11,0,11,7],[12,0,12,7],[13,0,13,7],[14,0,14,7],[15,0,15,7],[16,0,16,7],[17,0,17,8],[18,0,18,8],[19,0,19,8],[20,0,20,8],[21,0,21,8],[22,0,22,5],[23,0,23,5],[24,0,24,5],[25,0,25,5],[26,0,26,5],[27,0,27,5],[28,0,28,5],[29,0,29,5],[30,0,30,5],[31,0,31,5],[32,0,32,5],[33,0,33,5],[34,0,34,5],[35,0,35,5],[36,0,36,5],[37,0,37,5],[38,0,38,5],[39,0,39,5],[40,0,40,5],[41,0,41,5],[42,0,42,5],[43,0,43,5],[44,0,44,5],[45,0,45,5],[46,0,46,7],[47,0,47,5],[48,0,48,5],[49,0,49,5],[50,0,50,5],[51,0,51,5],[52,0,52,5],[53,0,53,5],[54,0,54,5],[55,0,55,7],[56,0,56,5],[57,0,57,5],[58,0,58,5],[59,0,59,5],[60,0,60,5],[61,0,61,7],[62,0,62,8],[63,0,63,5],[64,0,64,5],[65,0,65,5],[66,0,66,5],[67,0,67,5],[68,0,68,7],[69,0,69,5],[70,0,70,5],[71,0,71,5],[72,0,72,5],[73,0,73,5],[74,0,74,7],[75,0,75,5],[76,0,76,5],[77,0,77,5],[78,0,78,5],[79,0,79,5],[80,0,80,7],[81,0,81,7],[82,0,82,4],[82,5,82,7],[83,0,83,4],[83,5,83,7],[84,0,84,4],[84,5,84,7],[85,0,85,4],[85,5,85,7],[86,0,86,4],[86,5,86,7],[87,0,87,4],[87,5,87,7],[88,0,88,4],[88,5,88,7],[89,0,89,4],[89,5,89,7],[90,0,90,4],[90,5,90,7],[91,0,91,4],[91,5,91,7],[92,0,92,4],[92,5,92,7],[93,0,93,8],[94,0,94,8],[95,0,95,8],[96,0,96,2],[96,3,96,8],[97,0,97,2],[97,3,97,8],[98,0,98,2],[98,3,98,8],[99,0,99,2],[99,3,99,8],[100,0,100,2],[100,3,100,8],[101,0,101,2],[101,3,101,8],[102,0,102,2],[102,3,102,8],[103,0,103,2],[103,3,103,8],[104,0,104,2],[104,3,104,8],[105,0,105,2],[105,3,105,8],[106,0,106,2],[106,3,106,8],[107,0,107,8],[108,0,108,1],[108,3,108,5],[108,6,108,8],[109,0,109,8],[110,0,110,7],[111,1,111,7],[112,1,112,7],[113,1,113,7],[114,1,114,7],[115,0,115,7],[117,1,117,7],[118,1,118,7],[119,1,119,7],[120,1,120,7],[121,1,121,7],[122,1,122,7],[123,1,123,7],[124,1,124,7],[125,1,125,7],[126,1,126,7],[128,1,128,7],[129,1,129,7],[130,1,130,7],[131,1,131,7],[132,1,132,7],[134,1,134,7],[135,1,135,7],[136,1,136,7],[137,1,137,7],[138,1,138,7],[139,1,139,7],[140,0,140,7],[141,1,141,7],[143,1,143,7],[144,1,144,7],[145,1,145,7],[146,1,146,7],[147,1,147,7],[148,0,148,7],[149,1,149,7],[150,1,150,7],[151,1,151,7],[152,1,152,7],[153,0,153,7],[155,1,155,7],[156,1,156,7],[157,1,157,7],[158,1,158,7],[159,1,159,7],[160,0,160,8],[161,0,161,8],[162,0,162,8],[163,0,163,8],[164,0,164,8],[165,0,165,8],[166,0,166,7]]}
["REGION",{"$f":"IFERROR(VLOOKUP(D1,CENTER_REGION_MATCH,2,FALSE),\"\")","v":""},"CENTER",{"$f":"IF(ISBLANK('24.01'!D1),\"\",'24.01'!D1)","v":""},null,"START DATE",null,"PROJECT ID",24.04]
["PROJECT TITLE",{"$nulls":3},"ESTIMATED # DAYS TO COMPLETE",null,null,{"$f":"SUM(C4,C5,C6,C7,F4,F5,F6,F7,I4,I5,I6,I7)","v":0}]
["TRADE","# SLOTS","WORK DAYS","TRADE","# SLOTS","WORK DAYS","TRADE","# SLOTS","WORK DAYS"]
[]
[]
[]
[]
["Total CTST Slots",{"$f":"SUM(B4:B7,E4:E7,H4:H7)","v":0},null,"Estimated VALUE of Project",null,{"$f":"2*I17","v":{"v":0,"d":"$0.00"}},"Cost/Slot",{"$f":"IF(B8=0,0,SUM(I17/B8))","v":{"v":0,"d":"$0.00"}}]
[]
["CATEGORY",{"$nulls":7},"Subtotal"]
["MATERIALS AND SUPPLIES",{"$nulls":7},{"$f":"I47","v":{"v":0,"d":"$0"}}]
["JOB-SITE POWER TOOLS AND EQUIPMENT",{"$nulls":7},{"$f":"I56","v":{"v":0,"d":"$0"}}]
["EQUIPMENT RENTAL",{"$nulls":7},{"$f":"I62","v":{"v":0,"d":"$0"}}]
["CONTRACTED SERVICES",{"$nulls":7},{"$f":"I69","v":{"v":0,"d":"$0"}}]
["AGENCY TECHNICAL SERVICES",{"$nulls":7},{"$f":"I75","v":{"v":0,"d":"$0"}}]
["MOTOR VEHICLE OPERATIONS/MAINTENANCE",{"$nulls":7},{"$f":"I81","v":{"v":0,"d":"$0"}}]
["TOTAL",{"$nulls":7},{"$f":"SUM(I11:I16)","v":{"v":0,"d":"$0"}}]
["Project Description and Training Narrative.  Use ALT-ENTER to insert paragraph breaks.  Refer to \"Narrative Examples\" tab to the left for examples of acceptable project narratives. "]
["Supporting documents (drawings/blueprints/pictures) are recommended to be included in the \"Attachment\" section below if size limitations allow.  Files that cause this form to exceed the 15MB size limit are to be sent to the NOJC via CTTSubmissions@dol.gov.  If files have been sent seperately, indicate by checking this box: "]
[]
["Scroll down to populate MATERIALS AND SUPPLIES Estimate"]
["MATERIALS AND SUPPLIES Estimate"]
["MATERIAL OR SUPPLY Description (Qty./Unit)",{"$nulls":5},"# of Units","Unit Cost","Line Cost"]
[{"$nulls":8},{"$f":"SUM(G24*H24)","v":{"v":0,"d":"$0"}}]
[{"$nulls":8},{"$f":"SUM(G25*H25)","v":{"v":0,"d":"$0"}}]
[{"$nulls":8},{"v":0,"d":"$0"}]
[{"$nulls":8},{"v":0,"d":"$0"}]
[{"$nulls":8},{"v":0,"d":"$0"}]
[{"$nulls":8},{"v":0,"d":"$0"}]
[{"$nulls":8},{"v":0,"d":"$0"}]
[{"$nulls":8},{"v":0,"d":"$0"}]
[{"$nulls":8},{"v":0,"d":"$0"}]
[{"$nulls":8},{"v":0,"d":"$0"}]
[{"$nulls":8},{"v":0,"d":"$0"}]
[{"$nulls":8},{"v":0,"d":"$0"}]
[{"$nulls":8},{"v":0,"d":"$0"}]
[{"$nulls":8},{"v":0,"d":"$0"}]
[{"$nulls":8},{"v":0,"d":"$0"}]
[{"$nulls":8},{"v":0,"d":"$0"}]
[{"$nulls":8},{"v":0,"d":"$0"}]
[{"$nulls":8},{"v":0,"d":"$0"}]
[{"$nulls":8},{"v":0,"d":"$0"}]
[{"$nulls":8},{"v":0,"d":"$0"}]
[{"$nulls":8},{"v":0,"d":"$0"}]
[{"$nulls":8},{"v":0,"d":"$0"}]
[{"$nulls":8},{"v":0,"d":"$0"}]
["TOTAL COST",{"$nulls":7},{"$f":"SUM(I24:I46)","v":{"v":0,"d":"$0"}}]
["JOB-SITE POWER TOOLS AND EQUIPMENT Estimate",{"$nulls":5},"Quantity","Unit Cost ","Line Cost"]
[{"$nulls":8},{"$f":"SUM(G49*H49)","v":{"v":0,"d":"$0"}}]
[{"$nulls":8},{"$f":"SUM(G50*H50)","v":{"v":0,"d":"$0"}}]
[{"$nulls":8},{"v":0,"d":"$0"}]
[{"$nulls":8},{"v":0,"d":"$0"}]
[{"$nulls":8},{"v":0,"d":"$0"}]
[{"$nulls":8},{"v":0,"d":"$0"}]
[{"$nulls":8},{"v":0,"d":"$0"}]
["TOTAL COST",{"$nulls":7},{"$f":"SUM(I49:I55)","v":{"v":0,"d":"$0"}}]
["EQUIPMENT RENTAL Estimate",{"$nulls":5},"Quantity","Unit Cost ","Line Cost"]
[{"$nulls":8},{"$f":"SUM(G58*H58)","v":{"v":0,"d":"$0"}}]
[{"$nulls":8},{"$f":"SUM(G59*H59)","v":{"v":0,"d":"$0"}}]
[{"$nulls":8},{"$f":"SUM(G60*H60)","v":{"v":0,"d":"$0"}}]
[{"$nulls":8},{"$f":"SUM(G61*H61)","v":{"v":0,"d":"$0"}}]
["TOTAL COST",{"$nulls":7},{"$f":"SUM(I58:I61)","v":{"v":0,"d":"$0"}}]
["Scroll down to populate CONTRACTED SERVICES Estimate"]
["CONTRACTED SERVICES Estimate",{"$nulls":5},"Quantity","Unit Cost","Line Cost"]
[{"$nulls":8},{"$f":"SUM(G65*H65)","v":{"v":0,"d":"$0"}}]
[{"$nulls":8},{"$f":"SUM(G66*H66)","v":{"v":0,"d":"$0"}}]
[{"$nulls":8},{"$f":"SUM(G67*H67)","v":{"v":0,"d":"$0"}}]
[{"$nulls":8},{"$f":"SUM(G68*H68)","v":{"v":0,"d":"$0"}}]
["TOTAL COST",{"$nulls":7},{"$f":"SUM(I65:I68)","v":{"v":0,"d":"$0"}}]
["AGENCY TECHNICAL SERVICES Estimate",{"$nulls":5},"Quantity","Unit Cost","Line Cost"]
[{"$nulls":8},{"$f":"SUM(G71*H71)","v":{"v":0,"d":"$0"}}]
[{"$nulls":8},{"$f":"SUM(G72*H72)","v":{"v":0,"d":"$0"}}]
[{"$nulls":8},{"$f":"SUM(G73*H73)","v":{"v":0,"d":"$0"}}]
[{"$nulls":8},{"$f":"SUM(G74*H74)","v":{"v":0,"d":"$0"}}]
["TOTAL COST",{"$nulls":7},{"$f":"SUM(I71:I74)","v":{"v":0,"d":"$0"}}]
["MOTOR VEHICLE OPERATIONS/MAINTENANCE Estimate",{"$nulls":5},"Quantity","Unit Cost","Line Cost"]
[{"$nulls":8},{"$f":"SUM(G77*H77)","v":{"v":0,"d":"$0"}}]
[{"$nulls":8},{"$f":"SUM(G78*H78)","v":{"v":0,"d":"$0"}}]
[{"$nulls":8},{"$f":"SUM(G79*H79)","v":{"v":0,"d":"$0"}}]
[{"$nulls":8},{"$f":"SUM(G80*H80)","v":{"v":0,"d":"$0"}}]
["TOTAL COST",{"$nulls":7},{"$f":"SUM(I77:I80)","v":{"v":0,"d":"$0"}}]
["SAFETY HAZARD ANALYSIS"]
["ACTION/HAZARD DESCRIPTION",{"$nulls":4},"PROPOSED CONTROL/ABATEMENT"]
{"$rows_empty":10}
["ATTACHMENTS"]
["Required attachments include site/structure drawings (including basic project dimensions and important structural measurements) and, if major systems alteration/addition is included in the project, systems detail drawing(s).  Acceptable file types for attachments include those with extensions: \n.avi, .bmp, .csv, .doc, .docx, .dwf, .dwg, .gif, .htm, .html, .jpg, .jpeg, .mpg, .mpp, .mp4, .pdf, .png, .pub, .rtf, .tif, .tiff, .txt, .wmf, .wmv, .xls, .xlsx, .xps"]
["Instructions to insert an attachment in Excel:  (1) Click the cell in which you would like the attachment to show.  (2) On the \"Insert\" tab above (tools ribbon), select \"Object\" (in the \"Text\" grouping).  (3) In the \"Object\" dialogue box, select \"Create from file.\"  (4) Select \"Browse\" and find the file you want to insert from your desktop.  (5) Select \"Display as icon\" box in \"Object\" dialogue box. (6) Select \"OK.\"  An icon should represent the attachment.  Provide a succinct summary of the attachment in the \"Description\" column immediately to the right of each attachment.  "]
["Attachment",null,null,"Description"]
{"$rows_empty":10}
["STOP HERE.  DO NOT FILL IN ANY SECTIONS BELOW THIS POINT.  All FURTHER SECTIONS FOR NOJC USE ONLY."]
["DFAM ENTRY DATE",null,null,"DFAM REVIEWER"]
["CTST ENGINEERING REVIEW -- NOJC USE ONLY"]
["CONSISTENCY WITH THE CENTER’S LONG RANGE PLAN (LRP):"]
[1,"Is the proposed project located where future buildings, structures or extensions are proposed in the LRP?  "]
["1A","If NO to #1, is the proposed project in close proximity to future LRP structures such that the functioning of both may be adversely affected?"]
[2,"Has the Center submitted a campus Site Plan clearly showing the proposed location of the project?"]
[3,"Does the proposed project affect the space utilization allowances in the LRP?"]
["COMPLIANCE WITH APPLICABLE CODES"]
["Space/Use Re-configuration"]
[4,"Are the reconfigured spaces’ exit routes in compliance with fire egress requirements?"]
[5,"Are number of emergency egress points per current code requirements?"]
[6,"Are current fire alarm devices adequate per code to satisfy the new use of the space?  "]
["6A","If NO to #6, does the project allow for a fire alarm upgrade to comply with code?"]
[7,"Are the existing lighting levels consistent with code requirements for the new use(s)?"]
[8,"Can the new electrical and mechanical loads be accommodated within existing circuits in compliance with code?"]
[9,"Does the existing lighting and power outlet layout serve the new use adequately?  "]
["9A","If NO to #9, is the proposed revised layout in compliance with code?"]
[10,"Does the reconfigured space comply with ADA requirements where applicable?"]
[11,"Has the Center submitted drawings addressing the above issues clearly? (Architectural plan, electrical layouts, reflected ceiling plans, fire alarm system layouts, etc.)"]
["HVAC Equipment Upgrades"]
[12,"Is the proposed HVAC equipment an Energy Star high-efficiency model?"]
[13,"What type of refrigerant does the proposed equipment use?"]
[14,"Has the Center submitted manufacturer’s trade literature showing equipment specs, including SIR ratings and refrigerant type?"]
[15,"Has the Center submitted a mechanical drawing showing location of equipment and ductwork?"]
[16,"If students are to install the new equipment, has the Center made arrangements to have manufacturer-approved installer supervision so as to protect the warranty?"]
["Lighting/Power Upgrades"]
[17,"Does the project entail lighting fixture replacement, lamp/ballast replacement or both?"]
[18,"Does the project entail any re-wiring?"]
[19,"Does the project entail any additional electrical loads with respect to existing?"]
["19A","If YES to #19, does the project provide adequate documentation to demonstrate code compliance?"]
[20,"Has the Center submitted manufacturer’s trade literature showing fixture/lamp specs?"]
[21,"Has the Center submitted a proposed lighting layout drawing showing proposed new lighting fixture and power outlet layout?                                                                  "]
["STRUCTURAL INTEGRITY"]
[22,"Does the proposed project comprise a habitable structure?"]
[23,"If not habitable, does the structural stability of the project impinge on the life/safety of students and staff?"]
[24,"Has the project’s structure been designed and documented by a licensed engineer?"]
["24A","If YES to #24, has the Center presented engineer-stamped documents?"]
[25,"If not designed/stamped by a licensed engineer, does the project comply with prescriptive design parameters per IBC code? "]
["25A","If NO to #25, has the Center submitted clear and complete documentation demonstrating prescriptive design code compliance?"]
[26,"For roof structures based on truss designs, does the project propose off-the-shelf pre-engineered truss solutions?  "]
["If 'Yes' to #26, respond to #27-29; if 'No' skip to #30"]
[27,"Has the Center submitted pre-engineered truss drawings?"]
[28,"Has the Center submitted clear details of pre-engineered truss fastenings?"]
[29,"Are the roof loads adequately distributed to the footings?  "]
[30,"Has the Center provided adequate footings and foundation drawings?"]
["SUSTAINABILITY"]
["Does the proposed project include:"]
[31,"Environmentally-preferred products?"]
[32,"Bio-based products?"]
[33,"Recycled-content products?"]
[34,"Low-emitting materials?"]
[35,"High-efficiency water fixtures?"]
["DFAM Reviewer Notes"]
[]
["DFAM Approval Provision(s)"]
[]
["DFAM Decline Recommendation(s)"]
[]
["DFAM Reviewer Recommendation"]

{"sheet":"24.05","index":8,"n_rows":167,"n_cols":9,"rows_kept":167,"merged":[[0,3,0,4],[1,1,1,3],[1,4,1,6],[1,7,1,8],[7,1,7,2],[7,3,7,4],[7,7,7,8],[8,0,8,8],[9,0,9,7],[10,0,10,7],[11,0,11,7],[12,0,12,7],[13,0,13,7],[14,0,14,7],[15,0,15,7],[16,0,16,7],[17,0,17,8],[18,0,18,8],[19,0,19,8],[20,0,20,8],[21,0,21,8],[22,0,22,5],[23,0,23,5],[24,0,24,5],[25,0,25,5],[26,0,26,5],[27,0,27,5],[28,0,28,5],[29,0,29,5],[30,0,30,5],[31,0,31,5],[32,0,32,5],[33,0,33,5],[34,0,34,5],[35,0,35,5],[36,0,36,5],[37,0,37,5],[38,0,38,5],[39,0,39,5],[40,0,40,5],[41,0,41,5],[42,0,42,5],[43,0,43,5],[44,0,44,5],[45,0,45,5],[46,0,46,7],[47,0,47,5],[48,0,48,5],[49,0,49,5],[50,0,50,5],[51,0,51,5],[52,0,52,5],[53,0,53,5],[54,0,54,5],[55,0,55,7],[56,0,56,5],[57,0,57,5],[58,0,58,5],[59,0,59,5],[60,0,60,5],[61,0,61,7],[62,0,62,8],[63,0,63,5],[64,0,64,5],[65,0,65,5],[66,0,66,5],[67,0,67,5],[68,0,68,7],[69,0,69,5],[70,0,70,5],[71,0,71,5],[72,0,72,5],[73,0,73,5],[74,0,74,7],[75,0,75,5],[76,0,76,5],[77,0,77,5],[78,0,78,5],[79,0,79,5],[80,0,80,7],[81,0,81,7],[82,0,82,4],[82,5,82,7],[83,0,83,4],[83,5,83,7],[84,0,84,4],[84,5,84,7],[85,0,85,4],[85,5,85,7],[86,0,86,4],[86,5,86,7],[87,0,87,4],[87,5,87,7],[88,0,88,4],[88,5,88,7],[89,0,89,4],[89,5,89,7],[90,0,90,4],[90,5,90,7],[91,0,91,4],[91,5,91,7],[92,0,92,4],[92,5,92,7],[93,0,93,8],[94,0,94,8],[95,0,95,8],[96,0,96,2],[96,3,96,8],[97,0,97,2],[97,3,97,8],[98,0,98,2],[98,3,98,8],[99,0,99,2],[99,3,99,8],[100,0,100,2],[100,3,100,8],[101,0,101,2],[101,3,101,8],[102,0,102,2],[102,3,102,8],[103,0,103,2],[103,3,103,8],[104,0,104,2],[104,3,104,8],[105,0,105,2],[105,3,105,8],[106,0,106,2],[106,3,106,8],[107,0,107,8],[108,0,108,1],[108,3,108,5],[108,6,108,8],[109,0,109,8],[110,0,110,7],[111,1,111,7],[112,1,112,7],[113,1,113,7],[114,1,114,7],[115,0,115,7],[117,1,117,7],[118,1,118,7],[119,1,119,7],[120,1,120,7],[121,1,121,7],[122,1,122,7],[123,1,123,7],[124,1,124,7],[125,1,125,7],[126,1,126,7],[128,1,128,7],[129,1,129,7],[130,1,130,7],[131,1,131,7],[132,1,132,7],[134,1,134,7],[135,1,135,7],[136,1,136,7],[137,1,137,7],[138,1,138,7],[139,1,139,7],[140,0,140,7],[141,1,141,7],[143,1,143,7],[144,1,144,7],[145,1,145,7],[146,1,146,7],[147,1,147,7],[148,0,148,7],[149,1,149,7],[150,1,150,7],[151,1,151,7],[152,1,152,7],[153,0,153,7],[155,1,155,7],[156,1,156,7],[157,1,157,7],[158,1,158,7],[159,1,159,7],[160,0,160,8],[161,0,161,8],[162,0,162,8],[163,0,163,8],[164,0,164,8],[165,0,165,8],[166,0,166,7]]}
["REGION",{"$f":"IFERROR(VLOOKUP(D1,CENTER_REGION_MATCH,2,FALSE),\"\")","v":""},"CENTER",{"$f":"IF(ISBLANK('24.01'!D1),\"\",'24.01'!D1)","v":""},null,"START DATE",null,"PROJECT ID",24.05]
["PROJECT TITLE",{"$nulls":3},"ESTIMATED # DAYS TO COMPLETE",null,null,{"$f":"SUM(C4,C5,C6,C7,F4,F5,F6,F7,I4,I5,'24.06'!I6,I7)","v":0}]
["TRADE","# SLOTS","WORK DAYS","TRADE","# SLOTS","WORK DAYS","TRADE","# SLOTS","WORK DAYS"]
[]
[]
[]
[]
["Total CTST Slots",{"$f":"SUM(B4:B7,E4:E7,H4:H7)","v":0},null,"Estimated VALUE of Project",null,{"$f":"2*I17","v":{"v":0,"d":"$0.00"}},"Cost/Slot",{"$f":"IF(B8=0,0,SUM(I17/B8))","v":{"v":0,"d":"$0.00"}}]
[]
["CATEGORY",{"$nulls":7},"Subtotal"]
["MATERIALS AND SUPPLIES",{"$nulls":7},{"$f":"I47","v":{"v":0,"d":"$0"}}]
["JOB-SITE POWER TOOLS AND EQUIPMENT",{"$nulls":7},{"$f":"I56","v":{"v":0,"d":"$0"}}]
["EQUIPMENT RENTAL",{"$nulls":7},{"$f":"I62","v":{"v":0,"d":"$0"}}]
["CONTRACTED SERVICES",{"$nulls":7},{"$f":"I69","v":{"v":0,"d":"$0"}}]
["AGENCY TECHNICAL SERVICES",{"$nulls":7},{"$f":"I75","v":{"v":0,"d":"$0"}}]
["MOTOR VEHICLE OPERATIONS/MAINTENANCE",{"$nulls":7},{"$f":"I81","v":{"v":0,"d":"$0"}}]
["TOTAL",{"$nulls":7},{"$f":"SUM(I11:I16)","v":{"v":0,"d":"$0"}}]
["Project Description and Training Narrative.  Use ALT-ENTER to insert paragraph breaks.  Refer to \"Narrative Examples\" tab to the left for examples of acceptable project narratives. "]
["Supporting documents (drawings/blueprints/pictures) are recommended to be included in the \"Attachment\" section below if size limitations allow.  Files that cause this form to exceed the 15MB size limit are to be sent to the NOJC via CTTSubmissions@dol.gov.  If files have been sent seperately, indicate by checking this box: "]
[]
["Scroll down to populate MATERIALS AND SUPPLIES Estimate"]
["MATERIALS AND SUPPLIES Estimate"]
["MATERIAL OR SUPPLY Description (Qty./Unit)",{"$nulls":5},"# of Units","Unit Cost","Line Cost"]
[{"$nulls":8},{"$f":"SUM(G24*H24)","v":{"v":0,"d":"$0"}}]
[{"$nulls":8},{"$f":"SUM(G25*H25)","v":{"v":0,"d":"$0"}}]
[{"$nulls":8},{"v":0,"d":"$0"}]
[{"$nulls":8},{"v":0,"d":"$0"}]
[{"$nulls":8},{"v":0,"d":"$0"}]
[{"$nulls":8},{"v":0,"d":"$0"}]
[{"$nulls":8},{"v":0,"d":"$0"}]
[{"$nulls":8},{"v":0,"d":"$0"}]
[{"$nulls":8},{"v":0,"d":"$0"}]
[{"$nulls":8},{"v":0,"d":"$0"}]
[{"$nulls":8},{"v":0,"d":"$0"}]
[{"$nulls":8},{"v":0,"d":"$0"}]
[{"$nulls":8},{"v":0,"d":"$0"}]
[{"$nulls":8},{"v":0,"d":"$0"}]
[{"$nulls":8},{"v":0,"d":"$0"}]
[{"$nulls":8},{"v":0,"d":"$0"}]
[{"$nulls":8},{"v":0,"d":"$0"}]
[{"$nulls":8},{"v":0,"d":"$0"}]
[{"$nulls":8},{"v":0,"d":"$0"}]
[{"$nulls":8},{"v":0,"d":"$0"}]
[{"$nulls":8},{"v":0,"d":"$0"}]
[{"$nulls":8},{"v":0,"d":"$0"}]
[{"$nulls":8},{"v":0,"d":"$0"}]
["TOTAL COST",{"$nulls":7},{"$f":"SUM(I24:I46)","v":{"v":0,"d":"$0"}}]
["JOB-SITE POWER TOOLS AND EQUIPMENT Estimate",{"$nulls":5},"Quantity","Unit Cost ","Line Cost"]
[{"$nulls":8},{"$f":"SUM(G49*H49)","v":{"v":0,"d":"$0"}}]
[{"$nulls":8},{"$f":"SUM(G50*H50)","v":{"v":0,"d":"$0"}}]
[{"$nulls":8},{"v":0,"d":"$0"}]
[{"$nulls":8},{"v":0,"d":"$0"}]
[{"$nulls":8},{"v":0,"d":"$0"}]
[{"$nulls":8},{"v":0,"d":"$0"}]
[{"$nulls":8},{"v":0,"d":"$0"}]
["TOTAL COST",{"$nulls":7},{"$f":"SUM(I49:I55)","v":{"v":0,"d":"$0"}}]
["EQUIPMENT RENTAL Estimate",{"$nulls":5},"Quantity","Unit Cost ","Line Cost"]
[{"$nulls":8},{"$f":"SUM(G58*H58)","v":{"v":0,"d":"$0"}}]
[{"$nulls":8},{"$f":"SUM(G59*H59)","v":{"v":0,"d":"$0"}}]
[{"$nulls":8},{"$f":"SUM(G60*H60)","v":{"v":0,"d":"$0"}}]
[{"$nulls":8},{"$f":"SUM(G61*H61)","v":{"v":0,"d":"$0"}}]
["TOTAL COST",{"$nulls":7},{"$f":"SUM(I58:I61)","v":{"v":0,"d":"$0"}}]
["Scroll down to populate CONTRACTED SERVICES Estimate"]
["CONTRACTED SERVICES Estimate",{"$nulls":5},"Quantity","Unit Cost","Line Cost"]
[{"$nulls":8},{"$f":"SUM(G65*H65)","v":{"v":0,"d":"$0"}}]
[{"$nulls":8},{"$f":"SUM(G66*H66)","v":{"v":0,"d":"$0"}}]
[{"$nulls":8},{"$f":"SUM(G67*H67)","v":{"v":0,"d":"$0"}}]
[{"$nulls":8},{"$f":"SUM(G68*H68)","v":{"v":0,"d":"$0"}}]
["TOTAL COST",{"$nulls":7},{"$f":"SUM(I65:I68)","v":{"v":0,"d":"$0"}}]
["AGENCY TECHNICAL SERVICES Estimate",{"$nulls":5},"Quantity","Unit Cost","Line Cost"]
[{"$nulls":8},{"$f":"SUM(G71*H71)","v":{"v":0,"d":"$0"}}]
[{"$nulls":8},{"$f":"SUM(G72*H72)","v":{"v":0,"d":"$0"}}]
[{"$nulls":8},{"$f":"SUM(G73*H73)","v":{"v":0,"d":"$0"}}]
[{"$nulls":8},{"$f":"SUM(G74*H74)","v":{"v":0,"d":"$0"}}]
["TOTAL COST",{"$nulls":7},{"$f":"SUM(I71:I74)","v":{"v":0,"d":"$0"}}]
["MOTOR VEHICLE OPERATIONS/MAINTENANCE Estimate",{"$nulls":5},"Quantity","Unit Cost","Line Cost"]
[{"$nulls":8},{"$f":"SUM(G77*H77)","v":{"v":0,"d":"$0"}}]
[{"$nulls":8},{"$f":"SUM(G78*H78)","v":{"v":0,"d":"$0"}}]
[{"$nulls":8},{"$f":"SUM(G79*H79)","v":{"v":0,"d":"$0"}}]
[{"$nulls":8},{"$f":"SUM(G80*H80)","v":{"v":0,"d":"$0"}}]
["TOTAL COST",{"$nulls":7},{"$f":"SUM(I77:I80)","v":{"v":0,"d":"$0"}}]
["SAFETY HAZARD ANALYSIS"]
["ACTION/HAZARD DESCRIPTION",{"$nulls":4},"PRPOSED CONTROL/ABATEMENT"]
{"$rows_empty":10}
["ATTACHMENTS"]
["Required attachments include site/structure drawings (including basic project dimensions and important structural measurements) and, if major systems alteration/addition is included in the project, systems detail drawing(s).  Acceptable file types for attachments include those with extensions: \n.avi, .bmp, .csv, .doc, .docx, .dwf, .dwg, .gif, .htm, .html, .jpg, .jpeg, .mpg, .mpp, .mp4, .pdf, .png, .pub, .rtf, .tif, .tiff, .txt, .wmf, .wmv, .xls, .xlsx, .xps"]
["Instructions to insert an attachment in Excel:  (1) Click the cell in which you would like the attachment to show.  (2) On the \"Insert\" tab above (tools ribbon), select \"Object\" (in the \"Text\" grouping).  (3) In the \"Object\" dialogue box, select \"Create from file.\"  (4) Select \"Browse\" and find the file you want to insert from your desktop.  (5) Select \"Display as icon\" box in \"Object\" dialogue box. (6) Select \"OK.\"  An icon should represent the attachment.  Provide a succinct summary of the attachment in the \"Description\" column immediately to the right of each attachment.  "]
["Attachment",null,null,"Description"]
{"$rows_empty":10}
["STOP HERE.  DO NOT FILL IN ANY SECTIONS BELOW THIS POINT.  All FURTHER SECTIONS FOR NOJC USE ONLY."]
["DFAM ENTRY DATE",null,null,"DFAM REVIEWER"]
["CTST ENGINEERING REVIEW -- NOJC USE ONLY"]
["CONSISTENCY WITH THE CENTER’S LONG RANGE PLAN (LRP):"]
[1,"Is the proposed project located where future buildings, structures or extensions are proposed in the LRP?  "]
["1A","If NO to #1, is the proposed project in close proximity to future LRP structures such that the functioning of both may be adversely affected?"]
[2,"Has the Center submitted a campus Site Plan clearly showing the proposed location of the project?"]
[3,"Does the proposed project affect the space utilization allowances in the LRP?"]
["COMPLIANCE WITH APPLICABLE CODES"]
["Space/Use Re-configuration"]
[4,"Are the reconfigured spaces’ exit routes in compliance with fire egress requirements?"]
[5,"Are number of emergency egress points per current code requirements?"]
[6,"Are current fire alarm devices adequate per code to satisfy the new use of the space?  "]
["6A","If NO to #6, does the project allow for a fire alarm upgrade to comply with code?"]
[7,"Are the existing lighting levels consistent with code requirements for the new use(s)?"]
[8,"Can the new electrical and mechanical loads be accommodated within existing circuits in compliance with code?"]
[9,"Does the existing lighting and power outlet layout serve the new use adequately?  "]
["9A","If NO to #9, is the proposed revised layout in compliance with code?"]
[10,"Does the reconfigured space comply with ADA requirements where applicable?"]
[11,"Has the Center submitted drawings addressing the above issues clearly? (Architectural plan, electrical layouts, reflected ceiling plans, fire alarm system layouts, etc.)"]
["HVAC Equipment Upgrades"]
[12,"Is the proposed HVAC equipment an Energy Star high-efficiency model?"]
[13,"What type of refrigerant does the proposed equipment use?"]
[14,"Has the Center submitted manufacturer’s trade literature showing equipment specs, including SIR ratings and refrigerant type?"]
[15,"Has the Center submitted a mechanical drawing showing location of equipment and ductwork?"]
[16,"If students are to install the new equipment, has the Center made arrangements to have manufacturer-approved installer supervision so as to protect the warranty?"]
["Lighting/Power Upgrades"]
[17,"Does the project entail lighting fixture replacement, lamp/ballast replacement or both?"]
[18,"Does the project entail any re-wiring?"]
[19,"Does the project entail any additional electrical loads with respect to existing?"]
["19A","If YES to #19, does the project provide adequate documentation to demonstrate code compliance?"]
[20,"Has the Center submitted manufacturer’s trade literature showing fixture/lamp specs?"]
[21,"Has the Center submitted a proposed lighting layout drawing showing proposed new lighting fixture and power outlet layout?                                                                  "]
["STRUCTURAL INTEGRITY"]
[22,"Does the proposed project comprise a habitable structure?"]
[23,"If not habitable, does the structural stability of the project impinge on the life/safety of students and staff?"]
[24,"Has the project’s structure been designed and documented by a licensed engineer?"]
["24A","If YES to #24, has the Center presented engineer-stamped documents?"]
[25,"If not designed/stamped by a licensed engineer, does the project comply with prescriptive design parameters per IBC code? "]
["25A","If NO to #25, has the Center submitted clear and complete documentation demonstrating prescriptive design code compliance?"]
[26,"For roof structures based on truss designs, does the project propose off-the-shelf pre-engineered truss solutions?  "]
["If 'Yes' to #26, respond to #27-29; if 'No' skip to #30"]
[27,"Has the Center submitted pre-engineered truss drawings?"]
[28,"Has the Center submitted clear details of pre-engineered truss fastenings?"]
[29,"Are the roof loads adequately distributed to the footings?  "]
[30,"Has the Center provided adequate footings and foundation drawings?"]
["SUSTAINABILITY"]
["Does the proposed project include:"]
[31,"Environmentally-preferred products?"]
[32,"Bio-based products?"]
[33,"Recycled-content products?"]
[34,"Low-emitting materials?"]
[35,"High-efficiency water fixtures?"]
["DFAM Reviewer Notes"]
[]
["DFAM Approval Provision(s)"]
[]
["DFAM Decline Recommendation(s)"]
[]
["DFAM Reviewer Recommendation"]

{"sheet":"24.06","index":9,"n_rows":167,"n_cols":9,"rows_kept":167,"merged":[[0,3,0,4],[1,1,1,3],[1,4,1,6],[1,7,1,8],[7,1,7,2],[7,3,7,4],[7,7,7,8],[8,0,8,8],[9,0,9,7],[10,0,10,7],[11,0,11,7],[12,0,12,7],[13,0,13,7],[14,0,14,7],[15,0,15,7],[16,0,16,7],[17,0,17,8],[18,0,18,8],[19,0,19,8],[20,0,20,8],[21,0,21,8],[22,0,22,5],[23,0,23,5],[24,0,24,5],[25,0,25,5],[26,0,26,5],[27,0,27,5],[28,0,28,5],[29,0,29,5],[30,0,30,5],[31,0,31,5],[32,0,32,5],[33,0,33,5],[34,0,34,5],[35,0,35,5],[36,0,36,5],[37,0,37,5],[38,0,38,5],[39,0,39,5],[40,0,40,5],[41,0,41,5],[42,0,42,5],[43,0,43,5],[44,0,44,5],[45,0,45,5],[46,0,46,7],[47,0,47,5],[48,0,48,5],[49,0,49,5],[50,0,50,5],[51,0,51,5],[52,0,52,5],[53,0,53,5],[54,0,54,5],[55,0,55,7],[56,0,56,5],[57,0,57,5],[58,0,58,5],[59,0,59,5],[60,0,60,5],[61,0,61,7],[62,0,62,8],[63,0,63,5],[64,0,64,5],[65,0,65,5],[66,0,66,5],[67,0,67,5],[68,0,68,7],[69,0,69,5],[70,0,70,5],[71,0,71,5],[72,0,72,5],[73,0,73,5],[74,0,74,7],[75,0,75,5],[76,0,76,5],[77,0,77,5],[78,0,78,5],[79,0,79,5],[80,0,80,7],[81,0,81,7],[82,0,82,4],[82,5,82,7],[83,0,83,4],[83,5,83,7],[84,0,84,4],[84,5,84,7],[85,0,85,4],[85,5,85,7],[86,0,86,4],[86,5,86,7],[87,0,87,4],[87,5,87,7],[88,0,88,4],[88,5,88,7],[89,0,89,4],[89,5,89,7],[90,0,90,4],[90,5,90,7],[91,0,91,4],[91,5,91,7],[92,0,92,4],[92,5,92,7],[93,0,93,8],[94,0,94,8],[95,0,95,8],[96,0,96,2],[96,3,96,8],[97,0,97,2],[97,3,97,8],[98,0,98,2],[98,3,98,8],[99,0,99,2],[99,3,99,8],[100,0,100,2],[100,3,100,8],[101,0,101,2],[101,3,101,8],[102,0,102,2],[102,3,102,8],[103,0,103,2],[103,3,103,8],[104,0,104,2],[104,3,104,8],[105,0,105,2],[105,3,105,8],[106,0,106,2],[106,3,106,8],[107,0,107,8],[108,0,108,1],[108,3,108,5],[108,6,108,8],[109,0,109,8],[110,0,110,7],[111,1,111,7],[112,1,112,7],[113,1,113,7],[114,1,114,7],[115,0,115,7],[117,1,117,7],[118,1,118,7],[119,1,119,7],[120,1,120,7],[121,1,121,7],[122,1,122,7],[123,1,123,7],[124,1,124,7],[125,1,125,7],[126,1,126,7],[128,1,128,7],[129,1,129,7],[130,1,130,7],[131,1,131,7],[132,1,132,7],[134,1,134,7],[135,1,135,7],[136,1,136,7],[137,1,137,7],[138,1,138,7],[139,1,139,7],[140,0,140,7],[141,1,141,7],[143,1,143,7],[144,1,144,7],[145,1,145,7],[146,1,146,7],[147,1,147,7],[148,0,148,7],[149,1,149,7],[150,1,150,7],[151,1,151,7],[152,1,152,7],[153,0,153,7],[155,1,155,7],[156,1,156,7],[157,1,157,7],[158,1,158,7],[159,1,159,7],[160,0,160,8],[161,0,161,8],[162,0,162,8],[163,0,163,8],[164,0,164,8],[165,0,165,8],[166,0,166,7]]}
["REGION",{"$f":"IFERROR(VLOOKUP(D1,CENTER_REGION_MATCH,2,FALSE),\"\")","v":""},"CENTER",{"$f":"IF(ISBLANK('24.01'!D1),\"\",'24.01'!D1)","v":""},null,"START DATE",null,"PROJECT ID",24.06]
["PROJECT TITLE",{"$nulls":3},"ESTIMATED # DAYS TO COMPLETE",null,null,{"$f":"SUM(C4,C5,C6,C7,F4,F5,F6,F7,I4,I5,I6,I7)","v":0}]
["TRADE","# SLOTS","WORK DAYS","TRADE","# SLOTS","WORK DAYS","TRADE","# SLOTS","WORK DAYS"]
[]
[]
[]
[]
["Total CTST Slots",{"$f":"SUM(B4:B7,E4:E7,H4:H7)","v":0},null,"Estimated VALUE of Project",null,{"$f":"2*I17","v":{"v":0,"d":"$0.00"}},"Cost/Slot",{"$f":"IF(B8=0,0,SUM(I17/B8))","v":{"v":0,"d":"$0.00"}}]
[]
["CATEGORY",{"$nulls":7},"Subtotal"]
["MATERIALS AND SUPPLIES",{"$nulls":7},{"$f":"I47","v":{"v":0,"d":"$0"}}]
["JOB-SITE POWER TOOLS AND EQUIPMENT",{"$nulls":7},{"$f":"I56","v":{"v":0,"d":"$0"}}]
["EQUIPMENT RENTAL",{"$nulls":7},{"$f":"I62","v":{"v":0,"d":"$0"}}]
["CONTRACTED SERVICES",{"$nulls":7},{"$f":"I69","v":{"v":0,"d":"$0"}}]
["AGENCY TECHNICAL SERVICES",{"$nulls":7},{"$f":"I75","v":{"v":0,"d":"$0"}}]
["MOTOR VEHICLE OPERATIONS/MAINTENANCE",{"$nulls":7},{"$f":"I81","v":{"v":0,"d":"$0"}}]
["TOTAL",{"$nulls":7},{"$f":"SUM(I11:I16)","v":{"v":0,"d":"$0"}}]
["Project Description and Training Narrative.  Use ALT-ENTER to insert paragraph breaks.  Refer to \"Narrative Examples\" tab to the left for examples of acceptable project narratives. "]
["Supporting documents (drawings/blueprints/pictures) are recommended to be included in the \"Attachment\" section below if size limitations allow.  Files that cause this form to exceed the 15MB size limit are to be sent to the NOJC via CTTSubmissions@dol.gov.  If files have been sent seperately, indicate by checking this box: "]
[]
["Scroll down to populate MATERIALS AND SUPPLIES Estimate"]
["MATERIALS AND SUPPLIES Estimate"]
["MATERIAL OR SUPPLY Description (Qty./Unit)",{"$nulls":5},"# of Units","Unit Cost","Line Cost"]
[{"$nulls":8},{"$f":"SUM(G24*H24)","v":{"v":0,"d":"$0"}}]
[{"$nulls":8},{"$f":"SUM(G25*H25)","v":{"v":0,"d":"$0"}}]
[{"$nulls":8},{"v":0,"d":"$0"}]
[{"$nulls":8},{"v":0,"d":"$0"}]
[{"$nulls":8},{"v":0,"d":"$0"}]
[{"$nulls":8},{"v":0,"d":"$0"}]
[{"$nulls":8},{"v":0,"d":"$0"}]
[{"$nulls":8},{"v":0,"d":"$0"}]
[{"$nulls":8},{"v":0,"d":"$0"}]
[{"$nulls":8},{"v":0,"d":"$0"}]
[{"$nulls":8},{"v":0,"d":"$0"}]
[{"$nulls":8},{"v":0,"d":"$0"}]
[{"$nulls":8},{"v":0,"d":"$0"}]
[{"$nulls":8},{"v":0,"d":"$0"}]
[{"$nulls":8},{"v":0,"d":"$0"}]
[{"$nulls":8},{"v":0,"d":"$0"}]
[{"$nulls":8},{"v":0,"d":"$0"}]
[{"$nulls":8},{"v":0,"d":"$0"}]
[{"$nulls":8},{"v":0,"d":"$0"}]
[{"$nulls":8},{"v":0,"d":"$0"}]
[{"$nulls":8},{"v":0,"d":"$0"}]
[{"$nulls":8},{"v":0,"d":"$0"}]
[{"$nulls":8},{"v":0,"d":"$0"}]
["TOTAL COST",{"$nulls":7},{"$f":"SUM(I24:I46)","v":{"v":0,"d":"$0"}}]
["JOB-SITE POWER TOOLS AND EQUIPMENT Estimate",{"$nulls":5},"Quantity","Unit Cost ","Line Cost"]
[{"$nulls":8},{"$f":"SUM(G49*H49)","v":{"v":0,"d":"$0"}}]
[{"$nulls":8},{"$f":"SUM(G50*H50)","v":{"v":0,"d":"$0"}}]
[{"$nulls":8},{"v":0,"d":"$0"}]
[{"$nulls":8},{"v":0,"d":"$0"}]
[{"$nulls":8},{"v":0,"d":"$0"}]
[{"$nulls":8},{"v":0,"d":"$0"}]
[{"$nulls":8},{"v":0,"d":"$0"}]
["TOTAL COST",{"$nulls":7},{"$f":"SUM(I49:I55)","v":{"v":0,"d":"$0"}}]
["EQUIPMENT RENTAL Estimate",{"$nulls":5},"Quantity","Unit Cost ","Line Cost"]
[{"$nulls":8},{"$f":"SUM(G58*H58)","v":{"v":0,"d":"$0"}}]
[{"$nulls":8},{"$f":"SUM(G59*H59)","v":{"v":0,"d":"$0"}}]
[{"$nulls":8},{"$f":"SUM(G60*H60)","v":{"v":0,"d":"$0"}}]
[{"$nulls":8},{"$f":"SUM(G61*H61)","v":{"v":0,"d":"$0"}}]
["TOTAL COST",{"$nulls":7},{"$f":"SUM(I58:I61)","v":{"v":0,"d":"$0"}}]
["Scroll down to populate CONTRACTED SERVICES Estimate"]
["CONTRACTED SERVICES Estimate",{"$nulls":5},"Quantity","Unit Cost","Line Cost"]
[{"$nulls":8},{"$f":"SUM(G65*H65)","v":{"v":0,"d":"$0"}}]
[{"$nulls":8},{"$f":"SUM(G66*H66)","v":{"v":0,"d":"$0"}}]
[{"$nulls":8},{"$f":"SUM(G67*H67)","v":{"v":0,"d":"$0"}}]
[{"$nulls":8},{"$f":"SUM(G68*H68)","v":{"v":0,"d":"$0"}}]
["TOTAL COST",{"$nulls":7},{"$f":"SUM(I65:I68)","v":{"v":0,"d":"$0"}}]
["AGENCY TECHNICAL SERVICES Estimate",{"$nulls":5},"Quantity","Unit Cost","Line Cost"]
[{"$nulls":8},{"$f":"SUM(G71*H71)","v":{"v":0,"d":"$0"}}]
[{"$nulls":8},{"$f":"SUM(G72*H72)","v":{"v":0,"d":"$0"}}]
[{"$nulls":8},{"$f":"SUM(G73*H73)","v":{"v":0,"d":"$0"}}]
[{"$nulls":8},{"$f":"SUM(G74*H74)","v":{"v":0,"d":"$0"}}]
["TOTAL COST",{"$nulls":7},{"$f":"SUM(I71:I74)","v":{"v":0,"d":"$0"}}]
["MOTOR VEHICLE OPERATIONS/MAINTENANCE Estimate",{"$nulls":5},"Quantity","Unit Cost","Line Cost"]
[{"$nulls":8},{"$f":"SUM(G77*H77)","v":{"v":0,"d":"$0"}}]
[{"$nulls":8},{"$f":"SUM(G78*H78)","v":{"v":0,"d":"$0"}}]
[{"$nulls":8},{"$f":"SUM(G79*H79)","v":{"v":0,"d":"$0"}}]
[{"$nulls":8},{"$f":"SUM(G80*H80)","v":{"v":0,"d":"$0"}}]
["TOTAL COST",{"$nulls":7},{"$f":"SUM(I77:I80)","v":{"v":0,"d":"$0"}}]
["SAFETY HAZARD ANALYSIS"]
["ACTION/HAZARD DESCRIPTION",{"$nulls":4},"PROPOSED CONTROL/ABATEMENT"]
{"$rows_empty":10}
["ATTACHMENTS"]
["Required attachments include site/structure drawings (including basic project dimensions and important structural measurements) and, if major systems alteration/addition is included in the project, systems detail drawing(s).  Acceptable file types for attachments include those with extensions: \n.avi, .bmp, .csv, .doc, .docx, .dwf, .dwg, .gif, .htm, .html, .jpg, .jpeg, .mpg, .mpp, .mp4, .pdf, .png, .pub, .rtf, .tif, .tiff, .txt, .wmf, .wmv, .xls, .xlsx, .xps"]
["Instructions to insert an attachment in Excel:  (1) Click the cell in which you would like the attachment to show.  (2) On the \"Insert\" tab above (tools ribbon), select \"Object\" (in the \"Text\" grouping).  (3) In the \"Object\" dialogue box, select \"Create from file.\"  (4) Select \"Browse\" and find the file you want to insert from your desktop.  (5) Select \"Display as icon\" box in \"Object\" dialogue box. (6) Select \"OK.\"  An icon should represent the attachment.  Provide a succinct summary of the attachment in the \"Description\" column immediately to the right of each attachment.  "]
["Attachment",null,null,"Description"]
{"$rows_empty":10}
["STOP HERE.  DO NOT FILL IN ANY SECTIONS BELOW THIS POINT.  All FURTHER SECTIONS FOR NOJC USE ONLY."]
["DFAM ENTRY DATE",null,null,"DFAM REVIEWER"]
["CTST ENGINEERING REVIEW -- NOJC USE ONLY"]
["CONSISTENCY WITH THE CENTER’S LONG RANGE PLAN (LRP):"]
[1,"Is the proposed project located where future buildings, structures or extensions are proposed in the LRP?  "]
["1A","If NO to #1, is the proposed project in close proximity to future LRP structures such that the functioning of both may be adversely affected?"]
[2,"Has the Center submitted a campus Site Plan clearly showing the proposed location of the project?"]
[3,"Does the proposed project affect the space utilization allowances in the LRP?"]
["COMPLIANCE WITH APPLICABLE CODES"]
["Space/Use Re-configuration"]
[4,"Are the reconfigured spaces’ exit routes in compliance with fire egress requirements?"]
[5,"Are number of emergency egress points per current code requirements?"]
[6,"Are current fire alarm devices adequate per code to satisfy the new use of the space?  "]
["6A","If NO to #6, does the project allow for a fire alarm upgrade to comply with code?"]
[7,"Are the existing lighting levels consistent with code requirements for the new use(s)?"]
[8,"Can the new electrical and mechanical loads be accommodated within existing circuits in compliance with code?"]
[9,"Does the existing lighting and power outlet layout serve the new use adequately?  "]
["9A","If NO to #9, is the proposed revised layout in compliance with code?"]
[10,"Does the reconfigured space comply with ADA requirements where applicable?"]
[11,"Has the Center submitted drawings addressing the above issues clearly? (Architectural plan, electrical layouts, reflected ceiling plans, fire alarm system layouts, etc.)"]
["HVAC Equipment Upgrades"]
[12,"Is the proposed HVAC equipment an Energy Star high-efficiency model?"]
[13,"What type of refrigerant does the proposed equipment use?"]
[14,"Has the Center submitted manufacturer’s trade literature showing equipment specs, including SIR ratings and refrigerant type?"]
[15,"Has the Center submitted a mechanical drawing showing location of equipment and ductwork?"]
[16,"If students are to install the new equipment, has the Center made arrangements to have manufacturer-approved installer supervision so as to protect the warranty?"]
["Lighting/Power Upgrades"]
[17,"Does the project entail lighting fixture replacement, lamp/ballast replacement or both?"]
[18,"Does the project entail any re-wiring?"]
[19,"Does the project entail any additional electrical loads with respect to existing?"]
["19A","If YES to #19, does the project provide adequate documentation to demonstrate code compliance?"]
[20,"Has the Center submitted manufacturer’s trade literature showing fixture/lamp specs?"]
[21,"Has the Center submitted a proposed lighting layout drawing showing proposed new lighting fixture and power outlet layout?                                                                  "]
["STRUCTURAL INTEGRITY"]
[22,"Does the proposed project comprise a habitable structure?"]
[23,"If not habitable, does the structural stability of the project impinge on the life/safety of students and staff?"]
[24,"Has the project’s structure been designed and documented by a licensed engineer?"]
["24A","If YES to #24, has the Center presented engineer-stamped documents?"]
[25,"If not designed/stamped by a licensed engineer, does the project comply with prescriptive design parameters per IBC code? "]
["25A","If NO to #25, has the Center submitted clear and complete documentation demonstrating prescriptive design code compliance?"]
[26,"For roof structures based on truss designs, does the project propose off-the-shelf pre-engineered truss solutions?  "]
["If 'Yes' to #26, respond to #27-29; if 'No' skip to #30"]
[27,"Has the Center submitted pre-engineered truss drawings?"]
[28,"Has the Center submitted clear details of pre-engineered truss fastenings?"]
[29,"Are the roof loads adequately distributed to the footings?  "]
[30,"Has the Center provided adequate footings and foundation drawings?"]
["SUSTAINABILITY"]
["Does the proposed project include:"]
[31,"Environmentally-preferred products?"]
[32,"Bio-based products?"]
[33,"Recycled-content products?"]
[34,"Low-emitting materials?"]
[35,"High-efficiency water fixtures?"]
["DFAM Reviewer Notes"]
[]
["DFAM Approval Provision(s)"]
[]
["DFAM Decline Recommendation(s)"]
[]
["DFAM Reviewer Recommendation"]

{"sheet":"24.07","index":10,"n_rows":167,"n_cols":9,"rows_kept":167,"merged":[[0,3,0,4],[1,1,1,3],[1,4,1,6],[1,7,1,8],[7,1,7,2],[7,3,7,4],[7,7,7,8],[8,0,8,8],[9,0,9,7],[10,0,10,7],[11,0,11,7],[12,0,12,7],[13,0,13,7],[14,0,14,7],[15,0,15,7],[16,0,16,7],[17,0,17,8],[18,0,18,8],[19,0,19,8],[20,0,20,8],[21,0,21,8],[22,0,22,5],[23,0,23,5],[24,0,24,5],[25,0,25,5],[26,0,26,5],[27,0,27,5],[28,0,28,5],[29,0,29,5],[30,0,30,5],[31,0,31,5],[32,0,32,5],[33,0,33,5],[34,0,34,5],[35,0,35,5],[36,0,36,5],[37,0,37,5],[38,0,38,5],[39,0,39,5],[40,0,40,5],[41,0,41,5],[42,0,42,5],[43,0,43,5],[44,0,44,5],[45,0,45,5],[46,0,46,7],[47,0,47,5],[48,0,48,5],[49,0,49,5],[50,0,50,5],[51,0,51,5],[52,0,52,5],[53,0,53,5],[54,0,54,5],[55,0,55,7],[56,0,56,5],[57,0,57,5],[58,0,58,5],[59,0,59,5],[60,0,60,5],[61,0,61,7],[62,0,62,8],[63,0,63,5],[64,0,64,5],[65,0,65,5],[66,0,66,5],[67,0,67,5],[68,0,68,7],[69,0,69,5],[70,0,70,5],[71,0,71,5],[72,0,72,5],[73,0,73,5],[74,0,74,7],[75,0,75,5],[76,0,76,5],[77,0,77,5],[78,0,78,5],[79,0,79,5],[80,0,80,7],[81,0,81,7],[82,0,82,4],[82,5,82,7],[83,0,83,4],[83,5,83,7],[84,0,84,4],[84,5,84,7],[85,0,85,4],[85,5,85,7],[86,0,86,4],[86,5,86,7],[87,0,87,4],[87,5,87,7],[88,0,88,4],[88,5,88,7],[89,0,89,4],[89,5,89,7],[90,0,90,4],[90,5,90,7],[91,0,91,4],[91,5,91,7],[92,0,92,4],[92,5,92,7],[93,0,93,8],[94,0,94,8],[95,0,95,8],[96,0,96,2],[96,3,96,8],[97,0,97,2],[97,3,97,8],[98,0,98,2],[98,3,98,8],[99,0,99,2],[99,3,99,8],[100,0,100,2],[100,3,100,8],[101,0,101,2],[101,3,101,8],[102,0,102,2],[102,3,102,8],[103,0,103,2],[103,3,103,8],[104,0,104,2],[104,3,104,8],[105,0,105,2],[105,3,105,8],[106,0,106,2],[106,3,106,8],[107,0,107,8],[108,0,108,1],[108,3,108,5],[108,6,108,8],[109,0,109,8],[110,0,110,7],[111,1,111,7],[112,1,112,7],[113,1,113,7],[114,1,114,7],[115,0,115,7],[117,1,117,7],[118,1,118,7],[119,1,119,7],[120,1,120,7],[121,1,121,7],[122,1,122,7],[123,1,123,7],[124,1,124,7],[125,1,125,7],[126,1,126,7],[128,1,128,7],[129,1,129,7],[130,1,130,7],[131,1,131,7],[132,1,132,7],[134,1,134,7],[135,1,135,7],[136,1,136,7],[137,1,137,7],[138,1,138,7],[139,1,139,7],[140,0,140,7],[141,1,141,7],[143,1,143,7],[144,1,144,7],[145,1,145,7],[146,1,146,7],[147,1,147,7],[148,0,148,7],[149,1,149,7],[150,1,150,7],[151,1,151,7],[152,1,152,7],[153,0,153,7],[155,1,155,7],[156,1,156,7],[157,1,157,7],[158,1,158,7],[159,1,159,7],[160,0,160,8],[161,0,161,8],[162,0,162,8],[163,0,163,8],[164,0,164,8],[165,0,165,8],[166,0,166,7]]}
["REGION",{"$f":"IFERROR(VLOOKUP(D1,CENTER_REGION_MATCH,2,FALSE),\"\")","v":""},"CENTER",{"$f":"IF(ISBLANK('24.01'!D1),\"\",'24.01'!D1)","v":""},null,"START DATE",null,"PROJECT ID",24.07]
["PROJECT TITLE",{"$nulls":3},"ESTIMATED # DAYS TO COMPLETE",null,null,{"$f":"SUM(C4,C5,C6,C7,F4,F5,F6,F7,I4,I5,I6,I7)","v":0}]
["TRADE","# SLOTS","WORK DAYS","TRADE","# SLOTS","WORK DAYS","TRADE","# SLOTS","WORK DAYS"]
[]
[]
[]
[]
["Total CTST Slots",{"$f":"SUM(B4:B7,E4:E7,H4:H7)","v":0},null,"Estimated VALUE of Project",null,{"$f":"2*I17","v":{"v":0,"d":"$0.00"}},"Cost/Slot",{"$f":"IF(B8=0,0,SUM(I17/B8))","v":{"v":0,"d":"$0.00"}}]
[]
["CATEGORY",{"$nulls":7},"Subtotal"]
["MATERIALS AND SUPPLIES",{"$nulls":7},{"$f":"I47","v":{"v":0,"d":"$0"}}]
["JOB-SITE POWER TOOLS AND EQUIPMENT",{"$nulls":7},{"$f":"I56","v":{"v":0,"d":"$0"}}]
["EQUIPMENT RENTAL",{"$nulls":7},{"$f":"I62","v":{"v":0,"d":"$0"}}]
["CONTRACTED SERVICES",{"$nulls":7},{"$f":"I69","v":{"v":0,"d":"$0"}}]
["AGENCY TECHNICAL SERVICES",{"$nulls":7},{"$f":"I75","v":{"v":0,"d":"$0"}}]
["MOTOR VEHICLE OPERATIONS/MAINTENANCE",{"$nulls":7},{"$f":"I81","v":{"v":0,"d":"$0"}}]
["TOTAL",{"$nulls":7},{"$f":"SUM(I11:I16)","v":{"v":0,"d":"$0"}}]
["Project Description and Training Narrative.  Use ALT-ENTER to insert paragraph breaks.  Refer to \"Narrative Examples\" tab to the left for examples of acceptable project narratives. "]
["Supporting documents (drawings/blueprints/pictures) are recommended to be included in the \"Attachment\" section below if size limitations allow.  Files that cause this form to exceed the 15MB size limit are to be sent to the NOJC via CTTSubmissions@dol.gov.  If files have been sent seperately, indicate by checking this box: "]
[]
["Scroll down to populate MATERIALS AND SUPPLIES Estimate"]
["MATERIALS AND SUPPLIES Estimate"]
["MATERIAL OR SUPPLY Description (Qty./Unit)",{"$nulls":5},"# of Units","Unit Cost","Line Cost"]
[{"$nulls":8},{"$f":"SUM(G24*H24)","v":{"v":0,"d":"$0"}}]
[{"$nulls":8},{"$f":"SUM(G25*H25)","v":{"v":0,"d":"$0"}}]
[{"$nulls":8},{"v":0,"d":"$0"}]
[{"$nulls":8},{"v":0,"d":"$0"}]
[{"$nulls":8},{"v":0,"d":"$0"}]
[{"$nulls":8},{"v":0,"d":"$0"}]
[{"$nulls":8},{"v":0,"d":"$0"}]
[{"$nulls":8},{"v":0,"d":"$0"}]
[{"$nulls":8},{"v":0,"d":"$0"}]
[{"$nulls":8},{"v":0,"d":"$0"}]
[{"$nulls":8},{"v":0,"d":"$0"}]
[{"$nulls":8},{"v":0,"d":"$0"}]
[{"$nulls":8},{"v":0,"d":"$0"}]
[{"$nulls":8},{"v":0,"d":"$0"}]
[{"$nulls":8},{"v":0,"d":"$0"}]
[{"$nulls":8},{"v":0,"d":"$0"}]
[{"$nulls":8},{"v":0,"d":"$0"}]
[{"$nulls":8},{"v":0,"d":"$0"}]
[{"$nulls":8},{"v":0,"d":"$0"}]
[{"$nulls":8},{"v":0,"d":"$0"}]
[{"$nulls":8},{"v":0,"d":"$0"}]
[{"$nulls":8},{"v":0,"d":"$0"}]
[{"$nulls":8},{"v":0,"d":"$0"}]
["TOTAL COST",{"$nulls":7},{"$f":"SUM(I24:I46)","v":{"v":0,"d":"$0"}}]
["JOB-SITE POWER TOOLS AND EQUIPMENT Estimate",{"$nulls":5},"Quantity","Unit Cost ","Line Cost"]
[{"$nulls":8},{"$f":"SUM(G49*H49)","v":{"v":0,"d":"$0"}}]
[{"$nulls":8},{"$f":"SUM(G50*H50)","v":{"v":0,"d":"$0"}}]
[{"$nulls":8},{"v":0,"d":"$0"}]
[{"$nulls":8},{"v":0,"d":"$0"}]
[{"$nulls":8},{"v":0,"d":"$0"}]
[{"$nulls":8},{"v":0,"d":"$0"}]
[{"$nulls":8},{"v":0,"d":"$0"}]
["TOTAL COST",{"$nulls":7},{"$f":"SUM(I49:I55)","v":{"v":0,"d":"$0"}}]
["EQUIPMENT RENTAL Estimate",{"$nulls":5},"Quantity","Unit Cost ","Line Cost"]
[{"$nulls":8},{"$f":"SUM(G58*H58)","v":{"v":0,"d":"$0"}}]
[{"$nulls":8},{"$f":"SUM(G59*H59)","v":{"v":0,"d":"$0"}}]
[{"$nulls":8},{"$f":"SUM(G60*H60)","v":{"v":0,"d":"$0"}}]
[{"$nulls":8},{"$f":"SUM(G61*H61)","v":{"v":0,"d":"$0"}}]
["TOTAL COST",{"$nulls":7},{"$f":"SUM(I58:I61)","v":{"v":0,"d":"$0"}}]
["Scroll down to populate CONTRACTED SERVICES Estimate"]
["CONTRACTED SERVICES Estimate",{"$nulls":5},"Quantity","Unit Cost","Line Cost"]
[{"$nulls":8},{"$f":"SUM(G65*H65)","v":{"v":0,"d":"$0"}}]
[{"$nulls":8},{"$f":"SUM(G66*H66)","v":{"v":0,"d":"$0"}}]
[{"$nulls":8},{"$f":"SUM(G67*H67)","v":{"v":0,"d":"$0"}}]
[{"$nulls":8},{"$f":"SUM(G68*H68)","v":{"v":0,"d":"$0"}}]
["TOTAL COST",{"$nulls":7},{"$f":"SUM(I65:I68)","v":{"v":0,"d":"$0"}}]
["AGENCY TECHNICAL SERVICES Estimate",{"$nulls":5},"Quantity","Unit Cost","Line Cost"]
[{"$nulls":8},{"$f":"SUM(G71*H71)","v":{"v":0,"d":"$0"}}]
[{"$nulls":8},{"$f":"SUM(G72*H72)","v":{"v":0,"d":"$0"}}]
[{"$nulls":8},{"$f":"SUM(G73*H73)","v":{"v":0,"d":"$0"}}]
[{"$nulls":8},{"$f":"SUM(G74*H74)","v":{"v":0,"d":"$0"}}]
["TOTAL COST",{"$nulls":7},{"$f":"SUM(I71:I74)","v":{"v":0,"d":"$0"}}]
["MOTOR VEHICLE OPERATIONS/MAINTENANCE Estimate",{"$nulls":5},"Quantity","Unit Cost","Line Cost"]
[{"$nulls":8},{"$f":"SUM(G77*H77)","v":{"v":0,"d":"$0"}}]
[{"$nulls":8},{"$f":"SUM(G78*H78)","v":{"v":0,"d":"$0"}}]
[{"$nulls":8},{"$f":"SUM(G79*H79)","v":{"v":0,"d":"$0"}}]
[{"$nulls":8},{"$f":"SUM(G80*H80)","v":{"v":0,"d":"$0"}}]
["TOTAL COST",{"$nulls":7},{"$f":"SUM(I77:I80)","v":{"v":0,"d":"$0"}}]
["SAFETY HAZARD ANALYSIS"]
["ACTION/HAZARD DESCRIPTION",{"$nulls":4},"PROPOSED CONTROL/ABATEMENT"]
{"$rows_empty":10}
["ATTACHMENTS"]
["Required attachments include site/structure drawings (including basic project dimensions and important structural measurements) and, if major systems alteration/addition is included in the project, systems detail drawing(s).  Acceptable file types for attachments include those with extensions: \n.avi, .bmp, .csv, .doc, .docx, .dwf, .dwg, .gif, .htm, .html, .jpg, .jpeg, .mpg, .mpp, .mp4, .pdf, .png, .pub, .rtf, .tif, .tiff, .txt, .wmf, .wmv, .xls, .xlsx, .xps"]
["Instructions to insert an attachment in Excel:  (1) Click the cell in which you would like the attachment to show.  (2) On the \"Insert\" tab above (tools ribbon), select \"Object\" (in the \"Text\" grouping).  (3) In the \"Object\" dialogue box, select \"Create from file.\"  (4) Select \"Browse\" and find the file you want to insert from your desktop.  (5) Select \"Display as icon\" box in \"Object\" dialogue box. (6) Select \"OK.\"  An icon should represent the attachment.  Provide a succinct summary of the attachment in the \"Description\" column immediately to the right of each attachment.  "]
["Attachment",null,null,"Description"]
{"$rows_empty":10}
["STOP HERE.  DO NOT FILL IN ANY SECTIONS BELOW THIS POINT.  All FURTHER SECTIONS FOR NOJC USE ONLY."]
["DFAM ENTRY DATE",null,null,"DFAM REVIEWER"]
["CTST ENGINEERING REVIEW -- NOJC USE ONLY"]
["CONSISTENCY WITH THE CENTER’S LONG RANGE PLAN (LRP):"]
[1,"Is the proposed project located where future buildings, structures or extensions are proposed in the LRP?  "]
["1A","If NO to #1, is the proposed project in close proximity to future LRP structures such that the functioning of both may be adversely affected?"]
[2,"Has the Center submitted a campus Site Plan clearly showing the proposed location of the project?"]
[3,"Does the proposed project affect the space utilization allowances in the LRP?"]
["COMPLIANCE WITH APPLICABLE CODES"]
["Space/Use Re-configuration"]
[4,"Are the reconfigured spaces’ exit routes in compliance with fire egress requirements?"]
[5,"Are number of emergency egress points per current code requirements?"]
[6,"Are current fire alarm devices adequate per code to satisfy the new use of the space?  "]
["6A","If NO to #6, does the project allow for a fire alarm upgrade to comply with code?"]
[7,"Are the existing lighting levels consistent with code requirements for the new use(s)?"]
[8,"Can the new electrical and mechanical loads be accommodated within existing circuits in compliance with code?"]
[9,"Does the existing lighting and power outlet layout serve the new use adequately?  "]
["9A","If NO to #9, is the proposed revised layout in compliance with code?"]
[10,"Does the reconfigured space comply with ADA requirements where applicable?"]
[11,"Has the Center submitted drawings addressing the above issues clearly? (Architectural plan, electrical layouts, reflected ceiling plans, fire alarm system layouts, etc.)"]
["HVAC Equipment Upgrades"]
[12,"Is the proposed HVAC equipment an Energy Star high-efficiency model?"]
[13,"What type of refrigerant does the proposed equipment use?"]
[14,"Has the Center submitted manufacturer’s trade literature showing equipment specs, including SIR ratings and refrigerant type?"]
[15,"Has the Center submitted a mechanical drawing showing location of equipment and ductwork?"]
[16,"If students are to install the new equipment, has the Center made arrangements to have manufacturer-approved installer supervision so as to protect the warranty?"]
["Lighting/Power Upgrades"]
[17,"Does the project entail lighting fixture replacement, lamp/ballast replacement or both?"]
[18,"Does the project entail any re-wiring?"]
[19,"Does the project entail any additional electrical loads with respect to existing?"]
["19A","If YES to #19, does the project provide adequate documentation to demonstrate code compliance?"]
[20,"Has the Center submitted manufacturer’s trade literature showing fixture/lamp specs?"]
[21,"Has the Center submitted a proposed lighting layout drawing showing proposed new lighting fixture and power outlet layout?                                                                  "]
["STRUCTURAL INTEGRITY"]
[22,"Does the proposed project comprise a habitable structure?"]
[23,"If not habitable, does the structural stability of the project impinge on the life/safety of students and staff?"]
[24,"Has the project’s structure been designed and documented by a licensed engineer?"]
["24A","If YES to #24, has the Center presented engineer-stamped documents?"]
[25,"If not designed/stamped by a licensed engineer, does the project comply with prescriptive design parameters per IBC code? "]
["25A","If NO to #25, has the Center submitted clear and complete documentation demonstrating prescriptive design code compliance?"]
[26,"For roof structures based on truss designs, does the project propose off-the-shelf pre-engineered truss solutions?  "]
["If 'Yes' to #26, respond to #27-29; if 'No' skip to #30"]
[27,"Has the Center submitted pre-engineered truss drawings?"]
[28,"Has the Center submitted clear details of pre-engineered truss fastenings?"]
[29,"Are the roof loads adequately distributed to the footings?  "]
[30,"Has the Center provided adequate footings and foundation drawings?"]
["SUSTAINABILITY"]
["Does the proposed project include:"]
[31,"Environmentally-preferred products?"]
[32,"Bio-based products?"]
[33,"Recycled-content products?"]
[34,"Low-emitting materials?"]
[35,"High-efficiency water fixtures?"]
["DFAM Reviewer Notes"]
[]
["DFAM Approval Provision(s)"]
[]
["DFAM Decline Recommendation(s)"]
[]
["DFAM Reviewer Recommendation"]

{"sheet":"24.08","index":11,"n_rows":167,"n_cols":9,"rows_kept":167,"merged":[[0,3,0,4],[1,1,1,3],[1,4,1,6],[1,7,1,8],[7,1,7,2],[7,3,7,4],[7,7,7,8],[8,0,8,8],[9,0,9,7],[10,0,10,7],[11,0,11,7],[12,0,12,7],[13,0,13,7],[14,0,14,7],[15,0,15,7],[16,0,16,7],[17,0,17,8],[18,0,18,8],[19,0,19,8],[20,0,20,8],[21,0,21,8],[22,0,22,5],[23,0,23,5],[24,0,24,5],[25,0,25,5],[26,0,26,5],[27,0,27,5],[28,0,28,5],[29,0,29,5],[30,0,30,5],[31,0,31,5],[32,0,32,5],[33,0,33,5],[34,0,34,5],[35,0,35,5],[36,0,36,5],[37,0,37,5],[38,0,38,5],[39,0,39,5],[40,0,40,5],[41,0,41,5],[42,0,42,5],[43,0,43,5],[44,0,44,5],[45,0,45,5],[46,0,46,7],[47,0,47,5],[48,0,48,5],[49,0,49,5],[50,0,50,5],[51,0,51,5],[52,0,52,5],[53,0,53,5],[54,0,54,5],[55,0,55,7],[56,0,56,5],[57,0,57,5],[58,0,58,5],[59,0,59,5],[60,0,60,5],[61,0,61,7],[62,0,62,8],[63,0,63,5],[64,0,64,5],[65,0,65,5],[66,0,66,5],[67,0,67,5],[68,0,68,7],[69,0,69,5],[70,0,70,5],[71,0,71,5],[72,0,72,5],[73,0,73,5],[74,0,74,7],[75,0,75,5],[76,0,76,5],[77,0,77,5],[78,0,78,5],[79,0,79,5],[80,0,80,7],[81,0,81,7],[82,0,82,4],[82,5,82,7],[83,0,83,4],[83,5,83,7],[84,0,84,4],[84,5,84,7],[85,0,85,4],[85,5,85,7],[86,0,86,4],[86,5,86,7],[87,0,87,4],[87,5,87,7],[88,0,88,4],[88,5,88,7],[89,0,89,4],[89,5,89,7],[90,0,90,4],[90,5,90,7],[91,0,91,4],[91,5,91,7],[92,0,92,4],[92,5,92,7],[93,0,93,8],[94,0,94,8],[95,0,95,8],[96,0,96,2],[96,3,96,8],[97,0,97,2],[97,3,97,8],[98,0,98,2],[98,3,98,8],[99,0,99,2],[99,3,99,8],[100,0,100,2],[100,3,100,8],[101,0,101,2],[101,3,101,8],[102,0,102,2],[102,3,102,8],[103,0,103,2],[103,3,103,8],[104,0,104,2],[104,3,104,8],[105,0,105,2],[105,3,105,8],[106,0,106,2],[106,3,106,8],[107,0,107,8],[108,0,108,1],[108,3,108,5],[108,6,108,8],[109,0,109,8],[110,0,110,7],[111,1,111,7],[112,1,112,7],[113,1,113,7],[114,1,114,7],[115,0,115,7],[117,1,117,7],[118,1,118,7],[119,1,119,7],[120,1,120,7],[121,1,121,7],[122,1,122,7],[123,1,123,7],[124,1,124,7],[125,1,125,7],[126,1,126,7],[128,1,128,7],[129,1,129,7],[130,1,130,7],[131,1,131,7],[132,1,132,7],[134,1,134,7],[135,1,135,7],[136,1,136,7],[137,1,137,7],[138,1,138,7],[139,1,139,7],[140,0,140,7],[141,1,141,7],[143,1,143,7],[144,1,144,7],[145,1,145,7],[146,1,146,7],[147,1,147,7],[148,0,148,7],[149,1,149,7],[150,1,150,7],[151,1,151,7],[152,1,152,7],[153,0,153,7],[155,1,155,7],[156,1,156,7],[157,1,157,7],[158,1,158,7],[159,1,159,7],[160,0,160,8],[161,0,161,8],[162,0,162,8],[163,0,163,8],[164,0,164,8],[165,0,165,8],[166,0,166,7]]}
["REGION",{"$f":"IFERROR(VLOOKUP(D1,CENTER_REGION_MATCH,2,FALSE),\"\")","v":""},"CENTER",{"$f":"IF(ISBLANK('24.01'!D1),\"\",'24.01'!D1)","v":""},null,"START DATE",null,"PROJECT ID",24.08]
["PROJECT TITLE",{"$nulls":3},"ESTIMATED # DAYS TO COMPLETE",null,null,{"$f":"SUM(C4,C5,C6,C7,F4,F5,F6,F7,I4,I5,I6,I7)","v":0}]
["TRADE","# SLOTS","WORK DAYS","TRADE","# SLOTS","WORK DAYS","TRADE","# SLOTS","WORK DAYS"]
[]
[]
[]
[]
["Total CTST Slots",{"$f":"SUM(B4:B7,E4:E7,H4:H7)","v":0},null,"Estimated VALUE of Project",null,{"$f":"2*I17","v":{"v":0,"d":"$0.00"}},"Cost/Slot",{"$f":"IF(B8=0,0,SUM(I17/B8))","v":{"v":0,"d":"$0.00"}}]
[]
["CATEGORY",{"$nulls":7},"Subtotal"]
["MATERIALS AND SUPPLIES",{"$nulls":7},{"$f":"I47","v":{"v":0,"d":"$0"}}]
["JOB-SITE POWER TOOLS AND EQUIPMENT",{"$nulls":7},{"$f":"I56","v":{"v":0,"d":"$0"}}]
["EQUIPMENT RENTAL",{"$nulls":7},{"$f":"I62","v":{"v":0,"d":"$0"}}]
["CONTRACTED SERVICES",{"$nulls":7},{"$f":"I69","v":{"v":0,"d":"$0"}}]
["AGENCY TECHNICAL SERVICES",{"$nulls":7},{"$f":"I75","v":{"v":0,"d":"$0"}}]
["MOTOR VEHICLE OPERATIONS/MAINTENANCE",{"$nulls":7},{"$f":"I81","v":{"v":0,"d":"$0"}}]
["TOTAL",{"$nulls":7},{"$f":"SUM(I11:I16)","v":{"v":0,"d":"$0"}}]
["Project Description and Training Narrative.  Use ALT-ENTER to insert paragraph breaks.  Refer to \"Narrative Examples\" tab to the left for examples of acceptable project narratives. "]
["Supporting documents (drawings/blueprints/pictures) are recommended to be included in the \"Attachment\" section below if size limitations allow.  Files that cause this form to exceed the 15MB size limit are to be sent to the NOJC via CTTSubmissions@dol.gov.  If files have been sent seperately, indicate by checking this box: "]
[]
["Scroll down to populate MATERIALS AND SUPPLIES Estimate"]
["MATERIALS AND SUPPLIES Estimate"]
["MATERIAL OR SUPPLY Description (Qty./Unit)",{"$nulls":5},"# of Units","Unit Cost","Line Cost"]
[{"$nulls":8},{"$f":"SUM(G24*H24)","v":{"v":0,"d":"$0"}}]
[{"$nulls":8},{"$f":"SUM(G25*H25)","v":{"v":0,"d":"$0"}}]
[{"$nulls":8},{"v":0,"d":"$0"}]
[{"$nulls":8},{"v":0,"d":"$0"}]
[{"$nulls":8},{"v":0,"d":"$0"}]
[{"$nulls":8},{"v":0,"d":"$0"}]
[{"$nulls":8},{"v":0,"d":"$0"}]
[{"$nulls":8},{"v":0,"d":"$0"}]
[{"$nulls":8},{"v":0,"d":"$0"}]
[{"$nulls":8},{"v":0,"d":"$0"}]
[{"$nulls":8},{"v":0,"d":"$0"}]
[{"$nulls":8},{"v":0,"d":"$0"}]
[{"$nulls":8},{"v":0,"d":"$0"}]
[{"$nulls":8},{"v":0,"d":"$0"}]
[{"$nulls":8},{"v":0,"d":"$0"}]
[{"$nulls":8},{"v":0,"d":"$0"}]
[{"$nulls":8},{"v":0,"d":"$0"}]
[{"$nulls":8},{"v":0,"d":"$0"}]
[{"$nulls":8},{"v":0,"d":"$0"}]
[{"$nulls":8},{"v":0,"d":"$0"}]
[{"$nulls":8},{"v":0,"d":"$0"}]
[{"$nulls":8},{"v":0,"d":"$0"}]
[{"$nulls":8},{"v":0,"d":"$0"}]
["TOTAL COST",{"$nulls":7},{"$f":"SUM(I24:I46)","v":{"v":0,"d":"$0"}}]
["JOB-SITE POWER TOOLS AND EQUIPMENT Estimate",{"$nulls":5},"Quantity","Unit Cost ","Line Cost"]
[{"$nulls":8},{"$f":"SUM(G49*H49)","v":{"v":0,"d":"$0"}}]
[{"$nulls":8},{"$f":"SUM(G50*H50)","v":{"v":0,"d":"$0"}}]
[{"$nulls":8},{"v":0,"d":"$0"}]
[{"$nulls":8},{"v":0,"d":"$0"}]
[{"$nulls":8},{"v":0,"d":"$0"}]
[{"$nulls":8},{"v":0,"d":"$0"}]
[{"$nulls":8},{"v":0,"d":"$0"}]
["TOTAL COST",{"$nulls":7},{"$f":"SUM(I49:I55)","v":{"v":0,"d":"$0"}}]
["EQUIPMENT RENTAL Estimate",{"$nulls":5},"Quantity","Unit Cost ","Line Cost"]
[{"$nulls":8},{"$f":"SUM(G58*H58)","v":{"v":0,"d":"$0"}}]
[{"$nulls":8},{"$f":"SUM(G59*H59)","v":{"v":0,"d":"$0"}}]
[{"$nulls":8},{"$f":"SUM(G60*H60)","v":{"v":0,"d":"$0"}}]
[{"$nulls":8},{"$f":"SUM(G61*H61)","v":{"v":0,"d":"$0"}}]
["TOTAL COST",{"$nulls":7},{"$f":"SUM(I58:I61)","v":{"v":0,"d":"$0"}}]
["Scroll down to populate CONTRACTED SERVICES Estimate"]
["CONTRACTED SERVICES Estimate",{"$nulls":5},"Quantity","Unit Cost","Line Cost"]
[{"$nulls":8},{"$f":"SUM(G65*H65)","v":{"v":0,"d":"$0"}}]
[{"$nulls":8},{"$f":"SUM(G66*H66)","v":{"v":0,"d":"$0"}}]
[{"$nulls":8},{"$f":"SUM(G67*H67)","v":{"v":0,"d":"$0"}}]
[{"$nulls":8},{"$f":"SUM(G68*H68)","v":{"v":0,"d":"$0"}}]
["TOTAL COST",{"$nulls":7},{"$f":"SUM(I65:I68)","v":{"v":0,"d":"$0"}}]
["AGENCY TECHNICAL SERVICES Estimate",{"$nulls":5},"Quantity","Unit Cost","Line Cost"]
[{"$nulls":8},{"$f":"SUM(G71*H71)","v":{"v":0,"d":"$0"}}]
[{"$nulls":8},{"$f":"SUM(G72*H72)","v":{"v":0,"d":"$0"}}]
[{"$nulls":8},{"$f":"SUM(G73*H73)","v":{"v":0,"d":"$0"}}]
[{"$nulls":8},{"$f":"SUM(G74*H74)","v":{"v":0,"d":"$0"}}]
["TOTAL COST",{"$nulls":7},{"$f":"SUM(I71:I74)","v":{"v":0,"d":"$0"}}]
["MOTOR VEHICLE OPERATIONS/MAINTENANCE Estimate",{"$nulls":5},"Quantity","Unit Cost","Line Cost"]
[{"$nulls":8},{"$f":"SUM(G77*H77)","v":{"v":0,"d":"$0"}}]
[{"$nulls":8},{"$f":"SUM(G78*H78)","v":{"v":0,"d":"$0"}}]
[{"$nulls":8},{"$f":"SUM(G79*H79)","v":{"v":0,"d":"$0"}}]
[{"$nulls":8},{"$f":"SUM(G80*H80)","v":{"v":0,"d":"$0"}}]
["TOTAL COST",{"$nulls":7},{"$f":"SUM(I77:I80)","v":{"v":0,"d":"$0"}}]
["SAFETY HAZARD ANALYSIS"]
["ACTION/HAZARD DESCRIPTION",{"$nulls":4},"PROPOSED CONTROL/ABATEMENT"]
{"$rows_empty":10}
["ATTACHMENTS"]
["Required attachments include site/structure drawings (including basic project dimensions and important structural measurements) and, if major systems alteration/addition is included in the project, systems detail drawing(s).  Acceptable file types for attachments include those with extensions: \n.avi, .bmp, .csv, .doc, .docx, .dwf, .dwg, .gif, .htm, .html, .jpg, .jpeg, .mpg, .mpp, .mp4, .pdf, .png, .pub, .rtf, .tif, .tiff, .txt, .wmf, .wmv, .xls, .xlsx, .xps"]
["Instructions to insert an attachment in Excel:  (1) Click the cell in which you would like the attachment to show.  (2) On the \"Insert\" tab above (tools ribbon), select \"Object\" (in the \"Text\" grouping).  (3) In the \"Object\" dialogue box, select \"Create from file.\"  (4) Select \"Browse\" and find the file you want to insert from your desktop.  (5) Select \"Display as icon\" box in \"Object\" dialogue box. (6) Select \"OK.\"  An icon should represent the attachment.  Provide a succinct summary of the attachment in the \"Description\" column immediately to the right of each attachment.  "]
["Attachment",null,null,"Description"]
{"$rows_empty":10}
["STOP HERE.  DO NOT FILL IN ANY SECTIONS BELOW THIS POINT.  All FURTHER SECTIONS FOR NOJC USE ONLY."]
["DFAM ENTRY DATE",null,null,"DFAM REVIEWER"]
["CTST ENGINEERING REVIEW -- NOJC USE ONLY"]
["CONSISTENCY WITH THE CENTER’S LONG RANGE PLAN (LRP):"]
[1,"Is the proposed project located where future buildings, structures or extensions are proposed in the LRP?  "]
["1A","If NO to #1, is the proposed project in close proximity to future LRP structures such that the functioning of both may be adversely affected?"]
[2,"Has the Center submitted a campus Site Plan clearly showing the proposed location of the project?"]
[3,"Does the proposed project affect the space utilization allowances in the LRP?"]
["COMPLIANCE WITH APPLICABLE CODES"]
["Space/Use Re-configuration"]
[4,"Are the reconfigured spaces’ exit routes in compliance with fire egress requirements?"]
[5,"Are number of emergency egress points per current code requirements?"]
[6,"Are current fire alarm devices adequate per code to satisfy the new use of the space?  "]
["6A","If NO to #6, does the project allow for a fire alarm upgrade to comply with code?"]
[7,"Are the existing lighting levels consistent with code requirements for the new use(s)?"]
[8,"Can the new electrical and mechanical loads be accommodated within existing circuits in compliance with code?"]
[9,"Does the existing lighting and power outlet layout serve the new use adequately?  "]
["9A","If NO to #9, is the proposed revised layout in compliance with code?"]
[10,"Does the reconfigured space comply with ADA requirements where applicable?"]
[11,"Has the Center submitted drawings addressing the above issues clearly? (Architectural plan, electrical layouts, reflected ceiling plans, fire alarm system layouts, etc.)"]
["HVAC Equipment Upgrades"]
[12,"Is the proposed HVAC equipment an Energy Star high-efficiency model?"]
[13,"What type of refrigerant does the proposed equipment use?"]
[14,"Has the Center submitted manufacturer’s trade literature showing equipment specs, including SIR ratings and refrigerant type?"]
[15,"Has the Center submitted a mechanical drawing showing location of equipment and ductwork?"]
[16,"If students are to install the new equipment, has the Center made arrangements to have manufacturer-approved installer supervision so as to protect the warranty?"]
["Lighting/Power Upgrades"]
[17,"Does the project entail lighting fixture replacement, lamp/ballast replacement or both?"]
[18,"Does the project entail any re-wiring?"]
[19,"Does the project entail any additional electrical loads with respect to existing?"]
["19A","If YES to #19, does the project provide adequate documentation to demonstrate code compliance?"]
[20,"Has the Center submitted manufacturer’s trade literature showing fixture/lamp specs?"]
[21,"Has the Center submitted a proposed lighting layout drawing showing proposed new lighting fixture and power outlet layout?                                                                  "]
["STRUCTURAL INTEGRITY"]
[22,"Does the proposed project comprise a habitable structure?"]
[23,"If not habitable, does the structural stability of the project impinge on the life/safety of students and staff?"]
[24,"Has the project’s structure been designed and documented by a licensed engineer?"]
["24A","If YES to #24, has the Center presented engineer-stamped documents?"]
[25,"If not designed/stamped by a licensed engineer, does the project comply with prescriptive design parameters per IBC code? "]
["25A","If NO to #25, has the Center submitted clear and complete documentation demonstrating prescriptive design code compliance?"]
[26,"For roof structures based on truss designs, does the project propose off-the-shelf pre-engineered truss solutions?  "]
["If 'Yes' to #26, respond to #27-29; if 'No' skip to #30"]
[27,"Has the Center submitted pre-engineered truss drawings?"]
[28,"Has the Center submitted clear details of pre-engineered truss fastenings?"]
[29,"Are the roof loads adequately distributed to the footings?  "]
[30,"Has the Center provided adequate footings and foundation drawings?"]
["SUSTAINABILITY"]
["Does the proposed project include:"]
[31,"Environmentally-preferred products?"]
[32,"Bio-based products?"]
[33,"Recycled-content products?"]
[34,"Low-emitting materials?"]
[35,"High-efficiency water fixtures?"]
["DFAM Reviewer Notes"]
[]
["DFAM Approval Provision(s)"]
[]
["DFAM Decline Recommendation(s)"]
[]
["DFAM Reviewer Recommendation"]

{"sheet":"24.09","index":12,"n_rows":167,"n_cols":9,"rows_kept":167,"merged":[[0,3,0,4],[1,1,1,3],[1,4,1,6],[1,7,1,8],[7,1,7,2],[7,3,7,4],[7,7,7,8],[8,0,8,8],[9,0,9,7],[10,0,10,7],[11,0,11,7],[12,0,12,7],[13,0,13,7],[14,0,14,7],[15,0,15,7],[16,0,16,7],[17,0,17,8],[18,0,18,8],[19,0,19,8],[20,0,20,8],[21,0,21,8],[22,0,22,5],[23,0,23,5],[24,0,24,5],[25,0,25,5],[26,0,26,5],[27,0,27,5],[28,0,28,5],[29,0,29,5],[30,0,30,5],[31,0,31,5],[32,0,32,5],[33,0,33,5],[34,0,34,5],[35,0,35,5],[36,0,36,5],[37,0,37,5],[38,0,38,5],[39,0,39,5],[40,0,40,5],[41,0,41,5],[42,0,42,5],[43,0,43,5],[44,0,44,5],[45,0,45,5],[46,0,46,7],[47,0,47,5],[48,0,48,5],[49,0,49,5],[50,0,50,5],[51,0,51,5],[52,0,52,5],[53,0,53,5],[54,0,54,5],[55,0,55,7],[56,0,56,5],[57,0,57,5],[58,0,58,5],[59,0,59,5],[60,0,60,5],[61,0,61,7],[62,0,62,8],[63,0,63,5],[64,0,64,5],[65,0,65,5],[66,0,66,5],[67,0,67,5],[68,0,68,7],[69,0,69,5],[70,0,70,5],[71,0,71,5],[72,0,72,5],[73,0,73,5],[74,0,74,7],[75,0,75,5],[76,0,76,5],[77,0,77,5],[78,0,78,5],[79,0,79,5],[80,0,80,7],[81,0,81,7],[82,0,82,4],[82,5,82,7],[83,0,83,4],[83,5,83,7],[84,0,84,4],[84,5,84,7],[85,0,85,4],[85,5,85,7],[86,0,86,4],[86,5,86,7],[87,0,87,4],[87,5,87,7],[88,0,88,4],[88,5,88,7],[89,0,89,4],[89,5,89,7],[90,0,90,4],[90,5,90,7],[91,0,91,4],[91,5,91,7],[92,0,92,4],[92,5,92,7],[93,0,93,8],[94,0,94,8],[95,0,95,8],[96,0,96,2],[96,3,96,8],[97,0,97,2],[97,3,97,8],[98,0,98,2],[98,3,98,8],[99,0,99,2],[99,3,99,8],[100,0,100,2],[100,3,100,8],[101,0,101,2],[101,3,101,8],[102,0,102,2],[102,3,102,8],[103,0,103,2],[103,3,103,8],[104,0,104,2],[104,3,104,8],[105,0,105,2],[105,3,105,8],[106,0,106,2],[106,3,106,8],[107,0,107,8],[108,0,108,1],[108,3,108,5],[108,6,108,8],[109,0,109,8],[110,0,110,7],[111,1,111,7],[112,1,112,7],[113,1,113,7],[114,1,114,7],[115,0,115,7],[117,1,117,7],[118,1,118,7],[119,1,119,7],[120,1,120,7],[121,1,121,7],[122,1,122,7],[123,1,123,7],[124,1,124,7],[125,1,125,7],[126,1,126,7],[128,1,128,7],[129,1,129,7],[130,1,130,7],[131,1,131,7],[132,1,132,7],[134,1,134,7],[135,1,135,7],[136,1,136,7],[137,1,137,7],[138,1,138,7],[139,1,139,7],[140,0,140,7],[141,1,141,7],[143,1,143,7],[144,1,144,7],[145,1,145,7],[146,1,146,7],[147,1,147,7],[148,0,148,7],[149,1,149,7],[150,1,150,7],[151,1,151,7],[152,1,152,7],[153,0,153,7],[155,1,155,7],[156,1,156,7],[157,1,157,7],[158,1,158,7],[159,1,159,7],[160,0,160,8],[161,0,161,8],[162,0,162,8],[163,0,163,8],[164,0,164,8],[165,0,165,8],[166,0,166,7]]}
["REGION",{"$f":"IFERROR(VLOOKUP(D1,CENTER_REGION_MATCH,2,FALSE),\"\")","v":""},"CENTER",{"$f":"IF(ISBLANK('24.01'!D1),\"\",'24.01'!D1)","v":""},null,"START DATE",null,"PROJECT ID",24.09]
["PROJECT TITLE",{"$nulls":3},"ESTIMATED # DAYS TO COMPLETE",null,null,{"$f":"SUM(C4,C5,C6,C7,F4,F5,F6,F7,I4,I5,I6,I7)","v":0}]
["TRADE","# SLOTS","WORK DAYS","TRADE","# SLOTS","WORK DAYS","TRADE","# SLOTS","WORK DAYS"]
[]
[]
[]
[]
["Total CTST Slots",{"$f":"SUM(B4:B7,E4:E7,H4:H7)","v":0},null,"Estimated VALUE of Project",null,{"$f":"2*I17","v":{"v":0,"d":"$0.00"}},"Cost/Slot",{"$f":"IF(B8=0,0,SUM(I17/B8))","v":{"v":0,"d":"$0.00"}}]
[]
["CATEGORY",{"$nulls":7},"Subtotal"]
["MATERIALS AND SUPPLIES",{"$nulls":7},{"$f":"I47","v":{"v":0,"d":"$0"}}]
["JOB-SITE POWER TOOLS AND EQUIPMENT",{"$nulls":7},{"$f":"I56","v":{"v":0,"d":"$0"}}]
["EQUIPMENT RENTAL",{"$nulls":7},{"$f":"I62","v":{"v":0,"d":"$0"}}]
["CONTRACTED SERVICES",{"$nulls":7},{"$f":"I69","v":{"v":0,"d":"$0"}}]
["AGENCY TECHNICAL SERVICES",{"$nulls":7},{"$f":"I75","v":{"v":0,"d":"$0"}}]
["MOTOR VEHICLE OPERATIONS/MAINTENANCE",{"$nulls":7},{"$f":"I81","v":{"v":0,"d":"$0"}}]
["TOTAL",{"$nulls":7},{"$f":"SUM(I11:I16)","v":{"v":0,"d":"$0"}}]
["Project Description and Training Narrative.  Use ALT-ENTER to insert paragraph breaks.  Refer to \"Narrative Examples\" tab to the left for examples of acceptable project narratives. "]
["Supporting documents (drawings/blueprints/pictures) are recommended to be included in the \"Attachment\" section below if size limitations allow.  Files that cause this form to exceed the 15MB size limit are to be sent to the NOJC via CTTSubmissions@dol.gov.  If files have been sent seperately, indicate by checking this box: "]
[]
["Scroll down to populate MATERIALS AND SUPPLIES Estimate"]
["MATERIALS AND SUPPLIES Estimate"]
["MATERIAL OR SUPPLY Description (Qty./Unit)",{"$nulls":5},"# of Units","Unit Cost","Line Cost"]
[{"$nulls":8},{"$f":"SUM(G24*H24)","v":{"v":0,"d":"$0"}}]
[{"$nulls":8},{"$f":"SUM(G25*H25)","v":{"v":0,"d":"$0"}}]
[{"$nulls":8},{"v":0,"d":"$0"}]
[{"$nulls":8},{"v":0,"d":"$0"}]
[{"$nulls":8},{"v":0,"d":"$0"}]
[{"$nulls":8},{"v":0,"d":"$0"}]
[{"$nulls":8},{"v":0,"d":"$0"}]
[{"$nulls":8},{"v":0,"d":"$0"}]
[{"$nulls":8},{"v":0,"d":"$0"}]
[{"$nulls":8},{"v":0,"d":"$0"}]
[{"$nulls":8},{"v":0,"d":"$0"}]
[{"$nulls":8},{"v":0,"d":"$0"}]
[{"$nulls":8},{"v":0,"d":"$0"}]
[{"$nulls":8},{"v":0,"d":"$0"}]
[{"$nulls":8},{"v":0,"d":"$0"}]
[{"$nulls":8},{"v":0,"d":"$0"}]
[{"$nulls":8},{"v":0,"d":"$0"}]
[{"$nulls":8},{"v":0,"d":"$0"}]
[{"$nulls":8},{"v":0,"d":"$0"}]
[{"$nulls":8},{"v":0,"d":"$0"}]
[{"$nulls":8},{"v":0,"d":"$0"}]
[{"$nulls":8},{"v":0,"d":"$0"}]
[{"$nulls":8},{"v":0,"d":"$0"}]
["TOTAL COST",{"$nulls":7},{"$f":"SUM(I24:I46)","v":{"v":0,"d":"$0"}}]
["JOB-SITE POWER TOOLS AND EQUIPMENT Estimate",{"$nulls":5},"Quantity","Unit Cost ","Line Cost"]
[{"$nulls":8},{"$f":"SUM(G49*H49)","v":{"v":0,"d":"$0"}}]
[{"$nulls":8},{"$f":"SUM(G50*H50)","v":{"v":0,"d":"$0"}}]
[{"$nulls":8},{"v":0,"d":"$0"}]
[{"$nulls":8},{"v":0,"d":"$0"}]
[{"$nulls":8},{"v":0,"d":"$0"}]
[{"$nulls":8},{"v":0,"d":"$0"}]
[{"$nulls":8},{"v":0,"d":"$0"}]
["TOTAL COST",{"$nulls":7},{"$f":"SUM(I49:I55)","v":{"v":0,"d":"$0"}}]
["EQUIPMENT RENTAL Estimate",{"$nulls":5},"Quantity","Unit Cost ","Line Cost"]
[{"$nulls":8},{"$f":"SUM(G58*H58)","v":{"v":0,"d":"$0"}}]
[{"$nulls":8},{"$f":"SUM(G59*H59)","v":{"v":0,"d":"$0"}}]
[{"$nulls":8},{"$f":"SUM(G60*H60)","v":{"v":0,"d":"$0"}}]
[{"$nulls":8},{"$f":"SUM(G61*H61)","v":{"v":0,"d":"$0"}}]
["TOTAL COST",{"$nulls":7},{"$f":"SUM(I58:I61)","v":{"v":0,"d":"$0"}}]
["Scroll down to populate CONTRACTED SERVICES Estimate"]
["CONTRACTED SERVICES Estimate",{"$nulls":5},"Quantity","Unit Cost","Line Cost"]
[{"$nulls":8},{"$f":"SUM(G65*H65)","v":{"v":0,"d":"$0"}}]
[{"$nulls":8},{"$f":"SUM(G66*H66)","v":{"v":0,"d":"$0"}}]
[{"$nulls":8},{"$f":"SUM(G67*H67)","v":{"v":0,"d":"$0"}}]
[{"$nulls":8},{"$f":"SUM(G68*H68)","v":{"v":0,"d":"$0"}}]
["TOTAL COST",{"$nulls":7},{"$f":"SUM(I65:I68)","v":{"v":0,"d":"$0"}}]
["AGENCY TECHNICAL SERVICES Estimate",{"$nulls":5},"Quantity","Unit Cost","Line Cost"]
[{"$nulls":8},{"$f":"SUM(G71*H71)","v":{"v":0,"d":"$0"}}]
[{"$nulls":8},{"$f":"SUM(G72*H72)","v":{"v":0,"d":"$0"}}]
[{"$nulls":8},{"$f":"SUM(G73*H73)","v":{"v":0,"d":"$0"}}]
[{"$nulls":8},{"$f":"SUM(G74*H74)","v":{"v":0,"d":"$0"}}]
["TOTAL COST",{"$nulls":7},{"$f":"SUM(I71:I74)","v":{"v":0,"d":"$0"}}]
["MOTOR VEHICLE OPERATIONS/MAINTENANCE Estimate",{"$nulls":5},"Quantity","Unit Cost","Line Cost"]
[{"$nulls":8},{"$f":"SUM(G77*H77)","v":{"v":0,"d":"$0"}}]
[{"$nulls":8},{"$f":"SUM(G78*H78)","v":{"v":0,"d":"$0"}}]
[{"$nulls":8},{"$f":"SUM(G79*H79)","v":{"v":0,"d":"$0"}}]
[{"$nulls":8},{"$f":"SUM(G80*H80)","v":{"v":0,"d":"$0"}}]
["TOTAL COST",{"$nulls":7},{"$f":"SUM(I77:I80)","v":{"v":0,"d":"$0"}}]
["SAFETY HAZARD ANALYSIS"]
["ACTION/HAZARD DESCRIPTION",{"$nulls":4},"PROPOSED CONTROL/ABATEMENT"]
{"$rows_empty":10}
["ATTACHMENTS"]
["Required attachments include site/structure drawings (including basic project dimensions and important structural measurements) and, if major systems alteration/addition is included in the project, systems detail drawing(s).  Acceptable file types for attachments include those with extensions: \n.avi, .bmp, .csv, .doc, .docx, .dwf, .dwg, .gif, .htm, .html, .jpg, .jpeg, .mpg, .mpp, .mp4, .pdf, .png, .pub, .rtf, .tif, .tiff, .txt, .wmf, .wmv, .xls, .xlsx, .xps"]
["Instructions to insert an attachment in Excel:  (1) Click the cell in which you would like the attachment to show.  (2) On the \"Insert\" tab above (tools ribbon), select \"Object\" (in the \"Text\" grouping).  (3) In the \"Object\" dialogue box, select \"Create from file.\"  (4) Select \"Browse\" and find the file you want to insert from your desktop.  (5) Select \"Display as icon\" box in \"Object\" dialogue box. (6) Select \"OK.\"  An icon should represent the attachment.  Provide a succinct summary of the attachment in the \"Description\" column immediately to the right of each attachment.  "]
["Attachment",null,null,"Description"]
{"$rows_empty":10}
["STOP HERE.  DO NOT FILL IN ANY SECTIONS BELOW THIS POINT.  All FURTHER SECTIONS FOR NOJC USE ONLY."]
["DFAM ENTRY DATE",null,null,"DFAM REVIEWER"]
["CTST ENGINEERING REVIEW -- NOJC USE ONLY"]
["CONSISTENCY WITH THE CENTER’S LONG RANGE PLAN (LRP):"]
[1,"Is the proposed project located where future buildings, structures or extensions are proposed in the LRP?  "]
["1A","If NO to #1, is the proposed project in close proximity to future LRP structures such that the functioning of both may be adversely affected?"]
[2,"Has the Center submitted a campus Site Plan clearly showing the proposed location of the project?"]
[3,"Does the proposed project affect the space utilization allowances in the LRP?"]
["COMPLIANCE WITH APPLICABLE CODES"]
["Space/Use Re-configuration"]
[4,"Are the reconfigured spaces’ exit routes in compliance with fire egress requirements?"]
[5,"Are number of emergency egress points per current code requirements?"]
[6,"Are current fire alarm devices adequate per code to satisfy the new use of the space?  "]
["6A","If NO to #6, does the project allow for a fire alarm upgrade to comply with code?"]
[7,"Are the existing lighting levels consistent with code requirements for the new use(s)?"]
[8,"Can the new electrical and mechanical loads be accommodated within existing circuits in compliance with code?"]
[9,"Does the existing lighting and power outlet layout serve the new use adequately?  "]
["9A","If NO to #9, is the proposed revised layout in compliance with code?"]
[10,"Does the reconfigured space comply with ADA requirements where applicable?"]
[11,"Has the Center submitted drawings addressing the above issues clearly? (Architectural plan, electrical layouts, reflected ceiling plans, fire alarm system layouts, etc.)"]
["HVAC Equipment Upgrades"]
[12,"Is the proposed HVAC equipment an Energy Star high-efficiency model?"]
[13,"What type of refrigerant does the proposed equipment use?"]
[14,"Has the Center submitted manufacturer’s trade literature showing equipment specs, including SIR ratings and refrigerant type?"]
[15,"Has the Center submitted a mechanical drawing showing location of equipment and ductwork?"]
[16,"If students are to install the new equipment, has the Center made arrangements to have manufacturer-approved installer supervision so as to protect the warranty?"]
["Lighting/Power Upgrades"]
[17,"Does the project entail lighting fixture replacement, lamp/ballast replacement or both?"]
[18,"Does the project entail any re-wiring?"]
[19,"Does the project entail any additional electrical loads with respect to existing?"]
["19A","If YES to #19, does the project provide adequate documentation to demonstrate code compliance?"]
[20,"Has the Center submitted manufacturer’s trade literature showing fixture/lamp specs?"]
[21,"Has the Center submitted a proposed lighting layout drawing showing proposed new lighting fixture and power outlet layout?                                                                  "]
["STRUCTURAL INTEGRITY"]
[22,"Does the proposed project comprise a habitable structure?"]
[23,"If not habitable, does the structural stability of the project impinge on the life/safety of students and staff?"]
[24,"Has the project’s structure been designed and documented by a licensed engineer?"]
["24A","If YES to #24, has the Center presented engineer-stamped documents?"]
[25,"If not designed/stamped by a licensed engineer, does the project comply with prescriptive design parameters per IBC code? "]
["25A","If NO to #25, has the Center submitted clear and complete documentation demonstrating prescriptive design code compliance?"]
[26,"For roof structures based on truss designs, does the project propose off-the-shelf pre-engineered truss solutions?  "]
["If 'Yes' to #26, respond to #27-29; if 'No' skip to #30"]
[27,"Has the Center submitted pre-engineered truss drawings?"]
[28,"Has the Center submitted clear details of pre-engineered truss fastenings?"]
[29,"Are the roof loads adequately distributed to the footings?  "]
[30,"Has the Center provided adequate footings and foundation drawings?"]
["SUSTAINABILITY"]
["Does the proposed project include:"]
[31,"Environmentally-preferred products?"]
[32,"Bio-based products?"]
[33,"Recycled-content products?"]
[34,"Low-emitting materials?"]
[35,"High-efficiency water fixtures?"]
["DFAM Reviewer Notes"]
[]
["DFAM Approval Provision(s)"]
[]
["DFAM Decline Recommendation(s)"]
[]
["DFAM Reviewer Recommendation"]

{"sheet":"24.10","index":13,"n_rows":167,"n_cols":9,"rows_kept":167,"merged":[[0,3,0,4],[1,1,1,3],[1,4,1,6],[1,7,1,8],[7,1,7,2],[7,3,7,4],[7,7,7,8],[8,0,8,8],[9,0,9,7],[10,0,10,7],[11,0,11,7],[12,0,12,7],[13,0,13,7],[14,0,14,7],[15,0,15,7],[16,0,16,7],[17,0,17,8],[18,0,18,8],[19,0,19,8],[20,0,20,8],[21,0,21,8],[22,0,22,5],[23,0,23,5],[24,0,24,5],[25,0,25,5],[26,0,26,5],[27,0,27,5],[28,0,28,5],[29,0,29,5],[30,0,30,5],[31,0,31,5],[32,0,32,5],[33,0,33,5],[34,0,34,5],[35,0,35,5],[36,0,36,5],[37,0,37,5],[38,0,38,5],[39,0,39,5],[40,0,40,5],[41,0,41,5],[42,0,42,5],[43,0,43,5],[44,0,44,5],[45,0,45,5],[46,0,46,7],[47,0,47,5],[48,0,48,5],[49,0,49,5],[50,0,50,5],[51,0,51,5],[52,0,52,5],[53,0,53,5],[54,0,54,5],[55,0,55,7],[56,0,56,5],[57,0,57,5],[58,0,58,5],[59,0,59,5],[60,0,60,5],[61,0,61,7],[62,0,62,8],[63,0,63,5],[64,0,64,5],[65,0,65,5],[66,0,66,5],[67,0,67,5],[68,0,68,7],[69,0,69,5],[70,0,70,5],[71,0,71,5],[72,0,72,5],[73,0,73,5],[74,0,74,7],[75,0,75,5],[76,0,76,5],[77,0,77,5],[78,0,78,5],[79,0,79,5],[80,0,80,7],[81,0,81,7],[82,0,82,4],[82,5,82,7],[83,0,83,4],[83,5,83,7],[84,0,84,4],[84,5,84,7],[85,0,85,4],[85,5,85,7],[86,0,86,4],[86,5,86,7],[87,0,87,4],[87,5,87,7],[88,0,88,4],[88,5,88,7],[89,0,89,4],[89,5,89,7],[90,0,90,4],[90,5,90,7],[91,0,91,4],[91,5,91,7],[92,0,92,4],[92,5,92,7],[93,0,93,8],[94,0,94,8],[95,0,95,8],[96,0,96,2],[96,3,96,8],[97,0,97,2],[97,3,97,8],[98,0,98,2],[98,3,98,8],[99,0,99,2],[99,3,99,8],[100,0,100,2],[100,3,100,8],[101,0,101,2],[101,3,101,8],[102,0,102,2],[102,3,102,8],[103,0,103,2],[103,3,103,8],[104,0,104,2],[104,3,104,8],[105,0,105,2],[105,3,105,8],[106,0,106,2],[106,3,106,8],[107,0,107,8],[108,0,108,1],[108,3,108,5],[108,6,108,8],[109,0,109,8],[110,0,110,7],[111,1,111,7],[112,1,112,7],[113,1,113,7],[114,1,114,7],[115,0,115,7],[117,1,117,7],[118,1,118,7],[119,1,119,7],[120,1,120,7],[121,1,121,7],[122,1,122,7],[123,1,123,7],[124,1,124,7],[125,1,125,7],[126,1,126,7],[128,1,128,7],[129,1,129,7],[130,1,130,7],[131,1,131,7],[132,1,132,7],[134,1,134,7],[135,1,135,7],[136,1,136,7],[137,1,137,7],[138,1,138,7],[139,1,139,7],[140,0,140,7],[141,1,141,7],[143,1,143,7],[144,1,144,7],[145,1,145,7],[146,1,146,7],[147,1,147,7],[148,0,148,7],[149,1,149,7],[150,1,150,7],[151,1,151,7],[152,1,152,7],[153,0,153,7],[155,1,155,7],[156,1,156,7],[157,1,157,7],[158,1,158,7],[159,1,159,7],[160,0,160,8],[161,0,161,8],[162,0,162,8],[163,0,163,8],[164,0,164,8],[165,0,165,8],[166,0,166,7]]}
["REGION",{"$f":"IFERROR(VLOOKUP(D1,CENTER_REGION_MATCH,2,FALSE),\"\")","v":""},"CENTER",{"$f":"IF(ISBLANK('24.01'!D1),\"\",'24.01'!D1)","v":""},null,"START DATE",null,"PROJECT ID",{"v":24.1,"d":"24.10"}]
["PROJECT TITLE",{"$nulls":3},"ESTIMATED # DAYS TO COMPLETE",null,null,{"$f":"SUM(C4,C5,C6,C7,F4,F5,F6,F7,I4,I5,I6,I7)","v":0}]
["TRADE","# SLOTS","WORK DAYS","TRADE","# SLOTS","WORK DAYS","TRADE","# SLOTS","WORK DAYS"]
[]
[]
[]
[]
["Total CTST Slots",{"$f":"SUM(B4:B7,E4:E7,H4:H7)","v":0},null,"Estimated VALUE of Project",null,{"$f":"2*I17","v":{"v":0,"d":"$0.00"}},"Cost/Slot",{"$f":"IF(B8=0,0,SUM(I17/B8))","v":{"v":0,"d":"$0.00"}}]
[]
["CATEGORY",{"$nulls":7},"Subtotal"]
["MATERIALS AND SUPPLIES",{"$nulls":7},{"$f":"I47","v":{"v":0,"d":"$0"}}]
["JOB-SITE POWER TOOLS AND EQUIPMENT",{"$nulls":7},{"$f":"I56","v":{"v":0,"d":"$0"}}]
["EQUIPMENT RENTAL",{"$nulls":7},{"$f":"I62","v":{"v":0,"d":"$0"}}]
["CONTRACTED SERVICES",{"$nulls":7},{"$f":"I69","v":{"v":0,"d":"$0"}}]
["AGENCY TECHNICAL SERVICES",{"$nulls":7},{"$f":"I75","v":{"v":0,"d":"$0"}}]
["MOTOR VEHICLE OPERATIONS/MAINTENANCE",{"$nulls":7},{"$f":"I81","v":{"v":0,"d":"$0"}}]
["TOTAL",{"$nulls":7},{"$f":"SUM(I11:I16)","v":{"v":0,"d":"$0"}}]
["Project Description and Training Narrative.  Use ALT-ENTER to insert paragraph breaks.  Refer to \"Narrative Examples\" tab to the left for examples of acceptable project narratives. "]
["Supporting documents (drawings/blueprints/pictures) are recommended to be included in the \"Attachment\" section below if size limitations allow.  Files that cause this form to exceed the 15MB size limit are to be sent to the NOJC via CTTSubmissions@dol.gov.  If files have been sent seperately, indicate by checking this box: "]
[]
["Scroll down to populate MATERIALS AND SUPPLIES Estimate"]
["MATERIALS AND SUPPLIES Estimate"]
["MATERIAL OR SUPPLY Description (Qty./Unit)",{"$nulls":5},"# of Units","Unit Cost","Line Cost"]
[{"$nulls":8},{"$f":"SUM(G24*H24)","v":{"v":0,"d":"$0"}}]
[{"$nulls":8},{"$f":"SUM(G25*H25)","v":{"v":0,"d":"$0"}}]
[{"$nulls":8},{"v":0,"d":"$0"}]
[{"$nulls":8},{"v":0,"d":"$0"}]
[{"$nulls":8},{"v":0,"d":"$0"}]
[{"$nulls":8},{"v":0,"d":"$0"}]
[{"$nulls":8},{"v":0,"d":"$0"}]
[{"$nulls":8},{"v":0,"d":"$0"}]
[{"$nulls":8},{"v":0,"d":"$0"}]
[{"$nulls":8},{"v":0,"d":"$0"}]
[{"$nulls":8},{"v":0,"d":"$0"}]
[{"$nulls":8},{"v":0,"d":"$0"}]
[{"$nulls":8},{"v":0,"d":"$0"}]
[{"$nulls":8},{"v":0,"d":"$0"}]
[{"$nulls":8},{"v":0,"d":"$0"}]
[{"$nulls":8},{"v":0,"d":"$0"}]
[{"$nulls":8},{"v":0,"d":"$0"}]
[{"$nulls":8},{"v":0,"d":"$0"}]
[{"$nulls":8},{"v":0,"d":"$0"}]
[{"$nulls":8},{"v":0,"d":"$0"}]
[{"$nulls":8},{"v":0,"d":"$0"}]
[{"$nulls":8},{"v":0,"d":"$0"}]
[{"$nulls":8},{"v":0,"d":"$0"}]
["TOTAL COST",{"$nulls":7},{"$f":"SUM(I24:I46)","v":{"v":0,"d":"$0"}}]
["JOB-SITE POWER TOOLS AND EQUIPMENT Estimate",{"$nulls":5},"Quantity","Unit Cost ","Line Cost"]
[{"$nulls":8},{"$f":"SUM(G49*H49)","v":{"v":0,"d":"$0"}}]
[{"$nulls":8},{"$f":"SUM(G50*H50)","v":{"v":0,"d":"$0"}}]
[{"$nulls":8},{"v":0,"d":"$0"}]
[{"$nulls":8},{"v":0,"d":"$0"}]
[{"$nulls":8},{"v":0,"d":"$0"}]
[{"$nulls":8},{"v":0,"d":"$0"}]
[{"$nulls":8},{"v":0,"d":"$0"}]
["TOTAL COST",{"$nulls":7},{"$f":"SUM(I49:I55)","v":{"v":0,"d":"$0"}}]
["EQUIPMENT RENTAL Estimate",{"$nulls":5},"Quantity","Unit Cost ","Line Cost"]
[{"$nulls":8},{"$f":"SUM(G58*H58)","v":{"v":0,"d":"$0"}}]
[{"$nulls":8},{"$f":"SUM(G59*H59)","v":{"v":0,"d":"$0"}}]
[{"$nulls":8},{"$f":"SUM(G60*H60)","v":{"v":0,"d":"$0"}}]
[{"$nulls":8},{"$f":"SUM(G61*H61)","v":{"v":0,"d":"$0"}}]
["TOTAL COST",{"$nulls":7},{"$f":"SUM(I58:I61)","v":{"v":0,"d":"$0"}}]
["Scroll down to populate CONTRACTED SERVICES Estimate"]
["CONTRACTED SERVICES Estimate",{"$nulls":5},"Quantity","Unit Cost","Line Cost"]
[{"$nulls":8},{"$f":"SUM(G65*H65)","v":{"v":0,"d":"$0"}}]
[{"$nulls":8},{"$f":"SUM(G66*H66)","v":{"v":0,"d":"$0"}}]
[{"$nulls":8},{"$f":"SUM(G67*H67)","v":{"v":0,"d":"$0"}}]
[{"$nulls":8},{"$f":"SUM(G68*H68)","v":{"v":0,"d":"$0"}}]
["TOTAL COST",{"$nulls":7},{"$f":"SUM(I65:I68)","v":{"v":0,"d":"$0"}}]
["AGENCY TECHNICAL SERVICES Estimate",{"$nulls":5},"Quantity","Unit Cost","Line Cost"]
[{"$nulls":8},{"$f":"SUM(G71*H71)","v":{"v":0,"d":"$0"}}]
[{"$nulls":8},{"$f":"SUM(G72*H72)","v":{"v":0,"d":"$0"}}]
[{"$nulls":8},{"$f":"SUM(G73*H73)","v":{"v":0,"d":"$0"}}]
[{"$nulls":8},{"$f":"SUM(G74*H74)","v":{"v":0,"d":"$0"}}]
["TOTAL COST",{"$nulls":7},{"$f":"SUM(I71:I74)","v":{"v":0,"d":"$0"}}]
["MOTOR VEHICLE OPERATIONS/MAINTENANCE Estimate",{"$nulls":5},"Quantity","Unit Cost","Line Cost"]
[{"$nulls":8},{"$f":"SUM(G77*H77)","v":{"v":0,"d":"$0"}}]
[{"$nulls":8},{"$f":"SUM(G78*H78)","v":{"v":0,"d":"$0"}}]
[{"$nulls":8},{"$f":"SUM(G79*H79)","v":{"v":0,"d":"$0"}}]
[{"$nulls":8},{"$f":"SUM(G80*H80)","v":{"v":0,"d":"$0"}}]
["TOTAL COST",{"$nulls":7},{"$f":"SUM(I77:I80)","v":{"v":0,"d":"$0"}}]
["SAFETY HAZARD ANALYSIS"]
["ACTION/HAZARD DESCRIPTION",{"$nulls":4},"PROPOSED CONTROL/ABATEMENT"]
{"$rows_empty":10}
["ATTACHMENTS"]
["Required attachments include site/structure drawings (including basic project dimensions and important structural measurements) and, if major systems alteration/addition is included in the project, systems detail drawing(s).  Acceptable file types for attachments include those with extensions: \n.avi, .bmp, .csv, .doc, .docx, .dwf, .dwg, .gif, .htm, .html, .jpg, .jpeg, .mpg, .mpp, .mp4, .pdf, .png, .pub, .rtf, .tif, .tiff, .txt, .wmf, .wmv, .xls, .xlsx, .xps"]
["Instructions to insert an attachment in Excel:  (1) Click the cell in which you would like the attachment to show.  (2) On the \"Insert\" tab above (tools ribbon), select \"Object\" (in the \"Text\" grouping).  (3) In the \"Object\" dialogue box, select \"Create from file.\"  (4) Select \"Browse\" and find the file you want to insert from your desktop.  (5) Select \"Display as icon\" box in \"Object\" dialogue box. (6) Select \"OK.\"  An icon should represent the attachment.  Provide a succinct summary of the attachment in the \"Description\" column immediately to the right of each attachment.  "]
["Attachment",null,null,"Description"]
{"$rows_empty":10}
["STOP HERE.  DO NOT FILL IN ANY SECTIONS BELOW THIS POINT.  All FURTHER SECTIONS FOR NOJC USE ONLY."]
["DFAM ENTRY DATE",null,null,"DFAM REVIEWER"]
["CTST ENGINEERING REVIEW -- NOJC USE ONLY"]
["CONSISTENCY WITH THE CENTER’S LONG RANGE PLAN (LRP):"]
[1,"Is the proposed project located where future buildings, structures or extensions are proposed in the LRP?  "]
["1A","If NO to #1, is the proposed project in close proximity to future LRP structures such that the functioning of both may be adversely affected?"]
[2,"Has the Center submitted a campus Site Plan clearly showing the proposed location of the project?"]
[3,"Does the proposed project affect the space utilization allowances in the LRP?"]
["COMPLIANCE WITH APPLICABLE CODES"]
["Space/Use Re-configuration"]
[4,"Are the reconfigured spaces’ exit routes in compliance with fire egress requirements?"]
[5,"Are number of emergency egress points per current code requirements?"]
[6,"Are current fire alarm devices adequate per code to satisfy the new use of the space?  "]
["6A","If NO to #6, does the project allow for a fire alarm upgrade to comply with code?"]
[7,"Are the existing lighting levels consistent with code requirements for the new use(s)?"]
[8,"Can the new electrical and mechanical loads be accommodated within existing circuits in compliance with code?"]
[9,"Does the existing lighting and power outlet layout serve the new use adequately?  "]
["9A","If NO to #9, is the proposed revised layout in compliance with code?"]
[10,"Does the reconfigured space comply with ADA requirements where applicable?"]
[11,"Has the Center submitted drawings addressing the above issues clearly? (Architectural plan, electrical layouts, reflected ceiling plans, fire alarm system layouts, etc.)"]
["HVAC Equipment Upgrades"]
[12,"Is the proposed HVAC equipment an Energy Star high-efficiency model?"]
[13,"What type of refrigerant does the proposed equipment use?"]
[14,"Has the Center submitted manufacturer’s trade literature showing equipment specs, including SIR ratings and refrigerant type?"]
[15,"Has the Center submitted a mechanical drawing showing location of equipment and ductwork?"]
[16,"If students are to install the new equipment, has the Center made arrangements to have manufacturer-approved installer supervision so as to protect the warranty?"]
["Lighting/Power Upgrades"]
[17,"Does the project entail lighting fixture replacement, lamp/ballast replacement or both?"]
[18,"Does the project entail any re-wiring?"]
[19,"Does the project entail any additional electrical loads with respect to existing?"]
["19A","If YES to #19, does the project provide adequate documentation to demonstrate code compliance?"]
[20,"Has the Center submitted manufacturer’s trade literature showing fixture/lamp specs?"]
[21,"Has the Center submitted a proposed lighting layout drawing showing proposed new lighting fixture and power outlet layout?                                                                  "]
["STRUCTURAL INTEGRITY"]
[22,"Does the proposed project comprise a habitable structure?"]
[23,"If not habitable, does the structural stability of the project impinge on the life/safety of students and staff?"]
[24,"Has the project’s structure been designed and documented by a licensed engineer?"]
["24A","If YES to #24, has the Center presented engineer-stamped documents?"]
[25,"If not designed/stamped by a licensed engineer, does the project comply with prescriptive design parameters per IBC code? "]
["25A","If NO to #25, has the Center submitted clear and complete documentation demonstrating prescriptive design code compliance?"]
[26,"For roof structures based on truss designs, does the project propose off-the-shelf pre-engineered truss solutions?  "]
["If 'Yes' to #26, respond to #27-29; if 'No' skip to #30"]
[27,"Has the Center submitted pre-engineered truss drawings?"]
[28,"Has the Center submitted clear details of pre-engineered truss fastenings?"]
[29,"Are the roof loads adequately distributed to the footings?  "]
[30,"Has the Center provided adequate footings and foundation drawings?"]
["SUSTAINABILITY"]
["Does the proposed project include:"]
[31,"Environmentally-preferred products?"]
[32,"Bio-based products?"]
[33,"Recycled-content products?"]
[34,"Low-emitting materials?"]
[35,"High-efficiency water fixtures?"]
["DFAM Reviewer Notes"]
[]
["DFAM Approval Provision(s)"]
[]
["DFAM Decline Recommendation(s)"]
[]
["DFAM Reviewer Recommendation"]

{"sheet":"24.11","index":14,"n_rows":167,"n_cols":9,"rows_kept":167,"merged":[[0,3,0,4],[1,1,1,3],[1,4,1,6],[1,7,1,8],[7,1,7,2],[7,3,7,4],[7,7,7,8],[8,0,8,8],[9,0,9,7],[10,0,10,7],[11,0,11,7],[12,0,12,7],[13,0,13,7],[14,0,14,7],[15,0,15,7],[16,0,16,7],[17,0,17,8],[18,0,18,8],[19,0,19,8],[20,0,20,8],[21,0,21,8],[22,0,22,5],[23,0,23,5],[24,0,24,5],[25,0,25,5],[26,0,26,5],[27,0,27,5],[28,0,28,5],[29,0,29,5],[30,0,30,5],[31,0,31,5],[32,0,32,5],[33,0,33,5],[34,0,34,5],[35,0,35,5],[36,0,36,5],[37,0,37,5],[38,0,38,5],[39,0,39,5],[40,0,40,5],[41,0,41,5],[42,0,42,5],[43,0,43,5],[44,0,44,5],[45,0,45,5],[46,0,46,7],[47,0,47,5],[48,0,48,5],[49,0,49,5],[50,0,50,5],[51,0,51,5],[52,0,52,5],[53,0,53,5],[54,0,54,5],[55,0,55,7],[56,0,56,5],[57,0,57,5],[58,0,58,5],[59,0,59,5],[60,0,60,5],[61,0,61,7],[62,0,62,8],[63,0,63,5],[64,0,64,5],[65,0,65,5],[66,0,66,5],[67,0,67,5],[68,0,68,7],[69,0,69,5],[70,0,70,5],[71,0,71,5],[72,0,72,5],[73,0,73,5],[74,0,74,7],[75,0,75,5],[76,0,76,5],[77,0,77,5],[78,0,78,5],[79,0,79,5],[80,0,80,7],[81,0,81,7],[82,0,82,4],[82,5,82,7],[83,0,83,4],[83,5,83,7],[84,0,84,4],[84,5,84,7],[85,0,85,4],[85,5,85,7],[86,0,86,4],[86,5,86,7],[87,0,87,4],[87,5,87,7],[88,0,88,4],[88,5,88,7],[89,0,89,4],[89,5,89,7],[90,0,90,4],[90,5,90,7],[91,0,91,4],[91,5,91,7],[92,0,92,4],[92,5,92,7],[93,0,93,8],[94,0,94,8],[95,0,95,8],[96,0,96,2],[96,3,96,8],[97,0,97,2],[97,3,97,8],[98,0,98,2],[98,3,98,8],[99,0,99,2],[99,3,99,8],[100,0,100,2],[100,3,100,8],[101,0,101,2],[101,3,101,8],[102,0,102,2],[102,3,102,8],[103,0,103,2],[103,3,103,8],[104,0,104,2],[104,3,104,8],[105,0,105,2],[105,3,105,8],[106,0,106,2],[106,3,106,8],[107,0,107,8],[108,0,108,1],[108,3,108,5],[108,6,108,8],[109,0,109,8],[110,0,110,7],[111,1,111,7],[112,1,112,7],[113,1,113,7],[114,1,114,7],[115,0,115,7],[117,1,117,7],[118,1,118,7],[119,1,119,7],[120,1,120,7],[121,1,121,7],[122,1,122,7],[123,1,123,7],[124,1,124,7],[125,1,125,7],[126,1,126,7],[128,1,128,7],[129,1,129,7],[130,1,130,7],[131,1,131,7],[132,1,132,7],[134,1,134,7],[135,1,135,7],[136,1,136,7],[137,1,137,7],[138,1,138,7],[139,1,139,7],[140,0,140,7],[141,1,141,7],[143,1,143,7],[144,1,144,7],[145,1,145,7],[146,1,146,7],[147,1,147,7],[148,0,148,7],[149,1,149,7],[150,1,150,7],[151,1,151,7],[152,1,152,7],[153,0,153,7],[155,1,155,7],[156,1,156,7],[157,1,157,7],[158,1,158,7],[159,1,159,7],[160,0,160,8],[161,0,161,8],[162,0,162,8],[163,0,163,8],[164,0,164,8],[165,0,165,8],[166,0,166,7]]}
["REGION",{"$f":"IFERROR(VLOOKUP(D1,CENTER_REGION_MATCH,2,FALSE),\"\")","v":""},"CENTER",{"$f":"IF(ISBLANK('24.01'!D1),\"\",'24.01'!D1)","v":""},null,"START DATE",null,"PROJECT ID",24.11]
["PROJECT TITLE",{"$nulls":3},"ESTIMATED # DAYS TO COMPLETE",null,null,{"$f":"SUM(C4,C5,C6,C7,F4,F5,F6,F7,I4,I5,I6,I7)","v":0}]
["TRADE","# SLOTS","WORK DAYS","TRADE","# SLOTS","WORK DAYS","TRADE","# SLOTS","WORK DAYS"]
[]
[]
[]
[]
["Total CTST Slots",{"$f":"SUM(B4:B7,E4:E7,H4:H7)","v":0},null,"Estimated VALUE of Project",null,{"$f":"2*I17","v":{"v":0,"d":"$0.00"}},"Cost/Slot",{"$f":"IF(B8=0,0,SUM(I17/B8))","v":{"v":0,"d":"$0.00"}}]
[]
["CATEGORY",{"$nulls":7},"Subtotal"]
["MATERIALS AND SUPPLIES",{"$nulls":7},{"$f":"I47","v":{"v":0,"d":"$0"}}]
["JOB-SITE POWER TOOLS AND EQUIPMENT",{"$nulls":7},{"$f":"I56","v":{"v":0,"d":"$0"}}]
["EQUIPMENT RENTAL",{"$nulls":7},{"$f":"I62","v":{"v":0,"d":"$0"}}]
["CONTRACTED SERVICES",{"$nulls":7},{"$f":"I69","v":{"v":0,"d":"$0"}}]
["AGENCY TECHNICAL SERVICES",{"$nulls":7},{"$f":"I75","v":{"v":0,"d":"$0"}}]
["MOTOR VEHICLE OPERATIONS/MAINTENANCE",{"$nulls":7},{"$f":"I81","v":{"v":0,"d":"$0"}}]
["TOTAL",{"$nulls":7},{"$f":"SUM(I11:I16)","v":{"v":0,"d":"$0"}}]
["Project Description and Training Narrative.  Use ALT-ENTER to insert paragraph breaks.  Refer to \"Narrative Examples\" tab to the left for examples of acceptable project narratives. "]
["Supporting documents (drawings/blueprints/pictures) are recommended to be included in the \"Attachment\" section below if size limitations allow.  Files that cause this form to exceed the 15MB size limit are to be sent to the NOJC via CTTSubmissions@dol.gov.  If files have been sent seperately, indicate by checking this box: "]
[]
["Scroll down to populate MATERIALS AND SUPPLIES Estimate"]
["MATERIALS AND SUPPLIES Estimate"]
["MATERIAL OR SUPPLY Description (Qty./Unit)",{"$nulls":5},"# of Units","Unit Cost","Line Cost"]
[{"$nulls":8},{"$f":"SUM(G24*H24)","v":{"v":0,"d":"$0"}}]
[{"$nulls":8},{"$f":"SUM(G25*H25)","v":{"v":0,"d":"$0"}}]
[{"$nulls":8},{"v":0,"d":"$0"}]
[{"$nulls":8},{"v":0,"d":"$0"}]
[{"$nulls":8},{"v":0,"d":"$0"}]
[{"$nulls":8},{"v":0,"d":"$0"}]
[{"$nulls":8},{"v":0,"d":"$0"}]
[{"$nulls":8},{"v":0,"d":"$0"}]
[{"$nulls":8},{"v":0,"d":"$0"}]
[{"$nulls":8},{"v":0,"d":"$0"}]
[{"$nulls":8},{"v":0,"d":"$0"}]
[{"$nulls":8},{"v":0,"d":"$0"}]
[{"$nulls":8},{"v":0,"d":"$0"}]
[{"$nulls":8},{"v":0,"d":"$0"}]
[{"$nulls":8},{"v":0,"d":"$0"}]
[{"$nulls":8},{"v":0,"d":"$0"}]
[{"$nulls":8},{"v":0,"d":"$0"}]
[{"$nulls":8},{"v":0,"d":"$0"}]
[{"$nulls":8},{"v":0,"d":"$0"}]
[{"$nulls":8},{"v":0,"d":"$0"}]
[{"$nulls":8},{"v":0,"d":"$0"}]
[{"$nulls":8},{"v":0,"d":"$0"}]
[{"$nulls":8},{"v":0,"d":"$0"}]
["TOTAL COST",{"$nulls":7},{"$f":"SUM(I24:I46)","v":{"v":0,"d":"$0"}}]
["JOB-SITE POWER TOOLS AND EQUIPMENT Estimate",{"$nulls":5},"Quantity","Unit Cost ","Line Cost"]
[{"$nulls":8},{"$f":"SUM(G49*H49)","v":{"v":0,"d":"$0"}}]
[{"$nulls":8},{"$f":"SUM(G50*H50)","v":{"v":0,"d":"$0"}}]
[{"$nulls":8},{"v":0,"d":"$0"}]
[{"$nulls":8},{"v":0,"d":"$0"}]
[{"$nulls":8},{"v":0,"d":"$0"}]
[{"$nulls":8},{"v":0,"d":"$0"}]
[{"$nulls":8},{"v":0,"d":"$0"}]
["TOTAL COST",{"$nulls":7},{"$f":"SUM(I49:I55)","v":{"v":0,"d":"$0"}}]
["EQUIPMENT RENTAL Estimate",{"$nulls":5},"Quantity","Unit Cost ","Line Cost"]
[{"$nulls":8},{"$f":"SUM(G58*H58)","v":{"v":0,"d":"$0"}}]
[{"$nulls":8},{"$f":"SUM(G59*H59)","v":{"v":0,"d":"$0"}}]
[{"$nulls":8},{"$f":"SUM(G60*H60)","v":{"v":0,"d":"$0"}}]
[{"$nulls":8},{"$f":"SUM(G61*H61)","v":{"v":0,"d":"$0"}}]
["TOTAL COST",{"$nulls":7},{"$f":"SUM(I58:I61)","v":{"v":0,"d":"$0"}}]
["Scroll down to populate CONTRACTED SERVICES Estimate"]
["CONTRACTED SERVICES Estimate",{"$nulls":5},"Quantity","Unit Cost","Line Cost"]
[{"$nulls":8},{"$f":"SUM(G65*H65)","v":{"v":0,"d":"$0"}}]
[{"$nulls":8},{"$f":"SUM(G66*H66)","v":{"v":0,"d":"$0"}}]
[{"$nulls":8},{"$f":"SUM(G67*H67)","v":{"v":0,"d":"$0"}}]
[{"$nulls":8},{"$f":"SUM(G68*H68)","v":{"v":0,"d":"$0"}}]
["TOTAL COST",{"$nulls":7},{"$f":"SUM(I65:I68)","v":{"v":0,"d":"$0"}}]
["AGENCY TECHNICAL SERVICES Estimate",{"$nulls":5},"Quantity","Unit Cost","Line Cost"]
[{"$nulls":8},{"$f":"SUM(G71*H71)","v":{"v":0,"d":"$0"}}]
[{"$nulls":8},{"$f":"SUM(G72*H72)","v":{"v":0,"d":"$0"}}]
[{"$nulls":8},{"$f":"SUM(G73*H73)","v":{"v":0,"d":"$0"}}]
[{"$nulls":8},{"$f":"SUM(G74*H74)","v":{"v":0,"d":"$0"}}]
["TOTAL COST",{"$nulls":7},{"$f":"SUM(I71:I74)","v":{"v":0,"d":"$0"}}]
["MOTOR VEHICLE OPERATIONS/MAINTENANCE Estimate",{"$nulls":5},"Quantity","Unit Cost","Line Cost"]
[{"$nulls":8},{"$f":"SUM(G77*H77)","v":{"v":0,"d":"$0"}}]
[{"$nulls":8},{"$f":"SUM(G78*H78)","v":{"v":0,"d":"$0"}}]
[{"$nulls":8},{"$f":"SUM(G79*H79)","v":{"v":0,"d":"$0"}}]
[{"$nulls":8},{"$f":"SUM(G80*H80)","v":{"v":0,"d":"$0"}}]
["TOTAL COST",{"$nulls":7},{"$f":"SUM(I77:I80)","v":{"v":0,"d":"$0"}}]
["SAFETY HAZARD ANALYSIS"]
["ACTION/HAZARD DESCRIPTION",{"$nulls":4},"PROPOSED CONTROL/ABATEMENT"]
{"$rows_empty":10}
["ATTACHMENTS"]
["Required attachments include site/structure drawings (including basic project dimensions and important structural measurements) and, if major systems alteration/addition is included in the project, systems detail drawing(s).  Acceptable file types for attachments include those with extensions: \n.avi, .bmp, .csv, .doc, .docx, .dwf, .dwg, .gif, .htm, .html, .jpg, .jpeg, .mpg, .mpp, .mp4, .pdf, .png, .pub, .rtf, .tif, .tiff, .txt, .wmf, .wmv, .xls, .xlsx, .xps"]
["Instructions to insert an attachment in Excel:  (1) Click the cell in which you would like the attachment to show.  (2) On the \"Insert\" tab above (tools ribbon), select \"Object\" (in the \"Text\" grouping).  (3) In the \"Object\" dialogue box, select \"Create from file.\"  (4) Select \"Browse\" and find the file you want to insert from your desktop.  (5) Select \"Display as icon\" box in \"Object\" dialogue box. (6) Select \"OK.\"  An icon should represent the attachment.  Provide a succinct summary of the attachment in the \"Description\" column immediately to the right of each attachment.  "]
["Attachment",null,null,"Description"]
{"$rows_empty":10}
["STOP HERE.  DO NOT FILL IN ANY SECTIONS BELOW THIS POINT.  All FURTHER SECTIONS FOR NOJC USE ONLY."]
["DFAM ENTRY DATE",null,null,"DFAM REVIEWER"]
["CTST ENGINEERING REVIEW -- NOJC USE ONLY"]
["CONSISTENCY WITH THE CENTER’S LONG RANGE PLAN (LRP):"]
[1,"Is the proposed project located where future buildings, structures or extensions are proposed in the LRP?  "]
["1A","If NO to #1, is the proposed project in close proximity to future LRP structures such that the functioning of both may be adversely affected?"]
[2,"Has the Center submitted a campus Site Plan clearly showing the proposed location of the project?"]
[3,"Does the proposed project affect the space utilization allowances in the LRP?"]
["COMPLIANCE WITH APPLICABLE CODES"]
["Space/Use Re-configuration"]
[4,"Are the reconfigured spaces’ exit routes in compliance with fire egress requirements?"]
[5,"Are number of emergency egress points per current code requirements?"]
[6,"Are current fire alarm devices adequate per code to satisfy the new use of the space?  "]
["6A","If NO to #6, does the project allow for a fire alarm upgrade to comply with code?"]
[7,"Are the existing lighting levels consistent with code requirements for the new use(s)?"]
[8,"Can the new electrical and mechanical loads be accommodated within existing circuits in compliance with code?"]
[9,"Does the existing lighting and power outlet layout serve the new use adequately?  "]
["9A","If NO to #9, is the proposed revised layout in compliance with code?"]
[10,"Does the reconfigured space comply with ADA requirements where applicable?"]
[11,"Has the Center submitted drawings addressing the above issues clearly? (Architectural plan, electrical layouts, reflected ceiling plans, fire alarm system layouts, etc.)"]
["HVAC Equipment Upgrades"]
[12,"Is the proposed HVAC equipment an Energy Star high-efficiency model?"]
[13,"What type of refrigerant does the proposed equipment use?"]
[14,"Has the Center submitted manufacturer’s trade literature showing equipment specs, including SIR ratings and refrigerant type?"]
[15,"Has the Center submitted a mechanical drawing showing location of equipment and ductwork?"]
[16,"If students are to install the new equipment, has the Center made arrangements to have manufacturer-approved installer supervision so as to protect the warranty?"]
["Lighting/Power Upgrades"]
[17,"Does the project entail lighting fixture replacement, lamp/ballast replacement or both?"]
[18,"Does the project entail any re-wiring?"]
[19,"Does the project entail any additional electrical loads with respect to existing?"]
["19A","If YES to #19, does the project provide adequate documentation to demonstrate code compliance?"]
[20,"Has the Center submitted manufacturer’s trade literature showing fixture/lamp specs?"]
[21,"Has the Center submitted a proposed lighting layout drawing showing proposed new lighting fixture and power outlet layout?                                                                  "]
["STRUCTURAL INTEGRITY"]
[22,"Does the proposed project comprise a habitable structure?"]
[23,"If not habitable, does the structural stability of the project impinge on the life/safety of students and staff?"]
[24,"Has the project’s structure been designed and documented by a licensed engineer?"]
["24A","If YES to #24, has the Center presented engineer-stamped documents?"]
[25,"If not designed/stamped by a licensed engineer, does the project comply with prescriptive design parameters per IBC code? "]
["25A","If NO to #25, has the Center submitted clear and complete documentation demonstrating prescriptive design code compliance?"]
[26,"For roof structures based on truss designs, does the project propose off-the-shelf pre-engineered truss solutions?  "]
["If 'Yes' to #26, respond to #27-29; if 'No' skip to #30"]
[27,"Has the Center submitted pre-engineered truss drawings?"]
[28,"Has the Center submitted clear details of pre-engineered truss fastenings?"]
[29,"Are the roof loads adequately distributed to the footings?  "]
[30,"Has the Center provided adequate footings and foundation drawings?"]
["SUSTAINABILITY"]
["Does the proposed project include:"]
[31,"Environmentally-preferred products?"]
[32,"Bio-based products?"]
[33,"Recycled-content products?"]
[34,"Low-emitting materials?"]
[35,"High-efficiency water fixtures?"]
["DFAM Reviewer Notes"]
[]
["DFAM Approval Provision(s)"]
[]
["DFAM Decline Recommendation(s)"]
[]
["DFAM Reviewer Recommendation"]

{"sheet":"24.12","index":15,"n_rows":167,"n_cols":9,"rows_kept":167,"merged":[[0,3,0,4],[1,1,1,3],[1,4,1,6],[1,7,1,8],[7,1,7,2],[7,3,7,4],[7,7,7,8],[8,0,8,8],[9,0,9,7],[10,0,10,7],[11,0,11,7],[12,0,12,7],[13,0,13,7],[14,0,14,7],[15,0,15,7],[16,0,16,7],[17,0,17,8],[18,0,18,8],[19,0,19,8],[20,0,20,8],[21,0,21,8],[22,0,22,5],[23,0,23,5],[24,0,24,5],[25,0,25,5],[26,0,26,5],[27,0,27,5],[28,0,28,5],[29,0,29,5],[30,0,30,5],[31,0,31,5],[32,0,32,5],[33,0,33,5],[34,0,34,5],[35,0,35,5],[36,0,36,5],[37,0,37,5],[38,0,38,5],[39,0,39,5],[40,0,40,5],[41,0,41,5],[42,0,42,5],[43,0,43,5],[44,0,44,5],[45,0,45,5],[46,0,46,7],[47,0,47,5],[48,0,48,5],[49,0,49,5],[50,0,50,5],[51,0,51,5],[52,0,52,5],[53,0,53,5],[54,0,54,5],[55,0,55,7],[56,0,56,5],[57,0,57,5],[58,0,58,5],[59,0,59,5],[60,0,60,5],[61,0,61,7],[62,0,62,8],[63,0,63,5],[64,0,64,5],[65,0,65,5],[66,0,66,5],[67,0,67,5],[68,0,68,7],[69,0,69,5],[70,0,70,5],[71,0,71,5],[72,0,72,5],[73,0,73,5],[74,0,74,7],[75,0,75,5],[76,0,76,5],[77,0,77,5],[78,0,78,5],[79,0,79,5],[80,0,80,7],[81,0,81,7],[82,0,82,4],[82,5,82,7],[83,0,83,4],[83,5,83,7],[84,0,84,4],[84,5,84,7],[85,0,85,4],[85,5,85,7],[86,0,86,4],[86,5,86,7],[87,0,87,4],[87,5,87,7],[88,0,88,4],[88,5,88,7],[89,0,89,4],[89,5,89,7],[90,0,90,4],[90,5,90,7],[91,0,91,4],[91,5,91,7],[92,0,92,4],[92,5,92,7],[93,0,93,8],[94,0,94,8],[95,0,95,8],[96,0,96,2],[96,3,96,8],[97,0,97,2],[97,3,97,8],[98,0,98,2],[98,3,98,8],[99,0,99,2],[99,3,99,8],[100,0,100,2],[100,3,100,8],[101,0,101,2],[101,3,101,8],[102,0,102,2],[102,3,102,8],[103,0,103,2],[103,3,103,8],[104,0,104,2],[104,3,104,8],[105,0,105,2],[105,3,105,8],[106,0,106,2],[106,3,106,8],[107,0,107,8],[108,0,108,1],[108,3,108,5],[108,6,108,8],[109,0,109,8],[110,0,110,7],[111,1,111,7],[112,1,112,7],[113,1,113,7],[114,1,114,7],[115,0,115,7],[117,1,117,7],[118,1,118,7],[119,1,119,7],[120,1,120,7],[121,1,121,7],[122,1,122,7],[123,1,123,7],[124,1,124,7],[125,1,125,7],[126,1,126,7],[128,1,128,7],[129,1,129,7],[130,1,130,7],[131,1,131,7],[132,1,132,7],[134,1,134,7],[135,1,135,7],[136,1,136,7],[137,1,137,7],[138,1,138,7],[139,1,139,7],[140,0,140,7],[141,1,141,7],[143,1,143,7],[144,1,144,7],[145,1,145,7],[146,1,146,7],[147,1,147,7],[148,0,148,7],[149,1,149,7],[150,1,150,7],[151,1,151,7],[152,1,152,7],[153,0,153,7],[155,1,155,7],[156,1,156,7],[157,1,157,7],[158,1,158,7],[159,1,159,7],[160,0,160,8],[161,0,161,8],[162,0,162,8],[163,0,163,8],[164,0,164,8],[165,0,165,8],[166,0,166,7]]}
["REGION",{"$f":"IFERROR(VLOOKUP(D1,CENTER_REGION_MATCH,2,FALSE),\"\")","v":""},"CENTER",{"$f":"IF(ISBLANK('24.01'!D1),\"\",'24.01'!D1)","v":""},null,"START DATE",null,"PROJECT ID",24.12]
["PROJECT TITLE",{"$nulls":3},"ESTIMATED # DAYS TO COMPLETE",null,null,{"$f":"SUM(C4,C5,C6,C7,F4,F5,F6,F7,I4,I5,I6,I7)","v":0}]
["TRADE","# SLOTS","WORK DAYS","TRADE","# SLOTS","WORK DAYS","TRADE","# SLOTS","WORK DAYS"]
[]
[]
[]
[]
["Total CTST Slots",{"$f":"SUM(B4:B7,E4:E7,H4:H7)","v":0},null,"Estimated VALUE of Project",null,{"$f":"2*I17","v":{"v":0,"d":"$0.00"}},"Cost/Slot",{"$f":"IF(B8=0,0,SUM(I17/B8))","v":{"v":0,"d":"$0.00"}}]
[]
["CATEGORY",{"$nulls":7},"Subtotal"]
["MATERIALS AND SUPPLIES",{"$nulls":7},{"$f":"I47","v":{"v":0,"d":"$0"}}]
["JOB-SITE POWER TOOLS AND EQUIPMENT",{"$nulls":7},{"$f":"I56","v":{"v":0,"d":"$0"}}]
["EQUIPMENT RENTAL",{"$nulls":7},{"$f":"I62","v":{"v":0,"d":"$0"}}]
["CONTRACTED SERVICES",{"$nulls":7},{"$f":"I69","v":{"v":0,"d":"$0"}}]
["AGENCY TECHNICAL SERVICES",{"$nulls":7},{"$f":"I75","v":{"v":0,"d":"$0"}}]
["MOTOR VEHICLE OPERATIONS/MAINTENANCE",{"$nulls":7},{"$f":"I81","v":{"v":0,"d":"$0"}}]
["TOTAL",{"$nulls":7},{"$f":"SUM(I11:I16)","v":{"v":0,"d":"$0"}}]
["Project Description and Training Narrative.  Use ALT-ENTER to insert paragraph breaks.  Refer to \"Narrative Examples\" tab to the left for examples of acceptable project narratives. "]
["Supporting documents (drawings/blueprints/pictures) are recommended to be included in the \"Attachment\" section below if size limitations allow.  Files that cause this form to exceed the 15MB size limit are to be sent to the NOJC via CTTSubmissions@dol.gov.  If files have been sent seperately, indicate by checking this box: "]
[]
["Scroll down to populate MATERIALS AND SUPPLIES Estimate"]
["MATERIALS AND SUPPLIES Estimate"]
["MATERIAL OR SUPPLY Description (Qty./Unit)",{"$nulls":5},"# of Units","Unit Cost","Line Cost"]
[{"$nulls":8},{"$f":"SUM(G24*H24)","v":{"v":0,"d":"$0"}}]
[{"$nulls":8},{"$f":"SUM(G25*H25)","v":{"v":0,"d":"$0"}}]
[{"$nulls":8},{"v":0,"d":"$0"}]
[{"$nulls":8},{"v":0,"d":"$0"}]
[{"$nulls":8},{"v":0,"d":"$0"}]
[{"$nulls":8},{"v":0,"d":"$0"}]
[{"$nulls":8},{"v":0,"d":"$0"}]
[{"$nulls":8},{"v":0,"d":"$0"}]
[{"$nulls":8},{"v":0,"d":"$0"}]
[{"$nulls":8},{"v":0,"d":"$0"}]
[{"$nulls":8},{"v":0,"d":"$0"}]
[{"$nulls":8},{"v":0,"d":"$0"}]
[{"$nulls":8},{"v":0,"d":"$0"}]
[{"$nulls":8},{"v":0,"d":"$0"}]
[{"$nulls":8},{"v":0,"d":"$0"}]
[{"$nulls":8},{"v":0,"d":"$0"}]
[{"$nulls":8},{"v":0,"d":"$0"}]
[{"$nulls":8},{"v":0,"d":"$0"}]
[{"$nulls":8},{"v":0,"d":"$0"}]
[{"$nulls":8},{"v":0,"d":"$0"}]
[{"$nulls":8},{"v":0,"d":"$0"}]
[{"$nulls":8},{"v":0,"d":"$0"}]
[{"$nulls":8},{"v":0,"d":"$0"}]
["TOTAL COST",{"$nulls":7},{"$f":"SUM(I24:I46)","v":{"v":0,"d":"$0"}}]
["JOB-SITE POWER TOOLS AND EQUIPMENT Estimate",{"$nulls":5},"Quantity","Unit Cost ","Line Cost"]
[{"$nulls":8},{"$f":"SUM(G49*H49)","v":{"v":0,"d":"$0"}}]
[{"$nulls":8},{"$f":"SUM(G50*H50)","v":{"v":0,"d":"$0"}}]
[{"$nulls":8},{"v":0,"d":"$0"}]
[{"$nulls":8},{"v":0,"d":"$0"}]
[{"$nulls":8},{"v":0,"d":"$0"}]
[{"$nulls":8},{"v":0,"d":"$0"}]
[{"$nulls":8},{"v":0,"d":"$0"}]
["TOTAL COST",{"$nulls":7},{"$f":"SUM(I49:I55)","v":{"v":0,"d":"$0"}}]
["EQUIPMENT RENTAL Estimate",{"$nulls":5},"Quantity","Unit Cost ","Line Cost"]
[{"$nulls":8},{"$f":"SUM(G58*H58)","v":{"v":0,"d":"$0"}}]
[{"$nulls":8},{"$f":"SUM(G59*H59)","v":{"v":0,"d":"$0"}}]
[{"$nulls":8},{"$f":"SUM(G60*H60)","v":{"v":0,"d":"$0"}}]
[{"$nulls":8},{"$f":"SUM(G61*H61)","v":{"v":0,"d":"$0"}}]
["TOTAL COST",{"$nulls":7},{"$f":"SUM(I58:I61)","v":{"v":0,"d":"$0"}}]
["Scroll down to populate CONTRACTED SERVICES Estimate"]
["CONTRACTED SERVICES Estimate",{"$nulls":5},"Quantity","Unit Cost","Line Cost"]
[{"$nulls":8},{"$f":"SUM(G65*H65)","v":{"v":0,"d":"$0"}}]
[{"$nulls":8},{"$f":"SUM(G66*H66)","v":{"v":0,"d":"$0"}}]
[{"$nulls":8},{"$f":"SUM(G67*H67)","v":{"v":0,"d":"$0"}}]
[{"$nulls":8},{"$f":"SUM(G68*H68)","v":{"v":0,"d":"$0"}}]
["TOTAL COST",{"$nulls":7},{"$f":"SUM(I65:I68)","v":{"v":0,"d":"$0"}}]
["AGENCY TECHNICAL SERVICES Estimate",{"$nulls":5},"Quantity","Unit Cost","Line Cost"]
[{"$nulls":8},{"$f":"SUM(G71*H71)","v":{"v":0,"d":"$0"}}]
[{"$nulls":8},{"$f":"SUM(G72*H72)","v":{"v":0,"d":"$0"}}]
[{"$nulls":8},{"$f":"SUM(G73*H73)","v":{"v":0,"d":"$0"}}]
[{"$nulls":8},{"$f":"SUM(G74*H74)","v":{"v":0,"d":"$0"}}]
["TOTAL COST",{"$nulls":7},{"$f":"SUM(I71:I74)","v":{"v":0,"d":"$0"}}]
["MOTOR VEHICLE OPERATIONS/MAINTENANCE Estimate",{"$nulls":5},"Quantity","Unit Cost","Line Cost"]
[{"$nulls":8},{"$f":"SUM(G77*H77)","v":{"v":0,"d":"$0"}}]
[{"$nulls":8},{"$f":"SUM(G78*H78)","v":{"v":0,"d":"$0"}}]
[{"$nulls":8},{"$f":"SUM(G79*H79)","v":{"v":0,"d":"$0"}}]
[{"$nulls":8},{"$f":"SUM(G80*H80)","v":{"v":0,"d":"$0"}}]
["TOTAL COST",{"$nulls":7},{"$f":"SUM(I77:I80)","v":{"v":0,"d":"$0"}}]
["SAFETY HAZARD ANALYSIS"]
["ACTION/HAZARD DESCRIPTION",{"$nulls":4},"PROPOSED CONTROL/ABATEMENT"]
{"$rows_empty":10}
["ATTACHMENTS"]
["Required attachments include site/structure drawings (including basic project dimensions and important structural measurements) and, if major systems alteration/addition is included in the project, systems detail drawing(s).  Acceptable file types for attachments include those with extensions: \n.avi, .bmp, .csv, .doc, .docx, .dwf, .dwg, .gif, .htm, .html, .jpg, .jpeg, .mpg, .mpp, .mp4, .pdf, .png, .pub, .rtf, .tif, .tiff, .txt, .wmf, .wmv, .xls, .xlsx, .xps"]
["Instructions to insert an attachment in Excel:  (1) Click the cell in which you would like the attachment to show.  (2) On the \"Insert\" tab above (tools ribbon), select \"Object\" (in the \"Text\" grouping).  (3) In the \"Object\" dialogue box, select \"Create from file.\"  (4) Select \"Browse\" and find the file you want to insert from your desktop.  (5) Select \"Display as icon\" box in \"Object\" dialogue box. (6) Select \"OK.\"  An icon should represent the attachment.  Provide a succinct summary of the attachment in the \"Description\" column immediately to the right of each attachment.  "]
["Attachment",null,null,"Description"]
{"$rows_empty":10}
["STOP HERE.  DO NOT FILL IN ANY SECTIONS BELOW THIS POINT.  All FURTHER SECTIONS FOR NOJC USE ONLY."]
["DFAM ENTRY DATE",null,null,"DFAM REVIEWER"]
["CTST ENGINEERING REVIEW -- NOJC USE ONLY"]
["CONSISTENCY WITH THE CENTER’S LONG RANGE PLAN (LRP):"]
[1,"Is the proposed project located where future buildings, structures or extensions are proposed in the LRP?  "]
["1A","If NO to #1, is the proposed project in close proximity to future LRP structures such that the functioning of both may be adversely affected?"]
[2,"Has the Center submitted a campus Site Plan clearly showing the proposed location of the project?"]
[3,"Does the proposed project affect the space utilization allowances in the LRP?"]
["COMPLIANCE WITH APPLICABLE CODES"]
["Space/Use Re-configuration"]
[4,"Are the reconfigured spaces’ exit routes in compliance with fire egress requirements?"]
[5,"Are number of emergency egress points per current code requirements?"]
[6,"Are current fire alarm devices adequate per code to satisfy the new use of the space?  "]
["6A","If NO to #6, does the project allow for a fire alarm upgrade to comply with code?"]
[7,"Are the existing lighting levels consistent with code requirements for the new use(s)?"]
[8,"Can the new electrical and mechanical loads be accommodated within existing circuits in compliance with code?"]
[9,"Does the existing lighting and power outlet layout serve the new use adequately?  "]
["9A","If NO to #9, is the proposed revised layout in compliance with code?"]
[10,"Does the reconfigured space comply with ADA requirements where applicable?"]
[11,"Has the Center submitted drawings addressing the above issues clearly? (Architectural plan, electrical layouts, reflected ceiling plans, fire alarm system layouts, etc.)"]
["HVAC Equipment Upgrades"]
[12,"Is the proposed HVAC equipment an Energy Star high-efficiency model?"]
[13,"What type of refrigerant does the proposed equipment use?"]
[14,"Has the Center submitted manufacturer’s trade literature showing equipment specs, including SIR ratings and refrigerant type?"]
[15,"Has the Center submitted a mechanical drawing showing location of equipment and ductwork?"]
[16,"If students are to install the new equipment, has the Center made arrangements to have manufacturer-approved installer supervision so as to protect the warranty?"]
["Lighting/Power Upgrades"]
[17,"Does the project entail lighting fixture replacement, lamp/ballast replacement or both?"]
[18,"Does the project entail any re-wiring?"]
[19,"Does the project entail any additional electrical loads with respect to existing?"]
["19A","If YES to #19, does the project provide adequate documentation to demonstrate code compliance?"]
[20,"Has the Center submitted manufacturer’s trade literature showing fixture/lamp specs?"]
[21,"Has the Center submitted a proposed lighting layout drawing showing proposed new lighting fixture and power outlet layout?                                                                  "]
["STRUCTURAL INTEGRITY"]
[22,"Does the proposed project comprise a habitable structure?"]
[23,"If not habitable, does the structural stability of the project impinge on the life/safety of students and staff?"]
[24,"Has the project’s structure been designed and documented by a licensed engineer?"]
["24A","If YES to #24, has the Center presented engineer-stamped documents?"]
[25,"If not designed/stamped by a licensed engineer, does the project comply with prescriptive design parameters per IBC code? "]
["25A","If NO to #25, has the Center submitted clear and complete documentation demonstrating prescriptive design code compliance?"]
[26,"For roof structures based on truss designs, does the project propose off-the-shelf pre-engineered truss solutions?  "]
["If 'Yes' to #26, respond to #27-29; if 'No' skip to #30"]
[27,"Has the Center submitted pre-engineered truss drawings?"]
[28,"Has the Center submitted clear details of pre-engineered truss fastenings?"]
[29,"Are the roof loads adequately distributed to the footings?  "]
[30,"Has the Center provided adequate footings and foundation drawings?"]
["SUSTAINABILITY"]
["Does the proposed project include:"]
[31,"Environmentally-preferred products?"]
[32,"Bio-based products?"]
[33,"Recycled-content products?"]
[34,"Low-emitting materials?"]
[35,"High-efficiency water fixtures?"]
["DFAM Reviewer Notes"]
[]
["DFAM Approval Provision(s)"]
[]
["DFAM Decline Recommendation(s)"]
[]
["DFAM Reviewer Recommendation"]

{"sheet":"24.13","index":16,"n_rows":167,"n_cols":9,"rows_kept":167,"merged":[[0,3,0,4],[1,1,1,3],[1,4,1,6],[1,7,1,8],[7,1,7,2],[7,3,7,4],[7,7,7,8],[8,0,8,8],[9,0,9,7],[10,0,10,7],[11,0,11,7],[12,0,12,7],[13,0,13,7],[14,0,14,7],[15,0,15,7],[16,0,16,7],[17,0,17,8],[18,0,18,8],[19,0,19,8],[20,0,20,8],[21,0,21,8],[22,0,22,5],[23,0,23,5],[24,0,24,5],[25,0,25,5],[26,0,26,5],[27,0,27,5],[28,0,28,5],[29,0,29,5],[30,0,30,5],[31,0,31,5],[32,0,32,5],[33,0,33,5],[34,0,34,5],[35,0,35,5],[36,0,36,5],[37,0,37,5],[38,0,38,5],[39,0,39,5],[40,0,40,5],[41,0,41,5],[42,0,42,5],[43,0,43,5],[44,0,44,5],[45,0,45,5],[46,0,46,7],[47,0,47,5],[48,0,48,5],[49,0,49,5],[50,0,50,5],[51,0,51,5],[52,0,52,5],[53,0,53,5],[54,0,54,5],[55,0,55,7],[56,0,56,5],[57,0,57,5],[58,0,58,5],[59,0,59,5],[60,0,60,5],[61,0,61,7],[62,0,62,8],[63,0,63,5],[64,0,64,5],[65,0,65,5],[66,0,66,5],[67,0,67,5],[68,0,68,7],[69,0,69,5],[70,0,70,5],[71,0,71,5],[72,0,72,5],[73,0,73,5],[74,0,74,7],[75,0,75,5],[76,0,76,5],[77,0,77,5],[78,0,78,5],[79,0,79,5],[80,0,80,7],[81,0,81,7],[82,0,82,4],[82,5,82,7],[83,0,83,4],[83,5,83,7],[84,0,84,4],[84,5,84,7],[85,0,85,4],[85,5,85,7],[86,0,86,4],[86,5,86,7],[87,0,87,4],[87,5,87,7],[88,0,88,4],[88,5,88,7],[89,0,89,4],[89,5,89,7],[90,0,90,4],[90,5,90,7],[91,0,91,4],[91,5,91,7],[92,0,92,4],[92,5,92,7],[93,0,93,8],[94,0,94,8],[95,0,95,8],[96,0,96,2],[96,3,96,8],[97,0,97,2],[97,3,97,8],[98,0,98,2],[98,3,98,8],[99,0,99,2],[99,3,99,8],[100,0,100,2],[100,3,100,8],[101,0,101,2],[101,3,101,8],[102,0,102,2],[102,3,102,8],[103,0,103,2],[103,3,103,8],[104,0,104,2],[104,3,104,8],[105,0,105,2],[105,3,105,8],[106,0,106,2],[106,3,106,8],[107,0,107,8],[108,0,108,1],[108,3,108,5],[108,6,108,8],[109,0,109,8],[110,0,110,7],[111,1,111,7],[112,1,112,7],[113,1,113,7],[114,1,114,7],[115,0,115,7],[117,1,117,7],[118,1,118,7],[119,1,119,7],[120,1,120,7],[121,1,121,7],[122,1,122,7],[123,1,123,7],[124,1,124,7],[125,1,125,7],[126,1,126,7],[128,1,128,7],[129,1,129,7],[130,1,130,7],[131,1,131,7],[132,1,132,7],[134,1,134,7],[135,1,135,7],[136,1,136,7],[137,1,137,7],[138,1,138,7],[139,1,139,7],[140,0,140,7],[141,1,141,7],[143,1,143,7],[144,1,144,7],[145,1,145,7],[146,1,146,7],[147,1,147,7],[148,0,148,7],[149,1,149,7],[150,1,150,7],[151,1,151,7],[152,1,152,7],[153,0,153,7],[155,1,155,7],[156,1,156,7],[157,1,157,7],[158,1,158,7],[159,1,159,7],[160,0,160,8],[161,0,161,8],[162,0,162,8],[163,0,163,8],[164,0,164,8],[165,0,165,8],[166,0,166,7]]}
["REGION",{"$f":"IFERROR(VLOOKUP(D1,CENTER_REGION_MATCH,2,FALSE),\"\")","v":""},"CENTER",{"$f":"IF(ISBLANK('24.01'!D1),\"\",'24.01'!D1)","v":""},null,"START DATE",null,"PROJECT ID",24.13]
["PROJECT TITLE",{"$nulls":3},"ESTIMATED # DAYS TO COMPLETE",null,null,{"$f":"SUM(C4,C5,C6,C7,F4,F5,F6,F7,I4,I5,I6,I7)","v":0}]
["TRADE","# SLOTS","WORK DAYS","TRADE","# SLOTS","WORK DAYS","TRADE","# SLOTS","WORK DAYS"]
[]
[]
[]
[]
["Total CTST Slots",{"$f":"SUM(B4:B7,E4:E7,H4:H7)","v":0},null,"Estimated VALUE of Project",null,{"$f":"2*I17","v":{"v":0,"d":"$0.00"}},"Cost/Slot",{"$f":"IF(B8=0,0,SUM(I17/B8))","v":{"v":0,"d":"$0.00"}}]
[]
["CATEGORY",{"$nulls":7},"Subtotal"]
["MATERIALS AND SUPPLIES",{"$nulls":7},{"$f":"I47","v":{"v":0,"d":"$0"}}]
["JOB-SITE POWER TOOLS AND EQUIPMENT",{"$nulls":7},{"$f":"I56","v":{"v":0,"d":"$0"}}]
["EQUIPMENT RENTAL",{"$nulls":7},{"$f":"I62","v":{"v":0,"d":"$0"}}]
["CONTRACTED SERVICES",{"$nulls":7},{"$f":"I69","v":{"v":0,"d":"$0"}}]
["AGENCY TECHNICAL SERVICES",{"$nulls":7},{"$f":"I75","v":{"v":0,"d":"$0"}}]
["MOTOR VEHICLE OPERATIONS/MAINTENANCE",{"$nulls":7},{"$f":"I81","v":{"v":0,"d":"$0"}}]
["TOTAL",{"$nulls":7},{"$f":"SUM(I11:I16)","v":{"v":0,"d":"$0"}}]
["Project Description and Training Narrative.  Use ALT-ENTER to insert paragraph breaks.  Refer to \"Narrative Examples\" tab to the left for examples of acceptable project narratives. "]
["Supporting documents (drawings/blueprints/pictures) are recommended to be included in the \"Attachment\" section below if size limitations allow.  Files that cause this form to exceed the 15MB size limit are to be sent to the NOJC via CTTSubmissions@dol.gov.  If files have been sent seperately, indicate by checking this box: "]
[]
["Scroll down to populate MATERIALS AND SUPPLIES Estimate"]
["MATERIALS AND SUPPLIES Estimate"]
["MATERIAL OR SUPPLY Description (Qty./Unit)",{"$nulls":5},"# of Units","Unit Cost","Line Cost"]
[{"$nulls":8},{"$f":"SUM(G24*H24)","v":{"v":0,"d":"$0"}}]
[{"$nulls":8},{"$f":"SUM(G25*H25)","v":{"v":0,"d":"$0"}}]
[{"$nulls":8},{"v":0,"d":"$0"}]
[{"$nulls":8},{"v":0,"d":"$0"}]
[{"$nulls":8},{"v":0,"d":"$0"}]
[{"$nulls":8},{"v":0,"d":"$0"}]
[{"$nulls":8},{"v":0,"d":"$0"}]
[{"$nulls":8},{"v":0,"d":"$0"}]
[{"$nulls":8},{"v":0,"d":"$0"}]
[{"$nulls":8},{"v":0,"d":"$0"}]
[{"$nulls":8},{"v":0,"d":"$0"}]
[{"$nulls":8},{"v":0,"d":"$0"}]
[{"$nulls":8},{"v":0,"d":"$0"}]
[{"$nulls":8},{"v":0,"d":"$0"}]
[{"$nulls":8},{"v":0,"d":"$0"}]
[{"$nulls":8},{"v":0,"d":"$0"}]
[{"$nulls":8},{"v":0,"d":"$0"}]
[{"$nulls":8},{"v":0,"d":"$0"}]
[{"$nulls":8},{"v":0,"d":"$0"}]
[{"$nulls":8},{"v":0,"d":"$0"}]
[{"$nulls":8},{"v":0,"d":"$0"}]
[{"$nulls":8},{"v":0,"d":"$0"}]
[{"$nulls":8},{"v":0,"d":"$0"}]
["TOTAL COST",{"$nulls":7},{"$f":"SUM(I24:I46)","v":{"v":0,"d":"$0"}}]
["JOB-SITE POWER TOOLS AND EQUIPMENT Estimate",{"$nulls":5},"Quantity","Unit Cost ","Line Cost"]
[{"$nulls":8},{"$f":"SUM(G49*H49)","v":{"v":0,"d":"$0"}}]
[{"$nulls":8},{"$f":"SUM(G50*H50)","v":{"v":0,"d":"$0"}}]
[{"$nulls":8},{"v":0,"d":"$0"}]
[{"$nulls":8},{"v":0,"d":"$0"}]
[{"$nulls":8},{"v":0,"d":"$0"}]
[{"$nulls":8},{"v":0,"d":"$0"}]
[{"$nulls":8},{"v":0,"d":"$0"}]
["TOTAL COST",{"$nulls":7},{"$f":"SUM(I49:I55)","v":{"v":0,"d":"$0"}}]
["EQUIPMENT RENTAL Estimate",{"$nulls":5},"Quantity","Unit Cost ","Line Cost"]
[{"$nulls":8},{"$f":"SUM(G58*H58)","v":{"v":0,"d":"$0"}}]
[{"$nulls":8},{"$f":"SUM(G59*H59)","v":{"v":0,"d":"$0"}}]
[{"$nulls":8},{"$f":"SUM(G60*H60)","v":{"v":0,"d":"$0"}}]
[{"$nulls":8},{"$f":"SUM(G61*H61)","v":{"v":0,"d":"$0"}}]
["TOTAL COST",{"$nulls":7},{"$f":"SUM(I58:I61)","v":{"v":0,"d":"$0"}}]
["Scroll down to populate CONTRACTED SERVICES Estimate"]
["CONTRACTED SERVICES Estimate",{"$nulls":5},"Quantity","Unit Cost","Line Cost"]
[{"$nulls":8},{"$f":"SUM(G65*H65)","v":{"v":0,"d":"$0"}}]
[{"$nulls":8},{"$f":"SUM(G66*H66)","v":{"v":0,"d":"$0"}}]
[{"$nulls":8},{"$f":"SUM(G67*H67)","v":{"v":0,"d":"$0"}}]
[{"$nulls":8},{"$f":"SUM(G68*H68)","v":{"v":0,"d":"$0"}}]
["TOTAL COST",{"$nulls":7},{"$f":"SUM(I65:I68)","v":{"v":0,"d":"$0"}}]
["AGENCY TECHNICAL SERVICES Estimate",{"$nulls":5},"Quantity","Unit Cost","Line Cost"]
[{"$nulls":8},{"$f":"SUM(G71*H71)","v":{"v":0,"d":"$0"}}]
[{"$nulls":8},{"$f":"SUM(G72*H72)","v":{"v":0,"d":"$0"}}]
[{"$nulls":8},{"$f":"SUM(G73*H73)","v":{"v":0,"d":"$0"}}]
[{"$nulls":8},{"$f":"SUM(G74*H74)","v":{"v":0,"d":"$0"}}]
["TOTAL COST",{"$nulls":7},{"$f":"SUM(I71:I74)","v":{"v":0,"d":"$0"}}]
["MOTOR VEHICLE OPERATIONS/MAINTENANCE Estimate",{"$nulls":5},"Quantity","Unit Cost","Line Cost"]
[{"$nulls":8},{"$f":"SUM(G77*H77)","v":{"v":0,"d":"$0"}}]
[{"$nulls":8},{"$f":"SUM(G78*H78)","v":{"v":0,"d":"$0"}}]
[{"$nulls":8},{"$f":"SUM(G79*H79)","v":{"v":0,"d":"$0"}}]
[{"$nulls":8},{"$f":"SUM(G80*H80)","v":{"v":0,"d":"$0"}}]
["TOTAL COST",{"$nulls":7},{"$f":"SUM(I77:I80)","v":{"v":0,"d":"$0"}}]
["SAFETY HAZARD ANALYSIS"]
["ACTION/HAZARD DESCRIPTION",{"$nulls":4},"PROPOSED CONTROL/ABATEMENT"]
{"$rows_empty":10}
["ATTACHMENTS"]
["Required attachments include site/structure drawings (including basic project dimensions and important structural measurements) and, if major systems alteration/addition is included in the project, systems detail drawing(s).  Acceptable file types for attachments include those with extensions: \n.avi, .bmp, .csv, .doc, .docx, .dwf, .dwg, .gif, .htm, .html, .jpg, .jpeg, .mpg, .mpp, .mp4, .pdf, .png, .pub, .rtf, .tif, .tiff, .txt, .wmf, .wmv, .xls, .xlsx, .xps"]
["Instructions to insert an attachment in Excel:  (1) Click the cell in which you would like the attachment to show.  (2) On the \"Insert\" tab above (tools ribbon), select \"Object\" (in the \"Text\" grouping).  (3) In the \"Object\" dialogue box, select \"Create from file.\"  (4) Select \"Browse\" and find the file you want to insert from your desktop.  (5) Select \"Display as icon\" box in \"Object\" dialogue box. (6) Select \"OK.\"  An icon should represent the attachment.  Provide a succinct summary of the attachment in the \"Description\" column immediately to the right of each attachment.  "]
["Attachment",null,null,"Description"]
{"$rows_empty":10}
["STOP HERE.  DO NOT FILL IN ANY SECTIONS BELOW THIS POINT.  All FURTHER SECTIONS FOR NOJC USE ONLY."]
["DFAM ENTRY DATE",null,null,"DFAM REVIEWER"]
["CTST ENGINEERING REVIEW -- NOJC USE ONLY"]
["CONSISTENCY WITH THE CENTER’S LONG RANGE PLAN (LRP):"]
[1,"Is the proposed project located where future buildings, structures or extensions are proposed in the LRP?  "]
["1A","If NO to #1, is the proposed project in close proximity to future LRP structures such that the functioning of both may be adversely affected?"]
[2,"Has the Center submitted a campus Site Plan clearly showing the proposed location of the project?"]
[3,"Does the proposed project affect the space utilization allowances in the LRP?"]
["COMPLIANCE WITH APPLICABLE CODES"]
["Space/Use Re-configuration"]
[4,"Are the reconfigured spaces’ exit routes in compliance with fire egress requirements?"]
[5,"Are number of emergency egress points per current code requirements?"]
[6,"Are current fire alarm devices adequate per code to satisfy the new use of the space?  "]
["6A","If NO to #6, does the project allow for a fire alarm upgrade to comply with code?"]
[7,"Are the existing lighting levels consistent with code requirements for the new use(s)?"]
[8,"Can the new electrical and mechanical loads be accommodated within existing circuits in compliance with code?"]
[9,"Does the existing lighting and power outlet layout serve the new use adequately?  "]
["9A","If NO to #9, is the proposed revised layout in compliance with code?"]
[10,"Does the reconfigured space comply with ADA requirements where applicable?"]
[11,"Has the Center submitted drawings addressing the above issues clearly? (Architectural plan, electrical layouts, reflected ceiling plans, fire alarm system layouts, etc.)"]
["HVAC Equipment Upgrades"]
[12,"Is the proposed HVAC equipment an Energy Star high-efficiency model?"]
[13,"What type of refrigerant does the proposed equipment use?"]
[14,"Has the Center submitted manufacturer’s trade literature showing equipment specs, including SIR ratings and refrigerant type?"]
[15,"Has the Center submitted a mechanical drawing showing location of equipment and ductwork?"]
[16,"If students are to install the new equipment, has the Center made arrangements to have manufacturer-approved installer supervision so as to protect the warranty?"]
["Lighting/Power Upgrades"]
[17,"Does the project entail lighting fixture replacement, lamp/ballast replacement or both?"]
[18,"Does the project entail any re-wiring?"]
[19,"Does the project entail any additional electrical loads with respect to existing?"]
["19A","If YES to #19, does the project provide adequate documentation to demonstrate code compliance?"]
[20,"Has the Center submitted manufacturer’s trade literature showing fixture/lamp specs?"]
[21,"Has the Center submitted a proposed lighting layout drawing showing proposed new lighting fixture and power outlet layout?                                                                  "]
["STRUCTURAL INTEGRITY"]
[22,"Does the proposed project comprise a habitable structure?"]
[23,"If not habitable, does the structural stability of the project impinge on the life/safety of students and staff?"]
[24,"Has the project’s structure been designed and documented by a licensed engineer?"]
["24A","If YES to #24, has the Center presented engineer-stamped documents?"]
[25,"If not designed/stamped by a licensed engineer, does the project comply with prescriptive design parameters per IBC code? "]
["25A","If NO to #25, has the Center submitted clear and complete documentation demonstrating prescriptive design code compliance?"]
[26,"For roof structures based on truss designs, does the project propose off-the-shelf pre-engineered truss solutions?  "]
["If 'Yes' to #26, respond to #27-29; if 'No' skip to #30"]
[27,"Has the Center submitted pre-engineered truss drawings?"]
[28,"Has the Center submitted clear details of pre-engineered truss fastenings?"]
[29,"Are the roof loads adequately distributed to the footings?  "]
[30,"Has the Center provided adequate footings and foundation drawings?"]
["SUSTAINABILITY"]
["Does the proposed project include:"]
[31,"Environmentally-preferred products?"]
[32,"Bio-based products?"]
[33,"Recycled-content products?"]
[34,"Low-emitting materials?"]
[35,"High-efficiency water fixtures?"]
["DFAM Reviewer Notes"]
[]
["DFAM Approval Provision(s)"]
[]
["DFAM Decline Recommendation(s)"]
[]
["DFAM Reviewer Recommendation"]

{"sheet":"24.14","index":17,"n_rows":167,"n_cols":9,"rows_kept":167,"merged":[[0,3,0,4],[1,1,1,3],[1,4,1,6],[1,7,1,8],[7,1,7,2],[7,3,7,4],[7,7,7,8],[8,0,8,8],[9,0,9,7],[10,0,10,7],[11,0,11,7],[12,0,12,7],[13,0,13,7],[14,0,14,7],[15,0,15,7],[16,0,16,7],[17,0,17,8],[18,0,18,8],[19,0,19,8],[20,0,20,8],[21,0,21,8],[22,0,22,5],[23,0,23,5],[24,0,24,5],[25,0,25,5],[26,0,26,5],[27,0,27,5],[28,0,28,5],[29,0,29,5],[30,0,30,5],[31,0,31,5],[32,0,32,5],[33,0,33,5],[34,0,34,5],[35,0,35,5],[36,0,36,5],[37,0,37,5],[38,0,38,5],[39,0,39,5],[40,0,40,5],[41,0,41,5],[42,0,42,5],[43,0,43,5],[44,0,44,5],[45,0,45,5],[46,0,46,7],[47,0,47,5],[48,0,48,5],[49,0,49,5],[50,0,50,5],[51,0,51,5],[52,0,52,5],[53,0,53,5],[54,0,54,5],[55,0,55,7],[56,0,56,5],[57,0,57,5],[58,0,58,5],[59,0,59,5],[60,0,60,5],[61,0,61,7],[62,0,62,8],[63,0,63,5],[64,0,64,5],[65,0,65,5],[66,0,66,5],[67,0,67,5],[68,0,68,7],[69,0,69,5],[70,0,70,5],[71,0,71,5],[72,0,72,5],[73,0,73,5],[74,0,74,7],[75,0,75,5],[76,0,76,5],[77,0,77,5],[78,0,78,5],[79,0,79,5],[80,0,80,7],[81,0,81,7],[82,0,82,4],[82,5,82,7],[83,0,83,4],[83,5,83,7],[84,0,84,4],[84,5,84,7],[85,0,85,4],[85,5,85,7],[86,0,86,4],[86,5,86,7],[87,0,87,4],[87,5,87,7],[88,0,88,4],[88,5,88,7],[89,0,89,4],[89,5,89,7],[90,0,90,4],[90,5,90,7],[91,0,91,4],[91,5,91,7],[92,0,92,4],[92,5,92,7],[93,0,93,8],[94,0,94,8],[95,0,95,8],[96,0,96,2],[96,3,96,8],[97,0,97,2],[97,3,97,8],[98,0,98,2],[98,3,98,8],[99,0,99,2],[99,3,99,8],[100,0,100,2],[100,3,100,8],[101,0,101,2],[101,3,101,8],[102,0,102,2],[102,3,102,8],[103,0,103,2],[103,3,103,8],[104,0,104,2],[104,3,104,8],[105,0,105,2],[105,3,105,8],[106,0,106,2],[106,3,106,8],[107,0,107,8],[108,0,108,1],[108,3,108,5],[108,6,108,8],[109,0,109,8],[110,0,110,7],[111,1,111,7],[112,1,112,7],[113,1,113,7],[114,1,114,7],[115,0,115,7],[117,1,117,7],[118,1,118,7],[119,1,119,7],[120,1,120,7],[121,1,121,7],[122,1,122,7],[123,1,123,7],[124,1,124,7],[125,1,125,7],[126,1,126,7],[128,1,128,7],[129,1,129,7],[130,1,130,7],[131,1,131,7],[132,1,132,7],[134,1,134,7],[135,1,135,7],[136,1,136,7],[137,1,137,7],[138,1,138,7],[139,1,139,7],[140,0,140,7],[141,1,141,7],[143,1,143,7],[144,1,144,7],[145,1,145,7],[146,1,146,7],[147,1,147,7],[148,0,148,7],[149,1,149,7],[150,1,150,7],[151,1,151,7],[152,1,152,7],[153,0,153,7],[155,1,155,7],[156,1,156,7],[157,1,157,7],[158,1,158,7],[159,1,159,7],[160,0,160,8],[161,0,161,8],[162,0,162,8],[163,0,163,8],[164,0,164,8],[165,0,165,8],[166,0,166,7]]}
["REGION",{"$f":"IFERROR(VLOOKUP(D1,CENTER_REGION_MATCH,2,FALSE),\"\")","v":""},"CENTER",{"$f":"IF(ISBLANK('24.01'!D1),\"\",'24.01'!D1)","v":""},null,"START DATE",null,"PROJECT ID",24.14]
["PROJECT TITLE",{"$nulls":3},"ESTIMATED # DAYS TO COMPLETE",null,null,{"$f":"SUM(C4,C5,C6,C7,F4,F5,F6,F7,I4,I5,I6,I7)","v":0}]
["TRADE","# SLOTS","WORK DAYS","TRADE","# SLOTS","WORK DAYS","TRADE","# SLOTS","WORK DAYS"]
[]
[]
[]
[]
["Total CTST Slots",{"$f":"SUM(B4:B7,E4:E7,H4:H7)","v":0},null,"Estimated VALUE of Project",null,{"$f":"2*I17","v":{"v":0,"d":"$0.00"}},"Cost/Slot",{"$f":"IF(B8=0,0,SUM(I17/B8))","v":{"v":0,"d":"$0.00"}}]
[]
["CATEGORY",{"$nulls":7},"Subtotal"]
["MATERIALS AND SUPPLIES",{"$nulls":7},{"$f":"I47","v":{"v":0,"d":"$0"}}]
["JOB-SITE POWER TOOLS AND EQUIPMENT",{"$nulls":7},{"$f":"I56","v":{"v":0,"d":"$0"}}]
["EQUIPMENT RENTAL",{"$nulls":7},{"$f":"I62","v":{"v":0,"d":"$0"}}]
["CONTRACTED SERVICES",{"$nulls":7},{"$f":"I69","v":{"v":0,"d":"$0"}}]
["AGENCY TECHNICAL SERVICES",{"$nulls":7},{"$f":"I75","v":{"v":0,"d":"$0"}}]
["MOTOR VEHICLE OPERATIONS/MAINTENANCE",{"$nulls":7},{"$f":"I81","v":{"v":0,"d":"$0"}}]
["TOTAL",{"$nulls":7},{"$f":"SUM(I11:I16)","v":{"v":0,"d":"$0"}}]
["Project Description and Training Narrative.  Use ALT-ENTER to insert paragraph breaks.  Refer to \"Narrative Examples\" tab to the left for examples of acceptable project narratives. "]
["Supporting documents (drawings/blueprints/pictures) are recommended to be included in the \"Attachment\" section below if size limitations allow.  Files that cause this form to exceed the 15MB size limit are to be sent to the NOJC via CTTSubmissions@dol.gov.  If files have been sent seperately, indicate by checking this box: "]
[]
["Scroll down to populate MATERIALS AND SUPPLIES Estimate"]
["MATERIALS AND SUPPLIES Estimate"]
["MATERIAL OR SUPPLY Description (Qty./Unit)",{"$nulls":5},"# of Units","Unit Cost","Line Cost"]
[{"$nulls":8},{"$f":"SUM(G24*H24)","v":{"v":0,"d":"$0"}}]
[{"$nulls":8},{"$f":"SUM(G25*H25)","v":{"v":0,"d":"$0"}}]
[{"$nulls":8},{"v":0,"d":"$0"}]
[{"$nulls":8},{"v":0,"d":"$0"}]
[{"$nulls":8},{"v":0,"d":"$0"}]
[{"$nulls":8},{"v":0,"d":"$0"}]
[{"$nulls":8},{"v":0,"d":"$0"}]
[{"$nulls":8},{"v":0,"d":"$0"}]
[{"$nulls":8},{"v":0,"d":"$0"}]
[{"$nulls":8},{"v":0,"d":"$0"}]
[{"$nulls":8},{"v":0,"d":"$0"}]
[{"$nulls":8},{"v":0,"d":"$0"}]
[{"$nulls":8},{"v":0,"d":"$0"}]
[{"$nulls":8},{"v":0,"d":"$0"}]
[{"$nulls":8},{"v":0,"d":"$0"}]
[{"$nulls":8},{"v":0,"d":"$0"}]
[{"$nulls":8},{"v":0,"d":"$0"}]
[{"$nulls":8},{"v":0,"d":"$0"}]
[{"$nulls":8},{"v":0,"d":"$0"}]
[{"$nulls":8},{"v":0,"d":"$0"}]
[{"$nulls":8},{"v":0,"d":"$0"}]
[{"$nulls":8},{"v":0,"d":"$0"}]
[{"$nulls":8},{"v":0,"d":"$0"}]
["TOTAL COST",{"$nulls":7},{"$f":"SUM(I24:I46)","v":{"v":0,"d":"$0"}}]
["JOB-SITE POWER TOOLS AND EQUIPMENT Estimate",{"$nulls":5},"Quantity","Unit Cost ","Line Cost"]
[{"$nulls":8},{"$f":"SUM(G49*H49)","v":{"v":0,"d":"$0"}}]
[{"$nulls":8},{"$f":"SUM(G50*H50)","v":{"v":0,"d":"$0"}}]
[{"$nulls":8},{"v":0,"d":"$0"}]
[{"$nulls":8},{"v":0,"d":"$0"}]
[{"$nulls":8},{"v":0,"d":"$0"}]
[{"$nulls":8},{"v":0,"d":"$0"}]
[{"$nulls":8},{"v":0,"d":"$0"}]
["TOTAL COST",{"$nulls":7},{"$f":"SUM(I49:I55)","v":{"v":0,"d":"$0"}}]
["EQUIPMENT RENTAL Estimate",{"$nulls":5},"Quantity","Unit Cost ","Line Cost"]
[{"$nulls":8},{"$f":"SUM(G58*H58)","v":{"v":0,"d":"$0"}}]
[{"$nulls":8},{"$f":"SUM(G59*H59)","v":{"v":0,"d":"$0"}}]
[{"$nulls":8},{"$f":"SUM(G60*H60)","v":{"v":0,"d":"$0"}}]
[{"$nulls":8},{"$f":"SUM(G61*H61)","v":{"v":0,"d":"$0"}}]
["TOTAL COST",{"$nulls":7},{"$f":"SUM(I58:I61)","v":{"v":0,"d":"$0"}}]
["Scroll down to populate CONTRACTED SERVICES Estimate"]
["CONTRACTED SERVICES Estimate",{"$nulls":5},"Quantity","Unit Cost","Line Cost"]
[{"$nulls":8},{"$f":"SUM(G65*H65)","v":{"v":0,"d":"$0"}}]
[{"$nulls":8},{"$f":"SUM(G66*H66)","v":{"v":0,"d":"$0"}}]
[{"$nulls":8},{"$f":"SUM(G67*H67)","v":{"v":0,"d":"$0"}}]
[{"$nulls":8},{"$f":"SUM(G68*H68)","v":{"v":0,"d":"$0"}}]
["TOTAL COST",{"$nulls":7},{"$f":"SUM(I65:I68)","v":{"v":0,"d":"$0"}}]
["AGENCY TECHNICAL SERVICES Estimate",{"$nulls":5},"Quantity","Unit Cost","Line Cost"]
[{"$nulls":8},{"$f":"SUM(G71*H71)","v":{"v":0,"d":"$0"}}]
[{"$nulls":8},{"$f":"SUM(G72*H72)","v":{"v":0,"d":"$0"}}]
[{"$nulls":8},{"$f":"SUM(G73*H73)","v":{"v":0,"d":"$0"}}]
[{"$nulls":8},{"$f":"SUM(G74*H74)","v":{"v":0,"d":"$0"}}]
["TOTAL COST",{"$nulls":7},{"$f":"SUM(I71:I74)","v":{"v":0,"d":"$0"}}]
["MOTOR VEHICLE OPERATIONS/MAINTENANCE Estimate",{"$nulls":5},"Quantity","Unit Cost","Line Cost"]
[{"$nulls":8},{"$f":"SUM(G77*H77)","v":{"v":0,"d":"$0"}}]
[{"$nulls":8},{"$f":"SUM(G78*H78)","v":{"v":0,"d":"$0"}}]
[{"$nulls":8},{"$f":"SUM(G79*H79)","v":{"v":0,"d":"$0"}}]
[{"$nulls":8},{"$f":"SUM(G80*H80)","v":{"v":0,"d":"$0"}}]
["TOTAL COST",{"$nulls":7},{"$f":"SUM(I77:I80)","v":{"v":0,"d":"$0"}}]
["SAFETY HAZARD ANALYSIS"]
["ACTION/HAZARD DESCRIPTION",{"$nulls":4},"PROPOSED CONTROL/ABATEMENT"]
{"$rows_empty":10}
["ATTACHMENTS"]
["Required attachments include site/structure drawings (including basic project dimensions and important structural measurements) and, if major systems alteration/addition is included in the project, systems detail drawing(s).  Acceptable file types for attachments include those with extensions: \n.avi, .bmp, .csv, .doc, .docx, .dwf, .dwg, .gif, .htm, .html, .jpg, .jpeg, .mpg, .mpp, .mp4, .pdf, .png, .pub, .rtf, .tif, .tiff, .txt, .wmf, .wmv, .xls, .xlsx, .xps"]
["Instructions to insert an attachment in Excel:  (1) Click the cell in which you would like the attachment to show.  (2) On the \"Insert\" tab above (tools ribbon), select \"Object\" (in the \"Text\" grouping).  (3) In the \"Object\" dialogue box, select \"Create from file.\"  (4) Select \"Browse\" and find the file you want to insert from your desktop.  (5) Select \"Display as icon\" box in \"Object\" dialogue box. (6) Select \"OK.\"  An icon should represent the attachment.  Provide a succinct summary of the attachment in the \"Description\" column immediately to the right of each attachment.  "]
["Attachment",null,null,"Description"]
{"$rows_empty":10}
["STOP HERE.  DO NOT FILL IN ANY SECTIONS BELOW THIS POINT.  All FURTHER SECTIONS FOR NOJC USE ONLY."]
["DFAM ENTRY DATE",null,null,"DFAM REVIEWER"]
["CTST ENGINEERING REVIEW -- NOJC USE ONLY"]
["CONSISTENCY WITH THE CENTER’S LONG RANGE PLAN (LRP):"]
[1,"Is the proposed project located where future buildings, structures or extensions are proposed in the LRP?  "]
["1A","If NO to #1, is the proposed project in close proximity to future LRP structures such that the functioning of both may be adversely affected?"]
[2,"Has the Center submitted a campus Site Plan clearly showing the proposed location of the project?"]
[3,"Does the proposed project affect the space utilization allowances in the LRP?"]
["COMPLIANCE WITH APPLICABLE CODES"]
["Space/Use Re-configuration"]
[4,"Are the reconfigured spaces’ exit routes in compliance with fire egress requirements?"]
[5,"Are number of emergency egress points per current code requirements?"]
[6,"Are current fire alarm devices adequate per code to satisfy the new use of the space?  "]
["6A","If NO to #6, does the project allow for a fire alarm upgrade to comply with code?"]
[7,"Are the existing lighting levels consistent with code requirements for the new use(s)?"]
[8,"Can the new electrical and mechanical loads be accommodated within existing circuits in compliance with code?"]
[9,"Does the existing lighting and power outlet layout serve the new use adequately?  "]
["9A","If NO to #9, is the proposed revised layout in compliance with code?"]
[10,"Does the reconfigured space comply with ADA requirements where applicable?"]
[11,"Has the Center submitted drawings addressing the above issues clearly? (Architectural plan, electrical layouts, reflected ceiling plans, fire alarm system layouts, etc.)"]
["HVAC Equipment Upgrades"]
[12,"Is the proposed HVAC equipment an Energy Star high-efficiency model?"]
[13,"What type of refrigerant does the proposed equipment use?"]
[14,"Has the Center submitted manufacturer’s trade literature showing equipment specs, including SIR ratings and refrigerant type?"]
[15,"Has the Center submitted a mechanical drawing showing location of equipment and ductwork?"]
[16,"If students are to install the new equipment, has the Center made arrangements to have manufacturer-approved installer supervision so as to protect the warranty?"]
["Lighting/Power Upgrades"]
[17,"Does the project entail lighting fixture replacement, lamp/ballast replacement or both?"]
[18,"Does the project entail any re-wiring?"]
[19,"Does the project entail any additional electrical loads with respect to existing?"]
["19A","If YES to #19, does the project provide adequate documentation to demonstrate code compliance?"]
[20,"Has the Center submitted manufacturer’s trade literature showing fixture/lamp specs?"]
[21,"Has the Center submitted a proposed lighting layout drawing showing proposed new lighting fixture and power outlet layout?                                                                  "]
["STRUCTURAL INTEGRITY"]
[22,"Does the proposed project comprise a habitable structure?"]
[23,"If not habitable, does the structural stability of the project impinge on the life/safety of students and staff?"]
[24,"Has the project’s structure been designed and documented by a licensed engineer?"]
["24A","If YES to #24, has the Center presented engineer-stamped documents?"]
[25,"If not designed/stamped by a licensed engineer, does the project comply with prescriptive design parameters per IBC code? "]
["25A","If NO to #25, has the Center submitted clear and complete documentation demonstrating prescriptive design code compliance?"]
[26,"For roof structures based on truss designs, does the project propose off-the-shelf pre-engineered truss solutions?  "]
["If 'Yes' to #26, respond to #27-29; if 'No' skip to #30"]
[27,"Has the Center submitted pre-engineered truss drawings?"]
[28,"Has the Center submitted clear details of pre-engineered truss fastenings?"]
[29,"Are the roof loads adequately distributed to the footings?  "]
[30,"Has the Center provided adequate footings and foundation drawings?"]
["SUSTAINABILITY"]
["Does the proposed project include:"]
[31,"Environmentally-preferred products?"]
[32,"Bio-based products?"]
[33,"Recycled-content products?"]
[34,"Low-emitting materials?"]
[35,"High-efficiency water fixtures?"]
["DFAM Reviewer Notes"]
[]
["DFAM Approval Provision(s)"]
[]
["DFAM Decline Recommendation(s)"]
[]
["DFAM Reviewer Recommendation"]

{"sheet":"24.15","index":18,"n_rows":167,"n_cols":9,"rows_kept":167,"merged":[[0,3,0,4],[1,1,1,3],[1,4,1,6],[1,7,1,8],[7,1,7,2],[7,3,7,4],[7,7,7,8],[8,0,8,8],[9,0,9,7],[10,0,10,7],[11,0,11,7],[12,0,12,7],[13,0,13,7],[14,0,14,7],[15,0,15,7],[16,0,16,7],[17,0,17,8],[18,0,18,8],[19,0,19,8],[20,0,20,8],[21,0,21,8],[22,0,22,5],[23,0,23,5],[24,0,24,5],[25,0,25,5],[26,0,26,5],[27,0,27,5],[28,0,28,5],[29,0,29,5],[30,0,30,5],[31,0,31,5],[32,0,32,5],[33,0,33,5],[34,0,34,5],[35,0,35,5],[36,0,36,5],[37,0,37,5],[38,0,38,5],[39,0,39,5],[40,0,40,5],[41,0,41,5],[42,0,42,5],[43,0,43,5],[44,0,44,5],[45,0,45,5],[46,0,46,7],[47,0,47,5],[48,0,48,5],[49,0,49,5],[50,0,50,5],[51,0,51,5],[52,0,52,5],[53,0,53,5],[54,0,54,5],[55,0,55,7],[56,0,56,5],[57,0,57,5],[58,0,58,5],[59,0,59,5],[60,0,60,5],[61,0,61,7],[62,0,62,8],[63,0,63,5],[64,0,64,5],[65,0,65,5],[66,0,66,5],[67,0,67,5],[68,0,68,7],[69,0,69,5],[70,0,70,5],[71,0,71,5],[72,0,72,5],[73,0,73,5],[74,0,74,7],[75,0,75,5],[76,0,76,5],[77,0,77,5],[78,0,78,5],[79,0,79,5],[80,0,80,7],[81,0,81,7],[82,0,82,4],[82,5,82,7],[83,0,83,4],[83,5,83,7],[84,0,84,4],[84,5,84,7],[85,0,85,4],[85,5,85,7],[86,0,86,4],[86,5,86,7],[87,0,87,4],[87,5,87,7],[88,0,88,4],[88,5,88,7],[89,0,89,4],[89,5,89,7],[90,0,90,4],[90,5,90,7],[91,0,91,4],[91,5,91,7],[92,0,92,4],[92,5,92,7],[93,0,93,8],[94,0,94,8],[95,0,95,8],[96,0,96,2],[96,3,96,8],[97,0,97,2],[97,3,97,8],[98,0,98,2],[98,3,98,8],[99,0,99,2],[99,3,99,8],[100,0,100,2],[100,3,100,8],[101,0,101,2],[101,3,101,8],[102,0,102,2],[102,3,102,8],[103,0,103,2],[103,3,103,8],[104,0,104,2],[104,3,104,8],[105,0,105,2],[105,3,105,8],[106,0,106,2],[106,3,106,8],[107,0,107,8],[108,0,108,1],[108,3,108,5],[108,6,108,8],[109,0,109,8],[110,0,110,7],[111,1,111,7],[112,1,112,7],[113,1,113,7],[114,1,114,7],[115,0,115,7],[117,1,117,7],[118,1,118,7],[119,1,119,7],[120,1,120,7],[121,1,121,7],[122,1,122,7],[123,1,123,7],[124,1,124,7],[125,1,125,7],[126,1,126,7],[128,1,128,7],[129,1,129,7],[130,1,130,7],[131,1,131,7],[132,1,132,7],[134,1,134,7],[135,1,135,7],[136,1,136,7],[137,1,137,7],[138,1,138,7],[139,1,139,7],[140,0,140,7],[141,1,141,7],[143,1,143,7],[144,1,144,7],[145,1,145,7],[146,1,146,7],[147,1,147,7],[148,0,148,7],[149,1,149,7],[150,1,150,7],[151,1,151,7],[152,1,152,7],[153,0,153,7],[155,1,155,7],[156,1,156,7],[157,1,157,7],[158,1,158,7],[159,1,159,7],[160,0,160,8],[161,0,161,8],[162,0,162,8],[163,0,163,8],[164,0,164,8],[165,0,165,8],[166,0,166,7]]}
["REGION",{"$f":"IFERROR(VLOOKUP(D1,CENTER_REGION_MATCH,2,FALSE),\"\")","v":""},"CENTER",{"$f":"IF(ISBLANK('24.01'!D1),\"\",'24.01'!D1)","v":""},null,"START DATE",null,"PROJECT ID",24.15]
["PROJECT TITLE",{"$nulls":3},"ESTIMATED # DAYS TO COMPLETE",null,null,{"$f":"SUM(C4,C5,C6,C7,F4,F5,F6,F7,I4,I5,I6,I7)","v":0}]
["TRADE","# SLOTS","WORK DAYS","TRADE","# SLOTS","WORK DAYS","TRADE","# SLOTS","WORK DAYS"]
[]
[]
[]
[]
["Total CTST Slots",{"$f":"SUM(B4:B7,E4:E7,H4:H7)","v":0},null,"Estimated VALUE of Project",null,{"$f":"2*I17","v":{"v":0,"d":"$0.00"}},"Cost/Slot",{"$f":"IF(B8=0,0,SUM(I17/B8))","v":{"v":0,"d":"$0.00"}}]
[]
["CATEGORY",{"$nulls":7},"Subtotal"]
["MATERIALS AND SUPPLIES",{"$nulls":7},{"$f":"I47","v":{"v":0,"d":"$0"}}]
["JOB-SITE POWER TOOLS AND EQUIPMENT",{"$nulls":7},{"$f":"I56","v":{"v":0,"d":"$0"}}]
["EQUIPMENT RENTAL",{"$nulls":7},{"$f":"I62","v":{"v":0,"d":"$0"}}]
["CONTRACTED SERVICES",{"$nulls":7},{"$f":"I69","v":{"v":0,"d":"$0"}}]
["AGENCY TECHNICAL SERVICES",{"$nulls":7},{"$f":"I75","v":{"v":0,"d":"$0"}}]
["MOTOR VEHICLE OPERATIONS/MAINTENANCE",{"$nulls":7},{"$f":"I81","v":{"v":0,"d":"$0"}}]
["TOTAL",{"$nulls":7},{"$f":"SUM(I11:I16)","v":{"v":0,"d":"$0"}}]
["Project Description and Training Narrative.  Use ALT-ENTER to insert paragraph breaks.  Refer to \"Narrative Examples\" tab to the left for examples of acceptable project narratives. "]
["Supporting documents (drawings/blueprints/pictures) are recommended to be included in the \"Attachment\" section below if size limitations allow.  Files that cause this form to exceed the 15MB size limit are to be sent to the NOJC via CTTSubmissions@dol.gov.  If files have been sent seperately, indicate by checking this box: "]
[]
["Scroll down to populate MATERIALS AND SUPPLIES Estimate"]
["MATERIALS AND SUPPLIES Estimate"]
["MATERIAL OR SUPPLY Description (Qty./Unit)",{"$nulls":5},"# of Units","Unit Cost","Line Cost"]
[{"$nulls":8},{"$f":"SUM(G24*H24)","v":{"v":0,"d":"$0"}}]
[{"$nulls":8},{"$f":"SUM(G25*H25)","v":{"v":0,"d":"$0"}}]
[{"$nulls":8},{"v":0,"d":"$0"}]
[{"$nulls":8},{"v":0,"d":"$0"}]
[{"$nulls":8},{"v":0,"d":"$0"}]
[{"$nulls":8},{"v":0,"d":"$0"}]
[{"$nulls":8},{"v":0,"d":"$0"}]
[{"$nulls":8},{"v":0,"d":"$0"}]
[{"$nulls":8},{"v":0,"d":"$0"}]
[{"$nulls":8},{"v":0,"d":"$0"}]
[{"$nulls":8},{"v":0,"d":"$0"}]
[{"$nulls":8},{"v":0,"d":"$0"}]
[{"$nulls":8},{"v":0,"d":"$0"}]
[{"$nulls":8},{"v":0,"d":"$0"}]
[{"$nulls":8},{"v":0,"d":"$0"}]
[{"$nulls":8},{"v":0,"d":"$0"}]
[{"$nulls":8},{"v":0,"d":"$0"}]
[{"$nulls":8},{"v":0,"d":"$0"}]
[{"$nulls":8},{"v":0,"d":"$0"}]
[{"$nulls":8},{"v":0,"d":"$0"}]
[{"$nulls":8},{"v":0,"d":"$0"}]
[{"$nulls":8},{"v":0,"d":"$0"}]
[{"$nulls":8},{"v":0,"d":"$0"}]
["TOTAL COST",{"$nulls":7},{"$f":"SUM(I24:I46)","v":{"v":0,"d":"$0"}}]
["JOB-SITE POWER TOOLS AND EQUIPMENT Estimate",{"$nulls":5},"Quantity","Unit Cost ","Line Cost"]
[{"$nulls":8},{"$f":"SUM(G49*H49)","v":{"v":0,"d":"$0"}}]
[{"$nulls":8},{"$f":"SUM(G50*H50)","v":{"v":0,"d":"$0"}}]
[{"$nulls":8},{"v":0,"d":"$0"}]
[{"$nulls":8},{"v":0,"d":"$0"}]
[{"$nulls":8},{"v":0,"d":"$0"}]
[{"$nulls":8},{"v":0,"d":"$0"}]
[{"$nulls":8},{"v":0,"d":"$0"}]
["TOTAL COST",{"$nulls":7},{"$f":"SUM(I49:I55)","v":{"v":0,"d":"$0"}}]
["EQUIPMENT RENTAL Estimate",{"$nulls":5},"Quantity","Unit Cost ","Line Cost"]
[{"$nulls":8},{"$f":"SUM(G58*H58)","v":{"v":0,"d":"$0"}}]
[{"$nulls":8},{"$f":"SUM(G59*H59)","v":{"v":0,"d":"$0"}}]
[{"$nulls":8},{"$f":"SUM(G60*H60)","v":{"v":0,"d":"$0"}}]
[{"$nulls":8},{"$f":"SUM(G61*H61)","v":{"v":0,"d":"$0"}}]
["TOTAL COST",{"$nulls":7},{"$f":"SUM(I58:I61)","v":{"v":0,"d":"$0"}}]
["Scroll down to populate CONTRACTED SERVICES Estimate"]
["CONTRACTED SERVICES Estimate",{"$nulls":5},"Quantity","Unit Cost","Line Cost"]
[{"$nulls":8},{"$f":"SUM(G65*H65)","v":{"v":0,"d":"$0"}}]
[{"$nulls":8},{"$f":"SUM(G66*H66)","v":{"v":0,"d":"$0"}}]
[{"$nulls":8},{"$f":"SUM(G67*H67)","v":{"v":0,"d":"$0"}}]
[{"$nulls":8},{"$f":"SUM(G68*H68)","v":{"v":0,"d":"$0"}}]
["TOTAL COST",{"$nulls":7},{"$f":"SUM(I65:I68)","v":{"v":0,"d":"$0"}}]
["AGENCY TECHNICAL SERVICES Estimate",{"$nulls":5},"Quantity","Unit Cost","Line Cost"]
[{"$nulls":8},{"$f":"SUM(G71*H71)","v":{"v":0,"d":"$0"}}]
[{"$nulls":8},{"$f":"SUM(G72*H72)","v":{"v":0,"d":"$0"}}]
[{"$nulls":8},{"$f":"SUM(G73*H73)","v":{"v":0,"d":"$0"}}]
[{"$nulls":8},{"$f":"SUM(G74*H74)","v":{"v":0,"d":"$0"}}]
["TOTAL COST",{"$nulls":7},{"$f":"SUM(I71:I74)","v":{"v":0,"d":"$0"}}]
["MOTOR VEHICLE OPERATIONS/MAINTENANCE Estimate",{"$nulls":5},"Quantity","Unit Cost","Line Cost"]
[{"$nulls":8},{"$f":"SUM(G77*H77)","v":{"v":0,"d":"$0"}}]
[{"$nulls":8},{"$f":"SUM(G78*H78)","v":{"v":0,"d":"$0"}}]
[{"$nulls":8},{"$f":"SUM(G79*H79)","v":{"v":0,"d":"$0"}}]
[{"$nulls":8},{"$f":"SUM(G80*H80)","v":{"v":0,"d":"$0"}}]
["TOTAL COST",{"$nulls":7},{"$f":"SUM(I77:I80)","v":{"v":0,"d":"$0"}}]
["SAFETY HAZARD ANALYSIS"]
["ACTION/HAZARD DESCRIPTION",{"$nulls":4},"PROPOSED CONTROL/ABATEMENT"]
{"$rows_empty":10}
["ATTACHMENTS"]
["Required attachments include site/structure drawings (including basic project dimensions and important structural measurements) and, if major systems alteration/addition is included in the project, systems detail drawing(s).  Acceptable file types for attachments include those with extensions: \n.avi, .bmp, .csv, .doc, .docx, .dwf, .dwg, .gif, .htm, .html, .jpg, .jpeg, .mpg, .mpp, .mp4, .pdf, .png, .pub, .rtf, .tif, .tiff, .txt, .wmf, .wmv, .xls, .xlsx, .xps"]
["Instructions to insert an attachment in Excel:  (1) Click the cell in which you would like the attachment to show.  (2) On the \"Insert\" tab above (tools ribbon), select \"Object\" (in the \"Text\" grouping).  (3) In the \"Object\" dialogue box, select \"Create from file.\"  (4) Select \"Browse\" and find the file you want to insert from your desktop.  (5) Select \"Display as icon\" box in \"Object\" dialogue box. (6) Select \"OK.\"  An icon should represent the attachment.  Provide a succinct summary of the attachment in the \"Description\" column immediately to the right of each attachment.  "]
["Attachment",null,null,"Description"]
{"$rows_empty":10}
["STOP HERE.  DO NOT FILL IN ANY SECTIONS BELOW THIS POINT.  All FURTHER SECTIONS FOR NOJC USE ONLY."]
["DFAM ENTRY DATE",null,null,"DFAM REVIEWER"]
["CTST ENGINEERING REVIEW -- NOJC USE ONLY"]
["CONSISTENCY WITH THE CENTER’S LONG RANGE PLAN (LRP):"]
[1,"Is the proposed project located where future buildings, structures or extensions are proposed in the LRP?  "]
["1A","If NO to #1, is the proposed project in close proximity to future LRP structures such that the functioning of both may be adversely affected?"]
[2,"Has the Center submitted a campus Site Plan clearly showing the proposed location of the project?"]
[3,"Does the proposed project affect the space utilization allowances in the LRP?"]
["COMPLIANCE WITH APPLICABLE CODES"]
["Space/Use Re-configuration"]
[4,"Are the reconfigured spaces’ exit routes in compliance with fire egress requirements?"]
[5,"Are number of emergency egress points per current code requirements?"]
[6,"Are current fire alarm devices adequate per code to satisfy the new use of the space?  "]
["6A","If NO to #6, does the project allow for a fire alarm upgrade to comply with code?"]
[7,"Are the existing lighting levels consistent with code requirements for the new use(s)?"]
[8,"Can the new electrical and mechanical loads be accommodated within existing circuits in compliance with code?"]
[9,"Does the existing lighting and power outlet layout serve the new use adequately?  "]
["9A","If NO to #9, is the proposed revised layout in compliance with code?"]
[10,"Does the reconfigured space comply with ADA requirements where applicable?"]
[11,"Has the Center submitted drawings addressing the above issues clearly? (Architectural plan, electrical layouts, reflected ceiling plans, fire alarm system layouts, etc.)"]
["HVAC Equipment Upgrades"]
[12,"Is the proposed HVAC equipment an Energy Star high-efficiency model?"]
[13,"What type of refrigerant does the proposed equipment use?"]
[14,"Has the Center submitted manufacturer’s trade literature showing equipment specs, including SIR ratings and refrigerant type?"]
[15,"Has the Center submitted a mechanical drawing showing location of equipment and ductwork?"]
[16,"If students are to install the new equipment, has the Center made arrangements to have manufacturer-approved installer supervision so as to protect the warranty?"]
["Lighting/Power Upgrades"]
[17,"Does the project entail lighting fixture replacement, lamp/ballast replacement or both?"]
[18,"Does the project entail any re-wiring?"]
[19,"Does the project entail any additional electrical loads with respect to existing?"]
["19A","If YES to #19, does the project provide adequate documentation to demonstrate code compliance?"]
[20,"Has the Center submitted manufacturer’s trade literature showing fixture/lamp specs?"]
[21,"Has the Center submitted a proposed lighting layout drawing showing proposed new lighting fixture and power outlet layout?                                                                  "]
["STRUCTURAL INTEGRITY"]
[22,"Does the proposed project comprise a habitable structure?"]
[23,"If not habitable, does the structural stability of the project impinge on the life/safety of students and staff?"]
[24,"Has the project’s structure been designed and documented by a licensed engineer?"]
["24A","If YES to #24, has the Center presented engineer-stamped documents?"]
[25,"If not designed/stamped by a licensed engineer, does the project comply with prescriptive design parameters per IBC code? "]
["25A","If NO to #25, has the Center submitted clear and complete documentation demonstrating prescriptive design code compliance?"]
[26,"For roof structures based on truss designs, does the project propose off-the-shelf pre-engineered truss solutions?  "]
["If 'Yes' to #26, respond to #27-29; if 'No' skip to #30"]
[27,"Has the Center submitted pre-engineered truss drawings?"]
[28,"Has the Center submitted clear details of pre-engineered truss fastenings?"]
[29,"Are the roof loads adequately distributed to the footings?  "]
[30,"Has the Center provided adequate footings and foundation drawings?"]
["SUSTAINABILITY"]
["Does the proposed project include:"]
[31,"Environmentally-preferred products?"]
[32,"Bio-based products?"]
[33,"Recycled-content products?"]
[34,"Low-emitting materials?"]
[35,"High-efficiency water fixtures?"]
["DFAM Reviewer Notes"]
[]
["DFAM Approval Provision(s)"]
[]
["DFAM Decline Recommendation(s)"]
[]
["DFAM Reviewer Recommendation"]

{"sheet":"24.16","index":19,"n_rows":167,"n_cols":9,"rows_kept":167,"merged":[[0,3,0,4],[1,1,1,3],[1,4,1,6],[1,7,1,8],[7,1,7,2],[7,3,7,4],[7,7,7,8],[8,0,8,8],[9,0,9,7],[10,0,10,7],[11,0,11,7],[12,0,12,7],[13,0,13,7],[14,0,14,7],[15,0,15,7],[16,0,16,7],[17,0,17,8],[18,0,18,8],[19,0,19,8],[20,0,20,8],[21,0,21,8],[22,0,22,5],[23,0,23,5],[24,0,24,5],[25,0,25,5],[26,0,26,5],[27,0,27,5],[28,0,28,5],[29,0,29,5],[30,0,30,5],[31,0,31,5],[32,0,32,5],[33,0,33,5],[34,0,34,5],[35,0,35,5],[36,0,36,5],[37,0,37,5],[38,0,38,5],[39,0,39,5],[40,0,40,5],[41,0,41,5],[42,0,42,5],[43,0,43,5],[44,0,44,5],[45,0,45,5],[46,0,46,7],[47,0,47,5],[48,0,48,5],[49,0,49,5],[50,0,50,5],[51,0,51,5],[52,0,52,5],[53,0,53,5],[54,0,54,5],[55,0,55,7],[56,0,56,5],[57,0,57,5],[58,0,58,5],[59,0,59,5],[60,0,60,5],[61,0,61,7],[62,0,62,8],[63,0,63,5],[64,0,64,5],[65,0,65,5],[66,0,66,5],[67,0,67,5],[68,0,68,7],[69,0,69,5],[70,0,70,5],[71,0,71,5],[72,0,72,5],[73,0,73,5],[74,0,74,7],[75,0,75,5],[76,0,76,5],[77,0,77,5],[78,0,78,5],[79,0,79,5],[80,0,80,7],[81,0,81,7],[82,0,82,4],[82,5,82,7],[83,0,83,4],[83,5,83,7],[84,0,84,4],[84,5,84,7],[85,0,85,4],[85,5,85,7],[86,0,86,4],[86,5,86,7],[87,0,87,4],[87,5,87,7],[88,0,88,4],[88,5,88,7],[89,0,89,4],[89,5,89,7],[90,0,90,4],[90,5,90,7],[91,0,91,4],[91,5,91,7],[92,0,92,4],[92,5,92,7],[93,0,93,8],[94,0,94,8],[95,0,95,8],[96,0,96,2],[96,3,96,8],[97,0,97,2],[97,3,97,8],[98,0,98,2],[98,3,98,8],[99,0,99,2],[99,3,99,8],[100,0,100,2],[100,3,100,8],[101,0,101,2],[101,3,101,8],[102,0,102,2],[102,3,102,8],[103,0,103,2],[103,3,103,8],[104,0,104,2],[104,3,104,8],[105,0,105,2],[105,3,105,8],[106,0,106,2],[106,3,106,8],[107,0,107,8],[108,0,108,1],[108,3,108,5],[108,6,108,8],[109,0,109,8],[110,0,110,7],[111,1,111,7],[112,1,112,7],[113,1,113,7],[114,1,114,7],[115,0,115,7],[117,1,117,7],[118,1,118,7],[119,1,119,7],[120,1,120,7],[121,1,121,7],[122,1,122,7],[123,1,123,7],[124,1,124,7],[125,1,125,7],[126,1,126,7],[128,1,128,7],[129,1,129,7],[130,1,130,7],[131,1,131,7],[132,1,132,7],[134,1,134,7],[135,1,135,7],[136,1,136,7],[137,1,137,7],[138,1,138,7],[139,1,139,7],[140,0,140,7],[141,1,141,7],[143,1,143,7],[144,1,144,7],[145,1,145,7],[146,1,146,7],[147,1,147,7],[148,0,148,7],[149,1,149,7],[150,1,150,7],[151,1,151,7],[152,1,152,7],[153,0,153,7],[155,1,155,7],[156,1,156,7],[157,1,157,7],[158,1,158,7],[159,1,159,7],[160,0,160,8],[161,0,161,8],[162,0,162,8],[163,0,163,8],[164,0,164,8],[165,0,165,8],[166,0,166,7]]}
["REGION",{"$f":"IFERROR(VLOOKUP(D1,CENTER_REGION_MATCH,2,FALSE),\"\")","v":""},"CENTER",{"$f":"IF(ISBLANK('24.01'!D1),\"\",'24.01'!D1)","v":""},null,"START DATE",null,"PROJECT ID",24.16]
["PROJECT TITLE",{"$nulls":3},"ESTIMATED # DAYS TO COMPLETE",null,null,{"$f":"SUM(C4,C5,C6,C7,F4,F5,F6,F7,I4,I5,I6,I7)","v":0}]
["TRADE","# SLOTS","WORK DAYS","TRADE","# SLOTS","WORK DAYS","TRADE","# SLOTS","WORK DAYS"]
[]
[]
[]
[]
["Total CTST Slots",{"$f":"SUM(B4:B7,E4:E7,H4:H7)","v":0},null,"Estimated VALUE of Project",null,{"$f":"2*I17","v":{"v":0,"d":"$0.00"}},"Cost/Slot",{"$f":"IF(B8=0,0,SUM(I17/B8))","v":{"v":0,"d":"$0.00"}}]
[]
["CATEGORY",{"$nulls":7},"Subtotal"]
["MATERIALS AND SUPPLIES",{"$nulls":7},{"$f":"I47","v":{"v":0,"d":"$0"}}]
["JOB-SITE POWER TOOLS AND EQUIPMENT",{"$nulls":7},{"$f":"I56","v":{"v":0,"d":"$0"}}]
["EQUIPMENT RENTAL",{"$nulls":7},{"$f":"I62","v":{"v":0,"d":"$0"}}]
["CONTRACTED SERVICES",{"$nulls":7},{"$f":"I69","v":{"v":0,"d":"$0"}}]
["AGENCY TECHNICAL SERVICES",{"$nulls":7},{"$f":"I75","v":{"v":0,"d":"$0"}}]
["MOTOR VEHICLE OPERATIONS/MAINTENANCE",{"$nulls":7},{"$f":"I81","v":{"v":0,"d":"$0"}}]
["TOTAL",{"$nulls":7},{"$f":"SUM(I11:I16)","v":{"v":0,"d":"$0"}}]
["Project Description and Training Narrative.  Use ALT-ENTER to insert paragraph breaks.  Refer to \"Narrative Examples\" tab to the left for examples of acceptable project narratives. "]
["Supporting documents (drawings/blueprints/pictures) are recommended to be included in the \"Attachment\" section below if size limitations allow.  Files that cause this form to exceed the 15MB size limit are to be sent to the NOJC via CTTSubmissions@dol.gov.  If files have been sent seperately, indicate by checking this box: "]
[]
["Scroll down to populate MATERIALS AND SUPPLIES Estimate"]
["MATERIALS AND SUPPLIES Estimate"]
["MATERIAL OR SUPPLY Description (Qty./Unit)",{"$nulls":5},"# of Units","Unit Cost","Line Cost"]
[{"$nulls":8},{"$f":"SUM(G24*H24)","v":{"v":0,"d":"$0"}}]
[{"$nulls":8},{"$f":"SUM(G25*H25)","v":{"v":0,"d":"$0"}}]
[{"$nulls":8},{"v":0,"d":"$0"}]
[{"$nulls":8},{"v":0,"d":"$0"}]
[{"$nulls":8},{"v":0,"d":"$0"}]
[{"$nulls":8},{"v":0,"d":"$0"}]
[{"$nulls":8},{"v":0,"d":"$0"}]
[{"$nulls":8},{"v":0,"d":"$0"}]
[{"$nulls":8},{"v":0,"d":"$0"}]
[{"$nulls":8},{"v":0,"d":"$0"}]
[{"$nulls":8},{"v":0,"d":"$0"}]
[{"$nulls":8},{"v":0,"d":"$0"}]
[{"$nulls":8},{"v":0,"d":"$0"}]
[{"$nulls":8},{"v":0,"d":"$0"}]
[{"$nulls":8},{"v":0,"d":"$0"}]
[{"$nulls":8},{"v":0,"d":"$0"}]
[{"$nulls":8},{"v":0,"d":"$0"}]
[{"$nulls":8},{"v":0,"d":"$0"}]
[{"$nulls":8},{"v":0,"d":"$0"}]
[{"$nulls":8},{"v":0,"d":"$0"}]
[{"$nulls":8},{"v":0,"d":"$0"}]
[{"$nulls":8},{"v":0,"d":"$0"}]
[{"$nulls":8},{"v":0,"d":"$0"}]
["TOTAL COST",{"$nulls":7},{"$f":"SUM(I24:I46)","v":{"v":0,"d":"$0"}}]
["JOB-SITE POWER TOOLS AND EQUIPMENT Estimate",{"$nulls":5},"Quantity","Unit Cost ","Line Cost"]
[{"$nulls":8},{"$f":"SUM(G49*H49)","v":{"v":0,"d":"$0"}}]
[{"$nulls":8},{"$f":"SUM(G50*H50)","v":{"v":0,"d":"$0"}}]
[{"$nulls":8},{"v":0,"d":"$0"}]
[{"$nulls":8},{"v":0,"d":"$0"}]
[{"$nulls":8},{"v":0,"d":"$0"}]
[{"$nulls":8},{"v":0,"d":"$0"}]
[{"$nulls":8},{"v":0,"d":"$0"}]
["TOTAL COST",{"$nulls":7},{"$f":"SUM(I49:I55)","v":{"v":0,"d":"$0"}}]
["EQUIPMENT RENTAL Estimate",{"$nulls":5},"Quantity","Unit Cost ","Line Cost"]
[{"$nulls":8},{"$f":"SUM(G58*H58)","v":{"v":0,"d":"$0"}}]
[{"$nulls":8},{"$f":"SUM(G59*H59)","v":{"v":0,"d":"$0"}}]
[{"$nulls":8},{"$f":"SUM(G60*H60)","v":{"v":0,"d":"$0"}}]
[{"$nulls":8},{"$f":"SUM(G61*H61)","v":{"v":0,"d":"$0"}}]
["TOTAL COST",{"$nulls":7},{"$f":"SUM(I58:I61)","v":{"v":0,"d":"$0"}}]
["Scroll down to populate CONTRACTED SERVICES Estimate"]
["CONTRACTED SERVICES Estimate",{"$nulls":5},"Quantity","Unit Cost","Line Cost"]
[{"$nulls":8},{"$f":"SUM(G65*H65)","v":{"v":0,"d":"$0"}}]
[{"$nulls":8},{"$f":"SUM(G66*H66)","v":{"v":0,"d":"$0"}}]
[{"$nulls":8},{"$f":"SUM(G67*H67)","v":{"v":0,"d":"$0"}}]
[{"$nulls":8},{"$f":"SUM(G68*H68)","v":{"v":0,"d":"$0"}}]
["TOTAL COST",{"$nulls":7},{"$f":"SUM(I65:I68)","v":{"v":0,"d":"$0"}}]
["AGENCY TECHNICAL SERVICES Estimate",{"$nulls":5},"Quantity","Unit Cost","Line Cost"]
[{"$nulls":8},{"$f":"SUM(G71*H71)","v":{"v":0,"d":"$0"}}]
[{"$nulls":8},{"$f":"SUM(G72*H72)","v":{"v":0,"d":"$0"}}]
[{"$nulls":8},{"$f":"SUM(G73*H73)","v":{"v":0,"d":"$0"}}]
[{"$nulls":8},{"$f":"SUM(G74*H74)","v":{"v":0,"d":"$0"}}]
["TOTAL COST",{"$nulls":7},{"$f":"SUM(I71:I74)","v":{"v":0,"d":"$0"}}]
["MOTOR VEHICLE OPERATIONS/MAINTENANCE Estimate",{"$nulls":5},"Quantity","Unit Cost","Line Cost"]
[{"$nulls":8},{"$f":"SUM(G77*H77)","v":{"v":0,"d":"$0"}}]
[{"$nulls":8},{"$f":"SUM(G78*H78)","v":{"v":0,"d":"$0"}}]
[{"$nulls":8},{"$f":"SUM(G79*H79)","v":{"v":0,"d":"$0"}}]
[{"$nulls":8},{"$f":"SUM(G80*H80)","v":{"v":0,"d":"$0"}}]
["TOTAL COST",{"$nulls":7},{"$f":"SUM(I77:I80)","v":{"v":0,"d":"$0"}}]
["SAFETY HAZARD ANALYSIS"]
["ACTION/HAZARD DESCRIPTION",{"$nulls":4},"PROPOSED CONTROL/ABATEMENT"]
{"$rows_empty":10}
["ATTACHMENTS"]
["Required attachments include site/structure drawings (including basic project dimensions and important structural measurements) and, if major systems alteration/addition is included in the project, systems detail drawing(s).  Acceptable file types for attachments include those with extensions: \n.avi, .bmp, .csv, .doc, .docx, .dwf, .dwg, .gif, .htm, .html, .jpg, .jpeg, .mpg, .mpp, .mp4, .pdf, .png, .pub, .rtf, .tif, .tiff, .txt, .wmf, .wmv, .xls, .xlsx, .xps"]
["Instructions to insert an attachment in Excel:  (1) Click the cell in which you would like the attachment to show.  (2) On the \"Insert\" tab above (tools ribbon), select \"Object\" (in the \"Text\" grouping).  (3) In the \"Object\" dialogue box, select \"Create from file.\"  (4) Select \"Browse\" and find the file you want to insert from your desktop.  (5) Select \"Display as icon\" box in \"Object\" dialogue box. (6) Select \"OK.\"  An icon should represent the attachment.  Provide a succinct summary of the attachment in the \"Description\" column immediately to the right of each attachment.  "]
["Attachment",null,null,"Description"]
{"$rows_empty":10}
["STOP HERE.  DO NOT FILL IN ANY SECTIONS BELOW THIS POINT.  All FURTHER SECTIONS FOR NOJC USE ONLY."]
["DFAM ENTRY DATE",null,null,"DFAM REVIEWER"]
["CTST ENGINEERING REVIEW -- NOJC USE ONLY"]
["CONSISTENCY WITH THE CENTER’S LONG RANGE PLAN (LRP):"]
[1,"Is the proposed project located where future buildings, structures or extensions are proposed in the LRP?  "]
["1A","If NO to #1, is the proposed project in close proximity to future LRP structures such that the functioning of both may be adversely affected?"]
[2,"Has the Center submitted a campus Site Plan clearly showing the proposed location of the project?"]
[3,"Does the proposed project affect the space utilization allowances in the LRP?"]
["COMPLIANCE WITH APPLICABLE CODES"]
["Space/Use Re-configuration"]
[4,"Are the reconfigured spaces’ exit routes in compliance with fire egress requirements?"]
[5,"Are number of emergency egress points per current code requirements?"]
[6,"Are current fire alarm devices adequate per code to satisfy the new use of the space?  "]
["6A","If NO to #6, does the project allow for a fire alarm upgrade to comply with code?"]
[7,"Are the existing lighting levels consistent with code requirements for the new use(s)?"]
[8,"Can the new electrical and mechanical loads be accommodated within existing circuits in compliance with code?"]
[9,"Does the existing lighting and power outlet layout serve the new use adequately?  "]
["9A","If NO to #9, is the proposed revised layout in compliance with code?"]
[10,"Does the reconfigured space comply with ADA requirements where applicable?"]
[11,"Has the Center submitted drawings addressing the above issues clearly? (Architectural plan, electrical layouts, reflected ceiling plans, fire alarm system layouts, etc.)"]
["HVAC Equipment Upgrades"]
[12,"Is the proposed HVAC equipment an Energy Star high-efficiency model?"]
[13,"What type of refrigerant does the proposed equipment use?"]
[14,"Has the Center submitted manufacturer’s trade literature showing equipment specs, including SIR ratings and refrigerant type?"]
[15,"Has the Center submitted a mechanical drawing showing location of equipment and ductwork?"]
[16,"If students are to install the new equipment, has the Center made arrangements to have manufacturer-approved installer supervision so as to protect the warranty?"]
["Lighting/Power Upgrades"]
[17,"Does the project entail lighting fixture replacement, lamp/ballast replacement or both?"]
[18,"Does the project entail any re-wiring?"]
[19,"Does the project entail any additional electrical loads with respect to existing?"]
["19A","If YES to #19, does the project provide adequate documentation to demonstrate code compliance?"]
[20,"Has the Center submitted manufacturer’s trade literature showing fixture/lamp specs?"]
[21,"Has the Center submitted a proposed lighting layout drawing showing proposed new lighting fixture and power outlet layout?                                                                  "]
["STRUCTURAL INTEGRITY"]
[22,"Does the proposed project comprise a habitable structure?"]
[23,"If not habitable, does the structural stability of the project impinge on the life/safety of students and staff?"]
[24,"Has the project’s structure been designed and documented by a licensed engineer?"]
["24A","If YES to #24, has the Center presented engineer-stamped documents?"]
[25,"If not designed/stamped by a licensed engineer, does the project comply with prescriptive design parameters per IBC code? "]
["25A","If NO to #25, has the Center submitted clear and complete documentation demonstrating prescriptive design code compliance?"]
[26,"For roof structures based on truss designs, does the project propose off-the-shelf pre-engineered truss solutions?  "]
["If 'Yes' to #26, respond to #27-29; if 'No' skip to #30"]
[27,"Has the Center submitted pre-engineered truss drawings?"]
[28,"Has the Center submitted clear details of pre-engineered truss fastenings?"]
[29,"Are the roof loads adequately distributed to the footings?  "]
[30,"Has the Center provided adequate footings and foundation drawings?"]
["SUSTAINABILITY"]
["Does the proposed project include:"]
[31,"Environmentally-preferred products?"]
[32,"Bio-based products?"]
[33,"Recycled-content products?"]
[34,"Low-emitting materials?"]
[35,"High-efficiency water fixtures?"]
["DFAM Reviewer Notes"]
[]
["DFAM Approval Provision(s)"]
[]
["DFAM Decline Recommendation(s)"]
[]
["DFAM Reviewer Recommendation"]

{"sheet":"24.17","index":20,"n_rows":167,"n_cols":9,"rows_kept":167,"merged":[[0,3,0,4],[1,1,1,3],[1,4,1,6],[1,7,1,8],[7,1,7,2],[7,3,7,4],[7,7,7,8],[8,0,8,8],[9,0,9,7],[10,0,10,7],[11,0,11,7],[12,0,12,7],[13,0,13,7],[14,0,14,7],[15,0,15,7],[16,0,16,7],[17,0,17,8],[18,0,18,8],[19,0,19,8],[20,0,20,8],[21,0,21,8],[22,0,22,5],[23,0,23,5],[24,0,24,5],[25,0,25,5],[26,0,26,5],[27,0,27,5],[28,0,28,5],[29,0,29,5],[30,0,30,5],[31,0,31,5],[32,0,32,5],[33,0,33,5],[34,0,34,5],[35,0,35,5],[36,0,36,5],[37,0,37,5],[38,0,38,5],[39,0,39,5],[40,0,40,5],[41,0,41,5],[42,0,42,5],[43,0,43,5],[44,0,44,5],[45,0,45,5],[46,0,46,7],[47,0,47,5],[48,0,48,5],[49,0,49,5],[50,0,50,5],[51,0,51,5],[52,0,52,5],[53,0,53,5],[54,0,54,5],[55,0,55,7],[56,0,56,5],[57,0,57,5],[58,0,58,5],[59,0,59,5],[60,0,60,5],[61,0,61,7],[62,0,62,8],[63,0,63,5],[64,0,64,5],[65,0,65,5],[66,0,66,5],[67,0,67,5],[68,0,68,7],[69,0,69,5],[70,0,70,5],[71,0,71,5],[72,0,72,5],[73,0,73,5],[74,0,74,7],[75,0,75,5],[76,0,76,5],[77,0,77,5],[78,0,78,5],[79,0,79,5],[80,0,80,7],[81,0,81,7],[82,0,82,4],[82,5,82,7],[83,0,83,4],[83,5,83,7],[84,0,84,4],[84,5,84,7],[85,0,85,4],[85,5,85,7],[86,0,86,4],[86,5,86,7],[87,0,87,4],[87,5,87,7],[88,0,88,4],[88,5,88,7],[89,0,89,4],[89,5,89,7],[90,0,90,4],[90,5,90,7],[91,0,91,4],[91,5,91,7],[92,0,92,4],[92,5,92,7],[93,0,93,8],[94,0,94,8],[95,0,95,8],[96,0,96,2],[96,3,96,8],[97,0,97,2],[97,3,97,8],[98,0,98,2],[98,3,98,8],[99,0,99,2],[99,3,99,8],[100,0,100,2],[100,3,100,8],[101,0,101,2],[101,3,101,8],[102,0,102,2],[102,3,102,8],[103,0,103,2],[103,3,103,8],[104,0,104,2],[104,3,104,8],[105,0,105,2],[105,3,105,8],[106,0,106,2],[106,3,106,8],[107,0,107,8],[108,0,108,1],[108,3,108,5],[108,6,108,8],[109,0,109,8],[110,0,110,7],[111,1,111,7],[112,1,112,7],[113,1,113,7],[114,1,114,7],[115,0,115,7],[117,1,117,7],[118,1,118,7],[119,1,119,7],[120,1,120,7],[121,1,121,7],[122,1,122,7],[123,1,123,7],[124,1,124,7],[125,1,125,7],[126,1,126,7],[128,1,128,7],[129,1,129,7],[130,1,130,7],[131,1,131,7],[132,1,132,7],[134,1,134,7],[135,1,135,7],[136,1,136,7],[137,1,137,7],[138,1,138,7],[139,1,139,7],[140,0,140,7],[141,1,141,7],[143,1,143,7],[144,1,144,7],[145,1,145,7],[146,1,146,7],[147,1,147,7],[148,0,148,7],[149,1,149,7],[150,1,150,7],[151,1,151,7],[152,1,152,7],[153,0,153,7],[155,1,155,7],[156,1,156,7],[157,1,157,7],[158,1,158,7],[159,1,159,7],[160,0,160,8],[161,0,161,8],[162,0,162,8],[163,0,163,8],[164,0,164,8],[165,0,165,8],[166,0,166,7]]}
["REGION",{"$f":"IFERROR(VLOOKUP(D1,CENTER_REGION_MATCH,2,FALSE),\"\")","v":""},"CENTER",{"$f":"IF(ISBLANK('24.01'!D1),\"\",'24.01'!D1)","v":""},null,"START DATE",null,"PROJECT ID",24.17]
["PROJECT TITLE",{"$nulls":3},"ESTIMATED # DAYS TO COMPLETE",null,null,{"$f":"SUM(C4,C5,C6,C7,F4,F5,F6,F7,I4,I5,I6,I7)","v":0}]
["TRADE","# SLOTS","WORK DAYS","TRADE","# SLOTS","WORK DAYS","TRADE","# SLOTS","WORK DAYS"]
[]
[]
[]
[]
["Total CTST Slots",{"$f":"SUM(B4:B7,E4:E7,H4:H7)","v":0},null,"Estimated VALUE of Project",null,{"$f":"2*I17","v":{"v":0,"d":"$0.00"}},"Cost/Slot",{"$f":"IF(B8=0,0,SUM(I17/B8))","v":{"v":0,"d":"$0.00"}}]
[]
["CATEGORY",{"$nulls":7},"Subtotal"]
["MATERIALS AND SUPPLIES",{"$nulls":7},{"$f":"I47","v":{"v":0,"d":"$0"}}]
["JOB-SITE POWER TOOLS AND EQUIPMENT",{"$nulls":7},{"$f":"I56","v":{"v":0,"d":"$0"}}]
["EQUIPMENT RENTAL",{"$nulls":7},{"$f":"I62","v":{"v":0,"d":"$0"}}]
["CONTRACTED SERVICES",{"$nulls":7},{"$f":"I69","v":{"v":0,"d":"$0"}}]
["AGENCY TECHNICAL SERVICES",{"$nulls":7},{"$f":"I75","v":{"v":0,"d":"$0"}}]
["MOTOR VEHICLE OPERATIONS/MAINTENANCE",{"$nulls":7},{"$f":"I81","v":{"v":0,"d":"$0"}}]
["TOTAL",{"$nulls":7},{"$f":"SUM(I11:I16)","v":{"v":0,"d":"$0"}}]
["Project Description and Training Narrative.  Use ALT-ENTER to insert paragraph breaks.  Refer to \"Narrative Examples\" tab to the left for examples of acceptable project narratives. "]
["Supporting documents (drawings/blueprints/pictures) are recommended to be included in the \"Attachment\" section below if size limitations allow.  Files that cause this form to exceed the 15MB size limit are to be sent to the NOJC via CTTSubmissions@dol.gov.  If files have been sent seperately, indicate by checking this box: "]
[]
["Scroll down to populate MATERIALS AND SUPPLIES Estimate"]
["MATERIALS AND SUPPLIES Estimate"]
["MATERIAL OR SUPPLY Description (Qty./Unit)",{"$nulls":5},"# of Units","Unit Cost","Line Cost"]
[{"$nulls":8},{"$f":"SUM(G24*H24)","v":{"v":0,"d":"$0"}}]
[{"$nulls":8},{"$f":"SUM(G25*H25)","v":{"v":0,"d":"$0"}}]
[{"$nulls":8},{"v":0,"d":"$0"}]
[{"$nulls":8},{"v":0,"d":"$0"}]
[{"$nulls":8},{"v":0,"d":"$0"}]
[{"$nulls":8},{"v":0,"d":"$0"}]
[{"$nulls":8},{"v":0,"d":"$0"}]
[{"$nulls":8},{"v":0,"d":"$0"}]
[{"$nulls":8},{"v":0,"d":"$0"}]
[{"$nulls":8},{"v":0,"d":"$0"}]
[{"$nulls":8},{"v":0,"d":"$0"}]
[{"$nulls":8},{"v":0,"d":"$0"}]
[{"$nulls":8},{"v":0,"d":"$0"}]
[{"$nulls":8},{"v":0,"d":"$0"}]
[{"$nulls":8},{"v":0,"d":"$0"}]
[{"$nulls":8},{"v":0,"d":"$0"}]
[{"$nulls":8},{"v":0,"d":"$0"}]
[{"$nulls":8},{"v":0,"d":"$0"}]
[{"$nulls":8},{"v":0,"d":"$0"}]
[{"$nulls":8},{"v":0,"d":"$0"}]
[{"$nulls":8},{"v":0,"d":"$0"}]
[{"$nulls":8},{"v":0,"d":"$0"}]
[{"$nulls":8},{"v":0,"d":"$0"}]
["TOTAL COST",{"$nulls":7},{"$f":"SUM(I24:I46)","v":{"v":0,"d":"$0"}}]
["JOB-SITE POWER TOOLS AND EQUIPMENT Estimate",{"$nulls":5},"Quantity","Unit Cost ","Line Cost"]
[{"$nulls":8},{"$f":"SUM(G49*H49)","v":{"v":0,"d":"$0"}}]
[{"$nulls":8},{"$f":"SUM(G50*H50)","v":{"v":0,"d":"$0"}}]
[{"$nulls":8},{"v":0,"d":"$0"}]
[{"$nulls":8},{"v":0,"d":"$0"}]
[{"$nulls":8},{"v":0,"d":"$0"}]
[{"$nulls":8},{"v":0,"d":"$0"}]
[{"$nulls":8},{"v":0,"d":"$0"}]
["TOTAL COST",{"$nulls":7},{"$f":"SUM(I49:I55)","v":{"v":0,"d":"$0"}}]
["EQUIPMENT RENTAL Estimate",{"$nulls":5},"Quantity","Unit Cost ","Line Cost"]
[{"$nulls":8},{"$f":"SUM(G58*H58)","v":{"v":0,"d":"$0"}}]
[{"$nulls":8},{"$f":"SUM(G59*H59)","v":{"v":0,"d":"$0"}}]
[{"$nulls":8},{"$f":"SUM(G60*H60)","v":{"v":0,"d":"$0"}}]
[{"$nulls":8},{"$f":"SUM(G61*H61)","v":{"v":0,"d":"$0"}}]
["TOTAL COST",{"$nulls":7},{"$f":"SUM(I58:I61)","v":{"v":0,"d":"$0"}}]
["Scroll down to populate CONTRACTED SERVICES Estimate"]
["CONTRACTED SERVICES Estimate",{"$nulls":5},"Quantity","Unit Cost","Line Cost"]
[{"$nulls":8},{"$f":"SUM(G65*H65)","v":{"v":0,"d":"$0"}}]
[{"$nulls":8},{"$f":"SUM(G66*H66)","v":{"v":0,"d":"$0"}}]
[{"$nulls":8},{"$f":"SUM(G67*H67)","v":{"v":0,"d":"$0"}}]
[{"$nulls":8},{"$f":"SUM(G68*H68)","v":{"v":0,"d":"$0"}}]
["TOTAL COST",{"$nulls":7},{"$f":"SUM(I65:I68)","v":{"v":0,"d":"$0"}}]
["AGENCY TECHNICAL SERVICES Estimate",{"$nulls":5},"Quantity","Unit Cost","Line Cost"]
[{"$nulls":8},{"$f":"SUM(G71*H71)","v":{"v":0,"d":"$0"}}]
[{"$nulls":8},{"$f":"SUM(G72*H72)","v":{"v":0,"d":"$0"}}]
[{"$nulls":8},{"$f":"SUM(G73*H73)","v":{"v":0,"d":"$0"}}]
[{"$nulls":8},{"$f":"SUM(G74*H74)","v":{"v":0,"d":"$0"}}]
["TOTAL COST",{"$nulls":7},{"$f":"SUM(I71:I74)","v":{"v":0,"d":"$0"}}]
["MOTOR VEHICLE OPERATIONS/MAINTENANCE Estimate",{"$nulls":5},"Quantity","Unit Cost","Line Cost"]
[{"$nulls":8},{"$f":"SUM(G77*H77)","v":{"v":0,"d":"$0"}}]
[{"$nulls":8},{"$f":"SUM(G78*H78)","v":{"v":0,"d":"$0"}}]
[{"$nulls":8},{"$f":"SUM(G79*H79)","v":{"v":0,"d":"$0"}}]
[{"$nulls":8},{"$f":"SUM(G80*H80)","v":{"v":0,"d":"$0"}}]
["TOTAL COST",{"$nulls":7},{"$f":"SUM(I77:I80)","v":{"v":0,"d":"$0"}}]
["SAFETY HAZARD ANALYSIS"]
["ACTION/HAZARD DESCRIPTION",{"$nulls":4},"PROPOSED CONTROL/ABATEMENT"]
{"$rows_empty":10}
["ATTACHMENTS"]
["Required attachments include site/structure drawings (including basic project dimensions and important structural measurements) and, if major systems alteration/addition is included in the project, systems detail drawing(s).  Acceptable file types for attachments include those with extensions: \n.avi, .bmp, .csv, .doc, .docx, .dwf, .dwg, .gif, .htm, .html, .jpg, .jpeg, .mpg, .mpp, .mp4, .pdf, .png, .pub, .rtf, .tif, .tiff, .txt, .wmf, .wmv, .xls, .xlsx, .xps"]
["Instructions to insert an attachment in Excel:  (1) Click the cell in which you would like the attachment to show.  (2) On the \"Insert\" tab above (tools ribbon), select \"Object\" (in the \"Text\" grouping).  (3) In the \"Object\" dialogue box, select \"Create from file.\"  (4) Select \"Browse\" and find the file you want to insert from your desktop.  (5) Select \"Display as icon\" box in \"Object\" dialogue box. (6) Select \"OK.\"  An icon should represent the attachment.  Provide a succinct summary of the attachment in the \"Description\" column immediately to the right of each attachment.  "]
["Attachment",null,null,"Description"]
{"$rows_empty":10}
["STOP HERE.  DO NOT FILL IN ANY SECTIONS BELOW THIS POINT.  All FURTHER SECTIONS FOR NOJC USE ONLY."]
["DFAM ENTRY DATE",null,null,"DFAM REVIEWER"]
["CTST ENGINEERING REVIEW -- NOJC USE ONLY"]
["CONSISTENCY WITH THE CENTER’S LONG RANGE PLAN (LRP):"]
[1,"Is the proposed project located where future buildings, structures or extensions are proposed in the LRP?  "]
["1A","If NO to #1, is the proposed project in close proximity to future LRP structures such that the functioning of both may be adversely affected?"]
[2,"Has the Center submitted a campus Site Plan clearly showing the proposed location of the project?"]
[3,"Does the proposed project affect the space utilization allowances in the LRP?"]
["COMPLIANCE WITH APPLICABLE CODES"]
["Space/Use Re-configuration"]
[4,"Are the reconfigured spaces’ exit routes in compliance with fire egress requirements?"]
[5,"Are number of emergency egress points per current code requirements?"]
[6,"Are current fire alarm devices adequate per code to satisfy the new use of the space?  "]
["6A","If NO to #6, does the project allow for a fire alarm upgrade to comply with code?"]
[7,"Are the existing lighting levels consistent with code requirements for the new use(s)?"]
[8,"Can the new electrical and mechanical loads be accommodated within existing circuits in compliance with code?"]
[9,"Does the existing lighting and power outlet layout serve the new use adequately?  "]
["9A","If NO to #9, is the proposed revised layout in compliance with code?"]
[10,"Does the reconfigured space comply with ADA requirements where applicable?"]
[11,"Has the Center submitted drawings addressing the above issues clearly? (Architectural plan, electrical layouts, reflected ceiling plans, fire alarm system layouts, etc.)"]
["HVAC Equipment Upgrades"]
[12,"Is the proposed HVAC equipment an Energy Star high-efficiency model?"]
[13,"What type of refrigerant does the proposed equipment use?"]
[14,"Has the Center submitted manufacturer’s trade literature showing equipment specs, including SIR ratings and refrigerant type?"]
[15,"Has the Center submitted a mechanical drawing showing location of equipment and ductwork?"]
[16,"If students are to install the new equipment, has the Center made arrangements to have manufacturer-approved installer supervision so as to protect the warranty?"]
["Lighting/Power Upgrades"]
[17,"Does the project entail lighting fixture replacement, lamp/ballast replacement or both?"]
[18,"Does the project entail any re-wiring?"]
[19,"Does the project entail any additional electrical loads with respect to existing?"]
["19A","If YES to #19, does the project provide adequate documentation to demonstrate code compliance?"]
[20,"Has the Center submitted manufacturer’s trade literature showing fixture/lamp specs?"]
[21,"Has the Center submitted a proposed lighting layout drawing showing proposed new lighting fixture and power outlet layout?                                                                  "]
["STRUCTURAL INTEGRITY"]
[22,"Does the proposed project comprise a habitable structure?"]
[23,"If not habitable, does the structural stability of the project impinge on the life/safety of students and staff?"]
[24,"Has the project’s structure been designed and documented by a licensed engineer?"]
["24A","If YES to #24, has the Center presented engineer-stamped documents?"]
[25,"If not designed/stamped by a licensed engineer, does the project comply with prescriptive design parameters per IBC code? "]
["25A","If NO to #25, has the Center submitted clear and complete documentation demonstrating prescriptive design code compliance?"]
[26,"For roof structures based on truss designs, does the project propose off-the-shelf pre-engineered truss solutions?  "]
["If 'Yes' to #26, respond to #27-29; if 'No' skip to #30"]
[27,"Has the Center submitted pre-engineered truss drawings?"]
[28,"Has the Center submitted clear details of pre-engineered truss fastenings?"]
[29,"Are the roof loads adequately distributed to the footings?  "]
[30,"Has the Center provided adequate footings and foundation drawings?"]
["SUSTAINABILITY"]
["Does the proposed project include:"]
[31,"Environmentally-preferred products?"]
[32,"Bio-based products?"]
[33,"Recycled-content products?"]
[34,"Low-emitting materials?"]
[35,"High-efficiency water fixtures?"]
["DFAM Reviewer Notes"]
[]
["DFAM Approval Provision(s)"]
[]
["DFAM Decline Recommendation(s)"]
[]
["DFAM Reviewer Recommendation"]

{"sheet":"24.18","index":21,"n_rows":167,"n_cols":9,"rows_kept":167,"merged":[[0,3,0,4],[1,1,1,3],[1,4,1,6],[1,7,1,8],[7,1,7,2],[7,3,7,4],[7,7,7,8],[8,0,8,8],[9,0,9,7],[10,0,10,7],[11,0,11,7],[12,0,12,7],[13,0,13,7],[14,0,14,7],[15,0,15,7],[16,0,16,7],[17,0,17,8],[18,0,18,8],[19,0,19,8],[20,0,20,8],[21,0,21,8],[22,0,22,5],[23,0,23,5],[24,0,24,5],[25,0,25,5],[26,0,26,5],[27,0,27,5],[28,0,28,5],[29,0,29,5],[30,0,30,5],[31,0,31,5],[32,0,32,5],[33,0,33,5],[34,0,34,5],[35,0,35,5],[36,0,36,5],[37,0,37,5],[38,0,38,5],[39,0,39,5],[40,0,40,5],[41,0,41,5],[42,0,42,5],[43,0,43,5],[44,0,44,5],[45,0,45,5],[46,0,46,7],[47,0,47,5],[48,0,48,5],[49,0,49,5],[50,0,50,5],[51,0,51,5],[52,0,52,5],[53,0,53,5],[54,0,54,5],[55,0,55,7],[56,0,56,5],[57,0,57,5],[58,0,58,5],[59,0,59,5],[60,0,60,5],[61,0,61,7],[62,0,62,8],[63,0,63,5],[64,0,64,5],[65,0,65,5],[66,0,66,5],[67,0,67,5],[68,0,68,7],[69,0,69,5],[70,0,70,5],[71,0,71,5],[72,0,72,5],[73,0,73,5],[74,0,74,7],[75,0,75,5],[76,0,76,5],[77,0,77,5],[78,0,78,5],[79,0,79,5],[80,0,80,7],[81,0,81,7],[82,0,82,4],[82,5,82,7],[83,0,83,4],[83,5,83,7],[84,0,84,4],[84,5,84,7],[85,0,85,4],[85,5,85,7],[86,0,86,4],[86,5,86,7],[87,0,87,4],[87,5,87,7],[88,0,88,4],[88,5,88,7],[89,0,89,4],[89,5,89,7],[90,0,90,4],[90,5,90,7],[91,0,91,4],[91,5,91,7],[92,0,92,4],[92,5,92,7],[93,0,93,8],[94,0,94,8],[95,0,95,8],[96,0,96,2],[96,3,96,8],[97,0,97,2],[97,3,97,8],[98,0,98,2],[98,3,98,8],[99,0,99,2],[99,3,99,8],[100,0,100,2],[100,3,100,8],[101,0,101,2],[101,3,101,8],[102,0,102,2],[102,3,102,8],[103,0,103,2],[103,3,103,8],[104,0,104,2],[104,3,104,8],[105,0,105,2],[105,3,105,8],[106,0,106,2],[106,3,106,8],[107,0,107,8],[108,0,108,1],[108,3,108,5],[108,6,108,8],[109,0,109,8],[110,0,110,7],[111,1,111,7],[112,1,112,7],[113,1,113,7],[114,1,114,7],[115,0,115,7],[117,1,117,7],[118,1,118,7],[119,1,119,7],[120,1,120,7],[121,1,121,7],[122,1,122,7],[123,1,123,7],[124,1,124,7],[125,1,125,7],[126,1,126,7],[128,1,128,7],[129,1,129,7],[130,1,130,7],[131,1,131,7],[132,1,132,7],[134,1,134,7],[135,1,135,7],[136,1,136,7],[137,1,137,7],[138,1,138,7],[139,1,139,7],[140,0,140,7],[141,1,141,7],[143,1,143,7],[144,1,144,7],[145,1,145,7],[146,1,146,7],[147,1,147,7],[148,0,148,7],[149,1,149,7],[150,1,150,7],[151,1,151,7],[152,1,152,7],[153,0,153,7],[155,1,155,7],[156,1,156,7],[157,1,157,7],[158,1,158,7],[159,1,159,7],[160,0,160,8],[161,0,161,8],[162,0,162,8],[163,0,163,8],[164,0,164,8],[165,0,165,8],[166,0,166,7]]}
["REGION",{"$f":"IFERROR(VLOOKUP(D1,CENTER_REGION_MATCH,2,FALSE),\"\")","v":""},"CENTER",{"$f":"IF(ISBLANK('24.01'!D1),\"\",'24.01'!D1)","v":""},null,"START DATE",null,"PROJECT ID",24.18]
["PROJECT TITLE",{"$nulls":3},"ESTIMATED # DAYS TO COMPLETE",null,null,{"$f":"SUM(C4,C5,C6,C7,F4,F5,F6,F7,I4,I5,I6,I7)","v":0}]
["TRADE","# SLOTS","WORK DAYS","TRADE","# SLOTS","WORK DAYS","TRADE","# SLOTS","WORK DAYS"]
[]
[]
[]
[]
["Total CTST Slots",{"$f":"SUM(B4:B7,E4:E7,H4:H7)","v":0},null,"Estimated VALUE of Project",null,{"$f":"2*I17","v":{"v":0,"d":"$0.00"}},"Cost/Slot",{"$f":"IF(B8=0,0,SUM(I17/B8))","v":{"v":0,"d":"$0.00"}}]
[]
["CATEGORY",{"$nulls":7},"Subtotal"]
["MATERIALS AND SUPPLIES",{"$nulls":7},{"$f":"I47","v":{"v":0,"d":"$0"}}]
["JOB-SITE POWER TOOLS AND EQUIPMENT",{"$nulls":7},{"$f":"I56","v":{"v":0,"d":"$0"}}]
["EQUIPMENT RENTAL",{"$nulls":7},{"$f":"I62","v":{"v":0,"d":"$0"}}]
["CONTRACTED SERVICES",{"$nulls":7},{"$f":"I69","v":{"v":0,"d":"$0"}}]
["AGENCY TECHNICAL SERVICES",{"$nulls":7},{"$f":"I75","v":{"v":0,"d":"$0"}}]
["MOTOR VEHICLE OPERATIONS/MAINTENANCE",{"$nulls":7},{"$f":"I81","v":{"v":0,"d":"$0"}}]
["TOTAL",{"$nulls":7},{"$f":"SUM(I11:I16)","v":{"v":0,"d":"$0"}}]
["Project Description and Training Narrative.  Use ALT-ENTER to insert paragraph breaks.  Refer to \"Narrative Examples\" tab to the left for examples of acceptable project narratives. "]
["Supporting documents (drawings/blueprints/pictures) are recommended to be included in the \"Attachment\" section below if size limitations allow.  Files that cause this form to exceed the 15MB size limit are to be sent to the NOJC via CTTSubmissions@dol.gov.  If files have been sent seperately, indicate by checking this box: "]
[]
["Scroll down to populate MATERIALS AND SUPPLIES Estimate"]
["MATERIALS AND SUPPLIES Estimate"]
["MATERIAL OR SUPPLY Description (Qty./Unit)",{"$nulls":5},"# of Units","Unit Cost","Line Cost"]
[{"$nulls":8},{"$f":"SUM(G24*H24)","v":{"v":0,"d":"$0"}}]
[{"$nulls":8},{"$f":"SUM(G25*H25)","v":{"v":0,"d":"$0"}}]
[{"$nulls":8},{"v":0,"d":"$0"}]
[{"$nulls":8},{"v":0,"d":"$0"}]
[{"$nulls":8},{"v":0,"d":"$0"}]
[{"$nulls":8},{"v":0,"d":"$0"}]
[{"$nulls":8},{"v":0,"d":"$0"}]
[{"$nulls":8},{"v":0,"d":"$0"}]
[{"$nulls":8},{"v":0,"d":"$0"}]
[{"$nulls":8},{"v":0,"d":"$0"}]
[{"$nulls":8},{"v":0,"d":"$0"}]
[{"$nulls":8},{"v":0,"d":"$0"}]
[{"$nulls":8},{"v":0,"d":"$0"}]
[{"$nulls":8},{"v":0,"d":"$0"}]
[{"$nulls":8},{"v":0,"d":"$0"}]
[{"$nulls":8},{"v":0,"d":"$0"}]
[{"$nulls":8},{"v":0,"d":"$0"}]
[{"$nulls":8},{"v":0,"d":"$0"}]
[{"$nulls":8},{"v":0,"d":"$0"}]
[{"$nulls":8},{"v":0,"d":"$0"}]
[{"$nulls":8},{"v":0,"d":"$0"}]
[{"$nulls":8},{"v":0,"d":"$0"}]
[{"$nulls":8},{"v":0,"d":"$0"}]
["TOTAL COST",{"$nulls":7},{"$f":"SUM(I24:I46)","v":{"v":0,"d":"$0"}}]
["JOB-SITE POWER TOOLS AND EQUIPMENT Estimate",{"$nulls":5},"Quantity","Unit Cost ","Line Cost"]
[{"$nulls":8},{"$f":"SUM(G49*H49)","v":{"v":0,"d":"$0"}}]
[{"$nulls":8},{"$f":"SUM(G50*H50)","v":{"v":0,"d":"$0"}}]
[{"$nulls":8},{"v":0,"d":"$0"}]
[{"$nulls":8},{"v":0,"d":"$0"}]
[{"$nulls":8},{"v":0,"d":"$0"}]
[{"$nulls":8},{"v":0,"d":"$0"}]
[{"$nulls":8},{"v":0,"d":"$0"}]
["TOTAL COST",{"$nulls":7},{"$f":"SUM(I49:I55)","v":{"v":0,"d":"$0"}}]
["EQUIPMENT RENTAL Estimate",{"$nulls":5},"Quantity","Unit Cost ","Line Cost"]
[{"$nulls":8},{"$f":"SUM(G58*H58)","v":{"v":0,"d":"$0"}}]
[{"$nulls":8},{"$f":"SUM(G59*H59)","v":{"v":0,"d":"$0"}}]
[{"$nulls":8},{"$f":"SUM(G60*H60)","v":{"v":0,"d":"$0"}}]
[{"$nulls":8},{"$f":"SUM(G61*H61)","v":{"v":0,"d":"$0"}}]
["TOTAL COST",{"$nulls":7},{"$f":"SUM(I58:I61)","v":{"v":0,"d":"$0"}}]
["Scroll down to populate CONTRACTED SERVICES Estimate"]
["CONTRACTED SERVICES Estimate",{"$nulls":5},"Quantity","Unit Cost","Line Cost"]
[{"$nulls":8},{"$f":"SUM(G65*H65)","v":{"v":0,"d":"$0"}}]
[{"$nulls":8},{"$f":"SUM(G66*H66)","v":{"v":0,"d":"$0"}}]
[{"$nulls":8},{"$f":"SUM(G67*H67)","v":{"v":0,"d":"$0"}}]
[{"$nulls":8},{"$f":"SUM(G68*H68)","v":{"v":0,"d":"$0"}}]
["TOTAL COST",{"$nulls":7},{"$f":"SUM(I65:I68)","v":{"v":0,"d":"$0"}}]
["AGENCY TECHNICAL SERVICES Estimate",{"$nulls":5},"Quantity","Unit Cost","Line Cost"]
[{"$nulls":8},{"$f":"SUM(G71*H71)","v":{"v":0,"d":"$0"}}]
[{"$nulls":8},{"$f":"SUM(G72*H72)","v":{"v":0,"d":"$0"}}]
[{"$nulls":8},{"$f":"SUM(G73*H73)","v":{"v":0,"d":"$0"}}]
[{"$nulls":8},{"$f":"SUM(G74*H74)","v":{"v":0,"d":"$0"}}]
["TOTAL COST",{"$nulls":7},{"$f":"SUM(I71:I74)","v":{"v":0,"d":"$0"}}]
["MOTOR VEHICLE OPERATIONS/MAINTENANCE Estimate",{"$nulls":5},"Quantity","Unit Cost","Line Cost"]
[{"$nulls":8},{"$f":"SUM(G77*H77)","v":{"v":0,"d":"$0"}}]
[{"$nulls":8},{"$f":"SUM(G78*H78)","v":{"v":0,"d":"$0"}}]
[{"$nulls":8},{"$f":"SUM(G79*H79)","v":{"v":0,"d":"$0"}}]
[{"$nulls":8},{"$f":"SUM(G80*H80)","v":{"v":0,"d":"$0"}}]
["TOTAL COST",{"$nulls":7},{"$f":"SUM(I77:I80)","v":{"v":0,"d":"$0"}}]
["SAFETY HAZARD ANALYSIS"]
["ACTION/HAZARD DESCRIPTION",{"$nulls":4},"PROPOSED CONTROL/ABATEMENT"]
{"$rows_empty":10}
["ATTACHMENTS"]
["Required attachments include site/structure drawings (including basic project dimensions and important structural measurements) and, if major systems alteration/addition is included in the project, systems detail drawing(s).  Acceptable file types for attachments include those with extensions: \n.avi, .bmp, .csv, .doc, .docx, .dwf, .dwg, .gif, .htm, .html, .jpg, .jpeg, .mpg, .mpp, .mp4, .pdf, .png, .pub, .rtf, .tif, .tiff, .txt, .wmf, .wmv, .xls, .xlsx, .xps"]
["Instructions to insert an attachment in Excel:  (1) Click the cell in which you would like the attachment to show.  (2) On the \"Insert\" tab above (tools ribbon), select \"Object\" (in the \"Text\" grouping).  (3) In the \"Object\" dialogue box, select \"Create from file.\"  (4) Select \"Browse\" and find the file you want to insert from your desktop.  (5) Select \"Display as icon\" box in \"Object\" dialogue box. (6) Select \"OK.\"  An icon should represent the attachment.  Provide a succinct summary of the attachment in the \"Description\" column immediately to the right of each attachment.  "]
["Attachment",null,null,"Description"]
{"$rows_empty":10}
["STOP HERE.  DO NOT FILL IN ANY SECTIONS BELOW THIS POINT.  All FURTHER SECTIONS FOR NOJC USE ONLY."]
["DFAM ENTRY DATE",null,null,"DFAM REVIEWER"]
["CTST ENGINEERING REVIEW -- NOJC USE ONLY"]
["CONSISTENCY WITH THE CENTER’S LONG RANGE PLAN (LRP):"]
[1,"Is the proposed project located where future buildings, structures or extensions are proposed in the LRP?  "]
["1A","If NO to #1, is the proposed project in close proximity to future LRP structures such that the functioning of both may be adversely affected?"]
[2,"Has the Center submitted a campus Site Plan clearly showing the proposed location of the project?"]
[3,"Does the proposed project affect the space utilization allowances in the LRP?"]
["COMPLIANCE WITH APPLICABLE CODES"]
["Space/Use Re-configuration"]
[4,"Are the reconfigured spaces’ exit routes in compliance with fire egress requirements?"]
[5,"Are number of emergency egress points per current code requirements?"]
[6,"Are current fire alarm devices adequate per code to satisfy the new use of the space?  "]
["6A","If NO to #6, does the project allow for a fire alarm upgrade to comply with code?"]
[7,"Are the existing lighting levels consistent with code requirements for the new use(s)?"]
[8,"Can the new electrical and mechanical loads be accommodated within existing circuits in compliance with code?"]
[9,"Does the existing lighting and power outlet layout serve the new use adequately?  "]
["9A","If NO to #9, is the proposed revised layout in compliance with code?"]
[10,"Does the reconfigured space comply with ADA requirements where applicable?"]
[11,"Has the Center submitted drawings addressing the above issues clearly? (Architectural plan, electrical layouts, reflected ceiling plans, fire alarm system layouts, etc.)"]
["HVAC Equipment Upgrades"]
[12,"Is the proposed HVAC equipment an Energy Star high-efficiency model?"]
[13,"What type of refrigerant does the proposed equipment use?"]
[14,"Has the Center submitted manufacturer’s trade literature showing equipment specs, including SIR ratings and refrigerant type?"]
[15,"Has the Center submitted a mechanical drawing showing location of equipment and ductwork?"]
[16,"If students are to install the new equipment, has the Center made arrangements to have manufacturer-approved installer supervision so as to protect the warranty?"]
["Lighting/Power Upgrades"]
[17,"Does the project entail lighting fixture replacement, lamp/ballast replacement or both?"]
[18,"Does the project entail any re-wiring?"]
[19,"Does the project entail any additional electrical loads with respect to existing?"]
["19A","If YES to #19, does the project provide adequate documentation to demonstrate code compliance?"]
[20,"Has the Center submitted manufacturer’s trade literature showing fixture/lamp specs?"]
[21,"Has the Center submitted a proposed lighting layout drawing showing proposed new lighting fixture and power outlet layout?                                                                  "]
["STRUCTURAL INTEGRITY"]
[22,"Does the proposed project comprise a habitable structure?"]
[23,"If not habitable, does the structural stability of the project impinge on the life/safety of students and staff?"]
[24,"Has the project’s structure been designed and documented by a licensed engineer?"]
["24A","If YES to #24, has the Center presented engineer-stamped documents?"]
[25,"If not designed/stamped by a licensed engineer, does the project comply with prescriptive design parameters per IBC code? "]
["25A","If NO to #25, has the Center submitted clear and complete documentation demonstrating prescriptive design code compliance?"]
[26,"For roof structures based on truss designs, does the project propose off-the-shelf pre-engineered truss solutions?  "]
["If 'Yes' to #26, respond to #27-29; if 'No' skip to #30"]
[27,"Has the Center submitted pre-engineered truss drawings?"]
[28,"Has the Center submitted clear details of pre-engineered truss fastenings?"]
[29,"Are the roof loads adequately distributed to the footings?  "]
[30,"Has the Center provided adequate footings and foundation drawings?"]
["SUSTAINABILITY"]
["Does the proposed project include:"]
[31,"Environmentally-preferred products?"]
[32,"Bio-based products?"]
[33,"Recycled-content products?"]
[34,"Low-emitting materials?"]
[35,"High-efficiency water fixtures?"]
["DFAM Reviewer Notes"]
[]
["DFAM Approval Provision(s)"]
[]
["DFAM Decline Recommendation(s)"]
[]
["DFAM Reviewer Recommendation"]

{"sheet":"24.19","index":22,"n_rows":167,"n_cols":9,"rows_kept":167,"merged":[[0,3,0,4],[1,1,1,3],[1,4,1,6],[1,7,1,8],[7,1,7,2],[7,3,7,4],[7,7,7,8],[8,0,8,8],[9,0,9,7],[10,0,10,7],[11,0,11,7],[12,0,12,7],[13,0,13,7],[14,0,14,7],[15,0,15,7],[16,0,16,7],[17,0,17,8],[18,0,18,8],[19,0,19,8],[20,0,20,8],[21,0,21,8],[22,0,22,5],[23,0,23,5],[24,0,24,5],[25,0,25,5],[26,0,26,5],[27,0,27,5],[28,0,28,5],[29,0,29,5],[30,0,30,5],[31,0,31,5],[32,0,32,5],[33,0,33,5],[34,0,34,5],[35,0,35,5],[36,0,36,5],[37,0,37,5],[38,0,38,5],[39,0,39,5],[40,0,40,5],[41,0,41,5],[42,0,42,5],[43,0,43,5],[44,0,44,5],[45,0,45,5],[46,0,46,7],[47,0,47,5],[48,0,48,5],[49,0,49,5],[50,0,50,5],[51,0,51,5],[52,0,52,5],[53,0,53,5],[54,0,54,5],[55,0,55,7],[56,0,56,5],[57,0,57,5],[58,0,58,5],[59,0,59,5],[60,0,60,5],[61,0,61,7],[62,0,62,8],[63,0,63,5],[64,0,64,5],[65,0,65,5],[66,0,66,5],[67,0,67,5],[68,0,68,7],[69,0,69,5],[70,0,70,5],[71,0,71,5],[72,0,72,5],[73,0,73,5],[74,0,74,7],[75,0,75,5],[76,0,76,5],[77,0,77,5],[78,0,78,5],[79,0,79,5],[80,0,80,7],[81,0,81,7],[82,0,82,4],[82,5,82,7],[83,0,83,4],[83,5,83,7],[84,0,84,4],[84,5,84,7],[85,0,85,4],[85,5,85,7],[86,0,86,4],[86,5,86,7],[87,0,87,4],[87,5,87,7],[88,0,88,4],[88,5,88,7],[89,0,89,4],[89,5,89,7],[90,0,90,4],[90,5,90,7],[91,0,91,4],[91,5,91,7],[92,0,92,4],[92,5,92,7],[93,0,93,8],[94,0,94,8],[95,0,95,8],[96,0,96,2],[96,3,96,8],[97,0,97,2],[97,3,97,8],[98,0,98,2],[98,3,98,8],[99,0,99,2],[99,3,99,8],[100,0,100,2],[100,3,100,8],[101,0,101,2],[101,3,101,8],[102,0,102,2],[102,3,102,8],[103,0,103,2],[103,3,103,8],[104,0,104,2],[104,3,104,8],[105,0,105,2],[105,3,105,8],[106,0,106,2],[106,3,106,8],[107,0,107,8],[108,0,108,1],[108,3,108,5],[108,6,108,8],[109,0,109,8],[110,0,110,7],[111,1,111,7],[112,1,112,7],[113,1,113,7],[114,1,114,7],[115,0,115,7],[117,1,117,7],[118,1,118,7],[119,1,119,7],[120,1,120,7],[121,1,121,7],[122,1,122,7],[123,1,123,7],[124,1,124,7],[125,1,125,7],[126,1,126,7],[128,1,128,7],[129,1,129,7],[130,1,130,7],[131,1,131,7],[132,1,132,7],[134,1,134,7],[135,1,135,7],[136,1,136,7],[137,1,137,7],[138,1,138,7],[139,1,139,7],[140,0,140,7],[141,1,141,7],[143,1,143,7],[144,1,144,7],[145,1,145,7],[146,1,146,7],[147,1,147,7],[148,0,148,7],[149,1,149,7],[150,1,150,7],[151,1,151,7],[152,1,152,7],[153,0,153,7],[155,1,155,7],[156,1,156,7],[157,1,157,7],[158,1,158,7],[159,1,159,7],[160,0,160,8],[161,0,161,8],[162,0,162,8],[163,0,163,8],[164,0,164,8],[165,0,165,8],[166,0,166,7]]}
["REGION",{"$f":"IFERROR(VLOOKUP(D1,CENTER_REGION_MATCH,2,FALSE),\"\")","v":""},"CENTER",{"$f":"IF(ISBLANK('24.01'!D1),\"\",'24.01'!D1)","v":""},null,"START DATE",null,"PROJECT ID",24.19]
["PROJECT TITLE",{"$nulls":3},"ESTIMATED # DAYS TO COMPLETE",null,null,{"$f":"SUM(C4,C5,C6,C7,F4,F5,F6,F7,I4,I5,I6,I7)","v":0}]
["TRADE","# SLOTS","WORK DAYS","TRADE","# SLOTS","WORK DAYS","TRADE","# SLOTS","WORK DAYS"]
[]
[]
[]
[]
["Total CTST Slots",{"$f":"SUM(B4:B7,E4:E7,H4:H7)","v":0},null,"Estimated VALUE of Project",null,{"$f":"2*I17","v":{"v":0,"d":"$0.00"}},"Cost/Slot",{"$f":"IF(B8=0,0,SUM(I17/B8))","v":{"v":0,"d":"$0.00"}}]
[]
["CATEGORY",{"$nulls":7},"Subtotal"]
["MATERIALS AND SUPPLIES",{"$nulls":7},{"$f":"I47","v":{"v":0,"d":"$0"}}]
["JOB-SITE POWER TOOLS AND EQUIPMENT",{"$nulls":7},{"$f":"I56","v":{"v":0,"d":"$0"}}]
["EQUIPMENT RENTAL",{"$nulls":7},{"$f":"I62","v":{"v":0,"d":"$0"}}]
["CONTRACTED SERVICES",{"$nulls":7},{"$f":"I69","v":{"v":0,"d":"$0"}}]
["AGENCY TECHNICAL SERVICES",{"$nulls":7},{"$f":"I75","v":{"v":0,"d":"$0"}}]
["MOTOR VEHICLE OPERATIONS/MAINTENANCE",{"$nulls":7},{"$f":"I81","v":{"v":0,"d":"$0"}}]
["TOTAL",{"$nulls":7},{"$f":"SUM(I11:I16)","v":{"v":0,"d":"$0"}}]
["Project Description and Training Narrative.  Use ALT-ENTER to insert paragraph breaks.  Refer to \"Narrative Examples\" tab to the left for examples of acceptable project narratives. "]
["Supporting documents (drawings/blueprints/pictures) are recommended to be included in the \"Attachment\" section below if size limitations allow.  Files that cause this form to exceed the 15MB size limit are to be sent to the NOJC via CTTSubmissions@dol.gov.  If files have been sent seperately, indicate by checking this box: "]
[]
["Scroll down to populate MATERIALS AND SUPPLIES Estimate"]
["MATERIALS AND SUPPLIES Estimate"]
["MATERIAL OR SUPPLY Description (Qty./Unit)",{"$nulls":5},"# of Units","Unit Cost","Line Cost"]
[{"$nulls":8},{"$f":"SUM(G24*H24)","v":{"v":0,"d":"$0"}}]
[{"$nulls":8},{"$f":"SUM(G25*H25)","v":{"v":0,"d":"$0"}}]
[{"$nulls":8},{"v":0,"d":"$0"}]
[{"$nulls":8},{"v":0,"d":"$0"}]
[{"$nulls":8},{"v":0,"d":"$0"}]
[{"$nulls":8},{"v":0,"d":"$0"}]
[{"$nulls":8},{"v":0,"d":"$0"}]
[{"$nulls":8},{"v":0,"d":"$0"}]
[{"$nulls":8},{"v":0,"d":"$0"}]
[{"$nulls":8},{"v":0,"d":"$0"}]
[{"$nulls":8},{"v":0,"d":"$0"}]
[{"$nulls":8},{"v":0,"d":"$0"}]
[{"$nulls":8},{"v":0,"d":"$0"}]
[{"$nulls":8},{"v":0,"d":"$0"}]
[{"$nulls":8},{"v":0,"d":"$0"}]
[{"$nulls":8},{"v":0,"d":"$0"}]
[{"$nulls":8},{"v":0,"d":"$0"}]
[{"$nulls":8},{"v":0,"d":"$0"}]
[{"$nulls":8},{"v":0,"d":"$0"}]
[{"$nulls":8},{"v":0,"d":"$0"}]
[{"$nulls":8},{"v":0,"d":"$0"}]
[{"$nulls":8},{"v":0,"d":"$0"}]
[{"$nulls":8},{"v":0,"d":"$0"}]
["TOTAL COST",{"$nulls":7},{"$f":"SUM(I24:I46)","v":{"v":0,"d":"$0"}}]
["JOB-SITE POWER TOOLS AND EQUIPMENT Estimate",{"$nulls":5},"Quantity","Unit Cost ","Line Cost"]
[{"$nulls":8},{"$f":"SUM(G49*H49)","v":{"v":0,"d":"$0"}}]
[{"$nulls":8},{"$f":"SUM(G50*H50)","v":{"v":0,"d":"$0"}}]
[{"$nulls":8},{"v":0,"d":"$0"}]
[{"$nulls":8},{"v":0,"d":"$0"}]
[{"$nulls":8},{"v":0,"d":"$0"}]
[{"$nulls":8},{"v":0,"d":"$0"}]
[{"$nulls":8},{"v":0,"d":"$0"}]
["TOTAL COST",{"$nulls":7},{"$f":"SUM(I49:I55)","v":{"v":0,"d":"$0"}}]
["EQUIPMENT RENTAL Estimate",{"$nulls":5},"Quantity","Unit Cost ","Line Cost"]
[{"$nulls":8},{"$f":"SUM(G58*H58)","v":{"v":0,"d":"$0"}}]
[{"$nulls":8},{"$f":"SUM(G59*H59)","v":{"v":0,"d":"$0"}}]
[{"$nulls":8},{"$f":"SUM(G60*H60)","v":{"v":0,"d":"$0"}}]
[{"$nulls":8},{"$f":"SUM(G61*H61)","v":{"v":0,"d":"$0"}}]
["TOTAL COST",{"$nulls":7},{"$f":"SUM(I58:I61)","v":{"v":0,"d":"$0"}}]
["Scroll down to populate CONTRACTED SERVICES Estimate"]
["CONTRACTED SERVICES Estimate",{"$nulls":5},"Quantity","Unit Cost","Line Cost"]
[{"$nulls":8},{"$f":"SUM(G65*H65)","v":{"v":0,"d":"$0"}}]
[{"$nulls":8},{"$f":"SUM(G66*H66)","v":{"v":0,"d":"$0"}}]
[{"$nulls":8},{"$f":"SUM(G67*H67)","v":{"v":0,"d":"$0"}}]
[{"$nulls":8},{"$f":"SUM(G68*H68)","v":{"v":0,"d":"$0"}}]
["TOTAL COST",{"$nulls":7},{"$f":"SUM(I65:I68)","v":{"v":0,"d":"$0"}}]
["AGENCY TECHNICAL SERVICES Estimate",{"$nulls":5},"Quantity","Unit Cost","Line Cost"]
[{"$nulls":8},{"$f":"SUM(G71*H71)","v":{"v":0,"d":"$0"}}]
[{"$nulls":8},{"$f":"SUM(G72*H72)","v":{"v":0,"d":"$0"}}]
[{"$nulls":8},{"$f":"SUM(G73*H73)","v":{"v":0,"d":"$0"}}]
[{"$nulls":8},{"$f":"SUM(G74*H74)","v":{"v":0,"d":"$0"}}]
["TOTAL COST",{"$nulls":7},{"$f":"SUM(I71:I74)","v":{"v":0,"d":"$0"}}]
["MOTOR VEHICLE OPERATIONS/MAINTENANCE Estimate",{"$nulls":5},"Quantity","Unit Cost","Line Cost"]
[{"$nulls":8},{"$f":"SUM(G77*H77)","v":{"v":0,"d":"$0"}}]
[{"$nulls":8},{"$f":"SUM(G78*H78)","v":{"v":0,"d":"$0"}}]
[{"$nulls":8},{"$f":"SUM(G79*H79)","v":{"v":0,"d":"$0"}}]
[{"$nulls":8},{"$f":"SUM(G80*H80)","v":{"v":0,"d":"$0"}}]
["TOTAL COST",{"$nulls":7},{"$f":"SUM(I77:I80)","v":{"v":0,"d":"$0"}}]
["SAFETY HAZARD ANALYSIS"]
["ACTION/HAZARD DESCRIPTION",{"$nulls":4},"PROPOSED CONTROL/ABATEMENT"]
{"$rows_empty":10}
["ATTACHMENTS"]
["Required attachments include site/structure drawings (including basic project dimensions and important structural measurements) and, if major systems alteration/addition is included in the project, systems detail drawing(s).  Acceptable file types for attachments include those with extensions: \n.avi, .bmp, .csv, .doc, .docx, .dwf, .dwg, .gif, .htm, .html, .jpg, .jpeg, .mpg, .mpp, .mp4, .pdf, .png, .pub, .rtf, .tif, .tiff, .txt, .wmf, .wmv, .xls, .xlsx, .xps"]
["Instructions to insert an attachment in Excel:  (1) Click the cell in which you would like the attachment to show.  (2) On the \"Insert\" tab above (tools ribbon), select \"Object\" (in the \"Text\" grouping).  (3) In the \"Object\" dialogue box, select \"Create from file.\"  (4) Select \"Browse\" and find the file you want to insert from your desktop.  (5) Select \"Display as icon\" box in \"Object\" dialogue box. (6) Select \"OK.\"  An icon should represent the attachment.  Provide a succinct summary of the attachment in the \"Description\" column immediately to the right of each attachment.  "]
["Attachment",null,null,"Description"]
{"$rows_empty":10}
["STOP HERE.  DO NOT FILL IN ANY SECTIONS BELOW THIS POINT.  All FURTHER SECTIONS FOR NOJC USE ONLY."]
["DFAM ENTRY DATE",null,null,"DFAM REVIEWER"]
["CTST ENGINEERING REVIEW -- NOJC USE ONLY"]
["CONSISTENCY WITH THE CENTER’S LONG RANGE PLAN (LRP):"]
[1,"Is the proposed project located where future buildings, structures or extensions are proposed in the LRP?  "]
["1A","If NO to #1, is the proposed project in close proximity to future LRP structures such that the functioning of both may be adversely affected?"]
[2,"Has the Center submitted a campus Site Plan clearly showing the proposed location of the project?"]
[3,"Does the proposed project affect the space utilization allowances in the LRP?"]
["COMPLIANCE WITH APPLICABLE CODES"]
["Space/Use Re-configuration"]
[4,"Are the reconfigured spaces’ exit routes in compliance with fire egress requirements?"]
[5,"Are number of emergency egress points per current code requirements?"]
[6,"Are current fire alarm devices adequate per code to satisfy the new use of the space?  "]
["6A","If NO to #6, does the project allow for a fire alarm upgrade to comply with code?"]
[7,"Are the existing lighting levels consistent with code requirements for the new use(s)?"]
[8,"Can the new electrical and mechanical loads be accommodated within existing circuits in compliance with code?"]
[9,"Does the existing lighting and power outlet layout serve the new use adequately?  "]
["9A","If NO to #9, is the proposed revised layout in compliance with code?"]
[10,"Does the reconfigured space comply with ADA requirements where applicable?"]
[11,"Has the Center submitted drawings addressing the above issues clearly? (Architectural plan, electrical layouts, reflected ceiling plans, fire alarm system layouts, etc.)"]
["HVAC Equipment Upgrades"]
[12,"Is the proposed HVAC equipment an Energy Star high-efficiency model?"]
[13,"What type of refrigerant does the proposed equipment use?"]
[14,"Has the Center submitted manufacturer’s trade literature showing equipment specs, including SIR ratings and refrigerant type?"]
[15,"Has the Center submitted a mechanical drawing showing location of equipment and ductwork?"]
[16,"If students are to install the new equipment, has the Center made arrangements to have manufacturer-approved installer supervision so as to protect the warranty?"]
["Lighting/Power Upgrades"]
[17,"Does the project entail lighting fixture replacement, lamp/ballast replacement or both?"]
[18,"Does the project entail any re-wiring?"]
[19,"Does the project entail any additional electrical loads with respect to existing?"]
["19A","If YES to #19, does the project provide adequate documentation to demonstrate code compliance?"]
[20,"Has the Center submitted manufacturer’s trade literature showing fixture/lamp specs?"]
[21,"Has the Center submitted a proposed lighting layout drawing showing proposed new lighting fixture and power outlet layout?                                                                  "]
["STRUCTURAL INTEGRITY"]
[22,"Does the proposed project comprise a habitable structure?"]
[23,"If not habitable, does the structural stability of the project impinge on the life/safety of students and staff?"]
[24,"Has the project’s structure been designed and documented by a licensed engineer?"]
["24A","If YES to #24, has the Center presented engineer-stamped documents?"]
[25,"If not designed/stamped by a licensed engineer, does the project comply with prescriptive design parameters per IBC code? "]
["25A","If NO to #25, has the Center submitted clear and complete documentation demonstrating prescriptive design code compliance?"]
[26,"For roof structures based on truss designs, does the project propose off-the-shelf pre-engineered truss solutions?  "]
["If 'Yes' to #26, respond to #27-29; if 'No' skip to #30"]
[27,"Has the Center submitted pre-engineered truss drawings?"]
[28,"Has the Center submitted clear details of pre-engineered truss fastenings?"]
[29,"Are the roof loads adequately distributed to the footings?  "]
[30,"Has the Center provided adequate footings and foundation drawings?"]
["SUSTAINABILITY"]
["Does the proposed project include:"]
[31,"Environmentally-preferred products?"]
[32,"Bio-based products?"]
[33,"Recycled-content products?"]
[34,"Low-emitting materials?"]
[35,"High-efficiency water fixtures?"]
["DFAM Reviewer Notes"]
[]
["DFAM Approval Provision(s)"]
[]
["DFAM Decline Recommendation(s)"]
[]
["DFAM Reviewer Recommendation"]

{"sheet":"24.20","index":23,"n_rows":167,"n_cols":9,"rows_kept":167,"merged":[[0,3,0,4],[1,1,1,3],[1,4,1,6],[1,7,1,8],[7,1,7,2],[7,3,7,4],[7,7,7,8],[8,0,8,8],[9,0,9,7],[10,0,10,7],[11,0,11,7],[12,0,12,7],[13,0,13,7],[14,0,14,7],[15,0,15,7],[16,0,16,7],[17,0,17,8],[18,0,18,8],[19,0,19,8],[20,0,20,8],[21,0,21,8],[22,0,22,5],[23,0,23,5],[24,0,24,5],[25,0,25,5],[26,0,26,5],[27,0,27,5],[28,0,28,5],[29,0,29,5],[30,0,30,5],[31,0,31,5],[32,0,32,5],[33,0,33,5],[34,0,34,5],[35,0,35,5],[36,0,36,5],[37,0,37,5],[38,0,38,5],[39,0,39,5],[40,0,40,5],[41,0,41,5],[42,0,42,5],[43,0,43,5],[44,0,44,5],[45,0,45,5],[46,0,46,7],[47,0,47,5],[48,0,48,5],[49,0,49,5],[50,0,50,5],[51,0,51,5],[52,0,52,5],[53,0,53,5],[54,0,54,5],[55,0,55,7],[56,0,56,5],[57,0,57,5],[58,0,58,5],[59,0,59,5],[60,0,60,5],[61,0,61,7],[62,0,62,8],[63,0,63,5],[64,0,64,5],[65,0,65,5],[66,0,66,5],[67,0,67,5],[68,0,68,7],[69,0,69,5],[70,0,70,5],[71,0,71,5],[72,0,72,5],[73,0,73,5],[74,0,74,7],[75,0,75,5],[76,0,76,5],[77,0,77,5],[78,0,78,5],[79,0,79,5],[80,0,80,7],[81,0,81,7],[82,0,82,4],[82,5,82,7],[83,0,83,4],[83,5,83,7],[84,0,84,4],[84,5,84,7],[85,0,85,4],[85,5,85,7],[86,0,86,4],[86,5,86,7],[87,0,87,4],[87,5,87,7],[88,0,88,4],[88,5,88,7],[89,0,89,4],[89,5,89,7],[90,0,90,4],[90,5,90,7],[91,0,91,4],[91,5,91,7],[92,0,92,4],[92,5,92,7],[93,0,93,8],[94,0,94,8],[95,0,95,8],[96,0,96,2],[96,3,96,8],[97,0,97,2],[97,3,97,8],[98,0,98,2],[98,3,98,8],[99,0,99,2],[99,3,99,8],[100,0,100,2],[100,3,100,8],[101,0,101,2],[101,3,101,8],[102,0,102,2],[102,3,102,8],[103,0,103,2],[103,3,103,8],[104,0,104,2],[104,3,104,8],[105,0,105,2],[105,3,105,8],[106,0,106,2],[106,3,106,8],[107,0,107,8],[108,0,108,1],[108,3,108,5],[108,6,108,8],[109,0,109,8],[110,0,110,7],[111,1,111,7],[112,1,112,7],[113,1,113,7],[114,1,114,7],[115,0,115,7],[117,1,117,7],[118,1,118,7],[119,1,119,7],[120,1,120,7],[121,1,121,7],[122,1,122,7],[123,1,123,7],[124,1,124,7],[125,1,125,7],[126,1,126,7],[128,1,128,7],[129,1,129,7],[130,1,130,7],[131,1,131,7],[132,1,132,7],[134,1,134,7],[135,1,135,7],[136,1,136,7],[137,1,137,7],[138,1,138,7],[139,1,139,7],[140,0,140,7],[141,1,141,7],[143,1,143,7],[144,1,144,7],[145,1,145,7],[146,1,146,7],[147,1,147,7],[148,0,148,7],[149,1,149,7],[150,1,150,7],[151,1,151,7],[152,1,152,7],[153,0,153,7],[155,1,155,7],[156,1,156,7],[157,1,157,7],[158,1,158,7],[159,1,159,7],[160,0,160,8],[161,0,161,8],[162,0,162,8],[163,0,163,8],[164,0,164,8],[165,0,165,8],[166,0,166,7]]}
["REGION",{"$f":"IFERROR(VLOOKUP(D1,CENTER_REGION_MATCH,2,FALSE),\"\")","v":""},"CENTER",null,null,"START DATE",null,"PROJECT ID",{"v":24.2,"d":"24.20"}]
["PROJECT TITLE",{"$nulls":3},"ESTIMATED # DAYS TO COMPLETE",null,null,{"$f":"SUM(C4,C5,C6,C7,F4,F5,F6,F7,I4,I5,I6,I7)","v":0}]
["TRADE","# SLOTS","WORK DAYS","TRADE","# SLOTS","WORK DAYS","TRADE","# SLOTS","WORK DAYS"]
[]
[]
[]
[]
["Total CTST Slots",{"$f":"SUM(B4:B7,E4:E7,H4:H7)","v":0},null,"Estimated VALUE of Project",null,{"$f":"2*I17","v":{"v":0,"d":"$0.00"}},"Cost/Slot",{"$f":"IF(B8=0,0,SUM(I17/B8))","v":{"v":0,"d":"$0.00"}}]
[]
["CATEGORY",{"$nulls":7},"Subtotal"]
["MATERIALS AND SUPPLIES",{"$nulls":7},{"$f":"I47","v":{"v":0,"d":"$0"}}]
["JOB-SITE POWER TOOLS AND EQUIPMENT",{"$nulls":7},{"$f":"I56","v":{"v":0,"d":"$0"}}]
["EQUIPMENT RENTAL",{"$nulls":7},{"$f":"I62","v":{"v":0,"d":"$0"}}]
["CONTRACTED SERVICES",{"$nulls":7},{"$f":"I69","v":{"v":0,"d":"$0"}}]
["AGENCY TECHNICAL SERVICES",{"$nulls":7},{"$f":"I75","v":{"v":0,"d":"$0"}}]
["MOTOR VEHICLE OPERATIONS/MAINTENANCE",{"$nulls":7},{"$f":"I81","v":{"v":0,"d":"$0"}}]
["TOTAL",{"$nulls":7},{"$f":"SUM(I11:I16)","v":{"v":0,"d":"$0"}}]
["Project Description and Training Narrative.  Use ALT-ENTER to insert paragraph breaks.  Refer to \"Narrative Examples\" tab to the left for examples of acceptable project narratives. "]
["Supporting documents (drawings/blueprints/pictures) are recommended to be included in the \"Attachment\" section below if size limitations allow.  Files that cause this form to exceed the 15MB size limit are to be sent to the NOJC via CTTSubmissions@dol.gov.  If files have been sent seperately, indicate by checking this box: "]
[]
["Scroll down to populate MATERIALS AND SUPPLIES Estimate"]
["MATERIALS AND SUPPLIES Estimate"]
["MATERIAL OR SUPPLY Description (Qty./Unit)",{"$nulls":5},"# of Units","Unit Cost","Line Cost"]
[{"$nulls":8},{"$f":"SUM(G24*H24)","v":{"v":0,"d":"$0"}}]
[{"$nulls":8},{"$f":"SUM(G25*H25)","v":{"v":0,"d":"$0"}}]
[{"$nulls":8},{"v":0,"d":"$0"}]
[{"$nulls":8},{"v":0,"d":"$0"}]
[{"$nulls":8},{"v":0,"d":"$0"}]
[{"$nulls":8},{"v":0,"d":"$0"}]
[{"$nulls":8},{"v":0,"d":"$0"}]
[{"$nulls":8},{"v":0,"d":"$0"}]
[{"$nulls":8},{"v":0,"d":"$0"}]
[{"$nulls":8},{"v":0,"d":"$0"}]
[{"$nulls":8},{"v":0,"d":"$0"}]
[{"$nulls":8},{"v":0,"d":"$0"}]
[{"$nulls":8},{"v":0,"d":"$0"}]
[{"$nulls":8},{"v":0,"d":"$0"}]
[{"$nulls":8},{"v":0,"d":"$0"}]
[{"$nulls":8},{"v":0,"d":"$0"}]
[{"$nulls":8},{"v":0,"d":"$0"}]
[{"$nulls":8},{"v":0,"d":"$0"}]
[{"$nulls":8},{"v":0,"d":"$0"}]
[{"$nulls":8},{"v":0,"d":"$0"}]
[{"$nulls":8},{"v":0,"d":"$0"}]
[{"$nulls":8},{"v":0,"d":"$0"}]
[{"$nulls":8},{"v":0,"d":"$0"}]
["TOTAL COST",{"$nulls":7},{"$f":"SUM(I24:I46)","v":{"v":0,"d":"$0"}}]
["JOB-SITE POWER TOOLS AND EQUIPMENT Estimate",{"$nulls":5},"Quantity","Unit Cost ","Line Cost"]
[{"$nulls":8},{"$f":"SUM(G49*H49)","v":{"v":0,"d":"$0"}}]
[{"$nulls":8},{"$f":"SUM(G50*H50)","v":{"v":0,"d":"$0"}}]
[{"$nulls":8},{"v":0,"d":"$0"}]
[{"$nulls":8},{"v":0,"d":"$0"}]
[{"$nulls":8},{"v":0,"d":"$0"}]
[{"$nulls":8},{"v":0,"d":"$0"}]
[{"$nulls":8},{"v":0,"d":"$0"}]
["TOTAL COST",{"$nulls":7},{"$f":"SUM(I49:I55)","v":{"v":0,"d":"$0"}}]
["EQUIPMENT RENTAL Estimate",{"$nulls":5},"Quantity","Unit Cost ","Line Cost"]
[{"$nulls":8},{"$f":"SUM(G58*H58)","v":{"v":0,"d":"$0"}}]
[{"$nulls":8},{"$f":"SUM(G59*H59)","v":{"v":0,"d":"$0"}}]
[{"$nulls":8},{"$f":"SUM(G60*H60)","v":{"v":0,"d":"$0"}}]
[{"$nulls":8},{"$f":"SUM(G61*H61)","v":{"v":0,"d":"$0"}}]
["TOTAL COST",{"$nulls":7},{"$f":"SUM(I58:I61)","v":{"v":0,"d":"$0"}}]
["Scroll down to populate CONTRACTED SERVICES Estimate"]
["CONTRACTED SERVICES Estimate",{"$nulls":5},"Quantity","Unit Cost","Line Cost"]
[{"$nulls":8},{"$f":"SUM(G65*H65)","v":{"v":0,"d":"$0"}}]
[{"$nulls":8},{"$f":"SUM(G66*H66)","v":{"v":0,"d":"$0"}}]
[{"$nulls":8},{"$f":"SUM(G67*H67)","v":{"v":0,"d":"$0"}}]
[{"$nulls":8},{"$f":"SUM(G68*H68)","v":{"v":0,"d":"$0"}}]
["TOTAL COST",{"$nulls":7},{"$f":"SUM(I65:I68)","v":{"v":0,"d":"$0"}}]
["AGENCY TECHNICAL SERVICES Estimate",{"$nulls":5},"Quantity","Unit Cost","Line Cost"]
[{"$nulls":8},{"$f":"SUM(G71*H71)","v":{"v":0,"d":"$0"}}]
[{"$nulls":8},{"$f":"SUM(G72*H72)","v":{"v":0,"d":"$0"}}]
[{"$nulls":8},{"$f":"SUM(G73*H73)","v":{"v":0,"d":"$0"}}]
[{"$nulls":8},{"$f":"SUM(G74*H74)","v":{"v":0,"d":"$0"}}]
["TOTAL COST",{"$nulls":7},{"$f":"SUM(I71:I74)","v":{"v":0,"d":"$0"}}]
["MOTOR VEHICLE OPERATIONS/MAINTENANCE Estimate",{"$nulls":5},"Quantity","Unit Cost","Line Cost"]
[{"$nulls":8},{"$f":"SUM(G77*H77)","v":{"v":0,"d":"$0"}}]
[{"$nulls":8},{"$f":"SUM(G78*H78)","v":{"v":0,"d":"$0"}}]
[{"$nulls":8},{"$f":"SUM(G79*H79)","v":{"v":0,"d":"$0"}}]
[{"$nulls":8},{"$f":"SUM(G80*H80)","v":{"v":0,"d":"$0"}}]
["TOTAL COST",{"$nulls":7},{"$f":"SUM(I77:I80)","v":{"v":0,"d":"$0"}}]
["SAFETY HAZARD ANALYSIS"]
["ACTION/HAZARD DESCRIPTION",{"$nulls":4},"PROPOSED CONTROL/ABATEMENT"]
{"$rows_empty":10}
["ATTACHMENTS"]
["Required attachments include site/structure drawings (including basic project dimensions and important structural measurements) and, if major systems alteration/addition is included in the project, systems detail drawing(s).  Acceptable file types for attachments include those with extensions: \n.avi, .bmp, .csv, .doc, .docx, .dwf, .dwg, .gif, .htm, .html, .jpg, .jpeg, .mpg, .mpp, .mp4, .pdf, .png, .pub, .rtf, .tif, .tiff, .txt, .wmf, .wmv, .xls, .xlsx, .xps"]
["Instructions to insert an attachment in Excel:  (1) Click the cell in which you would like the attachment to show.  (2) On the \"Insert\" tab above (tools ribbon), select \"Object\" (in the \"Text\" grouping).  (3) In the \"Object\" dialogue box, select \"Create from file.\"  (4) Select \"Browse\" and find the file you want to insert from your desktop.  (5) Select \"Display as icon\" box in \"Object\" dialogue box. (6) Select \"OK.\"  An icon should represent the attachment.  Provide a succinct summary of the attachment in the \"Description\" column immediately to the right of each attachment.  "]
["Attachment",null,null,"Description"]
{"$rows_empty":10}
["STOP HERE.  DO NOT FILL IN ANY SECTIONS BELOW THIS POINT.  All FURTHER SECTIONS FOR NOJC USE ONLY."]
["DFAM ENTRY DATE",null,null,"DFAM REVIEWER"]
["CTST ENGINEERING REVIEW -- NOJC USE ONLY"]
["CONSISTENCY WITH THE CENTER’S LONG RANGE PLAN (LRP):"]
[1,"Is the proposed project located where future buildings, structures or extensions are proposed in the LRP?  "]
["1A","If NO to #1, is the proposed project in close proximity to future LRP structures such that the functioning of both may be adversely affected?"]
[2,"Has the Center submitted a campus Site Plan clearly showing the proposed location of the project?"]
[3,"Does the proposed project affect the space utilization allowances in the LRP?"]
["COMPLIANCE WITH APPLICABLE CODES"]
["Space/Use Re-configuration"]
[4,"Are the reconfigured spaces’ exit routes in compliance with fire egress requirements?"]
[5,"Are number of emergency egress points per current code requirements?"]
[6,"Are current fire alarm devices adequate per code to satisfy the new use of the space?  "]
["6A","If NO to #6, does the project allow for a fire alarm upgrade to comply with code?"]
[7,"Are the existing lighting levels consistent with code requirements for the new use(s)?"]
[8,"Can the new electrical and mechanical loads be accommodated within existing circuits in compliance with code?"]
[9,"Does the existing lighting and power outlet layout serve the new use adequately?  "]
["9A","If NO to #9, is the proposed revised layout in compliance with code?"]
[10,"Does the reconfigured space comply with ADA requirements where applicable?"]
[11,"Has the Center submitted drawings addressing the above issues clearly? (Architectural plan, electrical layouts, reflected ceiling plans, fire alarm system layouts, etc.)"]
["HVAC Equipment Upgrades"]
[12,"Is the proposed HVAC equipment an Energy Star high-efficiency model?"]
[13,"What type of refrigerant does the proposed equipment use?"]
[14,"Has the Center submitted manufacturer’s trade literature showing equipment specs, including SIR ratings and refrigerant type?"]
[15,"Has the Center submitted a mechanical drawing showing location of equipment and ductwork?"]
[16,"If students are to install the new equipment, has the Center made arrangements to have manufacturer-approved installer supervision so as to protect the warranty?"]
["Lighting/Power Upgrades"]
[17,"Does the project entail lighting fixture replacement, lamp/ballast replacement or both?"]
[18,"Does the project entail any re-wiring?"]
[19,"Does the project entail any additional electrical loads with respect to existing?"]
["19A","If YES to #19, does the project provide adequate documentation to demonstrate code compliance?"]
[20,"Has the Center submitted manufacturer’s trade literature showing fixture/lamp specs?"]
[21,"Has the Center submitted a proposed lighting layout drawing showing proposed new lighting fixture and power outlet layout?                                                                  "]
["STRUCTURAL INTEGRITY"]
[22,"Does the proposed project comprise a habitable structure?"]
[23,"If not habitable, does the structural stability of the project impinge on the life/safety of students and staff?"]
[24,"Has the project’s structure been designed and documented by a licensed engineer?"]
["24A","If YES to #24, has the Center presented engineer-stamped documents?"]
[25,"If not designed/stamped by a licensed engineer, does the project comply with prescriptive design parameters per IBC code? "]
["25A","If NO to #25, has the Center submitted clear and complete documentation demonstrating prescriptive design code compliance?"]
[26,"For roof structures based on truss designs, does the project propose off-the-shelf pre-engineered truss solutions?  "]
["If 'Yes' to #26, respond to #27-29; if 'No' skip to #30"]
[27,"Has the Center submitted pre-engineered truss drawings?"]
[28,"Has the Center submitted clear details of pre-engineered truss fastenings?"]
[29,"Are the roof loads adequately distributed to the footings?  "]
[30,"Has the Center provided adequate footings and foundation drawings?"]
["SUSTAINABILITY"]
["Does the proposed project include:"]
[31,"Environmentally-preferred products?"]
[32,"Bio-based products?"]
[33,"Recycled-content products?"]
[34,"Low-emitting materials?"]
[35,"High-efficiency water fixtures?"]
["DFAM Reviewer Notes"]
[]
["DFAM Approval Provision(s)"]
[]
["DFAM Decline Recommendation(s)"]
[]
["DFAM Reviewer Recommendation"]

{"sheet":"RECONCILIATION","index":24,"n_rows":27,"n_cols":17,"rows_kept":27,"merged":[[0,1,0,2],[0,4,0,7],[0,10,0,12],[0,14,0,15],[1,1,1,2],[1,3,1,4],[1,5,1,7],[1,8,1,10],[1,12,1,14],[1,15,1,16],[2,1,2,2],[2,3,2,4],[2,5,2,7],[2,8,2,10],[2,12,2,14],[2,15,2,16],[3,1,3,2],[3,3,3,4],[3,5,3,7],[3,8,3,10],[3,12,3,14],[3,15,3,16],[4,1,4,2],[4,3,4,4],[4,5,4,7],[4,8,4,10],[4,12,4,14],[4,15,4,16],[5,1,5,2],[5,3,5,4],[5,5,5,7],[5,8,5,10],[5,12,5,14],[5,15,5,16],[6,1,6,2],[6,3,6,4],[6,5,6,7],[6,8,6,10],[6,12,6,14],[6,15,6,16],[7,1,7,2],[7,3,7,4],[7,5,7,7],[7,8,7,10],[7,12,7,14],[7,15,7,16],[8,1,8,2],[8,3,8,4],[8,5,8,7],[8,8,8,10],[8,12,8,14],[8,15,8,16],[9,1,9,2],[9,3,9,4],[9,5,9,7],[9,8,9,10],[9,12,9,14],[9,15,9,16],[10,1,10,2],[10,3,10,4],[10,5,10,7],[10,8,10,10],[10,12,10,14],[10,15,10,16],[11,1,11,2],[11,3,11,4],[11,5,11,7],[11,8,11,10],[11,12,11,14],[11,15,11,16],[12,1,12,2],[12,3,12,4],[12,5,12,7],[12,8,12,10],[12,12,12,14],[12,15,12,16],[13,1,13,2],[13,3,13,4],[13,5,13,7],[13,8,13,10],[13,12,13,14],[13,15,13,16],[14,1,14,2],[14,3,14,4],[14,5,14,7],[14,8,14,10],[14,12,14,14],[14,15,14,16],[15,1,15,2],[15,3,15,4],[15,5,15,7],[15,8,15,10],[15,12,15,14],[15,15,15,16],[16,1,16,2],[16,3,16,4],[16,5,16,7],[16,8,16,10],[16,12,16,14],[16,15,16,16],[17,1,17,2],[17,3,17,4],[17,5,17,7],[17,8,17,10],[17,12,17,14],[17,15,17,16],[18,1,18,2],[18,3,18,4],[18,5,18,7],[18,8,18,10],[18,12,18,14],[18,15,18,16],[19,1,19,2],[19,3,19,4],[19,5,19,7],[19,8,19,10],[19,12,19,14],[19,15,19,16],[20,1,20,2],[20,3,20,4],[20,5,20,7],[20,8,20,10],[20,12,20,14],[20,15,20,16],[21,1,21,2],[21,3,21,4],[21,5,21,7],[21,8,21,10],[21,12,21,14],[21,15,21,16],[22,1,22,2],[22,3,22,4],[22,5,22,7],[22,8,22,10],[22,12,22,14],[22,15,22,16],[24,0,24,16],[25,0,25,16],[26,0,26,16]]}
["Region",{"$f":"'24.01'!B1","v":""},null,"Center",{"$f":"IF(ISBLANK('24.01'!D1),\"\",'24.01'!D1)","v":""},{"$nulls":3},"Total Request",null,{"$f":"'Summary V24'!J1","v":{"v":0,"d":"$0"}},{"$nulls":3},"Program Year",null,2024]
["Project ID","Total Cost ",null,"Estimated Value",null,"$ Spent as of December 31, 2024",null,null,"% Spent as of December 31",{"$nulls":3},"$ Spent as of June 30, 2025",null,null,"% Spent as of June 30"]
[{"$f":"'Summary V24'!A5","v":24.01},{"$f":"'Summary V24'!L5","v":{"v":0,"d":"$0"}},null,{"$f":"'Summary V24'!M5","v":{"v":0,"d":"$0"}},{"$nulls":4},{"$f":"IF(B3=0,0,SUM(F3/B3))","v":{"v":0,"d":"0.0%"}},{"$nulls":6},{"$f":"IF(B3=0,0,SUM(M3/B3))","v":{"v":0,"d":"0.0%"}}]
[{"$f":"'Summary V24'!A6","v":24.02},{"$f":"'Summary V24'!L6","v":{"v":0,"d":"$0"}},null,{"$f":"'Summary V24'!M6","v":{"v":0,"d":"$0"}},{"$nulls":4},{"$f":"IF(B4=0,0,SUM(F4/B4))","v":{"v":0,"d":"0.0%"}},{"$nulls":6},{"$f":"IF(B4=0,0,SUM(M4/B4))","v":{"v":0,"d":"0.0%"}}]
[{"$f":"'Summary V24'!A7","v":24.03},{"$f":"'Summary V24'!L7","v":{"v":0,"d":"$0"}},null,{"$f":"'Summary V24'!M7","v":{"v":0,"d":"$0"}},{"$nulls":4},{"v":0,"d":"0.0%"},{"$nulls":6},{"v":0,"d":"0.0%"}]
[{"$f":"'Summary V24'!A8","v":24.04},{"$f":"'Summary V24'!L8","v":{"v":0,"d":"$0"}},null,{"$f":"'Summary V24'!M8","v":{"v":0,"d":"$0"}},{"$nulls":4},{"v":0,"d":"0.0%"},{"$nulls":6},{"v":0,"d":"0.0%"}]
[{"$f":"'Summary V24'!A9","v":24.05},{"$f":"'Summary V24'!L9","v":{"v":0,"d":"$0"}},null,{"$f":"'Summary V24'!M9","v":{"v":0,"d":"$0"}},{"$nulls":4},{"v":0,"d":"0.0%"},{"$nulls":6},{"v":0,"d":"0.0%"}]
[{"$f":"'Summary V24'!A10","v":24.06},{"$f":"'Summary V24'!L10","v":{"v":0,"d":"$0"}},null,{"$f":"'Summary V24'!M10","v":{"v":0,"d":"$0"}},{"$nulls":4},{"v":0,"d":"0.0%"},{"$nulls":6},{"v":0,"d":"0.0%"}]
[{"$f":"'Summary V24'!A11","v":24.07},{"$f":"'Summary V24'!L11","v":{"v":0,"d":"$0"}},null,{"$f":"'Summary V24'!M11","v":{"v":0,"d":"$0"}},{"$nulls":4},{"v":0,"d":"0.0%"},{"$nulls":6},{"v":0,"d":"0.0%"}]
[{"$f":"'Summary V24'!A12","v":24.08},{"$f":"'Summary V24'!L12","v":{"v":0,"d":"$0"}},null,{"$f":"'Summary V24'!M12","v":{"v":0,"d":"$0"}},{"$nulls":4},{"v":0,"d":"0.0%"},{"$nulls":6},{"v":0,"d":"0.0%"}]
[{"$f":"'Summary V24'!A13","v":24.09},{"$f":"'Summary V24'!L13","v":{"v":0,"d":"$0"}},null,{"$f":"'Summary V24'!M13","v":{"v":0,"d":"$0"}},{"$nulls":4},{"v":0,"d":"0.0%"},{"$nulls":6},{"v":0,"d":"0.0%"}]
[{"$f":"'Summary V24'!A14","v":{"v":24.1,"d":"24.10"}},{"$f":"'Summary V24'!L14","v":{"v":0,"d":"$0"}},null,{"$f":"'Summary V24'!M14","v":{"v":0,"d":"$0"}},{"$nulls":4},{"v":0,"d":"0.0%"},{"$nulls":6},{"v":0,"d":"0.0%"}]
[{"$f":"'Summary V24'!A15","v":24.11},{"$f":"'Summary V24'!L15","v":{"v":0,"d":"$0"}},null,{"$f":"'Summary V24'!M15","v":{"v":0,"d":"$0"}},{"$nulls":4},{"$f":"IF(B13=0,0,SUM(F13/B13))","v":{"v":0,"d":"0.0%"}},{"$nulls":6},{"v":0,"d":"0.0%"}]
[{"$f":"'Summary V24'!A16","v":24.12},{"$f":"'Summary V24'!L16","v":{"v":0,"d":"$0"}},null,{"$f":"'Summary V24'!M16","v":{"v":0,"d":"$0"}},{"$nulls":4},{"v":0,"d":"0.0%"},{"$nulls":6},{"v":0,"d":"0.0%"}]
[{"$f":"'Summary V24'!A17","v":24.13},{"$f":"'Summary V24'!L17","v":{"v":0,"d":"$0"}},null,{"$f":"'Summary V24'!M17","v":{"v":0,"d":"$0"}},{"$nulls":4},{"v":0,"d":"0.0%"},{"$nulls":6},{"v":0,"d":"0.0%"}]
[{"$f":"'Summary V24'!A18","v":24.14},{"$f":"'Summary V24'!L18","v":{"v":0,"d":"$0"}},null,{"$f":"'Summary V24'!M18","v":{"v":0,"d":"$0"}},{"$nulls":4},{"v":0,"d":"0.0%"},{"$nulls":6},{"v":0,"d":"0.0%"}]
[{"$f":"'Summary V24'!A19","v":24.15},{"$f":"'Summary V24'!L19","v":{"v":0,"d":"$0"}},null,{"$f":"'Summary V24'!M19","v":{"v":0,"d":"$0"}},{"$nulls":4},{"v":0,"d":"0.0%"},{"$nulls":6},{"v":0,"d":"0.0%"}]
[{"$f":"'Summary V24'!A20","v":24.16},{"$f":"'Summary V24'!L20","v":{"v":0,"d":"$0"}},null,{"$f":"'Summary V24'!M20","v":{"v":0,"d":"$0"}},{"$nulls":4},{"v":0,"d":"0.0%"},{"$nulls":6},{"v":0,"d":"0.0%"}]
[{"$f":"'Summary V24'!A21","v":24.17},{"$f":"'Summary V24'!L21","v":{"v":0,"d":"$0"}},null,{"$f":"'Summary V24'!M21","v":{"v":0,"d":"$0"}},{"$nulls":4},{"v":0,"d":"0.0%"},{"$nulls":6},{"v":0,"d":"0.0%"}]
[{"$f":"'Summary V24'!A22","v":24.18},{"$f":"'Summary V24'!L22","v":{"v":0,"d":"$0"}},null,{"$f":"'Summary V24'!M22","v":{"v":0,"d":"$0"}},{"$nulls":4},{"v":0,"d":"0.0%"},{"$nulls":6},{"v":0,"d":"0.0%"}]
[{"$f":"'Summary V24'!A23","v":24.19},{"$f":"'Summary V24'!L23","v":{"v":0,"d":"$0"}},null,{"$f":"'Summary V24'!M23","v":{"v":0,"d":"$0"}},{"$nulls":4},{"v":0,"d":"0.0%"},{"$nulls":6},{"v":0,"d":"0.0%"}]
[{"$f":"'Summary V24'!A24","v":{"v":24.2,"d":"24.20"}},{"$f":"'Summary V24'!L24","v":{"v":0,"d":"$0"}},null,{"$f":"'Summary V24'!M24","v":{"v":0,"d":"$0"}},{"$nulls":4},{"v":0,"d":"0.0%"},{"$nulls":6},{"v":0,"d":"0.0%"}]
["Totals",{"$f":"SUM(B3:C22)","v":{"v":0,"d":"$0"}},null,{"$f":"SUM(D3:E22)","v":{"v":0,"d":"$0"}},null,{"$f":"SUM(F3:H22)","v":{"v":0,"d":"$0"}},null,null,{"v":0,"d":"0.0%"},{"$nulls":3},{"$f":"SUM(M3:O22)","v":{"v":0,"d":"$0"}},null,null,{"v":0,"d":"0.0%"}]
[]
["Comments Related to Reconciliation Activity: "]
[]
["Complete cells highlighted in GREEN only.  Do not attempt to manipulate cells in GRAY."]

{"sheet":"NOJC Review","index":25,"n_rows":17,"n_cols":8,"rows_kept":17,"merged":[[0,0,0,7],[1,0,1,1],[1,6,1,7],[2,0,2,1],[2,2,2,4],[2,5,2,7],[4,0,4,1],[4,3,4,7],[5,0,5,6],[6,1,6,6],[7,1,7,6],[8,1,8,6],[9,1,9,6],[10,1,10,6],[11,1,11,6],[12,1,12,6],[13,1,13,6],[14,1,14,6],[15,1,15,6],[16,0,16,7],[17,0,17,7]]}
["NOJC Review"]
["Region",null,{"$f":"'24.01'!B1","v":""},"Center",{"$f":"'24.01'!D1","v":0},"FINAL STATUS","Pending"]
["REVIEWER"]
[]
[" NOJC ENTRY DATE"]
["  CTST STANDARD",{"$nulls":6},"Reviewer Responses"]
[1,"Are all projects submitted accounted for on the Summary tab?",{"$nulls":5},"Pending"]
[2,"Does the individule project cost on each project's tab total correctly on the Summary tab?",{"$nulls":5},"Pending"]
[3,"Does the CTST budget total at the bottom of the Summary tab add up to the correct amount based on the total CTST slots from the Centers Master Profile? Master Profile can be accessed by logging into the JC Community Web site.",{"$nulls":5},"Pending"]
[4,"Does the budget data on each project's tab total correctly on the Summary tab?",{"$nulls":5},"Pending"]
[5,"Does each project result in a finished product or improved facility?",{"$nulls":5},"Pending"]
[6,"Do any projects include \"major\" structural, mechanical, electrical, or plumbing system change?",{"$nulls":5},"Pending"]
[7,"Does the Project and Training Description Narratives give adequate detail of the final product and training?",{"$nulls":5},"Pending"]
[8,"Are appropriate illustrations and/or technical drawings attached to support each individual project?",{"$nulls":5},"Pending"]
[9,"Does each project tab include an adequately completed Safety Hazard Analysis tab?",{"$nulls":5},"Pending"]
[10,"Are all required signatures present?",{"$nulls":5},"Pending"]
["CTST REVIEWER NOTES"]

{"sheet":"DATA","index":26,"n_rows":2,"n_cols":148,"rows_kept":2,"hidden":true}
["REGION","CENTER","PROJECT_ID","TITLE","START_DATE","EST_DAYS_COMPLETE","EST_COMPLETION_DATE","MULTIYEAR","PHASE","ORIGINAL_CTST","CTST_REQ","TOTAL_COST","EST_VALUE","OTHER_CRA_FUNDS","CENTER_FUNDS","EST1","EST2","EST3","EST4","EST5","EST6","EST7","EST8","SLOT_TOTAL","COST_SLOT","STM_TOTAL","COST_STM","TRADE01","T01_SLOTS","T01_WDAYS","TRADE02","T02_SLOTS","T02_WDAYS","TRADE03","T03_SLOTS","T03_WDAYS","TRADE04","T04_SLOTS","T04_WDAYS","TRADE05","T05_SLOTS","T05_WDAYS","TRADE06","T06_SLOTS","T06_WDAYS","TRADE07","T07_SLOTS","T07_WDAYS","TRADE08","T08_SLOTS","T08_WDAYS","TRADE09","T09_SLOTS","T09_WDAYS","TRADE10","T10_SLOTS","T10_WDAYS","TRADE11","T11_SLOTS","T11_WDAYS","TRADE12","T12_SLOTS","T12_WDAYS","OUTCOME_DESC","TRAINING_DESC","COR/PM","MANAGER","NOJC ENTRY DATE","MAN01","MAN02","MAN03","MAN04","MAN05","MAN06","MAN07","MAN08","MANAGER RECOMMENDATION","MANAGER NOTES","CTT REVIEWER","CTT ENTRY DATE","CTT01","CTT02","CTT03","CTT04","CTT05","CTT06","CTT07","CTT08","CTT09","CTT10","CTT11","CTT12","CTT13","CTT14","CTT15","CTT16","CTT17","CTT REVIEWER RECOMMENDATION","PROJ_CLASS","USE_CLASS","CTT REVIEWER NOTES","DFAM REVIEWER","DFAM ENTRY DATE","DFAM01","DFAM01A","DFAM02","DFAM03","DFAM04","DFAM05","DFAM06","DFAM06A","DFAM07","DFAM08","DFAM09","DFMA09A","DFAM10","DFAM11","DFAM12","DFAM13","DFAM14","DFAM15","DFAM16","DFAM17","DFAM18","DFAM19","DFMA19A","DFAM20","DFAM21","DFAM22","DFAM23","DFAM24","DFAM24A","DFAM25","DFAM25A","DFAM26","DFAM27","DFAM28","DFAM29","DFAM30","DFAM31","DFAM32","DFAM33","DFAM34","DFAM35","DFAM REVIEWER RECOMMENDATION","DFAM REVIEWER NOTES","DFAM APPROVAL PROVISION(S)","DFAM DECLINE RECOMMENDATION(S)"]
[{"$f":"'24.01'!#REF!","v":{"$error":"#REF!"}},{"$f":"'24.01'!#REF!","v":{"$error":"#REF!"}},{"$f":"'24.01'!#REF!","v":{"$error":"#REF!"}},{"$f":"'24.01'!#REF!","v":{"$error":"#REF!"}},{"$f":"'24.01'!#REF!","v":{"$error":"#REF!"}},{"$f":"'24.01'!#REF!","v":{"$error":"#REF!"}},{"$f":"'24.01'!#REF!","v":{"$error":"#REF!"}},{"$f":"'24.01'!#REF!","v":{"$error":"#REF!"}},{"$f":"'24.01'!#REF!","v":{"$error":"#REF!"}},{"$f":"'24.01'!#REF!","v":{"$error":"#REF!"}},{"$f":"'24.01'!#REF!","v":{"$error":"#REF!"}},{"$f":"'24.01'!#REF!","v":{"$error":"#REF!"}},{"$f":"'24.01'!#REF!","v":{"$error":"#REF!"}},{"$f":"'24.01'!#REF!","v":{"$error":"#REF!"}},{"$f":"'24.01'!#REF!","v":{"$error":"#REF!"}},{"$f":"'24.01'!G11","v":{"v":0,"d":"$0"}},{"$f":"'24.01'!G12","v":{"v":0,"d":"$0"}},{"$f":"'24.01'!G13","v":{"v":0,"d":"$0"}},{"$f":"'24.01'!#REF!","v":{"$error":"#REF!"}},{"$f":"'24.01'!G14","v":{"v":0,"d":"$0"}},{"$f":"'24.01'!G15","v":{"v":0,"d":"$0"}},{"$f":"'24.01'!G16","v":{"v":0,"d":"$0"}},{"$f":"'24.01'!#REF!","v":{"$error":"#REF!"}},{"$f":"'24.01'!#REF!","v":{"$error":"#REF!"}},{"$f":"'24.01'!#REF!","v":{"$error":"#REF!"}},{"$f":"'24.01'!#REF!","v":{"$error":"#REF!"}},{"$f":"'24.01'!#REF!","v":{"$error":"#REF!"}},{"$f":"'24.01'!#REF!","v":{"$error":"#REF!"}},{"$f":"'24.01'!#REF!","v":{"$error":"#REF!"}},{"$f":"'24.01'!#REF!","v":{"$error":"#REF!"}},{"$f":"'24.01'!A4","v":0},{"$f":"'24.01'!B4","v":0},{"$f":"'24.01'!C4","v":0},{"$f":"'24.01'!A6","v":0},{"$f":"'24.01'!B6","v":0},{"$f":"'24.01'!C6","v":0},{"$f":"'24.01'!A7","v":0},{"$f":"'24.01'!B7","v":0},{"$f":"'24.01'!C7","v":0},{"$f":"'24.01'!#REF!","v":{"$error":"#REF!"}},{"$f":"'24.01'!#REF!","v":{"$error":"#REF!"}},{"$f":"'24.01'!#REF!","v":{"$error":"#REF!"}},{"$f":"'24.01'!D4","v":0},{"$f":"'24.01'!E4","v":0},{"$f":"'24.01'!F4","v":0},{"$f":"'24.01'!D6","v":0},{"$f":"'24.01'!E6","v":0},{"$f":"'24.01'!F6","v":0},{"$f":"'24.01'!D7","v":0},{"$f":"'24.01'!E7","v":0},{"$f":"'24.01'!F7","v":0},{"$f":"'24.01'!#REF!","v":{"$error":"#REF!"}},{"$f":"'24.01'!#REF!","v":{"$error":"#REF!"}},{"$f":"'24.01'!#REF!","v":{"$error":"#REF!"}},{"$f":"'24.01'!G4","v":0},{"$f":"'24.01'!H4","v":0},{"$f":"'24.01'!I4","v":0},{"$f":"'24.01'!G6","v":0},{"$f":"'24.01'!H6","v":0},{"$f":"'24.01'!I6","v":0},{"$f":"'24.01'!G7","v":0},{"$f":"'24.01'!H7","v":0},{"$f":"'24.01'!I7","v":0},{"$f":"'24.01'!A20","v":0},{"$f":"'24.01'!#REF!","v":{"$error":"#REF!"}},{"$f":"'NOJC Review'!#REF!","v":{"$error":"#REF!"}},{"$f":"'NOJC Review'!#REF!","v":{"$error":"#REF!"}},{"$f":"'NOJC Review'!#REF!","v":{"$error":"#REF!"}},{"$f":"'NOJC Review'!#REF!","v":{"$error":"#REF!"}},{"$f":"'NOJC Review'!#REF!","v":{"$error":"#REF!"}},{"$f":"'NOJC Review'!#REF!","v":{"$error":"#REF!"}},{"$f":"'NOJC Review'!#REF!","v":{"$error":"#REF!"}},{"$f":"'NOJC Review'!#REF!","v":{"$error":"#REF!"}},{"$f":"'NOJC Review'!#REF!","v":{"$error":"#REF!"}},{"$f":"'NOJC Review'!#REF!","v":{"$error":"#REF!"}},{"$f":"'NOJC Review'!#REF!","v":{"$error":"#REF!"}},{"$f":"'NOJC Review'!#REF!","v":{"$error":"#REF!"}},{"$f":"'NOJC Review'!#REF!","v":{"$error":"#REF!"}},{"$f":"'NOJC Review'!#REF!","v":{"$error":"#REF!"}},{"$f":"'NOJC Review'!#REF!","v":{"$error":"#REF!"}},{"$f":"'24.01'!#REF!","v":{"$error":"#REF!"}},{"$f":"'NOJC Review'!#REF!","v":{"$error":"#REF!"}},{"$f":"'NOJC Review'!#REF!","v":{"$error":"#REF!"}},{"$f":"'NOJC Review'!#REF!","v":{"$error":"#REF!"}},{"$f":"'NOJC Review'!#REF!","v":{"$error":"#REF!"}},{"$f":"'NOJC Review'!#REF!","v":{"$error":"#REF!"}},{"$f":"'NOJC Review'!#REF!","v":{"$error":"#REF!"}},{"$f":"'NOJC Review'!#REF!","v":{"$error":"#REF!"}},{"$f":"'NOJC Review'!#REF!","v":{"$error":"#REF!"}},{"$f":"'NOJC Review'!#REF!","v":{"$error":"#REF!"}},{"$f":"'NOJC Review'!#REF!","v":{"$error":"#REF!"}},{"$f":"'NOJC Review'!#REF!","v":{"$error":"#REF!"}},{"$f":"'NOJC Review'!#REF!","v":{"$error":"#REF!"}},{"$f":"'NOJC Review'!#REF!","v":{"$error":"#REF!"}},{"$f":"'NOJC Review'!#REF!","v":{"$error":"#REF!"}},{"$f":"'NOJC Review'!#REF!","v":{"$error":"#REF!"}},{"$f":"'NOJC Review'!#REF!","v":{"$error":"#REF!"}},{"$f":"'NOJC Review'!#REF!","v":{"$error":"#REF!"}},{"$f":"'NOJC Review'!#REF!","v":{"$error":"#REF!"}},{"$f":"'NOJC Review'!#REF!","v":{"$error":"#REF!"}},{"$f":"'24.01'!A132","v":15},{"$f":"'NOJC Review'!#REF!","v":{"$error":"#REF!"}},{"$f":"'NOJC Review'!#REF!","v":{"$error":"#REF!"}},{"$f":"'NOJC Review'!#REF!","v":{"$error":"#REF!"}},{"$f":"'NOJC Review'!#REF!","v":{"$error":"#REF!"}},{"$f":"'NOJC Review'!#REF!","v":{"$error":"#REF!"}},{"$f":"'NOJC Review'!#REF!","v":{"$error":"#REF!"}},{"$f":"'NOJC Review'!#REF!","v":{"$error":"#REF!"}},{"$f":"'NOJC Review'!#REF!","v":{"$error":"#REF!"}},{"$f":"'NOJC Review'!#REF!","v":{"$error":"#REF!"}},{"$f":"'NOJC Review'!#REF!","v":{"$error":"#REF!"}},{"$f":"'NOJC Review'!#REF!","v":{"$error":"#REF!"}},{"$f":"'NOJC Review'!#REF!","v":{"$error":"#REF!"}},{"$f":"'NOJC Review'!#REF!","v":{"$error":"#REF!"}},{"$f":"'NOJC Review'!#REF!","v":{"$error":"#REF!"}},{"$f":"'NOJC Review'!#REF!","v":{"$error":"#REF!"}},{"$f":"'NOJC Review'!#REF!","v":{"$error":"#REF!"}},{"$f":"'NOJC Review'!#REF!","v":{"$error":"#REF!"}},{"$f":"'NOJC Review'!#REF!","v":{"$error":"#REF!"}},{"$f":"'NOJC Review'!#REF!","v":{"$error":"#REF!"}},{"$f":"'NOJC Review'!#REF!","v":{"$error":"#REF!"}},{"$f":"'NOJC Review'!#REF!","v":{"$error":"#REF!"}},{"$f":"'NOJC Review'!#REF!","v":{"$error":"#REF!"}},{"$f":"'NOJC Review'!#REF!","v":{"$error":"#REF!"}},{"$f":"'NOJC Review'!#REF!","v":{"$error":"#REF!"}},{"$f":"'NOJC Review'!#REF!","v":{"$error":"#REF!"}},{"$f":"'NOJC Review'!#REF!","v":{"$error":"#REF!"}},{"$f":"'NOJC Review'!#REF!","v":{"$error":"#REF!"}},{"$f":"'NOJC Review'!#REF!","v":{"$error":"#REF!"}},{"$f":"'NOJC Review'!#REF!","v":{"$error":"#REF!"}},{"$f":"'NOJC Review'!#REF!","v":{"$error":"#REF!"}},{"$f":"'NOJC Review'!#REF!","v":{"$error":"#REF!"}},{"$f":"'NOJC Review'!#REF!","v":{"$error":"#REF!"}},{"$f":"'NOJC Review'!#REF!","v":{"$error":"#REF!"}},{"$f":"'NOJC Review'!#REF!","v":{"$error":"#REF!"}},{"$f":"'NOJC Review'!#REF!","v":{"$error":"#REF!"}},{"$f":"'NOJC Review'!#REF!","v":{"$error":"#REF!"}},{"$f":"'NOJC Review'!#REF!","v":{"$error":"#REF!"}},{"$f":"'NOJC Review'!#REF!","v":{"$error":"#REF!"}},{"$f":"'NOJC Review'!#REF!","v":{"$error":"#REF!"}},{"$f":"'NOJC Review'!#REF!","v":{"$error":"#REF!"}},{"$f":"'NOJC Review'!#REF!","v":{"$error":"#REF!"}},{"$f":"'NOJC Review'!#REF!","v":{"$error":"#REF!"}},{"$f":"'NOJC Review'!#REF!","v":{"$error":"#REF!"}},{"$f":"'NOJC Review'!#REF!","v":{"$error":"#REF!"}},{"$f":"'NOJC Review'!#REF!","v":{"$error":"#REF!"}},{"$f":"'NOJC Review'!#REF!","v":{"$error":"#REF!"}},{"$f":"'NOJC Review'!#REF!","v":{"$error":"#REF!"}}]

{"sheet":"key","index":27,"n_rows":124,"n_cols":24,"rows_kept":124,"hidden":true}
["Program Titles",null,"Centers",null,"DFAM Approval",null,"Yes/No",null,"Region",{"$nulls":5},"CENTER","REGIONMATCH",null,"GROUNDS",null,"USECLASS",null,"ACTION/HAZARD DESCRIPTION",null,"PROPOSED CONTROL/ABATEMENT"]
["Advanced Asphalt Paving - Pre-Apprentice",null,"Alaska",null,"Approved",null,"Yes",null,"Atlanta",null,"DES/CTT",null,"Approve",null,"Arecibo","Boston",null,"MAJOR NEW STRUCTURE",null,"ADMINISTRATIVE",null,"Chemical (Toxic): A chemical that exposes a person by absorption through the skin, inhalation, or through the blood stream that causes illness, disease, or death.",null,"Administrative Control -- Control access to hazardous material/site"]
["Advanced Cement Masonry, Pre-Apprentice",null,"Albuquerque",null,"Denied",null,"No",null,"Boston",null,"DFAM",null,"Approve with Recommendations",null,"Barranquitas","Boston",null,"MAJOR STRUCTURE RENOVATION",null,"MISCELLANEOUS",null,"Chemical (Flammable): A chemical that, when exposed to a heat ignition source, results in combustion.",null,"Administrative Control -- Institute written operating procedures and best practices training"]
["Advanced Electrical Service Technician, Pre-Apprentice ",null,"Anaconda",null,"Pending",null,"Pending",null,"Chicago",{"$nulls":3},"Decline ",null,"Cassadaga","Boston",null,"MINOR NEW STRUCTURE",null,"OPERATIONS",null,"Chemical (Corrosive): A chemical that, when it comes into contact with skin, metal, or other materials, damages the materials.",null,"Administrative Control -- Limit Exposure to hazard using time monitoring"]
["Advanced Electrical Smart Meter and Instrumentation Technician",null,"Angell",null,"Pending DFAM Review",{"$nulls":3},"Dallas",{"$nulls":3},"Decline with Recommendations",null,"Delaware Valley","Boston",null,"MINOR STRUCTURE RENOVATION",null,"RESIDENTIAL/RECREATION",null,"Explosion (Chemical Reaction): Self explanatory.",null,"Administrative Control -- Provide training/testingon hazard abatement"]
["Advanced Electrical, Overhead Line Construction",null,"Arecibo",null,"Other",{"$nulls":3},"Philadelphia",{"$nulls":3},"Withdrawn",null,"Edison","Boston",null,"TRAINING MOCK-UP",null,"TRAINING/ACADEMICS",null,"Explosion (Over Pressurization): Sudden and violent release of a large amount of gas/energy due to a significant pressure difference such as rupture in a boiler or compressed gas cylinder.",null,"Administrative Control -- Utilize policy of \"buddy system\""]
["Advanced Electrical, Underground Residential Distribution",null,"Atlanta",{"$nulls":5},"San Francisco",{"$nulls":5},"Exeter","Boston",null,"COMMUNITY-BASED",null,"NON-CENTER",null,"Electrical (Shock/Short Circuit): Contact with exposed conductors or a device that is incorrectly or inadvertently grounded, such as when a metal ladder comes into contact with power lines. 60Hz alternating current (common house current) is very dangerous because it can stop the heart.",null,"Engineering Control -- Eliminate cause of hazard without subsitute"]
["Advanced Emergency Management",null,"Atterbury",{"$nulls":11},"Glenmont","Boston",null,"OTHER",null,"OTHER",null,"Electrical (Fire): Use of electrical power that results in electrical overheating or arcing to the point of combustion or ignition of flammables, or electrical component damage.",null,"Engineering Control -- Fully enclose cause of hazard to limit access/exposure"]
["Advanced Fire Management - Wildland Firefighting 1",null,"Bamberg",{"$nulls":11},"Grafton","Boston",{"$nulls":5},"Electrical (Static/ESD): The moving or rubbing of wool, nylon, other synthetic fibers, and even flowing liquids can generate static electricity. This creates an excess or deficiency of electrons on the surface of material that discharges (spark) to the ground resulting in the ignition of flammables or damage to electronics or the body’s nervous system.",null,"Engineering Control -- Partially isolate hazard with guard/shield(s)"]
["Advanced Forestry Technician",null,"Barranquitas",{"$nulls":11},"Hartford","Boston",{"$nulls":5},"Electrical (Loss of Power): Safety critical equipment failure as a result of loss of power.",null,"Engineering Control -- Remore/redirect hazard with ventilation"]
["Advanced Heavy Truck Driving",null,"BL Hooks/Memphis",{"$nulls":11},"Iroquois","Boston",{"$nulls":5},"Ergonomics (Strain): Damage of tissue due to overexertion  (strains and sprains) or repetitive motion.",null,"Engineering Control -- Substitute cause of hazard with other material/process"]
["Advanced Highway Construction Pre-Apprentice",null,"Blackwell",{"$nulls":11},"Loring","Boston",{"$nulls":5},"Ergonomics (Human Error): A system design, procedure, or equipment that is error-provocative. (A switch goes up to turn something off.)",null,"Utilize Personal Protective Equipment -- Hardhat"]
["Advanced HVAC, Preventive Maintenance Technician, Pre-Apprentice ",null,"Blue Ridge",{"$nulls":11},"New Hampshire","Boston",{"$nulls":5},"Excavation (Collapse): Soil collapse in a trench or excavation as a result of improper or inadequate shoring. Soil type is critical in determining the hazard likelihood.",null,"Utilize Personal Protective Equipment -- Harness"]
["Advanced Manufacturing Production Technician",null,"Boxelder",{"$nulls":11},"New Haven","Boston",{"$nulls":5},"Fall (Slip, Trip): Conditions that result in falls (impacts) from height or traditional walking surfaces (such as slippery floors, poor housekeeping, uneven walking surfaces, exposed ledges, etc.).",null,"Utilize Personal Protective Equipment -- Hearing Protection"]
["Advanced Plumbing Service Technician, Pre-Apprentice",null,"Brunswick",{"$nulls":11},"Northlands","Boston",{"$nulls":5},"Fire/Heat: Temperature that can cause burns to the skin or damage to other organs. Fires require a heat source, fuel, and oxygen. ",null,"Utilize Personal Protective Equipment -- Protective body clothing/footwear"]
["Advanced Plumbing Sewer and Drain Technician",null,"Carl D. Perkins",{"$nulls":11},"Oneonta","Boston",{"$nulls":5},"Mechanical/Vibration (Chaffing/Fatigue): Vibration that can cause damage to nerve endings, or material fatigue that results in a safety-critical failure. (Examples are abraded slings and ropes, weakened hoses and belts.)",null,"Utilize Personal Protective Equipment -- Respirator"]
["Advanced Solar Photovoltaic (PV) Technician, Pre-Apprentice ",null,"Carville",{"$nulls":11},"Penobscot","Boston",{"$nulls":5},"Mechanical Failure: Self explanatory.",null,"Utilize Personal Protective Equipment -- Safety eyewear"]
["Advanced Solar PV and Thermal System Installer ",null,"Cascades",{"$nulls":11},"Ramey","Boston",{"$nulls":5},"Mechanical: Skin, muscle, or body part exposed to crushing, caught-between, cutting, tearing, shearing items or equipment.",null,"Other -- Please explain in \"Project Description and Training Narrative\" above"]
["Advanced Welding",null,"Cass ",{"$nulls":11},"Shriver","Boston",{"$nulls":5},"Noise: Noise levels that result in hearing damage or inability to communicate safety-critical information."]
["Bricklayer, Pre-Apprentice",null,"Cassadaga",{"$nulls":11},"South Bronx","Boston",{"$nulls":5},"Radiaion (Ionizing): Alpha, Beta, Gamma, neutral particles, and X-rays that cause injury (tissue damage) by ionization of cellular components."]
["Bricklaying ",null,"Centennial",{"$nulls":11},"Westover","Boston",{"$nulls":5},"Radiation (Non-Ionizing): Ultraviolet, visible light, infrared, and microwaves that cause injury to tissue by thermal or photochemical means."]
["Building Construction Technology, Pre-Apprentice",null,"Charleston",{"$nulls":11},"Blue Ridge","Philadelphia",{"$nulls":5},"Struck By (Mass Acceleration): Accelerated mass that strikes the body causing injury or death. (Examples are falling objects, vehicle impacts, and projectiles.)"]
["Carpentry",null,"Cincinnati",{"$nulls":11},"Carl D. Perkins","Philadelphia",{"$nulls":5},"Struck Against: Injury to a body part as a result of coming into contact of a surface in which action was initiated by the person. (An example is when a screwdriver slips.)"]
["Carpentry, Pre-Apprentice",null,"Clearfield",{"$nulls":11},"Charleston","Philadelphia",{"$nulls":5},"Temperature Extremem (Heat/Cold): Temperatures that result in heat stress, exhaustion, or metabolic slow down such as hypothermia."]
["Cement Masonry",null,"Cleveland",{"$nulls":11},"Earle C. Clements","Philadelphia",{"$nulls":5},"Visibility: Lack of lighting or obstructed vision that results in an error or other hazard."]
["Cement Masonry, Pre-Apprentice",null,"Collbran",{"$nulls":11},"Flatwoods","Philadelphia",{"$nulls":5},"Weather Phenomena (Snow/Rain/Wind/Ice): Self explanatory."]
["Construction Craft Laborer",null,"Columbia Basin",{"$nulls":11},"Frenchburg","Philadelphia"]
["Electrical",null,"Curlew",{"$nulls":11},"Great Onyx","Philadelphia"]
["Electrical, Pre-Apprentice",null,"David Carrasco",{"$nulls":11},"Harpers Ferry","Philadelphia"]
["Exterior Landscaping",null,"Dayton",{"$nulls":11},"Keystone","Philadelphia"]
["Facilities Maintenance ",null,"Delaware Valley",{"$nulls":11},"Muhlenberg","Philadelphia"]
["Floor Covering",null,"Denison",{"$nulls":11},"Old Dominion","Philadelphia"]
["Forestry Conservation and Firefighting ",null,"Detroit",{"$nulls":11},"Philadelphia","Philadelphia"]
["Forklift Mechanic",null,"Earle C. Clements",{"$nulls":11},"Pine Knot","Philadelphia"]
["Glazing, Pre-Apprentice",null,"Edison",{"$nulls":11},"Pittsburgh","Philadelphia"]
["Heating, Ventilation, & Air Conditioning (HVAC)",null,"Excelsior Springs",{"$nulls":11},"Potomac","Philadelphia"]
["Heavy Construction Equipment Mechanic",null,"Exeter",{"$nulls":11},"Red Rock","Philadelphia"]
["Heavy Construction Equipment Mechanic, Pre-Apprentice",null,"Finch-Henry",{"$nulls":11},"Wilmington","Philadelphia"]
["Heavy Construction Equipment Operations, Pre-Apprentice",null,"Flatwoods",{"$nulls":11},"WM Young","Philadelphia"]
["Heavy Equipment Operations ",null,"Flint Hills",{"$nulls":11},"Woodland","Philadelphia"]
["Heavy Truck Driving - Tractor Trailer",null,"Flint/Genesee",{"$nulls":11},"Woodstock","Philadelphia"]
["Heavy Truck Driving Straight ",null,"Fort Simcoe",{"$nulls":11},"Atlanta","Atlanta"]
["HVAC Trainee, Pre-Apprentice",null,"Fred G. Acosta",{"$nulls":11},"Bamberg","Atlanta"]
["Landscaping",null,"Frenchburg",{"$nulls":11},"BL Hooks/Memphis","Atlanta"]
["Machining ",null,"Gadsden",{"$nulls":11},"Brunswick","Atlanta"]
["Maintenance Repairer Helper - Stationary Engineering, Pre-Apprentice",null,"Gainesville",{"$nulls":11},"Finch-Henry","Atlanta"]
["Manufacturing Technology ",null,"Gary",{"$nulls":11},"Gadsden","Atlanta"]
["Millwright-Welding, Pre-Apprentice",null,"Gerald R. Ford",{"$nulls":11},"Gainesville","Atlanta"]
["Network Cable Installation - Copper-based",null,"Glenmont",{"$nulls":11},"Gulfport","Atlanta"]
["Network Cable Installation - Fiber Optics-Based",null,"Grafton",{"$nulls":11},"Jacksonville","Atlanta"]
["Ornamental Landscaping",null,"Great Onyx",{"$nulls":11},"Jacobs Creek","Atlanta"]
["OTP in Advanced Renewable Resources and Energy",null,"Gulfport",{"$nulls":11},"Kittrell","Atlanta"]
["OTP in Construction (Electrical)",null,"Guthrie",{"$nulls":11},"Lyndon Johnson","Atlanta"]
["OTP in Hospitality ",null,"Harpers Ferry",{"$nulls":11},"Miami","Atlanta"]
["Painting",null,"Hartford",{"$nulls":11},"Mississippi","Atlanta"]
["Painting, Pre-Apprentice",null,"Hawai'i",{"$nulls":11},"Montgomery","Atlanta"]
["Petroleum Service Technician ",null,"HH Humphrey ",{"$nulls":11},"Oconaluftee","Atlanta"]
["Plastering, Pre-Apprentice",null,"Inland Empire",{"$nulls":11},"Pinellas","Atlanta"]
["Plumbing ",null,"Iroquois",{"$nulls":11},"Schenck","Atlanta"]
["Plumbing, Pre-Apprentice",null,"Jacksonville",{"$nulls":11},"Turner","Atlanta"]
["Sewer and Waste Worker - Introduction to Water/Wastewater Systems",null,"Jacobs Creek",{"$nulls":11},"Albuquerque","Dallas"]
["Sign, Billboard, and Display, Pre-Apprentice",null,"Joliet",{"$nulls":11},"Anaconda","Dallas"]
["Solar Photovoltaic (PV) Technician, Pre-Apprentice ",null,"Keystone",{"$nulls":11},"Boxelder","Dallas"]
["Tile Setting, Pre-Apprentice",null,"Kicking Horse",{"$nulls":11},"Carville","Dallas"]
["Urban Forestry ",null,"Kittrell",{"$nulls":11},"Cass ","Dallas"]
["Wastewater Collection Operator",null,"Laredo",{"$nulls":11},"Clearfield","Dallas"]
["Wastewater Treatment Operator",null,"Little Rock",{"$nulls":11},"Collbran","Dallas"]
["Water Distribution Operator",null,"Long Beach",{"$nulls":11},"David Carrasco","Dallas"]
["Water Treatment Operator",null,"Loring",{"$nulls":11},"Gary","Dallas"]
["Welding ",null,"Los Angeles",{"$nulls":11},"Guthrie","Dallas"]
[null,null,"Lyndon Johnson",{"$nulls":11},"Kicking Horse","Dallas"]
[null,null,"Miami",{"$nulls":11},"Laredo","Dallas"]
[null,null,"Milwaukee ",{"$nulls":11},"Little Rock","Dallas"]
[null,null,"Mingo",{"$nulls":11},"New Orleans","Dallas"]
[null,null,"Mississippi",{"$nulls":11},"North Texas","Dallas"]
[null,null,"Montgomery",{"$nulls":11},"Quentin Burdick","Dallas"]
[null,null,"Muhlenberg",{"$nulls":11},"Roswell","Dallas"]
[null,null,"New Hampshire",{"$nulls":11},"Shreveport","Dallas"]
[null,null,"New Haven",{"$nulls":11},"Talking Leaves","Dallas"]
[null,null,"New Orleans",{"$nulls":11},"Trapper Creek","Dallas"]
[null,null,"North Texas",{"$nulls":11},"Tulsa","Dallas"]
[null,null,"Northlands",{"$nulls":11},"Weber Basin","Dallas"]
[null,null,"Oconaluftee",{"$nulls":11},"Wind River","Dallas"]
[null,null,"Old Dominion",{"$nulls":11},"Atterbury","Chicago"]
[null,null,"Oneonta",{"$nulls":11},"Blackwell","Chicago"]
[null,null,"Ottumwa",{"$nulls":11},"Cincinnati","Chicago"]
[null,null,"Paul Simon",{"$nulls":11},"Cleveland","Chicago"]
[null,null,"Penobscot",{"$nulls":11},"Dayton","Chicago"]
[null,null,"Philadelphia",{"$nulls":11},"Denison","Chicago"]
[null,null,"Phoenix",{"$nulls":11},"Detroit","Chicago"]
[null,null,"Pine Knot",{"$nulls":11},"Excelsior Springs","Chicago"]
[null,null,"Pine Ridge",{"$nulls":11},"Flint Hills","Chicago"]
[null,null,"Pinellas",{"$nulls":11},"Flint/Genesee","Chicago"]
[null,null,"Pittsburgh",{"$nulls":11},"Gerald R. Ford","Chicago"]
[null,null,"Potomac",{"$nulls":11},"HH Humphrey ","Chicago"]
[null,null,"Quentin Burdick",{"$nulls":11},"Joliet","Chicago"]
[null,null,"Ramey",{"$nulls":11},"Milwaukee ","Chicago"]
[null,null,"Red Rock",{"$nulls":11},"Mingo","Chicago"]
[null,null,"Roswell",{"$nulls":11},"Ottumwa","Chicago"]
[null,null,"Sacramento",{"$nulls":11},"Paul Simon","Chicago"]
[null,null,"San Diego",{"$nulls":11},"Pine Ridge","Chicago"]
[null,null,"San Jose",{"$nulls":11},"St. Louis","Chicago"]
[null,null,"Schenck",{"$nulls":11},"Alaska","San Francisco"]
[null,null,"Shreveport",{"$nulls":11},"Angell","San Francisco"]
[null,null,"Shriver",{"$nulls":11},"Cascades","San Francisco"]
[null,null,"Sierra Nevada",{"$nulls":11},"Centennial","San Francisco"]
[null,null,"South Bronx",{"$nulls":11},"Columbia Basin","San Francisco"]
[null,null,"Springdale",{"$nulls":11},"Curlew","San Francisco"]
[null,null,"St. Louis",{"$nulls":11},"Fort Simcoe","San Francisco"]
[null,null,"Talking Leaves",{"$nulls":11},"Fred G. Acosta","San Francisco"]
[null,null,"Timber Lake",{"$nulls":11},"Hawai'i","San Francisco"]
[null,null,"Tongue Point",{"$nulls":11},"Inland Empire","San Francisco"]
[null,null,"Trapper Creek",{"$nulls":11},"Long Beach","San Francisco"]
[null,null,"Treasure Island",{"$nulls":11},"Los Angeles","San Francisco"]
[null,null,"Tulsa",{"$nulls":11},"Phoenix","San Francisco"]
[null,null,"Turner",{"$nulls":11},"Sacramento","San Francisco"]
[null,null,"Weber Basin",{"$nulls":11},"San Diego","San Francisco"]
[null,null,"Westover",{"$nulls":11},"San Jose","San Francisco"]
[null,null,"Wilmington",{"$nulls":11},"Sierra Nevada","San Francisco"]
[null,null,"Wind River",{"$nulls":11},"Springdale","San Francisco"]
[null,null,"WM Young",{"$nulls":11},"Timber Lake","San Francisco"]
[null,null,"Wolf Creek",{"$nulls":11},"Tongue Point","San Francisco"]
[null,null,"Woodland",{"$nulls":11},"Treasure Island","San Francisco"]
[null,null,"Woodstock",{"$nulls":11},"Wolf Creek","San Francisco"]

{"sheet":"LISTS","index":28,"n_rows":35,"n_cols":11,"rows_kept":35,"hidden":true}
["REGIONS","ATLANTA","BOSTON","CHICAGO","DALLAS","PHILADELPHIA","SAN_FRANCISCO","TRADES","RESPONSES","HAZARD CONTROLS","PHASEYEAR"]
["Atlanta","Atlanta","Arecibo","Atterbury","Albuquerque","Blue Ridge","Alaska","Bricklaying","YES","Administrative control - Control access to hazardous material/site","P - Planning phase"]
["Boston","Bamberg","Barranquitas","Blackwell","Anaconda","Carl D. Perkins","Angell","Carpentry","NO","Administrative control - Institute written operating procedures and best practices training","1 - 1st year of construction"]
["Chicago","Benjamin L Hooks","Cassadaga","Cincinnati","Boxelder","Charleston","Cascades","Cement Masonry",null,"Administrative control - Limit exposure to hazard using time monitoring","2 - 2nd year of construction"]
["Dallas","Brunswick","Delaware Valley","Cleveland","Carville","Earle C. Clements","Centennial","Constr Tech/Craft",null,"Administrative control - Provide training/testing on hazard abatement","3 - 3rd year of construction"]
["Philadelphia","Finch-Henry","Edison","Dayton","Cass","Flatwoods","Columbia Basin","Electrical",null,"Administrative control - Utilize policy of buddy system","4 - 4th year of construction"]
["San Francisco","Gadsden","Exeter","Denison","Clearfield","Frenchburg","Curlew","Facilities Maint",null,"Engineering control - Eliminate cause of hazard without substitute","5 - 5th year of construction"]
[null,"Gainesville","Glenmont","Detroit","Collbran","Great Onyx","Fort Simcoe","Floor Covering",null,"Engineering control - Fully enclose cause of hazard to limit access/exposure","6 - 6th year of construction"]
[null,"Gulfport","Grafton","Excelsior Springs","David L. Carrasco","Harpers Ferry","Fred G. Acosta","Forest Cons & Fire",null,"Engineering control - Partially isolate hazard with guards/shields","7 - 7th year of construction"]
[null,"Homestead","Hartford","Flint Genesee","Gary","Keystone","Hawaii","Glazing",null,"Engineering control - Remove/redirect hazard with ventilation","8 - 8th year of construction"]
[null,"Jacksonville","Iroquois","Flint Hills","Guthrie","Muhlenberg","Inland Empire","HVAC",null,"Engineering control - Substitute cause of hazard with other material/process","9 - 9th year of construction"]
[null,"Jacobs Creek","Loring","Gerald R. Ford","Kicking Horse","Old Dominion","Long Beach ","Heavy Equip Mech",null,"PPE - Hardhat","10 - 10th year of construction"]
[null,"Kittrell","New Haven","Golconda","Laredo","Philadelphia","Los Angeles","Heavy Equip Op",null,"PPE - Harness"]
[null,"Lyndon B. Johnson","Northlands","Hubert H. Humphrey","Little Rock","Pine Knot","Phoenix","Heavy Truck Driving",null,"PPE - Hearing protection"]
[null,"Miami","Oneonta","Joliet","New Orleans","Pittsburgh","Sacramento","Landscaping",null,"PPE - Protective body clothing/footware"]
[null,"Mississippi","Penobscot","Milwaukee","North Texas","Potomac","San Diego","Machining",null,"PPE - Respirator"]
[null,"Montgomery","Ramey","Mingo","Ouachita","Red Rock","San Jose","Manufacturing Tech",null,"PPE - Safety eyeware"]
[null,"Oconaluftee","Shriver","Ottumwa","Quentin Burdick","Whitney Young","Sierra Nevada","Overhead Line Const"]
[null,"Pinellas","South Bronx","Paul Simon","Roswell","Wilmington","Springdale","Painting"]
[null,"Schenck","Westover","Pine Ridge","Shreveport","Woodland","Timber Lake","Paving - Machine Op"]
[null,"Turner",null,"St. Louis","Talking Leaves","Woodstock","Tongue Point","Plastering"]
[{"$nulls":4},"Trapper Creek",null,"Treasure Island","Plumbing"]
[{"$nulls":4},"Treasure Lake",null,"Wolf Creek","Point/Caulk/Clean"]
[{"$nulls":4},"Tulsa",null,null,"Sign & Billboard"]
[{"$nulls":4},"Weber Basin",null,null,"Smart Meter Tech"]
[{"$nulls":7},"Solar I&R"]
[{"$nulls":7},"Stat Eng - Maint"]
[{"$nulls":7},"Stat Eng"]
[{"$nulls":7},"Surveying"]
[{"$nulls":7},"Tile Setting"]
[{"$nulls":7},"Underground Res Dist"]
[{"$nulls":7},"Urban Forestry"]
[{"$nulls":7},"Water/Waste Treat"]
[{"$nulls":7},"Weatherization"]
[{"$nulls":7},"Welding"]